Workbook

Sheet TDPrimas_ (hidden)
A3: periodo | B3: 2023-Q1
A4: Ramo_ | B4: 10 Total General
A6: jerarquia | B6: nombre_compania | C6: Suma de Prima_DirectaAct | D6: Suma de Prima_DirectaAnt | E6: Suma de Part_Mercado_Act | F6: Suma de Part_Mercado_Ant | G6: Suma de PD_IncreAbs | H6: Suma de PD_IncreRel | I6: Suma de Part_Operacion_Act | J6: Suma de Part_Cartera_Act | K6: Suma de Part_Sector_Act
A7: 1 | B7: G.N.P. | C7: 26676629.11 | D7: 21970506.01 | E7: 12.24065432 | F7: 11.46859452 | G7: 4706123.096 | H7: 21.42018529 | I7: 100 | J7: 100 | K7: 12.24065432
A8: 2 | B8: Metlife México | C8: 26097031.68 | D8: 24057802.08 | E8: 11.97470423 | F8: 12.55816216 | G8: 2039229.593 | H8: 8.4763753 | I8: 100 | J8: 100 | K8: 11.97470423
A9: 3 | B9: BBVA Bancomer | C9: 17603852.66 | D9: 14691628.1 | E9: 8.0775826 | F9: 7.669023439 | G9: 2912224.56 | H9: 19.82234058 | I9: 100 | J9: 100 | K9: 8.0775826
A10: 4 | B10: AXA Seguros | C10: 15398992.57 | D10: 13965513.66 | E10: 7.065875684 | F10: 7.289992019 | G10: 1433478.911 | H10: 10.26441953 | I10: 100 | J10: 100 | K10: 7.065875684
A11: 5 | B11: Banorte | C11: 11640133.16 | D11: 13532473.69 | E11: 5.341111338 | F11: 7.063945343 | G11: -1892340.534 | H11: -13.98370008 | I11: 100 | J11: 100 | K11: 5.341111338
A12: 5.1 | B12: TOTAL GRANDES | C12: 97416639.17 | D12: 88217923.55 | E12: 44.69992817 | F12: 46.04971748 | G12: 9198715.627 | H12: 10.42726382 | I12: 100 | J12: 100 | K12: 44.69992817
A13: 6 | B13: Quálitas | C13: 11419161.89 | D13: 8869182.58 | E13: 5.239717982 | F13: 4.629709425 | G13: 2549979.305 | H13: 28.75100701 | I13: 100 | J13: 100 | K13: 5.239717982
A14: 7 | B14: Monterrey New York Life | C14: 10223427.72 | D14: 9516075.8 | E14: 4.691051636 | F14: 4.967387402 | G14: 707351.9164 | H14: 7.43323121 | I14: 100 | J14: 100 | K14: 4.691051636
A15: 8 | B15: Citibanamex Seguros | C15: 8056026.659 | D15: 5326674.19 | E15: 3.696532913 | F15: 2.780521596 | G15: 2729352.469 | H15: 51.23933568 | I15: 100 | J15: 100 | K15: 3.696532913
A16: 9 | B16: Agroasemex | C16: 7438742.863 | D16: 0 | E16: 3.413290322 | I16: 100 | J16: 100 | K16: 3.413290322
A17: 10 | B17: Inbursa | C17: 6926531.76 | D17: 5739037.906 | E17: 3.178260662 | F17: 2.995775275 | G17: 1187493.853 | H17: 20.69151438 | I17: 100 | J17: 100 | K17: 3.178260662
A18: 11 | B18: Chubb Seguros México | C18: 6735524.305 | D18: 6329296.85 | E18: 3.090616297 | F18: 3.303890185 | G18: 406227.4548 | H18: 6.418208285 | I18: 100 | J18: 100 | K18: 3.090616297
A19: 12 | B19: Mapfre México | C19: 6434437 | D19: 7309671.149 | E19: 2.95246145 | F19: 3.81564514 | G19: -875234.1484 | H19: -11.97364602 | I19: 100 | J19: 100 | K19: 2.95246145
A20: 13 | B20: Atlas | C20: 5493499.04 | D20: 4932623.223 | E20: 2.520709138 | F20: 2.574827164 | G20: 560875.817 | H20: 11.37074112 | I20: 100 | J20: 100 | K20: 2.520709138
A21: 14 | B21: Allianz México | C21: 5252582.056 | D21: 4453754.78 | E21: 2.410163629 | F21: 2.324858046 | G21: 798827.2767 | H21: 17.93604085 | I21: 100 | J21: 100 | K21: 2.410163629
A22: 15 | B22: GMX Seguros | C22: 4704042.364 | D22: 5404782.84 | E22: 2.158464484 | F22: 2.821294277 | G22: -700740.4758 | H22: -12.96519206 | I22: 100 | J22: 100 | K22: 2.158464484
A23: 15.1 | B23: TOTAL MEDIANAS | C23: 72683975.65 | D23: 57881099.32 | E23: 33.35126851 | F23: 30.21390851 | G23: 14802876.33 | H23: 25.57462886 | I23: 100 | J23: 100 | K23: 33.35126851
A24: 16 | B24: Pensiones Banorte | C24: 4253756.252 | D24: 4945870.012 | E24: 1.951849299 | F24: 2.581741981 | G24: -692113.7605 | H24: -13.99377175 | I24: 100 | J24: 100 | K24: 1.951849299
A25: 17 | B25: Zurich Santander | C25: 3574791.877 | D25: 3159180.281 | E25: 1.640304382 | F25: 1.649090724 | G25: 415611.5963 | H25: 13.15567835 | I25: 100 | J25: 100 | K25: 1.640304382
A26: 18 | B26: AIG Seguros | C26: 3306000.074 | D26: 1805143.756 | E26: 1.516968427 | F26: 0.9422842507 | G26: 1500856.318 | H26: 83.14331268 | I26: 100 | J26: 100 | K26: 1.516968427
A27: 19 | B27: Zurich Aseguradora Mexicana | C27: 3031903.051 | D27: 78671.97078 | E27: 1.391198154 | F27: 0.04106673431 | G27: 2953231.08 | H27: 3753.854201 | I27: 100 | J27: 100 | K27: 1.391198154
A28: 20 | B28: HDI Seguros | C28: 2965779.202 | D28: 2289870.937 | E28: 1.36085702 | F28: 1.195311627 | G28: 675908.2655 | H28: 29.51730837 | I28: 100 | J28: 100 | K28: 1.36085702
A29: 21 | B29: Pensiones BBVA Bancomer | C29: 2683241.252 | D29: 3936798.332 | E29: 1.231213602 | F29: 2.055007006 | G29: -1253557.081 | H29: -31.84204459 | I29: 100 | J29: 100 | K29: 1.231213602
A30: 22 | B30: ProFuturo G.N.P. | C30: 2615977.475 | D30: 2246257.456 | E30: 1.200349409 | F30: 1.172545409 | G30: 369720.0194 | H30: 16.45937862 | I30: 100 | J30: 100 | K30: 1.200349409
A31: 23 | B31: Afirme | C31: 2232143.874 | D31: 1889300.432 | E31: 1.024226166 | F31: 0.9862139988 | G31: 342843.4419 | H31: 18.14658145 | I31: 100 | J31: 100 | K31: 1.024226166
A32: 24 | B32: Seguros Azteca | C32: 1962137.495 | D32: 1626725.297 | E32: 0.9003328985 | F32: 0.8491498929 | G32: 335412.1986 | H32: 20.6188592 | I32: 100 | J32: 100 | K32: 0.9003328985
A33: 25 | B33: Hir Seguros | C33: 1797983.439 | D33: 1430544.885 | E33: 0.8250102986 | F33: 0.7467438036 | G33: 367438.5542 | H33: 25.68521674 | I33: 100 | J33: 100 | K33: 0.8250102986
A34: 26 | B34: HSBC Seguros | C34: 1622418.914 | D34: 1476975.642 | E34: 0.7444519698 | F34: 0.7709806386 | G34: 145443.2721 | H34: 9.847371068 | I34: 100 | J34: 100 | K34: 0.7444519698
A35: 27 | B35: Seguros SURA | C35: 1504539.568 | D35: 1761775.443 | E35: 0.6903626649 | F35: 0.9196460099 | G35: -257235.8746 | H35: -14.60094563 | I35: 100 | J35: 100 | K35: 0.6903626649
A36: 28 | B36: Seguros Azteca Daños | C36: 1251067.98 | D36: 1718523.353 | E36: 0.5740564375 | F36: 0.897068438 | G36: -467455.373 | H36: -27.20099044 | I36: 100 | J36: 100 | K36: 0.5740564375
A37: 29 | B37: HDI Global Seguros | C37: 1017302.517 | D37: 469926.6922 | E37: 0.4667924273 | F37: 0.2453015276 | G37: 547375.8252 | H37: 116.4811096 | I37: 100 | J37: 100 | K37: 0.4667924273
A38: 30 | B38: Cardif Vida | C38: 972637.9765 | D38: 837222.9085 | E38: 0.4462979637 | F38: 0.4370299918 | G38: 135415.068 | H38: 16.17431471 | I38: 100 | J38: 100 | K38: 0.4462979637
A39: 31 | B39: BUPA México | C39: 874777.1123 | D39: 826190.4077 | E39: 0.4013942014 | F39: 0.4312710312 | G39: 48586.70459 | H39: 5.880811994 | I39: 100 | J39: 100 | K39: 0.4013942014
A40: 32 | B40: ANA | C40: 822201.8011 | D40: 723121.3903 | E40: 0.3772698562 | F40: 0.3774690492 | G40: 99080.41087 | H40: 13.70176739 | I40: 100 | J40: 100 | K40: 0.3772698562
A41: 33 | B41: Ve Por Más | C41: 764564.7006 | D41: 678146.0975 | E41: 0.3508228932 | F41: 0.3539919661 | G41: 86418.60311 | H41: 12.74336068 | I41: 100 | J41: 100 | K41: 0.3508228932
A42: 34 | B42: Seguros Argos | C42: 758060.4487 | D42: 1176942.889 | E42: 0.347838397 | F42: 0.6143636727 | G42: -418882.4398 | H42: -35.5907193 | I42: 100 | J42: 100 | K42: 0.347838397
A43: 35 | B43: Plan Seguro | C43: 702706.0644 | D43: 842005.7839 | E43: 0.3224388654 | F43: 0.4395266506 | G43: -139299.7195 | H43: -16.54379604 | I43: 100 | J43: 100 | K43: 0.3224388654
A44: 36 | B44: FM Global | C44: 685542.5401 | D44: 573005.8212 | E44: 0.3145633288 | F44: 0.2991087878 | G44: 112536.719 | H44: 19.63971653 | I44: 100 | J44: 100 | K44: 0.3145633288
A45: 37 | B45: El Potosí | C45: 663569.2062 | D45: 548570.9886 | E45: 0.3044807961 | F45: 0.2863538159 | G45: 114998.2176 | H45: 20.96323356 | I45: 100 | J45: 100 | K45: 0.3044807961
A46: 38 | B46: General de Seguros | C46: 660743.6803 | D46: 638551.5422 | E46: 0.3031842948 | F46: 0.3333236256 | G46: 22192.1381 | H46: 3.475387127 | I46: 100 | J46: 100 | K46: 0.3031842948
A47: 39 | B47: AXA Salud | C47: 487258.3274 | D47: 488407.7121 | E47: 0.2235800005 | F47: 0.2549486119 | G47: -1149.38476 | H47: -0.2353330489 | I47: 100 | J47: 100 | K47: 0.2235800005
A48: 40 | B48: Assurant Vida | C48: 448721.7349 | D48: 72452.07634 | E48: 0.2058973651 | F48: 0.03781995214 | G48: 376269.6585 | H48: 519.3359218 | I48: 100 | J48: 100 | K48: 0.2058973651
A49: 41 | B49: Prudential | C49: 433447.1346 | D49: 347533.3727 | E49: 0.1988885672 | F49: 0.1814122684 | G49: 85913.7619 | H49: 24.7210106 | I49: 100 | J49: 100 | K49: 0.1988885672
A50: 42 | B50: Cardif Seguros Generales | C50: 431726.5307 | D50: 287943.7976 | E50: 0.1980990627 | F50: 0.1503065363 | G50: 143782.7332 | H50: 49.93430468 | I50: 100 | J50: 100 | K50: 0.1980990627
A51: 43 | B51: Insignia Life | C51: 421128.095 | D51: 404699.6429 | E51: 0.1932359375 | F51: 0.2112530365 | G51: 16428.45205 | H51: 4.059418469 | I51: 100 | J51: 100 | K51: 0.1932359375
A52: 44 | B52: El Águila | C52: 401246.1002 | D52: 326812.7127 | E52: 0.1841130223 | F52: 0.170596093 | G52: 74433.38753 | H52: 22.77554839 | I52: 100 | J52: 100 | K52: 0.1841130223
A53: 45 | B53: La Latinoamericana | C53: 378273.6306 | D53: 386901.9131 | E53: 0.1735720331 | F53: 0.2019626293 | G53: -8628.28243 | H53: -2.230095572 | I53: 100 | J53: 100 | K53: 0.1735720331
A54: 46 | B54: Patrimonial Inbursa | C54: 365783.3579 | D54: 399496.2087 | E54: 0.1678408326 | F54: 0.2085368461 | G54: -33712.85078 | H54: -8.438841233 | I54: 100 | J54: 100 | K54: 0.1678408326
A55: 47 | B55: Tokio Marine | C55: 328979.0608 | D55: 675587.689 | E55: 0.1509530663 | F55: 0.3526564779 | G55: -346608.6282 | H55: -51.30475789 | I55: 100 | J55: 100 | K55: 0.1509530663
A56: 48 | B56: Patrimonial Vida | C56: 318429.8218 | D56: 1407005.949 | E56: 0.1461125151 | F56: 0.7344564895 | G56: -1088576.127 | H56: -77.36826756 | I56: 100 | J56: 100 | K56: 0.1461125151
A57: 49 | B57: Pan-American México | C57: 309110.8096 | D57: 143964.6181 | E57: 0.1418364573 | F57: 0.07514946766 | G57: 165146.1914 | H57: 114.713041 | I57: 100 | J57: 100 | K57: 0.1418364573
A58: 50 | B58: BBVA Bancomer Salud | C58: 295419.7616 | D58: 122393.0118 | E58: 0.1355542773 | F58: 0.0638890986 | G58: 173026.7498 | H58: 141.3697949 | I58: 100 | J58: 100 | K58: 0.1355542773
A59: 51 | B59: Primero Seguros | C59: 285123.9824 | D59: 283509.6926 | E59: 0.130830027 | F59: 0.1479919354 | G59: 1614.28978 | H59: 0.5693949175 | I59: 100 | J59: 100 | K59: 0.130830027
A60: 52 | B60: General de Salud | C60: 240008.1062 | D60: 128786.919 | E60: 0.1101284667 | F60: 0.06722671536 | G60: 111221.1871 | H60: 86.3606242 | I60: 100 | J60: 100 | K60: 0.1101284667
A61: 53 | B61: PREVEM Seguros | C61: 216996.1496 | D61: 126840.0351 | E61: 0.0995693588 | F61: 0.06621044283 | G61: 90156.11441 | H61: 71.07859463 | I61: 100 | J61: 100 | K61: 0.0995693588
A62: 54 | B62: Berkley Seguros | C62: 192876.4358 | D62: 138917.2502 | E62: 0.08850195307 | F62: 0.07251474381 | G62: 53959.18563 | H62: 38.84268192 | I62: 100 | J62: 100 | K62: 0.08850195307
A63: 55 | B63: Atradius | C63: 191703.7614 | D63: 188280.9903 | E63: 0.08796386774 | F63: 0.09828259452 | G63: 3422.77109 | H63: 1.817905825 | I63: 100 | J63: 100 | K63: 0.08796386774
A64: 56 | B64: Sompo Japan | C64: 189031.925 | D64: 186805.3507 | E64: 0.0867378873 | F64: 0.09751231129 | G64: 2226.57432 | H64: 1.191922133 | I64: 100 | J64: 100 | K64: 0.0867378873
A65: 57 | B65: Solunion Crédito | C65: 173836.217 | D65: 138126.0983 | E65: 0.07976528935 | F65: 0.07210176287 | G65: 35710.11863 | H65: 25.85327398 | I65: 100 | J65: 100 | K65: 0.07976528935
A66: 58 | B66: Dentegra | C66: 145760.7721 | D66: 115299.2576 | E66: 0.06688278406 | F66: 0.06018616202 | G66: 30461.51442 | H66: 26.41952346 | I66: 100 | J66: 100 | K66: 0.06688278406
A67: 59 | B67: Swiss Re Corporate Solutions | C67: 131577.2293 | D67: 88118.5631 | E67: 0.06037462129 | F67: 0.04599785137 | G67: 43458.66617 | H67: 49.31840085 | I67: 100 | J67: 100 | K67: 0.06037462129
A68: 60 | B68: SHF Cred Vivienda | C68: 128656.8788 | D68: 98682.88025 | E68: 0.05903460939 | F68: 0.0515124203 | G68: 29973.99855 | H68: 30.37406131 | I68: 100 | J68: 100 | K68: 0.05903460939
A69: 61 | B69: Skandia Life | C69: 105288.8858 | D69: 153166.8945 | E69: 0.04831213303 | F69: 0.07995305189 | G69: -47878.00874 | H69: -31.25871873 | I69: 100 | J69: 100 | K69: 0.04831213303
A70: 62 | B70: Coface | C70: 100488.6828 | D70: 113603.5251 | E70: 0.04610954493 | F70: 0.05930099036 | G70: -13114.84231 | H70: -11.54439733 | I70: 100 | J70: 100 | K70: 0.04610954493
A71: 63 | B71: Patrimonial Daños | C71: 72046.59106 | D71: 52090.99996 | E71: 0.03305880261 | F71: 0.02719147918 | G71: 19955.5911 | H71: 38.30909584 | I71: 100 | J71: 100 | K71: 0.03305880261
A72: 64 | B72: Assurant Daños | C72: 65408.41517 | D72: 62049.4095 | E72: 0.03001285494 | F72: 0.0323897646 | G72: 3359.00567 | H72: 5.413436964 | I72: 100 | J72: 100 | K72: 0.03001285494
A73: 65 | B73: MediAccess | C73: 51745.07349 | D73: 36238.523 | E73: 0.02374338807 | F73: 0.01891649314 | G73: 15506.55049 | H73: 42.79023869 | I73: 100 | J73: 100 | K73: 0.02374338807
A74: 66 | B74: Centauro | C74: 43790.38458 | D74: 34971.82723 | E74: 0.0200933543 | F74: 0.01825527851 | G74: 8818.55735 | H74: 25.21617556 | I74: 100 | J74: 100 | K74: 0.0200933543
A75: 67 | B75: Odontoprev | C75: 38116.88522 | D75: 11515.85694 | E75: 0.01749005145 | F75: 0.006011272282 | G75: 26601.02828 | H75: 230.9947789 | I75: 100 | J75: 100 | K75: 0.01749005145
A76: 68 | B76: Virginia Surety | C76: 35687.97172 | D76: 21965.67771 | E76: 0.01637553693 | F76: 0.01146607415 | G76: 13722.29401 | H76: 62.47152576 | I76: 100 | J76: 100 | K76: 0.01637553693
A77: 69 | B77: Genworth Seg. de Crédito | C77: 25310.37225 | D77: 17312.38152 | E77: 0.01161374311 | F77: 0.009037055576 | G77: 7997.99073 | H77: 46.19809655 | I77: 100 | J77: 100 | K77: 0.01161374311
A78: 70 | B78: Metlife Más | C78: 24612.72012 | D78: 24682.47074 | E78: 0.01129362325 | F78: 0.01288423892 | G78: -69.75062 | H78: -0.2825917257 | I78: 100 | J78: 100 | K78: 0.01129362325
A79: 71 | B79: Crabi | C79: 19789.33522 | D79: 9202.30351 | E79: 0.009080398076 | F79: 0.004803598404 | G79: 10587.03171 | H79: 115.0476258 | I79: 100 | J79: 100 | K79: 0.009080398076
A80: 72 | B80: SPT | C80: 10270.4912 | D80: 7691.11336 | E80: 0.004712646862 | F80: 0.004014757808 | G80: 2579.37784 | H80: 33.537119 | I80: 100 | J80: 100 | K80: 0.004712646862
A81: 73 | B81: Citibanamex Pensiones | C81: 1390.50815 | D81: 11250.8117 | E81: 0.0006380389937 | F81: 0.005872918783 | G81: -9860.30355 | H81: -87.64081928 | I81: 100 | J81: 100 | K81: 0.0006380389937
A82: 74 | B82: Metlife Pensiones | C82: 1096.47702 | D82: 15732.58835 | E82: 0.0005031218943 | F82: 0.008212404233 | G82: -14636.11133 | H82: -93.03053639 | I82: 100 | J82: 100 | K82: 0.0005031218943
A83: 75 | B83: Pensiones Inbursa | C83: 91.47059 | D83: 0 | E83: 4.1971565e-05 | I83: 100 | J83: 100 | K83: 4.1971565e-05
A84: 76 | B84: Aserta Seguros de Vida | C84: 0 | D84: 105.39553 | F84: 5.501642053e-05
A85: 76 | B85: Principal México | C85: 0 | D85: 0
A86: 76 | B86: Zurich Daños | C86: 0 | D86: 2212646.459 | F86: 1.155000483
A87: 76 | B87: Zurich Vida | C87: 0 | D87: 451904.6986 | F87: 0.2358940549
A88: 81 | B88: Quálitas Salud | C88: -25.39069 | D88: 0 | E88: -1.165059716e-05 | I88: 100 | J88: 100 | K88: -1.165059716e-05
A89: 150.1 | B89: TOTAL RESTO | C89: 47834051.2 | D89: 45472018.99 | E89: 21.94880331 | F89: 23.73637401 | G89: 2362032.203 | H89: 5.194473998 | I89: 100 | J89: 100 | K89: 21.94880331
A90: 200 | B90: Patria | C90: 0 | D90: 0
A91: 201.1 | B91: TOTAL | C91: 217934666 | D91: 191571041.9 | E91: 100 | F91: 100 | G91: 26363624.16 | H91: 13.76180027 | I91: 100 | J91: 100 | K91: 100

Sheet TD Siniestros_ (hidden)
A2: periodo | B2: 2023-Q1
A3: Ramo_ | B3: 10 Total General
A5: jerarquia | B5: nombre_compania | C5: Suma de CostoSin_Act | D5: Suma de CostoSin_Ant | E5: Suma de SIN_IncreRel | F5: Suma de IncResvDivAct | G5: Suma de SINvsPRIM_ACT | H5: Suma de SINvsPRIM_ANT | I5: Suma de PartSIN_Merc_Act
A6: 1 | B6: G.N.P. | C6: 13950620.6 | D6: 12563808.36 | E6: 11.0381518 | F6: 89852.57949 | G6: 52.29529017 | H6: 57.18488392 | I6: 13.56954163
A7: 2 | B7: Metlife México | C7: 13278274.68 | D7: 11964761.66 | E7: 10.9781796 | F7: 54701.19171 | G7: 50.88040221 | H7: 49.73339467 | I7: 12.9155617
A8: 3 | B8: BBVA Bancomer | C8: 7306290.359 | D8: 6499233.071 | E8: 12.41773112 | F8: 0 | G8: 41.50392814 | H8: 44.23766396 | I8: 7.106709731
A9: 4 | B9: AXA Seguros | C9: 8529360.434 | D9: 7516591.949 | E9: 13.47377231 | F9: 104410.5328 | G9: 55.38908076 | H9: 53.82252404 | I9: 8.296370089
A10: 5 | B10: Banorte | C10: 3875368.97 | D10: 4492992.572 | E10: -13.74637487 | F10: 102972.262 | G10: 33.293167 | H10: 33.20156148 | I10: 3.769508331
A11: 5.1 | B11: TOTAL GRANDES | C11: 46939915.04 | D11: 43037387.61 | E11: 9.067760961 | F11: 351936.566 | G11: 48.1846997 | H11: 48.78531015 | I11: 45.65769147
A12: 6 | B12: Quálitas | C12: 7182439.131 | D12: 5639363.649 | E12: 27.36258164 | F12: 18944.86094 | G12: 62.89812863 | H12: 63.58380379 | I12: 6.986241658
A13: 7 | B13: Monterrey New York Life | C13: 6017298.049 | D13: 6115605.116 | E13: -1.60747898 | F13: 9660.94189 | G13: 58.85793117 | H13: 64.26604038 | I13: 5.852927888
A14: 8 | B14: Citibanamex Seguros | C14: 6380754.238 | D14: 9295457.427 | E14: -31.35621041 | F14: 0 | G14: 79.20473092 | H14: 174.5077152 | I14: 6.206455809
A15: 9 | B15: Agroasemex | C15: 319565.0424 | D15: 0 | F15: 4926.18649 | G15: 4.295954953 | I15: 0.3108357163
A16: 10 | B16: Inbursa | C16: 3481787.715 | D16: 2375383.455 | E16: 46.57792234 | F16: 56498.98492 | G16: 50.26740418 | H16: 41.38992447 | I16: 3.386678249
A17: 11 | B17: Chubb Seguros México | C17: 3100056.811 | D17: 2367419.766 | E17: 30.94664734 | F17: 32790.84577 | G17: 46.02547138 | H17: 37.40415123 | I17: 3.015374811
A18: 12 | B18: Mapfre México | C18: 3435151.255 | D18: 2628992.503 | E18: 30.66417086 | F18: 218660.589 | G18: 53.38697473 | H18: 35.9659477 | I18: 3.341315723
A19: 13 | B19: Atlas | C19: 2220660.432 | D19: 2141862.598 | E19: 3.678939735 | F19: -1557.37729 | G19: 40.42342442 | H19: 43.42238402 | I19: 2.160000264
A20: 14 | B20: Allianz México | C20: 2467516.926 | D20: 3233025.304 | E20: -23.67777256 | F20: 1015.9079 | G20: 46.97721804 | H20: 72.59100385 | I20: 2.400113558
A21: 15 | B21: GMX Seguros | C21: 480133.3407 | D21: 906375.4452 | E21: -47.02710194 | F21: 0 | G21: 10.20682433 | H21: 16.7698772 | I21: 0.4670178869
A22: 15.1 | B22: TOTAL MEDIANAS | C22: 35085362.94 | D22: 34703485.26 | E22: 1.100401521 | F22: 340940.9396 | G22: 48.27111152 | H22: 59.95650682 | I22: 34.12696156
A23: 16 | B23: Pensiones Banorte | C23: 3161078.445 | D23: 2788338.437 | E23: 13.36781803 | F23: 0 | G23: 74.31263707 | H23: 56.37710716 | I23: 3.074729561
A24: 17 | B24: Zurich Santander | C24: 743104.7399 | D24: 825211.6186 | E24: -9.949796745 | F24: 0 | G24: 20.78735673 | H24: 26.12106766 | I24: 0.7228058874
A25: 18 | B25: AIG Seguros | C25: 302973.238 | D25: 300076.956 | E25: 0.9651797622 | F25: 2546.799 | G25: 9.164344562 | H25: 16.62343816 | I25: 0.2946971381
A26: 19 | B26: Zurich Aseguradora Mexicana | C26: 846854.3979 | D26: 32652.61793 | E26: 2493.526803 | F26: -2980.95784 | G26: 27.93144713 | H26: 41.5047667 | I26: 0.8237214913
A27: 20 | B27: HDI Seguros | C27: 1559277.743 | D27: 1243263.482 | E27: 25.41812458 | F27: 0 | G27: 52.57565167 | H27: 54.29404173 | I27: 1.516684085
A28: 21 | B28: Pensiones BBVA Bancomer | C28: 2074045.043 | D28: 1871217.289 | E28: 10.839348 | F28: 0 | G28: 77.29625661 | H28: 47.53144895 | I28: 2.017389861
A29: 22 | B29: ProFuturo G.N.P. | C29: 1327040.967 | D29: 1117548.314 | E29: 18.74573572 | F29: 0 | G29: 50.72830251 | H29: 49.75156836 | I29: 1.290791153
A30: 23 | B30: Afirme | C30: 1341828.496 | D30: 1155115.999 | E30: 16.16396079 | F30: -623.85297 | G30: 60.11388923 | H30: 61.13987903 | I30: 1.305174741
A31: 24 | B31: Seguros Azteca | C31: 545140.1931 | D31: 860027.8201 | E31: -36.61365594 | F31: 0 | G31: 27.78297619 | H31: 52.86865716 | I31: 0.5302489943
A32: 25 | B32: Hir Seguros | C32: 417602.7299 | D32: 384945.8119 | E32: 8.483510416 | F32: 96183.77991 | G32: 23.22617222 | H32: 26.90903417 | I32: 0.4061953795
A33: 26 | B33: HSBC Seguros | C33: 752600.9898 | D33: 642694.6104 | E33: 17.10087149 | F33: 0 | G33: 46.38758728 | H33: 43.5142322 | I33: 0.7320427351
A34: 27 | B34: Seguros SURA | C34: 842567.2558 | D34: 664557.7035 | E34: 26.78616941 | F34: 10390.81593 | G34: 56.00166813 | H34: 37.72090855 | I34: 0.819551458
A35: 28 | B35: Seguros Azteca Daños | C35: -20785.99139 | D35: 108846.5166 | E35: -119.0966069 | F35: 7886.39385 | G35: -1.661459787 | H35: 6.33372345 | I35: -0.02021819556
A36: 29 | B36: HDI Global Seguros | C36: 87458.83272 | D36: 191038.6241 | E36: -54.21929301 | F36: 0 | G36: 8.597131259 | H36: 40.65285655 | I36: 0.0850697833
A37: 30 | B37: Cardif Vida | C37: 211269.1622 | D37: 271917.608 | E37: -22.30397884 | F37: -20536.89332 | G37: 21.72125367 | H37: 32.47851978 | I37: 0.205498076
A38: 31 | B38: BUPA México | C38: 758665.8632 | D38: 631068.3357 | E38: 20.21928851 | F38: 0 | G38: 86.72676188 | H38: 76.38291728 | I38: 0.7379419388
A39: 32 | B39: ANA | C39: 591466.4306 | D39: 395382.7343 | E39: 49.59338872 | F39: 7185.23703 | G39: 71.93689308 | H39: 54.67722841 | I39: 0.5753097717
A40: 33 | B40: Ve Por Más | C40: 615816.1324 | D40: 428334.7703 | E40: 43.76982097 | F40: 3583.23024 | G40: 80.54467227 | H40: 63.16260934 | I40: 0.5989943304
A41: 34 | B41: Seguros Argos | C41: 623983.1209 | D41: 638658.2806 | E41: -2.297810923 | F41: -398.33477 | G41: 82.31310865 | H41: 54.26416921 | I41: 0.6069382271
A42: 35 | B42: Plan Seguro | C42: 474349.7759 | D42: 434168.4584 | E42: 9.254775821 | F42: 0 | G42: 67.50329903 | H42: 51.56359573 | I42: 0.4613923076
A43: 36 | B43: FM Global | C43: 285738.2699 | D43: 283427.5278 | E43: 0.8152850071 | F43: 0 | G43: 41.68060379 | H43: 49.46328943 | I43: 0.2779329651
A44: 37 | B44: El Potosí | C44: 255047.793 | D44: 238005.2353 | E44: 7.160581035 | F44: -153.74031 | G44: 38.43574878 | H44: 43.38640581 | I44: 0.2480808377
A45: 38 | B45: General de Seguros | C45: 470556.0986 | D45: 490807.8198 | E45: -4.126201809 | F45: 793.18721 | G45: 71.21613307 | H45: 76.86267863 | I45: 0.4577022594
A46: 39 | B46: AXA Salud | C46: 114368.81 | D46: 105286.9209 | E46: 8.625847415 | F46: 0 | G46: 23.47190465 | H46: 21.5571782 | I46: 0.1112446803
A47: 40 | B47: Assurant Vida | C47: 62581.92504 | D47: 78124.37804 | E47: -19.89449822 | F47: 1473.03836 | G47: 13.94671133 | H47: 107.8290395 | I47: 0.06087242004
A48: 41 | B48: Prudential | C48: 48369.27817 | D48: 46927.12237 | E48: 3.073181834 | F48: 0 | G48: 11.1592105 | H48: 13.5029111 | I48: 0.04704800973
A49: 42 | B49: Cardif Seguros Generales | C49: 53604.73258 | D49: 41894.21407 | E49: 27.95259147 | F49: 0 | G49: 12.41636285 | H49: 14.54944139 | I49: 0.05214045103
A50: 43 | B50: Insignia Life | C50: 164032.8399 | D50: 251379.061 | E50: -34.7468165 | F50: 6173.09766 | G50: 38.9508185 | H50: 62.1149698 | I50: 0.159552074
A51: 44 | B51: El Águila | C51: 134472.346 | D51: 107034.5517 | E51: 25.63452068 | F51: 0 | G51: 33.51368298 | H51: 32.75103677 | I51: 0.1307990626
A52: 45 | B52: La Latinoamericana | C52: 232495.5849 | D52: 233785.0853 | E52: -0.5515751265 | F52: 1622.90629 | G52: 61.46227653 | H52: 60.42489773 | I52: 0.2261446719
A53: 46 | B53: Patrimonial Inbursa | C53: 310.33877 | D53: 14711.31401 | E53: -97.89047552 | F53: 0 | G53: 0.08484223333 | H53: 3.682466489 | I53: 0.0003018614712
A54: 47 | B54: Tokio Marine | C54: 103187.2473 | D54: 158447.8967 | E54: -34.87622778 | F54: 52.95338 | G54: 31.36590125 | H54: 23.45334281 | I54: 0.1003685562
A55: 48 | B55: Patrimonial Vida | C55: 326666.0707 | D55: 293917.0124 | E55: 11.1422806 | F55: 935.52278 | G55: 102.5865193 | H55: 20.88953587 | I55: 0.3177427709
A56: 49 | B56: Pan-American México | C56: 136472.8011 | D56: 192741.7355 | E56: -29.19395439 | F56: 9464.62503 | G56: 44.15012251 | H56: 133.881323 | I56: 0.1327448727
A57: 50 | B57: BBVA Bancomer Salud | C57: 249870.9443 | D57: 145470.0412 | E57: 71.7679752 | F57: 0 | G57: 84.58166203 | H57: 118.8548587 | I57: 0.2430454012
A58: 51 | B58: Primero Seguros | C58: 142370.6071 | D58: 132646.5394 | E58: 7.330811437 | F58: 0 | G58: 49.93287688 | H58: 46.78730317 | I58: 0.1384815726
A59: 52 | B59: General de Salud | C59: 165561.1909 | D59: 120274.8223 | E59: 37.65240944 | F59: 0 | G59: 68.98149964 | H59: 93.39055802 | I59: 0.1610386761
A60: 53 | B60: PREVEM Seguros | C60: 114667.9008 | D60: 83497.6396 | E60: 37.33070938 | F60: 0 | G60: 52.84328824 | H60: 65.82908898 | I60: 0.111535601
A61: 54 | B61: Berkley Seguros | C61: 57749.80343 | D61: 48864.60255 | E61: 18.18330738 | F61: 1126.9045 | G61: 29.94134726 | H61: 35.17533098 | I61: 0.05617229399
A62: 55 | B62: Atradius | C62: 23430.44295 | D62: 29613.87136 | E62: -20.88017583 | F62: 4052.08955 | G62: 12.22221347 | H62: 15.72855088 | I62: 0.02279041056
A63: 56 | B63: Sompo Japan | C63: 23399.65944 | D63: -30910.24397 | E63: -175.7019565 | F63: 2.95109 | G63: 12.37868124 | H63: -16.54676585 | I63: 0.02276046794
A64: 57 | B64: Solunion Crédito | C64: 46882.79443 | D64: 37122.49253 | E64: 26.29215129 | F64: 186.24894 | G64: 26.96952065 | H64: 26.87579898 | I64: 0.04560213118
A65: 58 | B65: Dentegra | C65: 35621.00343 | D65: 32635.8609 | E65: 9.146817175 | F65: 26.73607 | G65: 24.43799036 | H65: 28.30535215 | I65: 0.03464797035
A66: 59 | B66: Swiss Re Corporate Solutions | C66: 33258.89151 | D66: 15476.16761 | E66: 114.9039242 | F66: 0 | G66: 25.2770876 | H66: 17.56289148 | I66: 0.03235038253
A67: 60 | B67: SHF Cred Vivienda | C67: -217169.8659 | D67: 17081.52955 | E67: -1371.37248 | F67: 0 | G67: -168.7977106 | H67: 17.30951661 | I67: -0.2112375944
A68: 61 | B68: Skandia Life | C68: 33840.65793 | D68: 10563.66662 | E68: 220.3495448 | F68: 0 | G68: 32.14076935 | H68: 6.896834106 | I68: 0.03291625725
A69: 62 | B69: Coface | C69: -2657.53023 | D69: 5741.48962 | E69: -146.286424 | F69: -4724.96638 | G69: -2.644606494 | H69: 5.05397136 | I69: -0.002584936407
A70: 63 | B70: Patrimonial Daños | C70: 10926.71838 | D70: 5825.14085 | E70: 87.57861246 | F70: 0 | G70: 15.16618374 | H70: 11.18262436 | I70: 0.01062824115
A71: 64 | B71: Assurant Daños | C71: 19552.65269 | D71: 11214.25543 | E71: 74.3553356 | F71: 148.32821 | G71: 29.89317604 | H71: 18.0731058 | I71: 0.01901854708
A72: 65 | B72: MediAccess | C72: 51471.83599 | D72: 33297.13743 | E72: 54.58336651 | F72: 0 | G72: 99.47195456 | H72: 91.8832631 | I72: 0.05006581723
A73: 66 | B73: Centauro | C73: 24760.92627 | D73: 18552.80312 | E73: 33.46191468 | F73: 89.0368 | G73: 56.54420829 | H73: 53.05071136 | I73: 0.02408455003
A74: 67 | B74: Odontoprev | C74: 5803.74884 | D74: 5423.26911 | E74: 7.015689657 | F74: 0 | G74: 15.22618862 | H74: 47.09392569 | I74: 0.005645212048
A75: 68 | B75: Virginia Surety | C75: 9368.66547 | D75: 5062.65389 | E75: 85.05443338 | F75: 0 | G75: 26.25160528 | H75: 23.04802045 | I75: 0.009112748439
A76: 69 | B76: Genworth Seg. de Crédito | C76: -272.83399 | D76: 8675.68862 | E76: -103.1448108 | F76: 0 | G76: -1.077953288 | H76: 50.11262379 | I76: -0.000265381182
A77: 70 | B77: Metlife Más | C77: 405.1916 | D77: -19.58591 | E77: -2168.791289 | F77: 0 | G77: 1.646269076 | H77: -0.07935149688 | I77: 0.0003941232753
A78: 71 | B78: Crabi | C78: 9879.74295 | D78: 7796.95951 | E78: 26.7127646 | F78: 0 | G78: 49.92458231 | H78: 84.72834548 | I78: 0.009609865187
A79: 72 | B79: SPT | C79: 5304.10575 | D79: 3861.50813 | E79: 37.35839914 | F79: 0 | G79: 51.64412925 | H79: 50.20740105 | I79: 0.005159217345
A80: 73 | B80: Citibanamex Pensiones | C80: 195153.2312 | D80: 186141.6115 | E80: 4.84127091 | F80: 0 | G80: 14034.67008 | H80: 1654.47273 | I80: 0.1898223721
A81: 74 | B81: Metlife Pensiones | C81: 91374.91887 | D81: 91417.07491 | E81: -0.04611396727 | F81: 0 | G81: 8333.500584 | H81: 581.0682443 | I81: 0.08887889657
A82: 75 | B82: Pensiones Inbursa | C82: 6364.39988 | D82: 6048.00921 | E82: 5.231319249 | F82: 0 | G82: 6957.864686 | I82: 0.006190548191
A83: 76 | B83: Aserta Seguros de Vida | C83: -1151.05939 | D83: 15134.091 | E83: -107.6057385 | F83: 0 | H83: 14359.32909 | I83: -0.001119616737
A84: 76 | B84: Principal México | C84: 0 | D84: 0 | F84: 0
A85: 76 | B85: Zurich Daños | C85: 0 | D85: 0 | F85: 0
A86: 76 | B86: Zurich Vida | C86: 0 | D86: 0 | F86: 0
A87: 81 | B87: Quálitas Salud | C87: 3052.34927 | D87: 0 | F87: 0 | G87: -12021.52943 | I87: 0.002968970462
A88: 150.1 | B88: TOTAL RESTO | C88: 20783062.79 | D88: 18568064.96 | E88: 11.929072 | F88: 124505.1362 | G88: 43.44825971 | H88: 40.83404557 | I88: 20.21534696
A89: 200 | B89: Patria | C89: 0 | D89: 0 | F89: 0
A90: 201.1 | B90: TOTAL | C90: 102808340.8 | D90: 96308937.83 | E90: 6.74849406 | F90: 817382.6418 | G90: 47.17392724 | H90: 50.27322339 | I90: 100

Sheet TDPrimas (hidden)
A3: periodo | B3: 2023-Q1
A4: Ramo_ | B4: 10 Total General
A6: Jerarquia 2 | B6: nombre_compania | C6: Suma de Prima_DirectaAct | D6: Suma de Prima_DirectaAnt | E6: Suma de %CARTERA | F6: Suma de %SECTOR
A7: 1 | B7: G.N.P. | C7: 26676629.11 | D7: 21970506.01 | E7: 100 | F7: 12.14865915
A8: 2 | B8: Metlife México | C8: 26097031.68 | D8: 24057802.08 | E8: 100 | F8: 11.88470782
A9: 3 | B9: BBVA Bancomer | C9: 17603852.66 | D9: 14691628.1 | E9: 100 | F9: 8.016875178
A10: 4 | B10: AXA Seguros | C10: 15398992.57 | D10: 13965513.66 | E10: 100 | F10: 7.012771789
A11: 5 | B11: Banorte | C11: 11640133.16 | D11: 13532473.69 | E11: 100 | F11: 5.300969984
A12: 5.1 | B12: TOTAL GRANDES | C12: 97416639.17 | D12: 88217923.55 | E12: 100 | F12: 44.36398392
A13: 6 | B13: Quálitas | C13: 11419161.89 | D13: 8869182.58 | E13: 100 | F13: 5.200338654
A14: 7 | B14: Monterrey New York Life | C14: 10223427.72 | D14: 9516075.8 | E14: 100 | F14: 4.655795834
A15: 8 | B15: Citibanamex Seguros | C15: 8056026.659 | D15: 5326674.19 | E15: 100 | F15: 3.66875146
A16: 9 | B16: Agroasemex | C16: 7438742.863 | D16: 0 | E16: 100 | F16: 3.38763759
A17: 10 | B17: Inbursa | C17: 6926531.76 | D17: 5739037.906 | E17: 100 | F17: 3.154374306
A18: 11 | B18: Chubb Seguros México | C18: 6735524.305 | D18: 6329296.85 | E18: 100 | F18: 3.067388636
A19: 12 | B19: Mapfre México | C19: 6434437 | D19: 7309671.149 | E19: 100 | F19: 2.930272098
A20: 13 | B20: Atlas | C20: 5493499.04 | D20: 4932623.223 | E20: 100 | F20: 2.501764639
A21: 14 | B21: Allianz México | C21: 5252582.056 | D21: 4453754.78 | E21: 100 | F21: 2.39204994
A22: 15 | B22: GMX Seguros | C22: 4704042.364 | D22: 5404782.84 | E22: 100 | F22: 2.142242451
A23: 15.1 | B23: TOTAL MEDIANAS | C23: 72683975.65 | D23: 57881099.32 | E23: 100 | F23: 33.10061561
A24: 16 | B24: Pensiones Banorte | C24: 4253756.252 | D24: 4945870.012 | E24: 0 | F24: 1.937180091
A25: 17 | B25: Zurich Santander | C25: 3574791.877 | D25: 3159180.281 | E25: 100 | F25: 1.627976603
A26: 18 | B26: AIG Seguros | C26: 3306000.074 | D26: 1805143.756 | E26: 100 | F26: 1.505567585
A27: 19 | B27: Zurich Aseguradora Mexicana | C27: 3031903.051 | D27: 78671.97078 | E27: 100 | F27: 1.380742544
A28: 20 | B28: Seguros SURA | C28: 3009079.136 | D28: 1761775.443 | E28: 100 | F28: 1.370348429
A29: 21 | B29: HDI Seguros | C29: 2965779.202 | D29: 2289870.937 | E29: 100 | F29: 1.35062944
A30: 22 | B30: Pensiones BBVA Bancomer | C30: 2683241.252 | D30: 3936798.332 | E30: 0 | F30: 1.221960363
A31: 23 | B31: ProFuturo G.N.P. | C31: 2615977.475 | D31: 2246257.456 | E31: 0 | F31: 1.191328131
A32: 24 | B32: Afirme | C32: 2232143.874 | D32: 1889300.432 | E32: 100 | F32: 1.01652855
A33: 25 | B33: Seguros Azteca | C33: 1962137.495 | D33: 1626725.297 | E33: 100 | F33: 0.8935664075
A34: 26 | B34: Hir Seguros | C34: 1797983.439 | D34: 1430544.885 | E34: 100 | F34: 0.8188098979
A35: 27 | B35: HSBC Seguros | C35: 1622418.914 | D35: 1476975.642 | E35: 100 | F35: 0.7388570087
A36: 28 | B36: Seguros Azteca Daños | C36: 1251067.98 | D36: 1718523.353 | E36: 100 | F36: 0.5697420915
A37: 29 | B37: HDI Global Seguros | C37: 1017302.517 | D37: 469926.6922 | E37: 100 | F37: 0.4632842285
A38: 30 | B38: Cardif Vida | C38: 972637.9765 | D38: 837222.9085 | E38: 100 | F38: 0.442943792
A39: 31 | B39: BUPA México | C39: 874777.1123 | D39: 826190.4077 | E39: 100 | F39: 0.3983775059
A40: 32 | B40: ANA | C40: 822201.8011 | D40: 723121.3903 | E40: 100 | F40: 0.3744344682
A41: 33 | B41: Ve Por Más | C41: 764564.7006 | D41: 678146.0975 | E41: 100 | F41: 0.3481862685
A42: 34 | B42: Seguros Argos | C42: 758060.4487 | D42: 1176942.889 | E42: 100 | F42: 0.3452242024
A43: 35 | B43: Plan Seguro | C43: 702706.0644 | D43: 842005.7839 | E43: 100 | F43: 0.3200155621
A44: 36 | B44: FM Global | C44: 685542.5401 | D44: 573005.8212 | E44: 100 | F44: 0.3121992145
A45: 37 | B45: El Potosí | C45: 663569.2062 | D45: 548570.9886 | E45: 100 | F45: 0.3021924575
A46: 38 | B46: General de Seguros | C46: 660743.6803 | D46: 638551.5422 | E46: 100 | F46: 0.3009057001
A47: 39 | B47: AXA Salud | C47: 487258.3274 | D47: 488407.7121 | E47: 100 | F47: 0.2218996753
A48: 40 | B48: Assurant Vida | C48: 448721.7349 | D48: 72452.07634 | E48: 100 | F48: 0.2043499345
A49: 41 | B49: Prudential | C49: 433447.1346 | D49: 347533.3727 | E49: 100 | F49: 0.1973938115
A50: 42 | B50: Cardif Seguros Generales | C50: 431726.5307 | D50: 287943.7976 | E50: 100 | F50: 0.1966102406
A51: 43 | B51: Insignia Life | C51: 421128.095 | D51: 404699.6429 | E51: 100 | F51: 0.1917836644
A52: 44 | B52: El Águila | C52: 401246.1002 | D52: 326812.7127 | E52: 100 | F52: 0.1827293129
A53: 45 | B53: La Latinoamericana | C53: 378273.6306 | D53: 386901.9131 | E53: 100 | F53: 0.172267545
A54: 46 | B54: Patrimonial Inbursa | C54: 365783.3579 | D54: 399496.2087 | E54: 100 | F54: 0.1665794175
A55: 47 | B55: Tokio Marine | C55: 328979.0608 | D55: 675587.689 | E55: 100 | F55: 0.1498185719
A56: 48 | B56: Patrimonial Vida | C56: 318429.8218 | D56: 1407005.949 | E56: 100 | F56: 0.1450144002
A57: 49 | B57: Pan-American México | C57: 309110.8096 | D57: 143964.6181 | E57: 100 | F57: 0.1407704793
A58: 50 | B58: BBVA Bancomer Salud | C58: 295419.7616 | D58: 122393.0118 | E58: 100 | F58: 0.1345355133
A59: 51 | B59: Dentegra | C59: 291521.5441 | D59: 115299.2576 | E59: 100 | F59: 0.1327602472
A60: 52 | B60: Primero Seguros | C60: 285123.9824 | D60: 283509.6926 | E60: 100 | F60: 0.1298467682
A61: 53 | B61: General de Salud | C61: 240008.1062 | D61: 128786.919 | E61: 100 | F61: 0.1093007915
A62: 54 | B62: PREVEM Seguros | C62: 216996.1496 | D62: 126840.0351 | E62: 100 | F62: 0.09882104096
A63: 55 | B63: Berkley Seguros | C63: 192876.4358 | D63: 138917.2502 | E63: 100 | F63: 0.0878368128
A64: 56 | B64: Atradius | C64: 191703.7614 | D64: 188280.9903 | E64: 100 | F64: 0.08730277148
A65: 57 | B65: Sompo Japan | C65: 189031.925 | D65: 186805.3507 | E65: 100 | F65: 0.08608600495
A66: 58 | B66: Solunion Crédito | C66: 173836.217 | D66: 138126.0983 | E66: 100 | F66: 0.07916580986
A67: 59 | B67: Swiss Re Corporate Solutions | C67: 131577.2293 | D67: 88118.5631 | E67: 100 | F67: 0.05992087321
A68: 60 | B68: SHF Cred Vivienda | C68: 128656.8788 | D68: 98682.88025 | E68: 100 | F68: 0.05859093222
A69: 61 | B69: Skandia Life | C69: 105288.8858 | D69: 153166.8945 | E69: 100 | F69: 0.0479490411
A70: 62 | B70: Coface | C70: 100488.6828 | D70: 113603.5251 | E70: 100 | F70: 0.04576300665
A71: 63 | B71: Patrimonial Daños | C71: 72046.59106 | D71: 52090.99996 | E71: 100 | F71: 0.03281034775
A72: 64 | B72: Assurant Daños | C72: 65408.41517 | D72: 62049.4095 | E72: 100 | F72: 0.02978729202
A73: 65 | B73: MediAccess | C73: 51745.07349 | D73: 36238.523 | E73: 100 | F73: 0.02356494361
A74: 66 | B74: Centauro | C74: 43790.38458 | D74: 34971.82723 | E74: 100 | F74: 0.01994234182
A75: 67 | B75: Odontoprev | C75: 38116.88522 | D75: 11515.85694 | E75: 100 | F75: 0.01735860421
A76: 68 | B76: Virginia Surety | C76: 35687.97172 | D76: 21965.67771 | E76: 100 | F76: 0.01625246587
A77: 69 | B77: Genworth Seg. de Crédito | C77: 25310.37225 | D77: 17312.38152 | E77: 100 | F77: 0.01152645952
A78: 70 | B78: Metlife Más | C78: 24612.72012 | D78: 24682.47074 | E78: 100 | F78: 0.01120874554
A79: 71 | B79: Crabi | C79: 19789.33522 | D79: 9202.30351 | E79: 100 | F79: 0.00901215395
A80: 72 | B80: SPT | C80: 10270.4912 | D80: 7691.11336 | E80: 100 | F80: 0.00467722876
A81: 73 | B81: Citibanamex Pensiones | C81: 1390.50815 | D81: 11250.8117 | E81: 0 | F81: 0.000633243784
A82: 74 | B82: Metlife Pensiones | C82: 1096.47702 | D82: 15732.58835 | E82: 0 | F82: 0.0004993406599
A83: 75 | B83: Pensiones Inbursa | C83: 91.47059 | D83: 0 | E83: 0 | F83: 4.165612588e-05
A84: 76 | B84: Quálitas Salud | C84: -25.39069 | D84: 0 | E84: 100 | F84: -1.156303659e-05
A85: 77 | B85: Zurich Daños | C85: 0 | D85: 2212646.459 | E85: 0 | F85: 0
A86: 78 | B86: Aserta Seguros de Vida | C86: 0 | D86: 105.39553 | E86: 0 | F86: 0
A87: 79 | B87: Zurich Vida | C87: 0 | D87: 451904.6986 | E87: 0 | F87: 0
A88: 80 | B88: Principal México | C88: 0 | D88: 0 | E88: 0 | F88: 0
A89: 150.1 | B89: TOTAL RESTO | C89: 49484351.54 | D89: 45472018.99 | E89: 123.9314828 | F89: 22.53540047
A90: 151.1 | B90: TOTAL | C90: 219584966.4 | D90: 191571041.9 | E90: 104.5496263 | F90: 100

Sheet TDPrimas Vida (hidden)
A2: periodo | B2: 2023-Q1
A3: Ramo2 | B3: 12 Vida Total
A4: subramo | B4: (Varios elementos)
A6: Jerarquia 2 | B6: nombre_compania | C6: Suma de Prima_DirectaAct | D6: Suma de Prima_DirectaAnt | E6: Suma de %CARTERA | F6: Suma de Prima_Directa_Act1anio | G6: Suma de Prima_Directa_Ant1anio | H6: Suma de %CARTERA_1anio | I6: Suma de PrimaDirectaAct_Renov | J6: Suma de PrimaDirectaAnt_Renov | K6: Suma de %CARTERA_Renov | L6: Suma de PrimaDirectaAct_Unica | M6: Suma de PrimaDirectaAnt_Unica | N6: Suma de %CARTERA_uni
A7: 1 | B7: Metlife México | C7: 17646520.23 | D7: 16817655.51 | E7: 67.61887884 | F7: 2509547.385 | G7: 2309419.296 | H7: 9.616217724 | I7: 13356148.1 | J7: 13013045.22 | K7: 51.17880173 | L7: 1780824.747 | M7: 1495190.997 | N7: 6.82385939
A8: 2 | B8: BBVA Bancomer | C8: 13962952.19 | D8: 11906835.16 | E8: 79.3175929 | F8: 12113834.81 | G8: 10376484.5 | H8: 68.81354353 | I8: 1233041.753 | J8: 1081815.683 | K8: 7.004385784 | L8: 616075.621 | M8: 448534.9825 | N8: 3.499663584
A9: 3 | B9: G.N.P. | C9: 8699615.618 | D9: 7352217.247 | E9: 32.61137523 | F9: 2289790.269 | G9: 1512666.537 | H9: 8.583506782 | I9: 4211545.644 | J9: 4189906.701 | K9: 15.78739813 | L9: 2198279.705 | M9: 1649644.009 | N9: 8.240470324
A10: 4 | B10: Citibanamex Seguros | C10: 7831081.573 | D10: 5094137.783 | E10: 97.20774153 | F10: 3759204.766 | G10: 3174926.015 | H10: 46.66326125 | I10: 4071876.806 | J10: 1919211.768 | K10: 50.54448028 | L10: 0 | M10: 0 | N10: 0
A11: 5 | B11: Banorte | C11: 6687033.393 | D11: 9064775.813 | E11: 57.44808331 | F11: 1266536.469 | G11: 1524982.119 | H11: 10.88077303 | I11: 4224507.667 | J11: 7044133.434 | K11: 36.29260602 | L11: 1195989.258 | M11: 495660.2606 | N11: 10.27470426
A12: 5.1 | B12: TOTAL GRANDES | C12: 54827203 | D12: 50235621.51 | E12: 60.86928735 | F12: 21938913.7 | G12: 18898478.46 | H12: 24.35663264 | I12: 27097119.97 | J12: 27248112.8 | K12: 30.08328515 | L12: 5791169.33 | M12: 4089030.249 | N12: 6.42936956
A13: 6 | B13: Monterrey New York Life | C13: 6428564.663 | D13: 6193660.355 | E13: 62.88071713 | F13: 583833.4993 | G13: 509897.113 | H13: 5.710741206 | I13: 4336934.513 | J13: 4145932.083 | K13: 42.42153056 | L13: 1507796.651 | M13: 1537831.159 | N13: 14.74844536
A14: 7 | B14: Allianz México | C14: 2952744.118 | D14: 2423258.527 | E14: 56.21509738 | F14: 1505117.947 | G14: 1134075.607 | H14: 28.65482026 | I14: 1447626.171 | J14: 1289182.92 | K14: 27.56027712 | L14: 0 | M14: 0 | N14: 0
A15: 8 | B15: Zurich Santander | C15: 2742800.429 | D15: 2307308.24 | E15: 76.72615704 | F15: 1213835.106 | G15: 971228.7793 | H15: 33.9554063 | I15: 317802.1218 | J15: 303081.1985 | K15: 8.890087388 | L15: 1211163.201 | M15: 1032998.262 | N15: 33.88066335
A16: 9 | B16: Hir Seguros | C16: 1793397.805 | D16: 1426260.883 | E16: 99.74495684 | F16: 1456232.474 | G16: 280736.9934 | H16: 80.99254102 | I16: 337165.3308 | J16: 1145523.89 | K16: 18.75241582 | L16: 0 | M16: 0 | N16: 0
A17: 10 | B17: AXA Seguros | C17: 1725044.364 | D17: 1633678.024 | E17: 11.2023196 | F17: 313595.5886 | G17: 334734.7671 | H17: 2.036468211 | I17: 1407785.223 | J17: 1297940.351 | K17: 9.142060536 | L17: 3663.55206 | M17: 1002.9062 | N17: 0.02379085542
A18: 11 | B18: Seguros Azteca | C18: 1702679.986 | D18: 1549216.228 | E18: 86.77679264 | F18: 1670849 | G18: 1535250.36 | H18: 85.15453193 | I18: 2.39281 | J18: 1116.65255 | K18: 0.0001219491501 | L18: 31828.593 | M18: 12849.21515 | N18: 1.622138768
A19: 12 | B19: Inbursa | C19: 1539068.443 | D19: 1475814.774 | E19: 22.21990018 | F19: 986423.965 | G19: 955578.1578 | H19: 14.24123933 | I19: 552644.4776 | J19: 520236.6161 | K19: 7.978660848 | L19: 0 | M19: 0 | N19: 0
A20: 13 | B20: Mapfre México | C20: 1489236.701 | D20: 1426998.267 | E20: 23.14478641 | F20: 1290519.336 | G20: 1248702.353 | H20: 20.05644527 | I20: 198581.2202 | J20: 178462.3757 | K20: 3.086225263 | L20: 136.14495 | M20: -166.46212 | N20: 0.002115879757
A21: 14 | B21: HSBC Seguros | C21: 1473862.713 | D21: 1376947.987 | E21: 90.84353614 | F21: 911497.9203 | G21: 845191.2263 | H21: 56.18141606 | I21: 562364.7922 | J21: 531756.7609 | K21: 34.66212008 | L21: 0 | M21: 0 | N21: 0
A22: 15 | B22: Cardif Vida | C22: 928745.8659 | D22: 773785.1691 | E22: 95.48731267 | F22: 22877.6079 | G22: 157378.2112 | H22: 2.35211954 | I22: 743111.7493 | J22: 470321.0998 | K22: 76.40167948 | L22: 162756.5086 | M22: 146085.8581 | N22: 16.73351365
A23: 15.1 | B23: TOTAL MEDIANAS | C23: 22776145.09 | D23: 20586928.46 | E23: 42.04883133 | F23: 9954782.444 | G23: 7972773.569 | H23: 18.37830617 | I23: 9904017.991 | J23: 9883553.948 | K23: 18.28458593 | L23: 2917344.651 | M23: 2730600.939 | N23: 5.385939222
A24: 16 | B24: Atlas | C24: 907585.7014 | D24: 1081747.957 | E24: 16.52108601 | F24: 723774.9373 | G24: 919494.5399 | H24: 13.17511721 | I24: 156694.2332 | J24: 147285.8068 | K24: 2.852357524 | L24: 27116.53088 | M24: 14967.61046 | N24: 0.4936112791
A25: 17 | B25: Seguros Argos | C25: 758060.4487 | D25: 1176942.889 | E25: 100 | F25: 311404.1889 | G25: 418703.1671 | H25: 41.07907086 | I25: 393215.7826 | J25: 666888.9084 | K25: 51.87129645 | L25: 53440.47724 | M25: 91350.8131 | N25: 7.049632695
A26: 18 | B26: Afirme | C26: 736934.1818 | D26: 610121.0274 | E26: 33.0146363 | F26: 736934.1818 | G26: 610121.0274 | H26: 33.0146363 | I26: 0 | J26: 0 | K26: 0 | L26: 0 | M26: 0 | N26: 0
A27: 19 | B27: Seguros SURA | C27: 693146.7209 | D27: 447336.2587 | E27: 23.03517753 | F27: 0 | G27: 0 | H27: 0 | I27: 0 | J27: 0 | K27: 0 | L27: 0 | M27: 0 | N27: 0
A28: 20 | B28: Chubb Seguros México | C28: 452992.4381 | D28: 426439.8835 | E28: 6.725422069 | F28: 452992.4381 | G28: 426439.8835 | H28: 6.725422069 | I28: 0 | J28: 0 | K28: 0 | L28: 0 | M28: 0 | N28: 0
A29: 21 | B29: Assurant Vida | C29: 448721.7349 | D29: 72452.07634 | E29: 100 | F29: 446135.5923 | G29: 69604.54701 | H29: 99.42366451 | I29: 2586.14261 | J29: 2847.52933 | K29: 0.5763354901 | L29: 0 | M29: 0 | N29: 0
A30: 22 | B30: Prudential | C30: 433447.1346 | D30: 347533.3727 | E30: 100 | F30: 128365.5431 | G30: 131094.8468 | H30: 29.6150402 | I30: 299048.8032 | J30: 209163.2998 | K30: 68.99314342 | L30: 6032.78823 | M30: 7275.22605 | N30: 1.391816383
A31: 23 | B31: Insignia Life | C31: 421128.095 | D31: 404699.6429 | E31: 100 | F31: 124821.2822 | G31: 143008.4474 | H31: 29.63974231 | I31: 297170.5337 | J31: 262194.3921 | K31: 70.56535463 | L31: -863.72086 | M31: -503.19661 | N31: -0.2050969456
A32: 24 | B32: Patrimonial Vida | C32: 318429.8218 | D32: 1407005.949 | E32: 100 | F32: 318429.8218 | G32: 1407005.949 | H32: 100 | I32: 0 | J32: 0 | K32: 0 | L32: 0 | M32: 0 | N32: 0
A33: 25 | B33: Zurich Aseguradora Mexicana | C33: 254910.1944 | D33: 77101.28988 | E33: 8.407597146 | F33: 95366.9716 | G33: 77101.28988 | H33: 3.145449244 | I33: 62390.42433 | J33: 0 | K33: 2.057797472 | L33: 97152.79845 | M33: 0 | N33: 3.20435043
A34: 26 | B34: Patrimonial Inbursa | C34: 234048.0007 | D34: 259024.8011 | E34: 63.98541533 | F34: 234048.0007 | G34: 259024.8011 | H34: 63.98541533 | I34: 0 | J34: 0 | K34: 0 | L34: 0 | M34: 0 | N34: 0
A35: 27 | B35: Pan-American México | C35: 174262.196 | D35: 40770.2639 | E35: 56.37531611 | F35: 140540.4276 | G35: 10871.13347 | H35: 45.4660346 | I35: 33721.76839 | J35: 29899.13043 | K35: 10.90928151 | L35: 0 | M35: 0 | N35: 0
A36: 28 | B36: General de Seguros | C36: 116555.6347 | D36: 146493.2689 | E36: 17.64006803 | F36: 33880.93115 | G36: 40805.65618 | H36: 5.127696588 | I36: 82674.70359 | J36: 105687.6127 | K36: 12.51237145 | L36: 0 | M36: 0 | N36: 0
A37: 29 | B37: Skandia Life | C37: 105288.8858 | D37: 153166.8945 | E37: 100 | F37: 45982.69248 | G37: 90898.85258 | H37: 43.67288356 | I37: 59306.19329 | J37: 62268.04193 | K37: 56.32711644 | L37: 0 | M37: 0 | N37: 0
A38: 30 | B38: El Potosí | C38: 96882.22771 | D38: 58079.98331 | E38: 14.60016933 | F38: 49078.63303 | G38: 17188.59892 | H38: 7.39615892 | I38: 47354.39468 | J38: 40782.54825 | K38: 7.136315887 | L38: 449.2 | M38: 108.83614 | N38: 0.06769452166
A39: 31 | B39: Ve Por Más | C39: 93763.93096 | D39: 95001.26323 | E39: 12.26370128 | F39: 54583.75789 | G39: 28829.49778 | H39: 7.139194086 | I39: 25781.96207 | J39: 34591.76545 | K39: 3.372109914 | L39: 13398.211 | M39: 31580 | N39: 1.752397278
A40: 32 | B40: La Latinoamericana | C40: 76756.72645 | D40: 131064.1697 | E40: 20.29132359 | F40: -2719.50009 | G40: 57826.83798 | H40: -0.7189240459 | I40: 79476.22654 | J40: 73237.33172 | K40: 21.01024764 | L40: 0 | M40: 0 | N40: 0
A41: 33 | B41: Tokio Marine | C41: 20027.14996 | D41: 16581.10257 | E41: 6.087667073 | F41: 9385.02078 | G41: 5581.58621 | H41: 2.852771467 | I41: 10642.12918 | J41: 10999.51636 | K41: 3.234895605 | L41: 0 | M41: 0 | N41: 0
A42: 34 | B42: Agroasemex | C42: 3674.24597 | D42: 0 | E42: 0.04939337248 | F42: 3674.24597 | G42: 0 | H42: 0.04939337248 | I42: 0 | J42: 0 | K42: 0 | L42: 0 | M42: 0 | N42: 0
A43: 35 | B43: HDI Seguros | C43: 1331.15986 | D43: 1309.03452 | E43: 0.04488398391 | F43: 0 | G43: 0 | H43: 0 | I43: 1331.15986 | J43: 1309.03452 | K43: 0.04488398391 | L43: 0 | M43: 0 | N43: 0
A44: 36 | B44: Principal México | C44: 0 | D44: 0 | E44: 0 | F44: 0 | G44: 0 | H44: 0 | I44: 0 | J44: 0 | K44: 0 | L44: 0 | M44: 0 | N44: 0
A45: 37 | B45: Aserta Seguros de Vida | C45: 0 | D45: 105.39553 | E45: 0 | F45: 0 | G45: 117.94996 | H45: 0 | I45: 0 | J45: 1.59322 | K45: 0 | L45: 0 | M45: -14.14765 | N45: 0
A46: 38 | B46: Zurich Vida | C46: 0 | D46: 198836.1783 | E46: 0 | F46: 0 | G46: 0 | H46: 0 | I46: 0 | J46: 0 | K46: 0 | L46: 0 | M46: 0 | N46: 0
A47: 150.1 | B47: TOTAL RESTO | C47: 6347946.63 | D47: 7151812.702 | E47: 17.22048093 | F47: 3906679.167 | G47: 4713718.612 | H47: 10.5978985 | I47: 1551394.457 | J47: 1647156.511 | K47: 4.208566995 | L47: 196726.2849 | M47: 144765.1415 | N47: 0.5336719787
A48: 151.1 | B48: TOTAL | C48: 83951294.72 | D48: 77974362.67 | E48: 46.35570879 | F48: 35800375.31 | G48: 31584970.64 | H48: 19.76803072 | I48: 38552532.42 | J48: 38778823.26 | K48: 21.28769987 | L48: 8905240.266 | M48: 6964396.329 | N48: 4.917240715

Sheet TD Siniestros (hidden)
A3: periodo | B3: 2023-Q1
A4: Ramo_ | B4: 10 Total General
A6: Jerarquia 2 | B6: nombre_compania | C6: Suma de CostoSin_Act | D6: Suma de IncSin | E6: Suma de IncResvDivAct | F6: Suma de %SinvsPrm_Act | G6: Suma de %SinvsPrm_Ant | H6: Suma de Costo_Sin_RetAct | I6: Suma de IncSin_Ret | J6: Suma de Prima_DevengadaAct | K6: Suma de IncSin_PDev | L6: Suma de %SinvsPDev_Act | M6: Suma de %SinvsPDev_Ant
A7: 1 | B7: G.N.P. | C7: 13950620.6 | D7: 11.0381518 | E7: 89852.57949 | F7: 52.29529017 | G7: 57.18488392 | H7: 13335341.39 | I7: 13.53785592 | J7: 19275685.97 | K7: 19.02128845 | L7: 69.18218846 | M7: 72.52341646
A8: 2 | B8: Metlife México | C8: 13278274.68 | D8: 10.9781796 | E8: 54701.19171 | F8: 50.88040221 | G8: 49.73339467 | H8: 12746375.67 | I8: 10.28846732 | J8: 17345383.06 | K8: 4.739185157 | L8: 73.48569719 | M8: 69.78818575
A9: 3 | B9: BBVA Bancomer | C9: 7306290.359 | D9: 12.41773112 | E9: 0 | F9: 41.50392814 | G9: 44.23766396 | H9: 7260737.787 | I9: 12.41323936 | J9: 8285272.374 | K9: -7.8166233 | L9: 87.63426788 | M9: 71.86362367
A10: 4 | B10: AXA Seguros | C10: 8529360.434 | D10: 13.47377231 | E10: 104410.5328 | F10: 55.38908076 | G10: 53.82252404 | H10: 8044841.806 | I10: 19.11332721 | J10: 11027709.93 | K10: 15.96583277 | L10: 72.9511554 | M10: 71.02346719
A11: 5 | B11: Banorte | C11: 3875368.97 | D11: -13.74637487 | E11: 102972.262 | F11: 33.293167 | G11: 33.20156148 | H11: 3426629.622 | I11: -14.71793682 | J11: 6614014.838 | K11: 2.464787361 | L11: 51.80861709 | M11: 62.24707442
A12: 5.1 | B12: TOTAL GRANDES | C12: 46939915.04 | D12: 9.067760961 | E12: 351936.566 | F12: 48.1846997 | G12: 48.78531015 | H12: 44813926.28 | I12: 10.56023686 | J12: 62548066.17 | K12: 8.387383272 | L12: 71.64718116 | M12: 70.23909052
A13: 6 | B13: Quálitas | C13: 7182439.131 | D13: 27.36258164 | E13: 18944.86094 | F13: 62.89812863 | G13: 63.58380379 | H13: 7186344.067 | I13: 27.49275299 | J13: 10378964.71 | K13: 20.90911991 | L13: 69.23950767 | M13: 65.66402983
A14: 7 | B14: Monterrey New York Life | C14: 6017298.049 | D14: -1.60747898 | E14: 9660.94189 | F14: 58.85793117 | G14: 64.26604038 | H14: 5661186.474 | I14: -0.2291402743 | J14: 7052172.094 | K14: -2.317716803 | L14: 80.27578451 | M14: 78.59531268
A15: 8 | B15: Citibanamex Seguros | C15: 6380754.238 | D15: -31.35621041 | E15: 0 | F15: 79.20473092 | G15: 174.5077152 | H15: 6373502.213 | I15: -31.408005 | J15: 4884962.708 | K15: -58.69693433 | L15: 130.4718704 | M15: 78.56438979
A16: 9 | B16: Agroasemex | C16: 319565.0424 | D16: 0 | E16: 4926.18649 | F16: 4.295954953 | G16: 0 | H16: 117609.2804 | I16: 0 | J16: 574020.1727 | K16: 0 | L16: 20.48870161 | M16: 0
A17: 10 | B17: Inbursa | C17: 3481787.715 | D17: 46.57792234 | E17: 56498.98492 | F17: 50.26740418 | G17: 41.38992447 | H17: 2886287.924 | I17: 28.55138306 | J17: 3935565.926 | K17: 8.650685265 | L17: 73.33857389 | M17: 61.98522427
A18: 11 | B18: Chubb Seguros México | C18: 3100056.811 | D18: 30.94664734 | E18: 32790.84577 | F18: 46.02547138 | G18: 37.40415123 | H18: 1565487.994 | I18: 36.62840504 | J18: 2211644.863 | K18: -4.741075551 | L18: 70.78387765 | M18: 49.35134865
A19: 12 | B19: Mapfre México | C19: 3435151.255 | D19: 30.66417086 | E19: 218660.589 | F19: 53.38697473 | G19: 35.9659477 | H19: 2542577.945 | I19: 10.60229058 | J19: 3853863.957 | K19: 2.659254528 | L19: 65.97477164 | M19: 61.23671434
A20: 13 | B20: Atlas | C20: 2220660.432 | D20: 3.678939735 | E20: -1557.37729 | F20: 40.42342442 | G20: 43.42238402 | H20: 1907408.983 | I20: 18.64667576 | J20: 2967182.435 | K20: 16.34025415 | L20: 64.28350885 | M20: 63.03387524
A21: 14 | B21: Allianz México | C21: 2467516.926 | D21: -23.67777256 | E21: 1015.9079 | F21: 46.97721804 | G21: 72.59100385 | H21: 2262002.851 | I21: 12.52181227 | J21: 1699255.699 | K21: -46.45256748 | L21: 133.1172732 | M21: 63.34850162
A22: 15 | B22: GMX Seguros | C22: 480133.3407 | D22: -47.02710194 | E22: 0 | F22: 10.20682433 | G22: 16.7698772 | H22: 235573.1096 | I22: -13.97317194 | J22: 600583.5667 | K22: -10.32068386 | L22: 39.2240352 | M22: 40.88939151
A23: 15.1 | B23: TOTAL MEDIANAS | C23: 35085362.94 | D23: 1.100401521 | E23: 340940.9396 | F23: 48.27111152 | G23: 59.95650682 | H23: 30737980.84 | I23: 1.833986619 | J23: 38158216.13 | K23: -12.72575857 | L23: 80.55402992 | M23: 69.03679301
A24: 16 | B24: Pensiones Banorte | C24: 3161078.445 | D24: 13.36781803 | E24: 0 | F24: 74.31263707 | G24: 56.37710716 | H24: 3161078.445 | I24: 13.36781803 | J24: -1898943.809 | K24: -5.894007574 | L24: -166.465086 | M24: -138.1817379
A25: 17 | B25: Zurich Santander | C25: 743104.7399 | D25: -9.949796745 | E25: 0 | F25: 20.78735673 | G25: 26.12106766 | H25: 683593.7179 | I25: -13.69876566 | J25: 2484413.115 | K25: 0.5162319919 | L25: 27.51529985 | M25: 32.04744734
A26: 18 | B26: AIG Seguros | C26: 302973.238 | D26: 0.9651797622 | E26: 2546.799 | F26: 9.164344562 | G26: 16.62343816 | H26: 151368.272 | I26: 32.46639682 | J26: 156698.2617 | K26: -25.35585702 | L26: 96.59856491 | M26: 54.43280155
A27: 19 | B27: Zurich Aseguradora Mexicana | C27: 846854.3979 | D27: 2493.526803 | E27: -2980.95784 | F27: 27.93144713 | G27: 41.5047667 | H27: 768165.32 | I27: 2400.181732 | J27: 1569547.041 | K27: 2753.976518 | L27: 48.94184756 | M27: 55.86749231
A28: 20 | B28: Seguros SURA | C28: 1685134.512 | D28: 153.5723388 | E28: 20781.63186 | F28: 56.00166813 | G28: 37.72090855 | H28: 1322978.913 | I28: 112.0343781 | J28: 2644354.661 | K28: 69.09342379 | L28: 50.03031298 | M28: 39.89823249
A29: 21 | B29: HDI Seguros | C29: 1559277.743 | D29: 25.41812458 | E29: 0 | F29: 52.57565167 | G29: 54.29404173 | H29: 1554516.569 | I29: 27.24416824 | J29: 2499992.503 | K29: 8.62705257 | L29: 62.18084922 | M29: 53.08315871
A30: 22 | B30: Pensiones BBVA Bancomer | C30: 2074045.043 | D30: 10.839348 | E30: 0 | F30: 77.29625661 | G30: 47.53144895 | H30: 2074045.043 | I30: 10.839348 | J30: -1308599.107 | K30: 1.174771424 | L30: -158.4935396 | M30: -144.6737817
A31: 23 | B31: ProFuturo G.N.P. | C31: 1327040.967 | D31: 18.74573572 | E31: 0 | F31: 50.72830251 | G31: 49.75156836 | H31: 1327040.967 | I31: 18.74573572 | J31: -965450.2585 | K31: 2.048322143 | L31: -137.4530646 | M31: -118.1251228
A32: 24 | B32: Afirme | C32: 1341828.496 | D32: 16.16396079 | E32: -623.85297 | F32: 60.11388923 | G32: 61.13987903 | H32: 1014923.274 | I32: 21.97193423 | J32: 1119067.815 | K32: -6.56000488 | L32: 90.6936345 | M32: 69.47838303
A33: 25 | B33: Seguros Azteca | C33: 545140.1931 | D33: -36.61365594 | E33: 0 | F33: 27.78297619 | G33: 52.86865716 | H33: 313604.1161 | I33: -12.45845234 | J33: 745401.9429 | K33: 7.634234 | L33: 42.07181361 | M33: 51.72820851
A34: 26 | B34: Hir Seguros | C34: 417602.7299 | D34: 8.483510416 | E34: 96183.77991 | F34: 23.22617222 | G34: 26.90903417 | H34: 269066.5949 | I34: -16.91705242 | J34: 614952.8658 | K34: 39.05008953 | L34: 43.7540192 | M34: 73.2280265
A35: 27 | B35: HSBC Seguros | C35: 752600.9898 | D35: 17.10087149 | E35: 0 | F35: 46.38758728 | G35: 43.5142322 | H35: 746568.6848 | I35: 16.84018953 | J35: 1197219.943 | K35: 17.49540434 | L35: 62.35852394 | M35: 62.70821722
A36: 28 | B36: Seguros Azteca Daños | C36: -20785.99139 | D36: -119.0966069 | E36: 7886.39385 | F36: -1.661459787 | G36: 6.33372345 | H36: 22596.73602 | I36: 116.5760164 | J36: 94293.00749 | K36: -11.93921017 | L36: 23.96438148 | M36: 9.744026119
A37: 29 | B37: HDI Global Seguros | C37: 87458.83272 | D37: -54.21929301 | E37: 0 | F37: 8.597131259 | G37: 40.65285655 | H37: 470.59458 | I37: -43.43277416 | J37: -24803.69485 | K37: 172.2549826 | L37: -1.897276123 | M37: -9.131486832
A38: 30 | B38: Cardif Vida | C38: 211269.1622 | D38: -22.30397884 | E38: -20536.89332 | F38: 21.72125367 | G38: 32.47851978 | H38: 182371.6203 | I38: -10.433301 | J38: 538017.6902 | K38: -0.6766111844 | L38: 33.89695611 | M38: 37.58942318
A39: 31 | B39: BUPA México | C39: 758665.8632 | D39: 20.21928851 | E39: 0 | F39: 86.72676188 | G39: 76.38291728 | H39: 748648.8508 | I39: 40.21158059 | J39: 1017798.167 | K39: 8.118390892 | L39: 73.55572795 | M39: 56.71947291
A40: 32 | B40: ANA | C40: 591466.4306 | D40: 49.59338872 | E40: 7185.23703 | F40: 71.93689308 | G40: 54.67722841 | H40: 450632.7075 | I40: 50.72453924 | J40: 626107.5083 | K40: 7.291461393 | L40: 71.97369485 | M40: 51.23361425
A41: 33 | B41: Ve Por Más | C41: 615816.1324 | D41: 43.76982097 | E41: 3583.23024 | F41: 80.54467227 | G41: 63.16260934 | H41: 425272.1267 | I41: 31.14606547 | J41: 694924.4299 | K41: 13.3396035 | L41: 61.19688824 | M41: 52.88783178
A42: 34 | B42: Seguros Argos | C42: 623983.1209 | D42: -2.297810923 | E42: -398.33477 | F42: 82.31310865 | G42: 54.26416921 | H42: 446708.5959 | I42: -13.13677425 | J42: 640711.3287 | K42: -12.34276015 | L42: 69.72072694 | M42: 70.35804198
A43: 35 | B43: Plan Seguro | C43: 474349.7759 | D43: 9.254775821 | E43: 0 | F43: 67.50329903 | G43: 51.56359573 | H43: 358223.5498 | I43: 12.49517848 | J43: 490077.9932 | K43: -7.340310332 | L43: 73.09521235 | M43: 60.20684428
A44: 36 | B44: FM Global | C44: 285738.2699 | D44: 0.8152850071 | E44: 0 | F44: 41.68060379 | G44: 49.46328943 | H44: 2167.33767 | I44: 7.340383654 | J44: 12371.73554 | K44: -9.529790567 | L44: 17.51846104 | M44: 14.76516838
A45: 37 | B45: El Potosí | C45: 255047.793 | D45: 7.160581035 | E45: -153.74031 | F45: 38.43574878 | G45: 43.38640581 | H45: 251631.7774 | I45: 17.67920991 | J45: 383716.2536 | K45: 6.867496793 | L45: 65.57756546 | M45: 59.55266247
A46: 38 | B46: General de Seguros | C46: 470556.0986 | D46: -4.126201809 | E46: 793.18721 | F46: 71.21613307 | G46: 76.86267863 | H46: 399339.7456 | I46: -9.395014782 | J46: 551981.6226 | K46: 12.9674861 | L46: 72.3465654 | M46: 90.20264836
A47: 39 | B47: AXA Salud | C47: 114368.81 | D47: 8.625847415 | E47: 0 | F47: 23.47190465 | G47: 21.5571782 | H47: 13537.33058 | I47: -42.39854201 | J47: -28789.38617 | K47: 59.32969236 | L47: -47.02194934 | M47: -130.0660258
A48: 40 | B48: Assurant Vida | C48: 62581.92504 | D48: -19.89449822 | E48: 1473.03836 | F48: 13.94671133 | G48: 107.8290395 | H48: 8471.40188 | I48: -12.04611561 | J48: 20940.05056 | K48: -42.31841064 | L48: 40.45549869 | M48: 26.5313747
A49: 41 | B49: Prudential | C49: 48369.27817 | D49: 3.073181834 | E49: 0 | F49: 11.1592105 | G49: 13.5029111 | H49: 93881.9882 | I49: -31.36882331 | J49: 757367.2466 | K49: -10.27613575 | L49: 12.3958342 | M49: 16.20549434
A50: 42 | B50: Cardif Seguros Generales | C50: 53604.73258 | D50: 27.95259147 | E50: 0 | F50: 12.41636285 | G50: 14.54944139 | H50: 39498.58814 | I50: -42.38470616 | J50: 409071.4701 | K50: 25.72843514 | L50: 9.655669247 | M50: 21.07065857
A51: 43 | B51: Insignia Life | C51: 164032.8399 | D51: -34.7468165 | E51: 6173.09766 | F51: 38.9508185 | G51: 62.1149698 | H51: 160248.1393 | I51: -30.34240648 | J51: 299673.5236 | K51: -0.1402963621 | L51: 53.47424004 | M51: 76.65957856
A52: 44 | B52: El Águila | C52: 134472.346 | D52: 25.63452068 | E52: 0 | F52: 33.51368298 | G52: 32.75103677 | H52: 126931.249 | I52: 20.14592436 | J52: 291613.5347 | K52: 18.03585756 | L52: 43.52721456 | M52: 42.76276641
A53: 45 | B53: La Latinoamericana | C53: 232495.5849 | D53: -0.5515751265 | E53: 1622.90629 | F53: 61.46227653 | G53: 60.42489773 | H53: 140506.8789 | I53: -0.3674699441 | J53: 221114.0772 | K53: 13.15554505 | L53: 63.5449722 | M53: 72.1698622
A54: 46 | B54: Patrimonial Inbursa | C54: 310.33877 | D54: -97.89047552 | E54: 0 | F54: 0.08484223333 | G54: 3.682466489 | H54: 271.2764 | I54: -98.1471347 | J54: 247900.6959 | K54: -11.38711472 | L54: 0.1094294629 | M54: 5.233440565
A55: 47 | B55: Tokio Marine | C55: 103187.2473 | D55: -34.87622778 | E55: 52.95338 | F55: 31.36590125 | G55: 23.45334281 | H55: 38259.84923 | I55: 11.38745079 | J55: 72337.82742 | K55: 6.07647152 | L55: 52.89051468 | M55: 50.36868277
A56: 48 | B56: Patrimonial Vida | C56: 326666.0707 | D56: 11.1422806 | E56: 935.52278 | F56: 102.5865193 | G56: 20.88953587 | H56: 62022.87653 | I56: -39.44396885 | J56: 106717.2635 | K56: -67.58089749 | L56: 58.11887835 | M56: 31.11435541
A57: 49 | B57: Pan-American México | C57: 136472.8011 | D57: -29.19395439 | E57: 9464.62503 | F57: 44.15012251 | G57: 133.881323 | H57: 120450.3791 | I57: -24.3314751 | J57: 231540.6357 | K57: 3.009229362 | L57: 52.02126994 | M57: 70.81770042
A58: 50 | B58: BBVA Bancomer Salud | C58: 249870.9443 | D58: 71.7679752 | E58: 0 | F58: 84.58166203 | G58: 118.8548587 | H58: 234506.6489 | I58: 80.18811604 | J58: 305396.8359 | K58: 19.22035044 | L58: 76.78751753 | M58: 50.80598516
A59: 51 | B59: Dentegra | C59: 71242.00686 | D59: 118.2936343 | E59: 53.47214 | F59: 24.43799036 | G59: 28.30535215 | H59: 71242.00686 | I59: 118.2936343 | J59: 314461.9575 | K59: 141.0319995 | L59: 22.65520682 | M59: 25.01506659
A60: 52 | B60: Primero Seguros | C60: 142370.6071 | D60: 7.330811437 | E60: 0 | F60: 49.93287688 | G60: 46.78730317 | H60: 114535.7758 | I60: 12.16508881 | J60: 185936.6218 | K60: -5.335846308 | L60: 61.59936365 | M60: 51.98811581
A61: 53 | B61: General de Salud | C61: 165561.1909 | D61: 37.65240944 | E61: 0 | F61: 68.98149964 | G61: 93.39055802 | H61: 119637.6126 | I61: 2.274122715 | J61: 138717.1602 | K61: 8.422222348 | L61: 86.24571929 | M61: 91.43028858
A62: 54 | B62: PREVEM Seguros | C62: 114667.9008 | D62: 37.33070938 | E62: 0 | F62: 52.84328824 | G62: 65.82908898 | H62: 102996.3034 | I62: 49.50661612 | J62: 155426.4341 | K62: 15.17791255 | L62: 66.26691527 | M62: 51.05115192
A63: 55 | B63: Berkley Seguros | C63: 57749.80343 | D63: 18.18330738 | E63: 1126.9045 | F63: 29.94134726 | G63: 35.17533098 | H63: 5452.51391 | I63: 34.60367718 | J63: 5515.16937 | K63: 42.40071248 | L63: 98.86394314 | M63: 104.5907232
A64: 56 | B64: Atradius | C64: 23430.44295 | D64: -20.88017583 | E64: 4052.08955 | F64: 12.22221347 | G64: 15.72855088 | H64: 10105.43605 | I64: -14.66660793 | J64: 28701.20558 | K64: -34.03891437 | L64: 35.20909957 | M64: 27.21596289
A65: 57 | B65: Sompo Japan | C65: 23399.65944 | D65: -175.7019565 | E65: 2.95109 | F65: 12.37868124 | G65: -16.54676585 | H65: 8110.11878 | I65: -269.6061221 | J65: -18513.69371 | K65: -298.9587571 | L65: -43.80605463 | M65: -51.38728529
A66: 58 | B66: Solunion Crédito | C66: 46882.79443 | D66: 26.29215129 | E66: 186.24894 | F66: 26.96952065 | G66: 26.87579898 | H66: 3101.89808 | I66: 1.423214893 | J66: 4675.45779 | K66: 16.6185236 | L66: 66.34426444 | M66: 76.28401621
A67: 59 | B67: Swiss Re Corporate Solutions | C67: 33258.89151 | D67: 114.9039242 | E67: 0 | F67: 25.2770876 | G67: 17.56289148 | H67: 115.39917 | I67: -90.47098707 | J67: 2133.39008 | K67: 240.295989 | L67: 5.409192209 | M67: 193.1707331
A68: 60 | B68: SHF Cred Vivienda | C68: -217169.8659 | D68: -1371.37248 | E68: 0 | F68: -168.7977106 | G68: 17.30951661 | H68: -201928.4719 | I68: -1829.002272 | J68: 174526.0107 | K68: 63.88151396 | L68: -115.7010758 | M68: 10.96659489
A69: 61 | B69: Skandia Life | C69: 33840.65793 | D69: 220.3495448 | E69: 0 | F69: 32.14076935 | G69: 6.896834106 | H69: 30110.94263 | I69: 270.6330157 | J69: 88634.45976 | K69: 11.83519125 | L69: 33.9720496 | M69: 10.25076154
A70: 62 | B70: Coface | C70: -2657.53023 | D70: -146.286424 | E70: -4724.96638 | F70: -2.644606494 | G70: 5.05397136 | H70: -1796.71018 | I70: -126.0985069 | J70: 14165.4684 | K70: 68.05415909 | L70: -12.68373293 | M70: 81.67341064
A71: 63 | B71: Patrimonial Daños | C71: 10926.71838 | D71: 87.57861246 | E71: 0 | F71: 15.16618374 | G71: 11.18262436 | H71: 10747.49266 | I71: 110.2317922 | J71: 70207.55405 | K71: 41.68075724 | L71: 15.30817133 | M71: 10.31658097
A72: 64 | B72: Assurant Daños | C72: 19552.65269 | D72: 74.3553356 | E72: 148.32821 | F72: 29.89317604 | G72: 18.0731058 | H72: 4762.77363 | I72: 37.30104305 | J72: 11364.31833 | K72: -28.31692274 | L72: 41.9098928 | M72: 21.88060642
A73: 65 | B73: MediAccess | C73: 51471.83599 | D73: 54.58336651 | E73: 0 | F73: 99.47195456 | G73: 91.8832631 | H73: 47888.9122 | I73: 69.12830501 | J73: 71864.31732 | K73: 44.49089665 | L73: 66.63795606 | M73: 56.93061266
A74: 66 | B74: Centauro | C74: 24760.92627 | D74: 33.46191468 | E74: 89.0368 | F74: 56.54420829 | G74: 53.05071136 | H74: 24760.92627 | I74: 33.46191468 | J74: 46170.78553 | K74: 16.53354837 | L74: 53.62899068 | M74: 46.82666658
A75: 67 | B75: Odontoprev | C75: 5803.74884 | D75: 7.015689657 | E75: 0 | F75: 15.22618862 | G75: 47.09392569 | H75: 5794.74884 | I75: 7.394306944 | J75: 22957.97659 | K75: 60.52665695 | L75: 25.24067754 | M75: 37.72827163
A76: 68 | B76: Virginia Surety | C76: 9368.66547 | D76: 85.05443338 | E76: 0 | F76: 26.25160528 | G76: 23.04802045 | H76: 5605.11139 | I76: 38.50394819 | J76: 14317.68413 | K76: 76.79756709 | L76: 39.14817047 | M76: 49.97187001
A77: 69 | B77: Genworth Seg. de Crédito | C77: -272.83399 | D77: -103.1448108 | E77: 0 | F77: -1.077953288 | G77: 50.11262379 | H77: -7497.06286 | I77: -491.9571148 | J77: 37646.08275 | K77: -8.934338417 | L77: -19.91458955 | M77: 4.626871675
A78: 70 | B78: Metlife Más | C78: 405.1916 | D78: -2168.791289 | E78: 0 | F78: 1.646269076 | G78: -0.07935149688 | H78: 539.89296 | I78: -1290.361452 | J78: 8217.78273 | K78: -18.69895327 | L78: 6.569813023 | M78: -0.4487146947
A79: 71 | B79: Crabi | C79: 9879.74295 | D79: 26.7127646 | E79: 0 | F79: 49.92458231 | G79: 84.72834548 | H79: 3272.07431 | I79: 90.13171796 | J79: 4248.49872 | K79: 82.97343257 | L79: 77.0171895 | M79: 74.11756271
A80: 72 | B80: SPT | C80: 5304.10575 | D80: 37.35839914 | E80: 0 | F80: 51.64412925 | G80: 50.20740105 | H80: 5304.10575 | I80: 37.35839914 | J80: 7499.2788 | K80: -8.209046906 | L80: 70.72821122 | M80: 47.26474653
A81: 73 | B81: Citibanamex Pensiones | C81: 195153.2312 | D81: 4.84127091 | E81: 0 | F81: 14034.67008 | G81: 1654.47273 | H81: 195153.2312 | I81: 4.84127091 | J81: -63094.44808 | K81: -20.11945217 | L81: -309.3033336 | M81: -235.6640617
A82: 74 | B82: Metlife Pensiones | C82: 91374.91887 | D82: -0.04611396727 | E82: 0 | F82: 8333.500584 | G82: 581.0682443 | H82: 91374.91887 | I82: -0.04611396727 | J82: -21153.47748 | K82: -36.5924501 | L82: -431.9616903 | M82: -274.022687
A83: 75 | B83: Pensiones Inbursa | C83: 6364.39988 | D83: 5.231319249 | E83: 0 | F83: 6957.864686 | G83: 0 | H83: 6364.39988 | I83: 5.231319249 | J83: -1987.59046 | K83: -44.71851275 | L83: -320.2068036 | M83: -168.2152087
A84: 76 | B84: Quálitas Salud | C84: 3052.34927 | D84: 0 | E84: 0 | F84: -12021.52943 | G84: 0 | H84: 3052.34927 | I84: 0 | J84: 3308.59487 | K84: 0 | L84: 92.25515332 | M84: 0
A85: 77 | B85: Zurich Daños | C85: 0 | D85: 0 | E85: 0 | F85: 0 | G85: 0 | H85: 0 | I85: -100 | J85: 0 | K85: -100 | L85: 0 | M85: 52.65363773
A86: 78 | B86: Aserta Seguros de Vida | C86: -1151.05939 | D86: -107.6057385 | E86: 0 | F86: 0 | G86: 14359.32909 | H86: -2337.54239 | I86: -165.8449719 | J86: 584.82031 | K86: -87.85801238 | L86: -399.7026694 | M86: 73.70623331
A87: 79 | B87: Zurich Vida | C87: 0 | D87: 0 | E87: 0 | F87: 0 | G87: 0 | H87: 0 | I87: -100 | J87: 0 | K87: -100 | L87: 0 | M87: 39.48127148
A88: 80 | B88: Principal México | C88: 0 | D88: 0 | E88: 0 | F88: 0 | G88: 0 | H88: 0 | I88: 0 | J88: 0 | K88: 0 | L88: 0 | M88: 0
A89: 150.1 | B89: TOTAL RESTO | C89: 21661251.05 | D89: 16.65863461 | E89: 134922.6882 | F89: 43.77394142 | G89: 40.83404557 | H89: 18370069.32 | I89: 13.3065453 | J89: 18125266.61 | K89: 11.64435837 | L89: 101.3506158 | M89: 99.86382023
A90: 151.1 | B90: TOTAL | C90: 103686529 | D90: 7.660339087 | E90: 827800.1938 | F90: 47.2193205 | G90: 50.27322339 | H90: 93921976.44 | I90: 8.042464071 | J90: 118831548.9 | K90: 0.9914947932 | L90: 79.03791317 | M90: 73.87981258
A91: 200 | B91: Patria | C91: 0 | D91: 0 | E91: 0 | F91: 0 | G91: 0 | H91: 957092.4435 | I91: 21.28214221 | J91: 2064338.306 | K91: 11.69060998 | L91: 46.36315862 | M91: 42.69655345

Sheet TD Operación (hidden)
B4: periodo | C4: 2023-Q1
B6: nombre_compania | C6: Ramo_ | D6: Suma de Prima_DirectaAct
A7: =B7&"|"&C7 -> Afirme|10 Total General | B7: Afirme | C7: 10 Total General | D7: 2232143.874
A8: =B8&"|"&C8 -> Afirme|11 Total General Sin Pensiones | B8: Afirme | C8: 11 Total General Sin Pensiones | D8: 2232143.874
A9: Afirme|12 Vida Total | B9: Afirme | C9: 12 Vida Total | D9: 736934.1818
A10: Afirme|13 Vida Individual | B10: Afirme | C10: 13 Vida Individual | D10: 399952.6548
A11: Afirme|14 Vida Gpo y Col | B11: Afirme | C11: 14 Vida Gpo y Col | D11: 336981.527
A12: Afirme|38 Daños Total | B12: Afirme | C12: 38 Daños Total | D12: 1495209.693
A13: Afirme|39 Automoviles Total | B13: Afirme | C13: 39 Automoviles Total | D13: 605741.2748
A14: Afirme|41 Automoviles Residentes | B14: Afirme | C14: 41 Automoviles Residentes | D14: 370779.6694
A15: Afirme|42 Camiones | B15: Afirme | C15: 42 Camiones | D15: 225045.2709
A16: Afirme|44 Otros Automoviles y Obligatorios | B16: Afirme | C16: 44 Otros Automoviles y Obligatorios | D16: 9916.33451
A17: Afirme|45 Daños Sin Autos Total | B17: Afirme | C17: 45 Daños Sin Autos Total | D17: 889468.4178
A18: Afirme|46 Responsabilidad Civil y Riesgos Profesionales | B18: Afirme | C18: 46 Responsabilidad Civil y Riesgos Profesionales | D18: 183408.0809
A19: Afirme|47 RC General | B19: Afirme | C19: 47 RC General | D19: 100803.6484
A20: Afirme|48 RC Aviones y Barcos | B20: Afirme | C20: 48 RC Aviones y Barcos | D20: 12675.0009
A21: Afirme|49 RC Viajero | B21: Afirme | C21: 49 RC Viajero | D21: 230.12805
A22: Afirme|50 RC Otros | B22: Afirme | C22: 50 RC Otros | D22: 69699.30362
A23: Afirme|51 Maritimo y Transportes | B23: Afirme | C23: 51 Maritimo y Transportes | D23: 59928.61248
A24: Afirme|52 MyT Carga | B24: Afirme | C24: 52 MyT Carga | D24: 34445.48459
A25: Afirme|53 MyT Cascos | B25: Afirme | C25: 53 MyT Cascos | D25: 25483.12789
A26: Afirme|54 Incendio | B26: Afirme | C26: 54 Incendio | D26: 218956.9214
A27: Afirme|55 Riesgos Catastroficos | B27: Afirme | C27: 55 Riesgos Catastroficos | D27: 250118.6344
A28: Afirme|56 Terremoto y Erupcion Volcanica | B28: Afirme | C28: 56 Terremoto y Erupcion Volcanica | D28: 131582.2253
A29: Afirme|57 Huracan y Otros Riesgos Hidrometeorologicos | B29: Afirme | C29: 57 Huracan y Otros Riesgos Hidrometeorologicos | D29: 118536.4091
A30: Afirme|63 Diversos | B30: Afirme | C30: 63 Diversos | D30: 177056.1686
A31: Afirme|64 Miscelaneos | B31: Afirme | C31: 64 Miscelaneos | D31: 65109.46665
A32: Afirme|65 Tecnicos | B32: Afirme | C32: 65 Tecnicos | D32: 111946.702
A33: Agroasemex|10 Total General | B33: Agroasemex | C33: 10 Total General | D33: 7438742.863
A34: Agroasemex|11 Total General Sin Pensiones | B34: Agroasemex | C34: 11 Total General Sin Pensiones | D34: 7438742.863
A35: Agroasemex|12 Vida Total | B35: Agroasemex | C35: 12 Vida Total | D35: 3674.24597
A36: Agroasemex|14 Vida Gpo y Col | B36: Agroasemex | C36: 14 Vida Gpo y Col | D36: 3674.24597
A37: Agroasemex|28 Accidentes y Enfermedades Total | B37: Agroasemex | C37: 28 Accidentes y Enfermedades Total | D37: 0
A38: Agroasemex|29 Accidentes Personales | B38: Agroasemex | C38: 29 Accidentes Personales | D38: 0
A39: Agroasemex|31 AP Gpo y Col | B39: Agroasemex | C39: 31 AP Gpo y Col | D39: 0
A40: Agroasemex|38 Daños Total | B40: Agroasemex | C40: 38 Daños Total | D40: 7435068.617
A41: Agroasemex|45 Daños Sin Autos Total | B41: Agroasemex | C41: 45 Daños Sin Autos Total | D41: 7435068.617
A42: Agroasemex|46 Responsabilidad Civil y Riesgos Profesionales | B42: Agroasemex | C42: 46 Responsabilidad Civil y Riesgos Profesionales | D42: 694581.2537
A43: Agroasemex|47 RC General | B43: Agroasemex | C43: 47 RC General | D43: 668189.8578
A44: Agroasemex|48 RC Aviones y Barcos | B44: Agroasemex | C44: 48 RC Aviones y Barcos | D44: 782.88865
A45: Agroasemex|49 RC Viajero | B45: Agroasemex | C45: 49 RC Viajero | D45: 11183.28709
A46: Agroasemex|50 RC Otros | B46: Agroasemex | C46: 50 RC Otros | D46: 14425.22022
A47: Agroasemex|51 Maritimo y Transportes | B47: Agroasemex | C47: 51 Maritimo y Transportes | D47: 435122.0855
A48: Agroasemex|52 MyT Carga | B48: Agroasemex | C48: 52 MyT Carga | D48: 338669.8336
A49: Agroasemex|53 MyT Cascos | B49: Agroasemex | C49: 53 MyT Cascos | D49: 96452.25197
A50: Agroasemex|54 Incendio | B50: Agroasemex | C50: 54 Incendio | D50: 1243764.257
A51: Agroasemex|55 Riesgos Catastroficos | B51: Agroasemex | C51: 55 Riesgos Catastroficos | D51: 3158937.707
A52: Agroasemex|56 Terremoto y Erupcion Volcanica | B52: Agroasemex | C52: 56 Terremoto y Erupcion Volcanica | D52: 565460.0906
A53: Agroasemex|57 Huracan y Otros Riesgos Hidrometeorologicos | B53: Agroasemex | C53: 57 Huracan y Otros Riesgos Hidrometeorologicos | D53: 2527689.369
A54: Agroasemex|58 Otros Riesgos Catastroficos | B54: Agroasemex | C54: 58 Otros Riesgos Catastroficos | D54: 65788.24687
A55: Agroasemex|59 Agricola y de Animales | B55: Agroasemex | C55: 59 Agricola y de Animales | D55: 116916.3316
A56: Agroasemex|60 AyA Agricola | B56: Agroasemex | C56: 60 AyA Agricola | D56: 52834.31095
A57: Agroasemex|61 AyA Otros | B57: Agroasemex | C57: 61 AyA Otros | D57: 0
A58: Agroasemex|62 AyA Pecuario | B58: Agroasemex | C58: 62 AyA Pecuario | D58: 64082.02067
A59: Agroasemex|63 Diversos | B59: Agroasemex | C59: 63 Diversos | D59: 1785746.983
A60: Agroasemex|64 Miscelaneos | B60: Agroasemex | C60: 64 Miscelaneos | D60: 889338.214
A61: Agroasemex|65 Tecnicos | B61: Agroasemex | C61: 65 Tecnicos | D61: 896408.7686
A62: AIG Seguros|10 Total General | B62: AIG Seguros | C62: 10 Total General | D62: 3306000.074
A63: AIG Seguros|11 Total General Sin Pensiones | B63: AIG Seguros | C63: 11 Total General Sin Pensiones | D63: 3306000.074
A64: AIG Seguros|28 Accidentes y Enfermedades Total | B64: AIG Seguros | C64: 28 Accidentes y Enfermedades Total | D64: 68838.661
A65: AIG Seguros|29 Accidentes Personales | B65: AIG Seguros | C65: 29 Accidentes Personales | D65: 68838.661
A66: AIG Seguros|30 AP Individual | B66: AIG Seguros | C66: 30 AP Individual | D66: 23238.05449
A67: AIG Seguros|31 AP Gpo y Col | B67: AIG Seguros | C67: 31 AP Gpo y Col | D67: 45600.60651
A68: AIG Seguros|38 Daños Total | B68: AIG Seguros | C68: 38 Daños Total | D68: 3237161.413
A69: AIG Seguros|39 Automoviles Total | B69: AIG Seguros | C69: 39 Automoviles Total | D69: 111478.4433
A70: AIG Seguros|41 Automoviles Residentes | B70: AIG Seguros | C70: 41 Automoviles Residentes | D70: 90300.66899
A71: AIG Seguros|42 Camiones | B71: AIG Seguros | C71: 42 Camiones | D71: 7329.85481
A72: =B72&"|"&C72 -> AIG Seguros|43 Automoviles Turistas | B72: AIG Seguros | C72: 43 Automoviles Turistas | D72: 10395.04194
A73: AIG Seguros|44 Otros Automoviles y Obligatorios | B73: AIG Seguros | C73: 44 Otros Automoviles y Obligatorios | D73: 3452.87752
A74: AIG Seguros|45 Daños Sin Autos Total | B74: AIG Seguros | C74: 45 Daños Sin Autos Total | D74: 3125682.97
A75: AIG Seguros|46 Responsabilidad Civil y Riesgos Profesionales | B75: AIG Seguros | C75: 46 Responsabilidad Civil y Riesgos Profesionales | D75: 788268.7468
A76: AIG Seguros|47 RC General | B76: AIG Seguros | C76: 47 RC General | D76: 787850.0984
A77: AIG Seguros|48 RC Aviones y Barcos | B77: AIG Seguros | C77: 48 RC Aviones y Barcos | D77: 418.64834
A78: AIG Seguros|51 Maritimo y Transportes | B78: AIG Seguros | C78: 51 Maritimo y Transportes | D78: 216816.5679
A79: AIG Seguros|52 MyT Carga | B79: AIG Seguros | C79: 52 MyT Carga | D79: 216559.4123
A80: AIG Seguros|53 MyT Cascos | B80: AIG Seguros | C80: 53 MyT Cascos | D80: 257.1556
A81: AIG Seguros|54 Incendio | B81: AIG Seguros | C81: 54 Incendio | D81: 690240.8716
A82: AIG Seguros|55 Riesgos Catastroficos | B82: AIG Seguros | C82: 55 Riesgos Catastroficos | D82: 163086.435
A83: AIG Seguros|56 Terremoto y Erupcion Volcanica | B83: AIG Seguros | C83: 56 Terremoto y Erupcion Volcanica | D83: 84528.85215
A84: AIG Seguros|57 Huracan y Otros Riesgos Hidrometeorologicos | B84: AIG Seguros | C84: 57 Huracan y Otros Riesgos Hidrometeorologicos | D84: 78557.58288
A85: AIG Seguros|63 Diversos | B85: AIG Seguros | C85: 63 Diversos | D85: 1261179.299
A86: AIG Seguros|64 Miscelaneos | B86: AIG Seguros | C86: 64 Miscelaneos | D86: 109245.2382
A87: AIG Seguros|65 Tecnicos | B87: AIG Seguros | C87: 65 Tecnicos | D87: 1151934.061
A88: AIG Seguros|66 Credito | B88: AIG Seguros | C88: 66 Credito | D88: 6091.04922
A89: Allianz México|10 Total General | B89: Allianz México | C89: 10 Total General | D89: 5252582.056
A90: Allianz México|11 Total General Sin Pensiones | B90: Allianz México | C90: 11 Total General Sin Pensiones | D90: 5252582.056
A91: Allianz México|12 Vida Total | B91: Allianz México | C91: 12 Vida Total | D91: 2952744.118
A92: Allianz México|13 Vida Individual | B92: Allianz México | C92: 13 Vida Individual | D92: 2452954.858
A93: Allianz México|14 Vida Gpo y Col | B93: Allianz México | C93: 14 Vida Gpo y Col | D93: 499789.2595
A94: Allianz México|28 Accidentes y Enfermedades Total | B94: Allianz México | C94: 28 Accidentes y Enfermedades Total | D94: 797857.539
A95: Allianz México|29 Accidentes Personales | B95: Allianz México | C95: 29 Accidentes Personales | D95: 13.30155
A96: Allianz México|30 AP Individual | B96: Allianz México | C96: 30 AP Individual | D96: 0
A97: Allianz México|31 AP Gpo y Col | B97: Allianz México | C97: 31 AP Gpo y Col | D97: 13.30155
A98: Allianz México|32 Gastos Medicos | B98: Allianz México | C98: 32 Gastos Medicos | D98: 797844.2374
A99: Allianz México|33 GMM. Individual | B99: Allianz México | C99: 33 GMM. Individual | D99: 365074.1336
A100: Allianz México|34 GMM. Gpo y Col | B100: Allianz México | C100: 34 GMM. Gpo y Col | D100: 432770.1038
A101: Allianz México|38 Daños Total | B101: Allianz México | C101: 38 Daños Total | D101: 1501980.4
A102: Allianz México|39 Automoviles Total | B102: Allianz México | C102: 39 Automoviles Total | D102: 29844.04865
A103: Allianz México|41 Automoviles Residentes | B103: Allianz México | C103: 41 Automoviles Residentes | D103: 29844.04865
A104: Allianz México|42 Camiones | B104: Allianz México | C104: 42 Camiones | D104: 0
A105: Allianz México|45 Daños Sin Autos Total | B105: Allianz México | C105: 45 Daños Sin Autos Total | D105: 1472136.351
A106: Allianz México|46 Responsabilidad Civil y Riesgos Profesionales | B106: Allianz México | C106: 46 Responsabilidad Civil y Riesgos Profesionales | D106: 57943.46017
A107: Allianz México|47 RC General | B107: Allianz México | C107: 47 RC General | D107: 53024.32078
A108: Allianz México|48 RC Aviones y Barcos | B108: Allianz México | C108: 48 RC Aviones y Barcos | D108: 4919.13939
A109: Allianz México|50 RC Otros | B109: Allianz México | C109: 50 RC Otros | D109: 0
A110: Allianz México|51 Maritimo y Transportes | B110: Allianz México | C110: 51 Maritimo y Transportes | D110: 78948.47413
A111: Allianz México|52 MyT Carga | B111: Allianz México | C111: 52 MyT Carga | D111: 69836.37582
A112: Allianz México|53 MyT Cascos | B112: Allianz México | C112: 53 MyT Cascos | D112: 9112.09831
A113: Allianz México|54 Incendio | B113: Allianz México | C113: 54 Incendio | D113: 271193.5437
A114: Allianz México|55 Riesgos Catastroficos | B114: Allianz México | C114: 55 Riesgos Catastroficos | D114: 150313.4759
A115: Allianz México|56 Terremoto y Erupcion Volcanica | B115: Allianz México | C115: 56 Terremoto y Erupcion Volcanica | D115: 67965.90534
A116: Allianz México|57 Huracan y Otros Riesgos Hidrometeorologicos | B116: Allianz México | C116: 57 Huracan y Otros Riesgos Hidrometeorologicos | D116: 82347.57055
A117: Allianz México|63 Diversos | B117: Allianz México | C117: 63 Diversos | D117: 913737.3971
A118: Allianz México|64 Miscelaneos | B118: Allianz México | C118: 64 Miscelaneos | D118: 31430.27339
A119: Allianz México|65 Tecnicos | B119: Allianz México | C119: 65 Tecnicos | D119: 882307.1237
A120: ANA|10 Total General | B120: ANA | C120: 10 Total General | D120: 822201.8011
A121: ANA|11 Total General Sin Pensiones | B121: ANA | C121: 11 Total General Sin Pensiones | D121: 822201.8011
A122: ANA|38 Daños Total | B122: ANA | C122: 38 Daños Total | D122: 822201.8011
A123: ANA|39 Automoviles Total | B123: ANA | C123: 39 Automoviles Total | D123: 822201.8011
A124: ANA|41 Automoviles Residentes | B124: ANA | C124: 41 Automoviles Residentes | D124: 435820.777
A125: ANA|42 Camiones | B125: ANA | C125: 42 Camiones | D125: 336301.3505
A126: ANA|43 Automoviles Turistas | B126: ANA | C126: 43 Automoviles Turistas | D126: 35055.94738
A127: ANA|44 Otros Automoviles y Obligatorios | B127: ANA | C127: 44 Otros Automoviles y Obligatorios | D127: 15023.72617
A128: Aserta Seguros de Vida|10 Total General | B128: Aserta Seguros de Vida | C128: 10 Total General | D128: 0
A129: Aserta Seguros de Vida|11 Total General Sin Pensiones | B129: Aserta Seguros de Vida | C129: 11 Total General Sin Pensiones | D129: 0
A130: Aserta Seguros de Vida|12 Vida Total | B130: Aserta Seguros de Vida | C130: 12 Vida Total | D130: 0
A131: Aserta Seguros de Vida|13 Vida Individual | B131: Aserta Seguros de Vida | C131: 13 Vida Individual | D131: 0
A132: Aserta Seguros de Vida|14 Vida Gpo y Col | B132: Aserta Seguros de Vida | C132: 14 Vida Gpo y Col | D132: 0
A133: Aserta Seguros de Vida|28 Accidentes y Enfermedades Total | B133: Aserta Seguros de Vida | C133: 28 Accidentes y Enfermedades Total | D133: 0
A134: Aserta Seguros de Vida|29 Accidentes Personales | B134: Aserta Seguros de Vida | C134: 29 Accidentes Personales | D134: 0
A135: Aserta Seguros de Vida|30 AP Individual | B135: Aserta Seguros de Vida | C135: 30 AP Individual | D135: 0
A136: =B136&"|"&C136 -> Aserta Seguros de Vida|31 AP Gpo y Col | B136: Aserta Seguros de Vida | C136: 31 AP Gpo y Col | D136: 0
A137: Aserta Seguros de Vida|32 Gastos Medicos | B137: Aserta Seguros de Vida | C137: 32 Gastos Medicos | D137: 0
A138: Aserta Seguros de Vida|33 GMM. Individual | B138: Aserta Seguros de Vida | C138: 33 GMM. Individual | D138: 0
A139: Assurant Daños|10 Total General | B139: Assurant Daños | C139: 10 Total General | D139: 65408.41517
A140: Assurant Daños|11 Total General Sin Pensiones | B140: Assurant Daños | C140: 11 Total General Sin Pensiones | D140: 65408.41517
A141: Assurant Daños|38 Daños Total | B141: Assurant Daños | C141: 38 Daños Total | D141: 65408.41517
A142: Assurant Daños|39 Automoviles Total | B142: Assurant Daños | C142: 39 Automoviles Total | D142: 8672.09401
A143: Assurant Daños|41 Automoviles Residentes | B143: Assurant Daños | C143: 41 Automoviles Residentes | D143: 8672.09401
A144: Assurant Daños|45 Daños Sin Autos Total | B144: Assurant Daños | C144: 45 Daños Sin Autos Total | D144: 56736.32116
A145: Assurant Daños|46 Responsabilidad Civil y Riesgos Profesionales | B145: Assurant Daños | C145: 46 Responsabilidad Civil y Riesgos Profesionales | D145: 0
A146: Assurant Daños|47 RC General | B146: Assurant Daños | C146: 47 RC General | D146: 0
A147: Assurant Daños|54 Incendio | B147: Assurant Daños | C147: 54 Incendio | D147: 0
A148: Assurant Daños|55 Riesgos Catastroficos | B148: Assurant Daños | C148: 55 Riesgos Catastroficos | D148: 0
A149: Assurant Daños|56 Terremoto y Erupcion Volcanica | B149: Assurant Daños | C149: 56 Terremoto y Erupcion Volcanica | D149: 0
A150: Assurant Daños|57 Huracan y Otros Riesgos Hidrometeorologicos | B150: Assurant Daños | C150: 57 Huracan y Otros Riesgos Hidrometeorologicos | D150: 0
A151: Assurant Daños|63 Diversos | B151: Assurant Daños | C151: 63 Diversos | D151: 56736.32116
A152: Assurant Daños|64 Miscelaneos | B152: Assurant Daños | C152: 64 Miscelaneos | D152: 46370.02245
A153: Assurant Daños|65 Tecnicos | B153: Assurant Daños | C153: 65 Tecnicos | D153: 10366.29871
A154: Assurant Vida|10 Total General | B154: Assurant Vida | C154: 10 Total General | D154: 448721.7349
A155: Assurant Vida|11 Total General Sin Pensiones | B155: Assurant Vida | C155: 11 Total General Sin Pensiones | D155: 448721.7349
A156: Assurant Vida|12 Vida Total | B156: Assurant Vida | C156: 12 Vida Total | D156: 448721.7349
A157: Assurant Vida|14 Vida Gpo y Col | B157: Assurant Vida | C157: 14 Vida Gpo y Col | D157: 448721.7349
A158: Assurant Vida|28 Accidentes y Enfermedades Total | B158: Assurant Vida | C158: 28 Accidentes y Enfermedades Total | D158: 0
A159: Assurant Vida|29 Accidentes Personales | B159: Assurant Vida | C159: 29 Accidentes Personales | D159: 0
A160: Assurant Vida|30 AP Individual | B160: Assurant Vida | C160: 30 AP Individual | D160: 0
A161: Assurant Vida|31 AP Gpo y Col | B161: Assurant Vida | C161: 31 AP Gpo y Col | D161: 0
A162: Assurant Vida|32 Gastos Medicos | B162: Assurant Vida | C162: 32 Gastos Medicos | D162: 0
A163: Assurant Vida|33 GMM. Individual | B163: Assurant Vida | C163: 33 GMM. Individual | D163: 0
A164: Atlas|10 Total General | B164: Atlas | C164: 10 Total General | D164: 5493499.04
A165: Atlas|11 Total General Sin Pensiones | B165: Atlas | C165: 11 Total General Sin Pensiones | D165: 5493499.04
A166: Atlas|12 Vida Total | B166: Atlas | C166: 12 Vida Total | D166: 907585.7014
A167: Atlas|13 Vida Individual | B167: Atlas | C167: 13 Vida Individual | D167: 208363.4022
A168: Atlas|14 Vida Gpo y Col | B168: Atlas | C168: 14 Vida Gpo y Col | D168: 699222.2992
A169: Atlas|28 Accidentes y Enfermedades Total | B169: Atlas | C169: 28 Accidentes y Enfermedades Total | D169: 1911914.902
A170: Atlas|29 Accidentes Personales | B170: Atlas | C170: 29 Accidentes Personales | D170: 14126.41388
A171: Atlas|30 AP Individual | B171: Atlas | C171: 30 AP Individual | D171: 1465.31662
A172: Atlas|31 AP Gpo y Col | B172: Atlas | C172: 31 AP Gpo y Col | D172: 12661.09726
A173: Atlas|32 Gastos Medicos | B173: Atlas | C173: 32 Gastos Medicos | D173: 1897788.488
A174: Atlas|33 GMM. Individual | B174: Atlas | C174: 33 GMM. Individual | D174: 382620.2116
A175: Atlas|34 GMM. Gpo y Col | B175: Atlas | C175: 34 GMM. Gpo y Col | D175: 1515168.276
A176: Atlas|38 Daños Total | B176: Atlas | C176: 38 Daños Total | D176: 2673998.437
A177: Atlas|39 Automoviles Total | B177: Atlas | C177: 39 Automoviles Total | D177: 1027555.623
A178: Atlas|41 Automoviles Residentes | B178: Atlas | C178: 41 Automoviles Residentes | D178: 609850.0227
A179: Atlas|42 Camiones | B179: Atlas | C179: 42 Camiones | D179: 385041.7097
A180: Atlas|43 Automoviles Turistas | B180: Atlas | C180: 43 Automoviles Turistas | D180: 622.42811
A181: Atlas|44 Otros Automoviles y Obligatorios | B181: Atlas | C181: 44 Otros Automoviles y Obligatorios | D181: 32041.46239
A182: Atlas|45 Daños Sin Autos Total | B182: Atlas | C182: 45 Daños Sin Autos Total | D182: 1646442.814
A183: Atlas|46 Responsabilidad Civil y Riesgos Profesionales | B183: Atlas | C183: 46 Responsabilidad Civil y Riesgos Profesionales | D183: 189433.1081
A184: Atlas|47 RC General | B184: Atlas | C184: 47 RC General | D184: 110010.2991
A185: Atlas|48 RC Aviones y Barcos | B185: Atlas | C185: 48 RC Aviones y Barcos | D185: 77455.47329
A186: Atlas|49 RC Viajero | B186: Atlas | C186: 49 RC Viajero | D186: 1967.33571
A187: Atlas|51 Maritimo y Transportes | B187: Atlas | C187: 51 Maritimo y Transportes | D187: 443173.7556
A188: Atlas|52 MyT Carga | B188: Atlas | C188: 52 MyT Carga | D188: 292361.7274
A189: Atlas|53 MyT Cascos | B189: Atlas | C189: 53 MyT Cascos | D189: 150812.0282
A190: Atlas|54 Incendio | B190: Atlas | C190: 54 Incendio | D190: 102011.8829
A191: Atlas|55 Riesgos Catastroficos | B191: Atlas | C191: 55 Riesgos Catastroficos | D191: 392743.9429
A192: Atlas|56 Terremoto y Erupcion Volcanica | B192: Atlas | C192: 56 Terremoto y Erupcion Volcanica | D192: 151172.3617
A193: Atlas|57 Huracan y Otros Riesgos Hidrometeorologicos | B193: Atlas | C193: 57 Huracan y Otros Riesgos Hidrometeorologicos | D193: 241571.5812
A194: Atlas|63 Diversos | B194: Atlas | C194: 63 Diversos | D194: 519080.1248
A195: Atlas|64 Miscelaneos | B195: Atlas | C195: 64 Miscelaneos | D195: 68740.81771
A196: Atlas|65 Tecnicos | B196: Atlas | C196: 65 Tecnicos | D196: 450339.3071
A197: Atradius|10 Total General | B197: Atradius | C197: 10 Total General | D197: 191703.7614
A198: Atradius|11 Total General Sin Pensiones | B198: Atradius | C198: 11 Total General Sin Pensiones | D198: 191703.7614
A199: Atradius|38 Daños Total | B199: Atradius | C199: 38 Daños Total | D199: 191703.7614
A200: =B200&"|"&C200 -> Atradius|45 Daños Sin Autos Total | B200: Atradius | C200: 45 Daños Sin Autos Total | D200: 191703.7614
A201: Atradius|66 Credito | B201: Atradius | C201: 66 Credito | D201: 191703.7614
A202: AXA Salud|10 Total General | B202: AXA Salud | C202: 10 Total General | D202: 487258.3274
A203: AXA Salud|11 Total General Sin Pensiones | B203: AXA Salud | C203: 11 Total General Sin Pensiones | D203: 487258.3274
A204: AXA Salud|28 Accidentes y Enfermedades Total | B204: AXA Salud | C204: 28 Accidentes y Enfermedades Total | D204: 487258.3274
... 1412 more rows

Sheet TD Siniestros Daños (hidden)
A1: periodo | B1: 2023-Q1
A2: Ramo3 | B2: 38 Daños Total
A3: operacion | B3: (Varios elementos)
A4: ramo_complemento | B4: (Varios elementos)
A6: Jerarquia 2 | B6: nombre_compania | C6: Suma de CostoSin_Act | D6: Suma de IncSin | E6: Suma de IncResvDivAct | F6: Suma de %SinvsPrm_Act | G6: Suma de %SinvsPrm_Ant | H6: Suma de Costo_Sin_RetAct | I6: Suma de IncSin_Ret | J6: Suma de Prima_DevengadaAct | K6: Suma de IncSin_PDev | L6: Suma de %SinvsPDev_Act | M6: Suma de %SinvsPDev_Ant
A7: 1 | B7: Quálitas | C7: 7182439.131 | D7: 27.36258164 | E7: 18944.86094 | F7: 62.89812863 | G7: 63.58380379 | H7: 7186344.067 | I7: 27.49275299 | J7: 10378964.71 | K7: 20.90911991 | L7: 69.23950767 | M7: 65.66402983
A8: 2 | B8: Agroasemex | C8: 237638.0463 | D8: 0 | E8: 4926.18649 | F8: 3.196178254 | G8: 0 | H8: 35835.07017 | I8: 0 | J8: 589662.2864 | K8: 0 | L8: 6.077219283 | M8: 0
A9: 3 | B9: G.N.P. | C9: 3575558.568 | D9: 26.97489525 | E9: 2440.12463 | F9: 52.93529716 | G9: 50.42171276 | H9: 3179229.194 | I9: 27.7861753 | J9: 4906854.445 | K9: 20.73553025 | L9: 64.79159368 | M9: 61.21669578
A10: 4 | B10: Chubb Seguros México | C10: 2910025.085 | D10: 38.16589066 | E10: 21489.14818 | F10: 48.91406198 | G10: 38.41429753 | H10: 1420832.449 | I10: 49.5808079 | J10: 1701535.071 | K10: -10.87800885 | L10: 83.50297756 | M10: 49.75204862
A11: 5 | B11: AXA Seguros | C11: 3102318.735 | D11: 29.97107915 | E11: 44824.09367 | F11: 56.73412249 | G11: 46.97685394 | H11: 2803088.521 | I11: 51.18858528 | J11: 3799106.643 | K11: 15.04195718 | L11: 73.78283329 | M11: 56.14260846
A12: 5.1 | B12: TOTAL GRANDES | C12: 17007979.57 | D12: 31.35164604 | E12: 92624.41391 | F12: 45.93492953 | G12: 51.75672011 | H12: 14625329.3 | I12: 33.82731638 | J12: 21376123.16 | K12: 19.68831223 | L12: 68.41899812 | M12: 61.19045522
A13: 6 | B13: GMX Seguros | C13: 480133.3407 | D13: -47.02710194 | E13: 0 | F13: 10.20682433 | G13: 16.7698772 | H13: 235573.1096 | I13: -13.97317194 | J13: 600583.5667 | K13: -10.32068386 | L13: 39.2240352 | M13: 40.88939151
A14: 7 | B14: Inbursa | C14: 1533713.326 | D14: 101.0781809 | E14: 0 | F14: 38.38952408 | G14: 23.32665227 | H14: 942676.1833 | I14: 37.83214937 | J14: 1479697.499 | K14: 9.774107979 | L14: 63.70735803 | M14: 50.73865881
A15: 8 | B15: Banorte | C15: 1100353.811 | D15: 45.79928029 | E15: 112.18408 | F15: 29.84221824 | G15: 23.21274705 | H15: 1066277.121 | I15: 39.136559 | J15: 2396631.244 | K15: 18.94053524 | L15: 44.4906626 | M15: 38.0327303
A16: 9 | B16: Mapfre México | C16: 1798679.987 | D16: 76.08183391 | E16: 192474.8963 | F16: 49.54811451 | G16: 21.22020738 | H16: 954567.1233 | I16: 37.17741542 | J16: 1339823.223 | K16: -3.226169556 | L16: 71.24575142 | M16: 50.26136588
A17: 10 | B17: BBVA Bancomer | C17: 1604417.402 | D17: 58.95157839 | E17: 0 | F17: 46.05027234 | G17: 38.32418108 | H17: 1569745.116 | I17: 56.02709865 | J17: 2670637.739 | K17: 29.08699212 | L17: 58.7779126 | M17: 48.62914203
A18: 11 | B18: AIG Seguros | C18: 282506.0831 | D18: 0.09030477918 | E18: 1964.21298 | F18: 8.726969313 | G18: 16.30047322 | H18: 133065.2176 | I18: 36.11023763 | J18: 108020.4105 | K18: -33.11554676 | L18: 123.1852545 | M18: 60.53312768
A19: 12 | B19: HDI Seguros | C19: 1551183.186 | D19: 25.11298312 | E19: 0 | F19: 52.49454621 | G19: 54.25063831 | H19: 1546668.11 | I19: 26.95897431 | J19: 2495631.248 | K19: 8.945415566 | L19: 61.97502579 | M19: 53.18170674
A20: 13 | B20: Zurich Aseguradora Mexicana | C20: 574531.1552 | D20: 19952.04815 | E20: -1477.90547 | F20: 21.03733733 | G20: 239.090621 | H20: 536485.8133 | I20: 23558.59144 | J20: 1093685.341 | K20: 553087.6219 | L20: 49.05303136 | M20: 1146.963032
A21: 14 | B21: Atlas | C21: 859418.7467 | D21: 1.933074543 | E21: -1963.68344 | F21: 32.13983728 | G21: 36.79291307 | H21: 741959.4329 | I21: 36.01431215 | J21: 1129543.884 | K21: 5.371354198 | L21: 65.68664075 | M21: 50.88795568
A22: 15 | B22: Seguros SURA | C22: 926586.4641 | D22: 233.0817304 | E22: 3521.84838 | F22: 47.4655295 | G22: 25.25884704 | H22: 760940.7528 | I22: 139.5595436 | J22: 1495265.683 | K22: 55.18982754 | L22: 50.89000313 | M22: 32.96721429
A23: 15.1 | B23: TOTAL MEDIANAS | C23: 10711523.5 | D23: 50.84632653 | E23: 194631.5528 | F23: 32.41017937 | G23: 26.51145523 | H23: 8487957.98 | I23: 51.36873444 | J23: 14809519.84 | K23: 23.68190286 | L23: 57.31420108 | M23: 46.83086951
A24: 16 | B24: Allianz México | C24: 218041.3409 | D24: -81.73946863 | E24: -333.82969 | F24: 14.51692319 | G24: 86.23627541 | H24: 47127.08624 | I24: 18.63950529 | J24: 97108.56798 | K24: -23.46431821 | L24: 48.53030708 | M24: 31.30744798
A25: 17 | B25: Afirme | C25: 978129.4128 | D25: 19.53397139 | E25: -375.1718 | F25: 65.41754094 | G25: 63.96958175 | H25: 679325.4688 | I25: 28.01837687 | J25: 735498.191 | K25: -13.92266499 | L25: 92.36262945 | M25: 62.10302921
A26: 18 | B26: Seguros Azteca Daños | C26: -20785.99139 | D26: -119.0966069 | E26: 7886.39385 | F26: -1.661459787 | G26: 6.33372345 | H26: 22596.73602 | I26: 116.5760164 | J26: 94293.00749 | K26: -11.93921017 | L26: 23.96438148 | M26: 9.744026119
A27: 19 | B27: HDI Global Seguros | C27: 87458.83272 | D27: -54.21929301 | E27: 0 | F27: 8.597131259 | G27: 40.65285655 | H27: 470.59458 | I27: -43.43277416 | J27: -24803.69485 | K27: 172.2549826 | L27: -1.897276123 | M27: -9.131486832
A28: 20 | B28: ANA | C28: 591466.4306 | D28: 49.59338872 | E28: 7185.23703 | F28: 71.93689308 | G28: 54.67722841 | H28: 450632.7075 | I28: 50.72453924 | J28: 626107.5083 | K28: 7.291461393 | L28: 71.97369485 | M28: 51.23361425
A29: 21 | B29: FM Global | C29: 285738.2699 | D29: 0.8152850071 | E29: 0 | F29: 41.68060379 | G29: 49.46328943 | H29: 2167.33767 | I29: 7.340383654 | J29: 12371.73554 | K29: -9.529790567 | L29: 17.51846104 | M29: 14.76516838
A30: 22 | B30: Zurich Santander | C30: 47416.52051 | D30: -4.970918413 | E30: 0 | F30: 7.729648562 | G30: 8.024879054 | H30: 48404.29688 | I30: -5.819670586 | J30: 572255.6875 | K30: -0.7359879582 | L30: 8.458508658 | M30: 8.915083548
A31: 23 | B31: El Potosí | C31: 203715.4297 | D31: 2.550113021 | E31: 0 | F31: 36.41812374 | G31: 41.40425657 | H31: 214669.3649 | I31: 19.33042335 | J31: 327011.0232 | K31: -1.726629389 | L31: 65.64591088 | M31: 54.06203001
A32: 24 | B32: General de Seguros | C32: 375374.1308 | D32: 9.241349606 | E32: 757.35193 | F32: 69.98344783 | G32: 70.74415055 | H32: 316322.7372 | I32: 1.815074185 | J32: 420140.0707 | K32: 22.61807035 | L32: 75.28982815 | M32: 90.67314952
A33: 25 | B33: Cardif Seguros Generales | C33: 53604.73258 | D33: 27.95259147 | E33: 0 | F33: 12.41636285 | G33: 14.54944139 | H33: 39498.58814 | I33: -42.38470616 | J33: 409071.4701 | K33: 25.72843514 | L33: 9.655669247 | M33: 21.07065857
A34: 26 | B34: El Águila | C34: 134472.346 | D34: 25.63452068 | E34: 0 | F34: 33.51368298 | G34: 32.75103677 | H34: 126931.249 | I34: 20.14592436 | J34: 291613.5347 | K34: 18.03585756 | L34: 43.52721456 | M34: 42.76276641
A35: 27 | B35: Tokio Marine | C35: 85935.59254 | D35: -42.22549171 | E35: -46.24736 | F35: 27.81520021 | G35: 22.57080573 | H35: 22434.7832 | I35: -11.96964298 | J35: 53588.16294 | K35: 4.425161685 | L35: 41.86518434 | M35: 49.662171
A36: 28 | B36: Primero Seguros | C36: 142370.6071 | D36: 7.330811437 | E36: 0 | F36: 49.93287688 | G36: 46.78730317 | H36: 114535.7758 | I36: 12.16508881 | J36: 185936.6218 | K36: -5.335846308 | L36: 61.59936365 | M36: 51.98811581
A37: 29 | B37: Berkley Seguros | C37: 57749.80343 | D37: 18.18330738 | E37: 1126.9045 | F37: 29.94134726 | G37: 35.17533098 | H37: 5452.51391 | I37: 34.60367718 | J37: 5515.16937 | K37: 42.40071248 | L37: 98.86394314 | M37: 104.5907232
A38: 30 | B38: Atradius | C38: 23430.44295 | D38: -20.88017583 | E38: 4052.08955 | F38: 12.22221347 | G38: 15.72855088 | H38: 10105.43605 | I38: -14.66660793 | J38: 28701.20558 | K38: -34.03891437 | L38: 35.20909957 | M38: 27.21596289
A39: 31 | B39: Sompo Japan | C39: 23399.65944 | D39: -175.7019565 | E39: 2.95109 | F39: 12.37868124 | G39: -16.54676585 | H39: 8110.11878 | I39: -269.6061221 | J39: -18513.69371 | K39: -298.9587571 | L39: -43.80605463 | M39: -51.38728529
A40: 32 | B40: Solunion Crédito | C40: 46882.79443 | D40: 26.29215129 | E40: 186.24894 | F40: 26.96952065 | G40: 26.87579898 | H40: 3101.89808 | I40: 1.423214893 | J40: 4675.45779 | K40: 16.6185236 | L40: 66.34426444 | M40: 76.28401621
A41: 33 | B41: Ve Por Más | C41: 82306.51159 | D41: -8265.763552 | E41: 0 | F41: 55.48617932 | G41: -0.8604342487 | H41: 32980.58685 | I41: 11.37309044 | J41: 83494.4434 | K41: 37.99146379 | L41: 39.5003374 | M41: 48.94099064
A42: 34 | B42: La Latinoamericana | C42: 68105.18509 | D42: -17.9028251 | E42: 143.19712 | F42: 49.4496637 | G42: 66.0219694 | H42: 29023.89813 | I42: -17.92955907 | J42: 64736.66991 | K42: 16.53563415 | L42: 44.83378303 | M42: 63.66157264
A43: 35 | B43: Swiss Re Corporate Solutions | C43: 33258.89151 | D43: 114.9039242 | E43: 0 | F43: 25.2770876 | G43: 17.56289148 | H43: 115.39917 | I43: -90.47098707 | J43: 2133.39008 | K43: 240.295989 | L43: 5.409192209 | M43: 193.1707331
A44: 36 | B44: SHF Cred Vivienda | C44: -217169.8659 | D44: -1371.37248 | E44: 0 | F44: -168.7977106 | G44: 17.30951661 | H44: -201928.4719 | I44: -1829.002272 | J44: 174526.0107 | K44: 63.88151396 | L44: -115.7010758 | M44: 10.96659489
A45: 37 | B45: Patrimonial Inbursa | C45: -3547.31846 | D45: 12.19455939 | E45: 0 | F45: -3.44308682 | G45: -2.59710931 | H45: -3565.71206 | I45: 12.00470342 | J45: 67789.60122 | K45: -1.693482651 | L45: -5.259969075 | M45: -4.616674348
A46: 38 | B46: Coface | C46: -2657.53023 | D46: -146.286424 | E46: -4724.96638 | F46: -2.644606494 | G46: 5.05397136 | H46: -1796.71018 | I46: -126.0985069 | J46: 14165.4684 | K46: 68.05415909 | L46: -12.68373293 | M46: 81.67341064
A47: 39 | B47: Patrimonial Daños | C47: 10926.71838 | D47: 87.57861246 | E47: 0 | F47: 15.16618374 | G47: 11.18262436 | H47: 10747.49266 | I47: 110.2317922 | J47: 70207.55405 | K47: 41.68075724 | L47: 15.30817133 | M47: 10.31658097
A48: 40 | B48: Assurant Daños | C48: 19552.65269 | D48: 74.3553356 | E48: 148.32821 | F48: 29.89317604 | G48: 18.0731058 | H48: 4762.77363 | I48: 37.30104305 | J48: 11364.31833 | K48: -28.31692274 | L48: 41.9098928 | M48: 21.88060642
A49: 41 | B49: Virginia Surety | C49: 9368.66547 | D49: 85.05443338 | E49: 0 | F49: 26.25160528 | G49: 23.04802045 | H49: 5605.11139 | I49: 38.50394819 | J49: 14317.68413 | K49: 76.79756709 | L49: 39.14817047 | M49: 49.97187001
A50: 42 | B50: Genworth Seg. de Crédito | C50: -272.83399 | D50: -103.1448108 | E50: 0 | F50: -1.077953288 | G50: 50.11262379 | H50: -7497.06286 | I50: -491.9571148 | J50: 37646.08275 | K50: -8.934338417 | L50: -19.91458955 | M50: 4.626871675
A51: 43 | B51: Crabi | C51: 9879.74295 | D51: 26.7127646 | E51: 0 | F51: 49.92458231 | G51: 84.72834548 | H51: 3272.07431 | I51: 90.13171796 | J51: 4248.49872 | K51: 82.97343257 | L51: 77.0171895 | M51: 74.11756271
A52: 44 | B52: Citibanamex Seguros | C52: -2293.63103 | D52: -120.7118436 | E52: 0 | F52: -15.82860725 | G52: 34.21307932 | H52: -86.94727 | I52: -100.9482011 | J52: 546.08054 | K52: 521.1213819 | L52: -15.92205978 | M52: 10429.78295
A53: 45 | B53: SPT | C53: 5304.10575 | D53: 37.35839914 | E53: 0 | F53: 51.64412925 | G53: 50.20740105 | H53: 5304.10575 | I53: 37.35839914 | J53: 7499.2788 | K53: -8.209046906 | L53: 70.72821122 | M53: 47.26474653
A54: 46 | B54: Zurich Daños | C54: 0 | D54: 0 | E54: 0 | F54: 0 | G54: 0 | H54: 0 | I54: -100 | J54: 0 | K54: -100 | L54: 0 | M54: 52.65363773
A55: 145 | B55: HSBC Seguros | C55: 0 | D55: 0 | E55: 0 | F55: 0 | G55: 0 | H55: 0 | I55: 0 | J55: 0 | K55: 0 | L55: 0 | M55: 0
A56: 150.1 | B56: TOTAL RESTO | C56: 3347161.649 | D56: -21.59029382 | E56: 16008.48699 | F56: 28.73146864 | G56: 32.77312084 | H56: 1988823.23 | I56: -17.10613912 | J56: 4373245.107 | K56: -17.10536126 | L56: 45.47705838 | M56: 45.47748513
A57: 151.1 | B57: TOTAL | C57: 31066664.72 | D57: 27.75070706 | E57: 303264.4537 | F57: 38.01322888 | G57: 37.51205349 | H57: 25102110.51 | I57: 32.56835957 | J57: 40558888.1 | K57: 15.52154979 | L57: 61.89052927 | M57: 53.93209874
A58: 200 | B58: Patria | C58: 0 | D58: 0 | E58: 0 | F58: 0 | G58: 0 | H58: 772187.7884 | I58: 33.95073632 | J58: 1919373.582 | K58: 10.31331897 | L58: 40.23123981 | M58: 33.13189394

Sheet Cat (hidden)
B1: ramo
B2: Total General | C2: 1 | D2: =E2&F2&" "&B2 -> 10 Total General | E2: 1 | F2: 0 | H2: Automoviles Total | I2: 0 | K2: Pensiones Total | L2: 1 | N2: Q4 | O2: Cuarto Trimestre | R2: Ramo_
B3: Total General Sin Pensiones | C3: 2 | D3: =E3&F3&" "&B3 -> 11 Total General Sin Pensiones | E3: 1 | F3: 1 | H3: Automoviles Residentes | I3: 0 | K3: Pensiones IMSS | L3: 1 | N3: Q3 | O3: Tercer Trimestre | R3: 10 Total General | S3: 10 Total General | T3: 0
B4: Vida Total | C4: 3 | D4: 12 Vida Total | E4: 1 | F4: 2 | H4: Camiones | I4: 0 | K4: Pensiones ISSSTE | L4: 1 | N4: Q2 | O4: Segundo Trimestre | R4: 11 Total General Sin Pensiones | S4: 10 Total General | T4: 0
B5: Vida Individual | C5: 4 | D5: 13 Vida Individual | E5: 1 | F5: 3 | H5: Automoviles Turistas | I5: 0 | N5: Q1 | O5: Primer Trimestre | R5: 12 Vida Total | S5: 12 Vida Total | T5: 0
B6: Vida Gpo y Col | C6: 5 | D6: 14 Vida Gpo y Col | E6: 1 | F6: 4 | H6: Otros Automoviles y Obligatorios | I6: 0 | R6: 13 Vida Individual | S6: 12 Vida Total | T6: 0
B7: Pensiones Total | C7: 6 | D7: 15 Pensiones Total | E7: 1 | F7: 5 | H7: Total General | I7: 0 | R7: 14 Vida Gpo y Col | S7: 12 Vida Total | T7: 0
B8: Pensiones IMSS | C8: 7 | D8: 16 Pensiones IMSS | E8: 1 | F8: 6 | H8: Total General Sin Pensiones | I8: 0 | R8: 15 Pensiones Total | S8: 15 Pensiones Total | T8: 0
B9: IMSS Incapacidad Permanente RT | D9: 17 IMSS Incapacidad Permanente RT | E9: 1 | F9: 7 | H9: Vida Total | I9: 0 | R9: 16 Pensiones IMSS | S9: 15 Pensiones Total | T9: 0
B10: IMSS Invalidez (invalidez y vida) | D10: 18 IMSS Invalidez (invalidez y vida) | E10: 1 | F10: 8 | H10: Vida Individual | I10: 0 | R10: 17 Pensiones ISSSTE | S10: 15 Pensiones Total | T10: 0
B11: IMSS Jubilacion (retiro, cesantia y vejez) | D11: 19 IMSS Jubilacion (retiro, cesantia y vejez) | E11: 1 | F11: 9 | H11: Vida Gpo y Col | I11: 0 | R11: 18 Accidentes y Enfermedades Total | S11: 18 Accidentes y Enfermedades Total | T11: 0
B12: IMSS Muerte (invalidez y vida) | D12: 20 IMSS Muerte (invalidez y vida) | E12: 2 | F12: 0 | H12: Pensiones Total | I12: 1 | R12: 19 Accidentes Personales | S12: 18 Accidentes y Enfermedades Total | T12: 0
B13: IMSS Muerte (riesgos de trabajo) | D13: 21 IMSS Muerte (riesgos de trabajo) | E13: 2 | F13: 1 | H13: Pensiones IMSS | I13: 1 | R13: 20 AP Individual | S13: 18 Accidentes y Enfermedades Total | T13: 0
B14: Pensiones ISSSTE | C14: 8 | D14: 22 Pensiones ISSSTE | E14: 2 | F14: 2 | H14: Pensiones ISSSTE | I14: 1 | R14: 21 AP Gpo y Col | S14: 18 Accidentes y Enfermedades Total | T14: 0
B15: ISSSTE Incapacidad Permanente RT | D15: 23 ISSSTE Incapacidad Permanente RT | E15: 2 | F15: 3 | H15: Accidentes y Enfermedades Total | I15: 0 | R15: 22 Gastos Medicos | S15: 18 Accidentes y Enfermedades Total | T15: 0
B16: ISSSTE Invalidez (invalidez y vida) | D16: 24 ISSSTE Invalidez (invalidez y vida) | E16: 2 | F16: 4 | H16: Accidentes Personales | I16: 0 | R16: 23 GMM. Individual | S16: 18 Accidentes y Enfermedades Total | T16: 0
B17: ISSSTE Jubilacion (retiro, cesantia y vejez) | D17: 25 ISSSTE Jubilacion (retiro, cesantia y vejez) | E17: 2 | F17: 5 | H17: AP Individual | I17: 0 | R17: 24 GMM. Gpo y Col | S17: 18 Accidentes y Enfermedades Total | T17: 0
B18: ISSSTE Muerte (invalidez y vida) | D18: 26 ISSSTE Muerte (invalidez y vida) | E18: 2 | F18: 6 | H18: AP Gpo y Col | I18: 0 | R18: 25 Salud | S18: 18 Accidentes y Enfermedades Total | T18: 0
B19: ISSSTE Muerte (riesgos de trabajo) | D19: 27 ISSSTE Muerte (riesgos de trabajo) | E19: 2 | F19: 7 | H19: Gastos Medicos | I19: 0 | R19: 26 Salud Individual | S19: 18 Accidentes y Enfermedades Total | T19: 0
B20: Accidentes y Enfermedades Total | C20: 14 | D20: 28 Accidentes y Enfermedades Total | E20: 2 | F20: 8 | H20: GMM. Individual | I20: 0 | R20: 27 Salud Gpo y Col | S20: 18 Accidentes y Enfermedades Total | T20: 0
B21: Accidentes Personales | C21: 15 | D21: 29 Accidentes Personales | E21: 2 | F21: 9 | H21: GMM. Gpo y Col | I21: 0 | R21: 28 Daños Total | S21: 28 Daños Total | T21: 1
B22: AP Individual | C22: 16 | D22: 30 AP Individual | E22: 3 | F22: 0 | H22: Salud | I22: 0 | R22: 29 Automoviles Total | S22: 29 Automoviles Total | T22: 1
B23: AP Gpo y Col | C23: 17 | D23: 31 AP Gpo y Col | E23: 3 | F23: 1 | H23: Salud Individual | I23: 0 | R23: 30 Automoviles Residentes | S23: 29 Automoviles Total | T23: 1
B24: Gastos Medicos | C24: 18 | D24: 32 Gastos Medicos | E24: 3 | F24: 2 | H24: Salud Gpo y Col | I24: 0 | R24: 31 Camiones | S24: 29 Automoviles Total | T24: 1
B25: GMM. Individual | C25: 19 | D25: 33 GMM. Individual | E25: 3 | F25: 3 | H25: Daños Total | I25: 0 | R25: 32 Automoviles Turistas | S25: 29 Automoviles Total | T25: 1
B26: GMM. Gpo y Col | C26: 20 | D26: 34 GMM. Gpo y Col | E26: 3 | F26: 4 | H26: Daños Sin Autos Total | I26: 0 | R26: 33 Otros Automoviles y Obligatorios | S26: 29 Automoviles Total | T26: 1
B27: Salud | C27: 21 | D27: 35 Salud | E27: 3 | F27: 5 | H27: Responsabilidad Civil y Riesgos Profesionales | I27: 0 | R27: 34 Daños Sin Autos Total | S27: 28 Daños Total | T27: 1
B28: Salud Individual | C28: 22 | D28: 36 Salud Individual | E28: 3 | F28: 6 | H28: RC General | I28: 0 | R28: 35 Responsabilidad Civil y Riesgos Profesionales | S28: 35 Responsabilidad Civil y Riesgos Profesionales | T28: 1
B29: Salud Gpo y Col | C29: 23 | D29: 37 Salud Gpo y Col | E29: 3 | F29: 7 | H29: RC Aviones y Barcos | I29: 0 | R29: 36 RC General | S29: 35 Responsabilidad Civil y Riesgos Profesionales | T29: 1
B30: Daños Total | C30: 24 | D30: 38 Daños Total | E30: 3 | F30: 8 | H30: RC Viajero | I30: 0 | R30: 37 RC Aviones y Barcos | S30: 35 Responsabilidad Civil y Riesgos Profesionales | T30: 1
B31: Daños | D31: =D30 -> 38 Daños Total | H31: RC Otros | I31: 0 | R31: 38 RC Viajero | S31: 35 Responsabilidad Civil y Riesgos Profesionales | T31: 1
B32: Automoviles Total | C32: 25 | D32: 39 Automoviles Total | E32: 3 | F32: 9 | H32: Maritimo y Transportes | I32: 0 | R32: 39 RC Otros | S32: 35 Responsabilidad Civil y Riesgos Profesionales | T32: 1
B33: Automoviles | D33: 39 Automoviles Total | E33: 3 | F33: 9 | H33: MyT Carga | I33: 0 | R33: 40 Maritimo y Transportes | S33: 40 Maritimo y Transportes | T33: 1
B34: Automoviles Residentes | C34: 26 | D34: 41 Automoviles Residentes | E34: 4 | F34: 1 | H34: MyT Cascos | I34: 0 | R34: 41 MyT Carga | S34: 40 Maritimo y Transportes | T34: 1
B35: Camiones | C35: 27 | D35: 42 Camiones | E35: 4 | F35: 2 | H35: Incendio | I35: 0 | R35: 42 MyT Cascos | S35: 40 Maritimo y Transportes | T35: 1
B36: Automoviles Turistas | C36: 28 | D36: 43 Automoviles Turistas | E36: 4 | F36: 3 | H36: Riesgos Catastroficos | I36: 0 | R36: 43 Incendio | S36: 43 Incendio | T36: 1
B37: Otros Automoviles y Obligatorios | C37: 29 | D37: 44 Otros Automoviles y Obligatorios | E37: 4 | F37: 4 | H37: Terremoto y Erupcion Volcanica | I37: 0 | R37: 44 Riesgos Catastroficos | S37: 44 Riesgos Catastroficos | T37: 1
B38: Daños Sin Autos Total | C38: 30 | D38: 45 Daños Sin Autos Total | E38: 4 | F38: 5 | H38: Huracan y Otros Riesgos Hidrometeorologicos | I38: 0 | R38: 45 Terremoto y Erupcion Volcanica | S38: 44 Riesgos Catastroficos | T38: 1
B39: Daños Sin Autos | D39: 46 Daños Sin Autos Total | H39: Otros Riesgos Catastroficos | I39: 0 | R39: 46 Huracan y Otros Riesgos Hidrometeorologicos | S39: 44 Riesgos Catastroficos | T39: 1
B40: Responsabilidad Civil y Riesgos Profesionales | C40: 31 | D40: 46 Responsabilidad Civil y Riesgos Profesionales | E40: 4 | F40: 6 | H40: Agricola y de Animales | I40: 0 | R40: 47 Otros Riesgos Catastroficos | S40: 44 Riesgos Catastroficos | T40: 1
B41: RC General | C41: 32 | D41: 47 RC General | E41: 4 | F41: 7 | H41: AyA Agricola | I41: 0 | R41: 48 Agricola y de Animales | S41: 48 Agricola y de Animales | T41: 1
B42: RC Aviones y Barcos | C42: 33 | D42: 48 RC Aviones y Barcos | E42: 4 | F42: 8 | H42: AyA Otros | I42: 0 | R42: 49 AyA Agricola | S42: 48 Agricola y de Animales | T42: 1
B43: RC Viajero | C43: 34 | D43: 49 RC Viajero | E43: 4 | F43: 9 | H43: AyA Pecuario | I43: 0 | R43: 50 AyA Otros | S43: 48 Agricola y de Animales | T43: 1
B44: RC Otros | C44: 35 | D44: 50 RC Otros | E44: 5 | F44: 0 | H44: Diversos | I44: 0 | R44: 51 AyA Pecuario | S44: 48 Agricola y de Animales | T44: 1
B45: Maritimo y Transportes | C45: 36 | D45: 51 Maritimo y Transportes | E45: 5 | F45: 1 | H45: Miscelaneos | I45: 0 | R45: 52 Diversos | S45: 52 Diversos | T45: 1
B46: MyT Carga | C46: 37 | D46: 52 MyT Carga | E46: 5 | F46: 2 | H46: Tecnicos | I46: 0 | R46: 53 Miscelaneos | S46: 52 Diversos | T46: 1
B47: MyT Cascos | C47: 38 | D47: 53 MyT Cascos | E47: 5 | F47: 3 | H47: Credito | I47: 0 | R47: 54 Tecnicos | S47: 52 Diversos | T47: 1
B48: Incendio | C48: 39 | D48: 54 Incendio | E48: 5 | F48: 4 | H48: Credito a la Vivienda | I48: 0 | R48: 55 Credito | S48: 52 Diversos | T48: 1
B49: Riesgos Catastroficos | C49: 40 | D49: 55 Riesgos Catastroficos | E49: 5 | F49: 5 | R49: 56 Credito a la Vivienda | S49: 52 Diversos | T49: 1
B50: Terremoto y Erupcion Volcanica | C50: 41 | D50: 56 Terremoto y Erupcion Volcanica | E50: 5 | F50: 6
B51: Huracan y Otros Riesgos Hidrometeorologicos | C51: 42 | D51: 57 Huracan y Otros Riesgos Hidrometeorologicos | E51: 5 | F51: 7
B52: Otros Riesgos Catastroficos | C52: 43 | D52: 58 Otros Riesgos Catastroficos | E52: 5 | F52: 8
B53: Agricola y de Animales | C53: 44 | D53: 59 Agricola y de Animales | E53: 5 | F53: 9
B54: AyA Agricola | C54: 45 | D54: 60 AyA Agricola | E54: 6 | F54: 0
B55: AyA Otros | C55: 46 | D55: 61 AyA Otros | E55: 6 | F55: 1
B56: AyA Pecuario | C56: 47 | D56: 62 AyA Pecuario | E56: 6 | F56: 2
B57: Diversos | C57: 48 | D57: 63 Diversos | E57: 6 | F57: 3
B58: Miscelaneos | C58: 49 | D58: 64 Miscelaneos | E58: 6 | F58: 4
B59: Tecnicos | C59: 50 | D59: 65 Tecnicos | E59: 6 | F59: 5
B60: Credito | C60: 51 | D60: 66 Credito | E60: 6 | F60: 6
B61: Credito a la Vivienda | C61: 52 | D61: 67 Credito a la Vivienda | E61: 6 | F61: 7
B64: Automoviles
B65: Daños | D65: =E65&F65&" "&B65 -> Daños
B66: Daños Sin Autos
B67: IMSS Incapacidad Permanente RT | D67: =E67&F67&" "&B67 -> IMSS Incapacidad Permanente RT
B68: IMSS Invalidez (invalidez y vida) | D68: =E68&F68&" "&B68 -> IMSS Invalidez (invalidez y vida)
B69: IMSS Jubilacion (retiro, cesantia y vejez)
B70: IMSS Muerte (invalidez y vida) | D70: =E70&F70&" "&B70 -> IMSS Muerte (invalidez y vida)
B71: IMSS Muerte (riesgos de trabajo) | D71: =E71&F71&" "&B71 -> IMSS Muerte (riesgos de trabajo)
B72: ISSSTE Incapacidad Permanente RT
B73: ISSSTE Invalidez (invalidez y vida) | D73: =E73&F73&" "&B73 -> ISSSTE Invalidez (invalidez y vida)
B74: ISSSTE Jubilacion (retiro, cesantia y vejez) | D74: =E74&F74&" "&B74 -> ISSSTE Jubilacion (retiro, cesantia y vejez)
B75: ISSSTE Muerte (invalidez y vida) | D75: =E75&F75&" "&B75 -> ISSSTE Muerte (invalidez y vida)
B76: ISSSTE Muerte (riesgos de trabajo) | D76: =E76&F76&" "&B76 -> ISSSTE Muerte (riesgos de trabajo)

Sheet Inicio
J4: EstadisticAMIS Informe
D6: Con la finalidad de atender la solicitud de información, presentamos esta publicación comparando los datosprimas del periodo actual vs el mismo periodo del año anterior.
I10: Periodo: | J10: 2023-Q1
I11: Fecha de actualización: | J11: 2023-05-23
B13: No se incluyen la informaciónde Agroasemex ni de Protección Agropecuaria en virtud de que a la fecha de esta publicación, no se recibió su información.
B15: ANÁLISIS DE PRIMAS DIRECTAS | G15: ANÁLISIS DE SINIESTROS
B21: DEFINICIÓN DE TÉRMINOS
B23: Participación de mercado
B24: Porcentaje que representa la participación de las compañías sobre el total del ramo o subramo que se está consultando.
B26: Participación por operación
B27: Porcentaje que representa la participación del subramo sobre el ramo de la compañía.
B29: Participación por cartera
B30: Porcentaje que representa la participación del ramo o subramos sobre el total general sin pensiones de la compañía.
B32: Participación por sector
B33: Porcentaje que representa la participación de la compañía del ramo o subramo(s) sobre la suma del total general sin pensiones.

Sheet Primas Directas
B1: PRIMAS DIRECTAS | L1: =VLOOKUP(RIGHT(TDPrimas!B3,2),Cat!$N$2:$O$5,2,0)&" "&LEFT(TDPrimas!B3,4) -> Primer Trimestre 2023
B2: =UPPER(RIGHT(TDPrimas!$B$4,LEN(TDPrimas!$B$4)-3)) -> TOTAL GENERAL
L3: Cifras en miles
D4: 2 | E4: 3 | F4: 4 | G4: 5 | H4: 6 | I4: 7 | J4: 8 | K4: 9 | L4: 10
D5: Primas Directas | F5: % Part. en Merc. | H5: Incremento | J5: % de Cartera
B6: Compañías | D6: =LEFT(TDPrimas_!B3,4) -> 2023 | E6: =D6-1 -> 2022 | F6: =D6 -> 2023 | G6: =E6 -> 2022 | H6: Importe | I6: % | J6: Por | K6: Total | L6: Total
D7: Importe | E7: Importe | F7: =RIGHT(TDPrimas_!B3,2) -> Q1 | G7: =RIGHT(TDPrimas_!B3,2) -> Q1 | J7: Operación | K7: Cartera | L7: Sector
C8: TOTAL | D8: =VLOOKUP($C$8,$C$9:$L$125,D$4,0) -> 217934666 | E8: =VLOOKUP($C$8,$C$9:$L$125,E$4,0) -> 191571041.9 | F8: 100 | G8: 100 | H8: 26363624.16 | I8: 13.76180027 | J8: 100 | K8: 100 | L8: 100
B9: =IF(TDPrimas_!A7="","",TDPrimas_!A7) -> 1 | C9: =IF(TDPrimas_!B7="","",TDPrimas_!B7) -> G.N.P. | D9: =IF(TDPrimas_!C7="","",TDPrimas_!C7) -> 26676629.11 | E9: =IF(TDPrimas_!D7="","",TDPrimas_!D7) -> 21970506.01 | F9: =IF(TDPrimas_!E7="","",TDPrimas_!E7) -> 12.24065432 | G9: =IF(TDPrimas_!F7="","",TDPrimas_!F7) -> 11.46859452 | H9: =IF(TDPrimas_!G7="","",TDPrimas_!G7) -> 4706123.096 | I9: =IF(TDPrimas_!H7="","",TDPrimas_!H7) -> 21.42018529 | J9: =IF(TDPrimas_!I7="","",TDPrimas_!I7) -> 100 | K9: =IF(TDPrimas_!J7="","",TDPrimas_!J7) -> 100 | L9: =IF(TDPrimas_!K7="","",TDPrimas_!K7) -> 12.24065432
B10: =IF(TDPrimas_!A8="","",TDPrimas_!A8) -> 2 | C10: =IF(TDPrimas_!B8="","",TDPrimas_!B8) -> Metlife México | D10: =IF(TDPrimas_!C8="","",TDPrimas_!C8) -> 26097031.68 | E10: =IF(TDPrimas_!D8="","",TDPrimas_!D8) -> 24057802.08 | F10: =IF(TDPrimas_!E8="","",TDPrimas_!E8) -> 11.97470423 | G10: =IF(TDPrimas_!F8="","",TDPrimas_!F8) -> 12.55816216 | H10: =IF(TDPrimas_!G8="","",TDPrimas_!G8) -> 2039229.593 | I10: =IF(TDPrimas_!H8="","",TDPrimas_!H8) -> 8.4763753 | J10: =IF(TDPrimas_!I8="","",TDPrimas_!I8) -> 100 | K10: =IF(TDPrimas_!J8="","",TDPrimas_!J8) -> 100 | L10: =IF(TDPrimas_!K8="","",TDPrimas_!K8) -> 11.97470423
B11: =IF(TDPrimas_!A9="","",TDPrimas_!A9) -> 3 | C11: =IF(TDPrimas_!B9="","",TDPrimas_!B9) -> BBVA Bancomer | D11: =IF(TDPrimas_!C9="","",TDPrimas_!C9) -> 17603852.66 | E11: =IF(TDPrimas_!D9="","",TDPrimas_!D9) -> 14691628.1 | F11: =IF(TDPrimas_!E9="","",TDPrimas_!E9) -> 8.0775826 | G11: =IF(TDPrimas_!F9="","",TDPrimas_!F9) -> 7.669023439 | H11: =IF(TDPrimas_!G9="","",TDPrimas_!G9) -> 2912224.56 | I11: =IF(TDPrimas_!H9="","",TDPrimas_!H9) -> 19.82234058 | J11: =IF(TDPrimas_!I9="","",TDPrimas_!I9) -> 100 | K11: =IF(TDPrimas_!J9="","",TDPrimas_!J9) -> 100 | L11: =IF(TDPrimas_!K9="","",TDPrimas_!K9) -> 8.0775826
B12: =IF(TDPrimas_!A10="","",TDPrimas_!A10) -> 4 | C12: =IF(TDPrimas_!B10="","",TDPrimas_!B10) -> AXA Seguros | D12: =IF(TDPrimas_!C10="","",TDPrimas_!C10) -> 15398992.57 | E12: =IF(TDPrimas_!D10="","",TDPrimas_!D10) -> 13965513.66 | F12: =IF(TDPrimas_!E10="","",TDPrimas_!E10) -> 7.065875684 | G12: =IF(TDPrimas_!F10="","",TDPrimas_!F10) -> 7.289992019 | H12: =IF(TDPrimas_!G10="","",TDPrimas_!G10) -> 1433478.911 | I12: =IF(TDPrimas_!H10="","",TDPrimas_!H10) -> 10.26441953 | J12: =IF(TDPrimas_!I10="","",TDPrimas_!I10) -> 100 | K12: =IF(TDPrimas_!J10="","",TDPrimas_!J10) -> 100 | L12: =IF(TDPrimas_!K10="","",TDPrimas_!K10) -> 7.065875684
B13: =IF(TDPrimas_!A11="","",TDPrimas_!A11) -> 5 | C13: =IF(TDPrimas_!B11="","",TDPrimas_!B11) -> Banorte | D13: =IF(TDPrimas_!C11="","",TDPrimas_!C11) -> 11640133.16 | E13: =IF(TDPrimas_!D11="","",TDPrimas_!D11) -> 13532473.69 | F13: =IF(TDPrimas_!E11="","",TDPrimas_!E11) -> 5.341111338 | G13: =IF(TDPrimas_!F11="","",TDPrimas_!F11) -> 7.063945343 | H13: =IF(TDPrimas_!G11="","",TDPrimas_!G11) -> -1892340.534 | I13: =IF(TDPrimas_!H11="","",TDPrimas_!H11) -> -13.98370008 | J13: =IF(TDPrimas_!I11="","",TDPrimas_!I11) -> 100 | K13: =IF(TDPrimas_!J11="","",TDPrimas_!J11) -> 100 | L13: =IF(TDPrimas_!K11="","",TDPrimas_!K11) -> 5.341111338
B14: =IF(TDPrimas_!A12="","",TDPrimas_!A12) -> 5.1 | C14: =IF(TDPrimas_!B12="","",TDPrimas_!B12) -> TOTAL GRANDES | D14: =IF(TDPrimas_!C12="","",TDPrimas_!C12) -> 97416639.17 | E14: =IF(TDPrimas_!D12="","",TDPrimas_!D12) -> 88217923.55 | F14: =IF(TDPrimas_!E12="","",TDPrimas_!E12) -> 44.69992817 | G14: =IF(TDPrimas_!F12="","",TDPrimas_!F12) -> 46.04971748 | H14: =IF(TDPrimas_!G12="","",TDPrimas_!G12) -> 9198715.627 | I14: =IF(TDPrimas_!H12="","",TDPrimas_!H12) -> 10.42726382 | J14: =IF(TDPrimas_!I12="","",TDPrimas_!I12) -> 100 | K14: =IF(TDPrimas_!J12="","",TDPrimas_!J12) -> 100 | L14: =IF(TDPrimas_!K12="","",TDPrimas_!K12) -> 44.69992817
B15: =IF(TDPrimas_!A13="","",TDPrimas_!A13) -> 6 | C15: =IF(TDPrimas_!B13="","",TDPrimas_!B13) -> Quálitas | D15: =IF(TDPrimas_!C13="","",TDPrimas_!C13) -> 11419161.89 | E15: =IF(TDPrimas_!D13="","",TDPrimas_!D13) -> 8869182.58 | F15: =IF(TDPrimas_!E13="","",TDPrimas_!E13) -> 5.239717982 | G15: =IF(TDPrimas_!F13="","",TDPrimas_!F13) -> 4.629709425 | H15: =IF(TDPrimas_!G13="","",TDPrimas_!G13) -> 2549979.305 | I15: =IF(TDPrimas_!H13="","",TDPrimas_!H13) -> 28.75100701 | J15: =IF(TDPrimas_!I13="","",TDPrimas_!I13) -> 100 | K15: =IF(TDPrimas_!J13="","",TDPrimas_!J13) -> 100 | L15: =IF(TDPrimas_!K13="","",TDPrimas_!K13) -> 5.239717982
B16: =IF(TDPrimas_!A14="","",TDPrimas_!A14) -> 7 | C16: =IF(TDPrimas_!B14="","",TDPrimas_!B14) -> Monterrey New York Life | D16: =IF(TDPrimas_!C14="","",TDPrimas_!C14) -> 10223427.72 | E16: =IF(TDPrimas_!D14="","",TDPrimas_!D14) -> 9516075.8 | F16: =IF(TDPrimas_!E14="","",TDPrimas_!E14) -> 4.691051636 | G16: =IF(TDPrimas_!F14="","",TDPrimas_!F14) -> 4.967387402 | H16: =IF(TDPrimas_!G14="","",TDPrimas_!G14) -> 707351.9164 | I16: =IF(TDPrimas_!H14="","",TDPrimas_!H14) -> 7.43323121 | J16: =IF(TDPrimas_!I14="","",TDPrimas_!I14) -> 100 | K16: =IF(TDPrimas_!J14="","",TDPrimas_!J14) -> 100 | L16: =IF(TDPrimas_!K14="","",TDPrimas_!K14) -> 4.691051636
B17: =IF(TDPrimas_!A15="","",TDPrimas_!A15) -> 8 | C17: =IF(TDPrimas_!B15="","",TDPrimas_!B15) -> Citibanamex Seguros | D17: =IF(TDPrimas_!C15="","",TDPrimas_!C15) -> 8056026.659 | E17: =IF(TDPrimas_!D15="","",TDPrimas_!D15) -> 5326674.19 | F17: =IF(TDPrimas_!E15="","",TDPrimas_!E15) -> 3.696532913 | G17: =IF(TDPrimas_!F15="","",TDPrimas_!F15) -> 2.780521596 | H17: =IF(TDPrimas_!G15="","",TDPrimas_!G15) -> 2729352.469 | I17: =IF(TDPrimas_!H15="","",TDPrimas_!H15) -> 51.23933568 | J17: =IF(TDPrimas_!I15="","",TDPrimas_!I15) -> 100 | K17: =IF(TDPrimas_!J15="","",TDPrimas_!J15) -> 100 | L17: =IF(TDPrimas_!K15="","",TDPrimas_!K15) -> 3.696532913
B18: =IF(TDPrimas_!A16="","",TDPrimas_!A16) -> 9 | C18: =IF(TDPrimas_!B16="","",TDPrimas_!B16) -> Agroasemex | D18: =IF(TDPrimas_!C16="","",TDPrimas_!C16) -> 7438742.863 | E18: =IF(TDPrimas_!D16="","",TDPrimas_!D16) -> 0 | F18: =IF(TDPrimas_!E16="","",TDPrimas_!E16) -> 3.413290322 | G18: =IF(TDPrimas_!F16="","",TDPrimas_!F16) ->  | H18: =IF(TDPrimas_!G16="","",TDPrimas_!G16) ->  | I18: =IF(TDPrimas_!H16="","",TDPrimas_!H16) ->  | J18: =IF(TDPrimas_!I16="","",TDPrimas_!I16) -> 100 | K18: =IF(TDPrimas_!J16="","",TDPrimas_!J16) -> 100 | L18: =IF(TDPrimas_!K16="","",TDPrimas_!K16) -> 3.413290322
B19: =IF(TDPrimas_!A17="","",TDPrimas_!A17) -> 10 | C19: =IF(TDPrimas_!B17="","",TDPrimas_!B17) -> Inbursa | D19: =IF(TDPrimas_!C17="","",TDPrimas_!C17) -> 6926531.76 | E19: =IF(TDPrimas_!D17="","",TDPrimas_!D17) -> 5739037.906 | F19: =IF(TDPrimas_!E17="","",TDPrimas_!E17) -> 3.178260662 | G19: =IF(TDPrimas_!F17="","",TDPrimas_!F17) -> 2.995775275 | H19: =IF(TDPrimas_!G17="","",TDPrimas_!G17) -> 1187493.853 | I19: =IF(TDPrimas_!H17="","",TDPrimas_!H17) -> 20.69151438 | J19: =IF(TDPrimas_!I17="","",TDPrimas_!I17) -> 100 | K19: =IF(TDPrimas_!J17="","",TDPrimas_!J17) -> 100 | L19: =IF(TDPrimas_!K17="","",TDPrimas_!K17) -> 3.178260662
B20: =IF(TDPrimas_!A18="","",TDPrimas_!A18) -> 11 | C20: =IF(TDPrimas_!B18="","",TDPrimas_!B18) -> Chubb Seguros México | D20: =IF(TDPrimas_!C18="","",TDPrimas_!C18) -> 6735524.305 | E20: =IF(TDPrimas_!D18="","",TDPrimas_!D18) -> 6329296.85 | F20: =IF(TDPrimas_!E18="","",TDPrimas_!E18) -> 3.090616297 | G20: =IF(TDPrimas_!F18="","",TDPrimas_!F18) -> 3.303890185 | H20: =IF(TDPrimas_!G18="","",TDPrimas_!G18) -> 406227.4548 | I20: =IF(TDPrimas_!H18="","",TDPrimas_!H18) -> 6.418208285 | J20: =IF(TDPrimas_!I18="","",TDPrimas_!I18) -> 100 | K20: =IF(TDPrimas_!J18="","",TDPrimas_!J18) -> 100 | L20: =IF(TDPrimas_!K18="","",TDPrimas_!K18) -> 3.090616297
B21: =IF(TDPrimas_!A19="","",TDPrimas_!A19) -> 12 | C21: =IF(TDPrimas_!B19="","",TDPrimas_!B19) -> Mapfre México | D21: =IF(TDPrimas_!C19="","",TDPrimas_!C19) -> 6434437 | E21: =IF(TDPrimas_!D19="","",TDPrimas_!D19) -> 7309671.149 | F21: =IF(TDPrimas_!E19="","",TDPrimas_!E19) -> 2.95246145 | G21: =IF(TDPrimas_!F19="","",TDPrimas_!F19) -> 3.81564514 | H21: =IF(TDPrimas_!G19="","",TDPrimas_!G19) -> -875234.1484 | I21: =IF(TDPrimas_!H19="","",TDPrimas_!H19) -> -11.97364602 | J21: =IF(TDPrimas_!I19="","",TDPrimas_!I19) -> 100 | K21: =IF(TDPrimas_!J19="","",TDPrimas_!J19) -> 100 | L21: =IF(TDPrimas_!K19="","",TDPrimas_!K19) -> 2.95246145
B22: =IF(TDPrimas_!A20="","",TDPrimas_!A20) -> 13 | C22: =IF(TDPrimas_!B20="","",TDPrimas_!B20) -> Atlas | D22: =IF(TDPrimas_!C20="","",TDPrimas_!C20) -> 5493499.04 | E22: =IF(TDPrimas_!D20="","",TDPrimas_!D20) -> 4932623.223 | F22: =IF(TDPrimas_!E20="","",TDPrimas_!E20) -> 2.520709138 | G22: =IF(TDPrimas_!F20="","",TDPrimas_!F20) -> 2.574827164 | H22: =IF(TDPrimas_!G20="","",TDPrimas_!G20) -> 560875.817 | I22: =IF(TDPrimas_!H20="","",TDPrimas_!H20) -> 11.37074112 | J22: =IF(TDPrimas_!I20="","",TDPrimas_!I20) -> 100 | K22: =IF(TDPrimas_!J20="","",TDPrimas_!J20) -> 100 | L22: =IF(TDPrimas_!K20="","",TDPrimas_!K20) -> 2.520709138
B23: =IF(TDPrimas_!A21="","",TDPrimas_!A21) -> 14 | C23: =IF(TDPrimas_!B21="","",TDPrimas_!B21) -> Allianz México | D23: =IF(TDPrimas_!C21="","",TDPrimas_!C21) -> 5252582.056 | E23: =IF(TDPrimas_!D21="","",TDPrimas_!D21) -> 4453754.78 | F23: =IF(TDPrimas_!E21="","",TDPrimas_!E21) -> 2.410163629 | G23: =IF(TDPrimas_!F21="","",TDPrimas_!F21) -> 2.324858046 | H23: =IF(TDPrimas_!G21="","",TDPrimas_!G21) -> 798827.2767 | I23: =IF(TDPrimas_!H21="","",TDPrimas_!H21) -> 17.93604085 | J23: =IF(TDPrimas_!I21="","",TDPrimas_!I21) -> 100 | K23: =IF(TDPrimas_!J21="","",TDPrimas_!J21) -> 100 | L23: =IF(TDPrimas_!K21="","",TDPrimas_!K21) -> 2.410163629
B24: =IF(TDPrimas_!A22="","",TDPrimas_!A22) -> 15 | C24: =IF(TDPrimas_!B22="","",TDPrimas_!B22) -> GMX Seguros | D24: =IF(TDPrimas_!C22="","",TDPrimas_!C22) -> 4704042.364 | E24: =IF(TDPrimas_!D22="","",TDPrimas_!D22) -> 5404782.84 | F24: =IF(TDPrimas_!E22="","",TDPrimas_!E22) -> 2.158464484 | G24: =IF(TDPrimas_!F22="","",TDPrimas_!F22) -> 2.821294277 | H24: =IF(TDPrimas_!G22="","",TDPrimas_!G22) -> -700740.4758 | I24: =IF(TDPrimas_!H22="","",TDPrimas_!H22) -> -12.96519206 | J24: =IF(TDPrimas_!I22="","",TDPrimas_!I22) -> 100 | K24: =IF(TDPrimas_!J22="","",TDPrimas_!J22) -> 100 | L24: =IF(TDPrimas_!K22="","",TDPrimas_!K22) -> 2.158464484
B25: =IF(TDPrimas_!A23="","",TDPrimas_!A23) -> 15.1 | C25: =IF(TDPrimas_!B23="","",TDPrimas_!B23) -> TOTAL MEDIANAS | D25: =IF(TDPrimas_!C23="","",TDPrimas_!C23) -> 72683975.65 | E25: =IF(TDPrimas_!D23="","",TDPrimas_!D23) -> 57881099.32 | F25: =IF(TDPrimas_!E23="","",TDPrimas_!E23) -> 33.35126851 | G25: =IF(TDPrimas_!F23="","",TDPrimas_!F23) -> 30.21390851 | H25: =IF(TDPrimas_!G23="","",TDPrimas_!G23) -> 14802876.33 | I25: =IF(TDPrimas_!H23="","",TDPrimas_!H23) -> 25.57462886 | J25: =IF(TDPrimas_!I23="","",TDPrimas_!I23) -> 100 | K25: =IF(TDPrimas_!J23="","",TDPrimas_!J23) -> 100 | L25: =IF(TDPrimas_!K23="","",TDPrimas_!K23) -> 33.35126851
B26: =IF(TDPrimas_!A24="","",TDPrimas_!A24) -> 16 | C26: =IF(TDPrimas_!B24="","",TDPrimas_!B24) -> Pensiones Banorte | D26: =IF(TDPrimas_!C24="","",TDPrimas_!C24) -> 4253756.252 | E26: =IF(TDPrimas_!D24="","",TDPrimas_!D24) -> 4945870.012 | F26: =IF(TDPrimas_!E24="","",TDPrimas_!E24) -> 1.951849299 | G26: =IF(TDPrimas_!F24="","",TDPrimas_!F24) -> 2.581741981 | H26: =IF(TDPrimas_!G24="","",TDPrimas_!G24) -> -692113.7605 | I26: =IF(TDPrimas_!H24="","",TDPrimas_!H24) -> -13.99377175 | J26: =IF(TDPrimas_!I24="","",TDPrimas_!I24) -> 100 | K26: =IF(TDPrimas_!J24="","",TDPrimas_!J24) -> 100 | L26: =IF(TDPrimas_!K24="","",TDPrimas_!K24) -> 1.951849299
B27: =IF(TDPrimas_!A25="","",TDPrimas_!A25) -> 17 | C27: =IF(TDPrimas_!B25="","",TDPrimas_!B25) -> Zurich Santander | D27: =IF(TDPrimas_!C25="","",TDPrimas_!C25) -> 3574791.877 | E27: =IF(TDPrimas_!D25="","",TDPrimas_!D25) -> 3159180.281 | F27: =IF(TDPrimas_!E25="","",TDPrimas_!E25) -> 1.640304382 | G27: =IF(TDPrimas_!F25="","",TDPrimas_!F25) -> 1.649090724 | H27: =IF(TDPrimas_!G25="","",TDPrimas_!G25) -> 415611.5963 | I27: =IF(TDPrimas_!H25="","",TDPrimas_!H25) -> 13.15567835 | J27: =IF(TDPrimas_!I25="","",TDPrimas_!I25) -> 100 | K27: =IF(TDPrimas_!J25="","",TDPrimas_!J25) -> 100 | L27: =IF(TDPrimas_!K25="","",TDPrimas_!K25) -> 1.640304382
B28: =IF(TDPrimas_!A26="","",TDPrimas_!A26) -> 18 | C28: =IF(TDPrimas_!B26="","",TDPrimas_!B26) -> AIG Seguros | D28: =IF(TDPrimas_!C26="","",TDPrimas_!C26) -> 3306000.074 | E28: =IF(TDPrimas_!D26="","",TDPrimas_!D26) -> 1805143.756 | F28: =IF(TDPrimas_!E26="","",TDPrimas_!E26) -> 1.516968427 | G28: =IF(TDPrimas_!F26="","",TDPrimas_!F26) -> 0.9422842507 | H28: =IF(TDPrimas_!G26="","",TDPrimas_!G26) -> 1500856.318 | I28: =IF(TDPrimas_!H26="","",TDPrimas_!H26) -> 83.14331268 | J28: =IF(TDPrimas_!I26="","",TDPrimas_!I26) -> 100 | K28: =IF(TDPrimas_!J26="","",TDPrimas_!J26) -> 100 | L28: =IF(TDPrimas_!K26="","",TDPrimas_!K26) -> 1.516968427
B29: =IF(TDPrimas_!A27="","",TDPrimas_!A27) -> 19 | C29: =IF(TDPrimas_!B27="","",TDPrimas_!B27) -> Zurich Aseguradora Mexicana | D29: =IF(TDPrimas_!C27="","",TDPrimas_!C27) -> 3031903.051 | E29: =IF(TDPrimas_!D27="","",TDPrimas_!D27) -> 78671.97078 | F29: =IF(TDPrimas_!E27="","",TDPrimas_!E27) -> 1.391198154 | G29: =IF(TDPrimas_!F27="","",TDPrimas_!F27) -> 0.04106673431 | H29: =IF(TDPrimas_!G27="","",TDPrimas_!G27) -> 2953231.08 | I29: =IF(TDPrimas_!H27="","",TDPrimas_!H27) -> 3753.854201 | J29: =IF(TDPrimas_!I27="","",TDPrimas_!I27) -> 100 | K29: =IF(TDPrimas_!J27="","",TDPrimas_!J27) -> 100 | L29: =IF(TDPrimas_!K27="","",TDPrimas_!K27) -> 1.391198154
B30: =IF(TDPrimas_!A28="","",TDPrimas_!A28) -> 20 | C30: =IF(TDPrimas_!B28="","",TDPrimas_!B28) -> HDI Seguros | D30: =IF(TDPrimas_!C28="","",TDPrimas_!C28) -> 2965779.202 | E30: =IF(TDPrimas_!D28="","",TDPrimas_!D28) -> 2289870.937 | F30: =IF(TDPrimas_!E28="","",TDPrimas_!E28) -> 1.36085702 | G30: =IF(TDPrimas_!F28="","",TDPrimas_!F28) -> 1.195311627 | H30: =IF(TDPrimas_!G28="","",TDPrimas_!G28) -> 675908.2655 | I30: =IF(TDPrimas_!H28="","",TDPrimas_!H28) -> 29.51730837 | J30: =IF(TDPrimas_!I28="","",TDPrimas_!I28) -> 100 | K30: =IF(TDPrimas_!J28="","",TDPrimas_!J28) -> 100 | L30: =IF(TDPrimas_!K28="","",TDPrimas_!K28) -> 1.36085702
B31: =IF(TDPrimas_!A29="","",TDPrimas_!A29) -> 21 | C31: =IF(TDPrimas_!B29="","",TDPrimas_!B29) -> Pensiones BBVA Bancomer | D31: =IF(TDPrimas_!C29="","",TDPrimas_!C29) -> 2683241.252 | E31: =IF(TDPrimas_!D29="","",TDPrimas_!D29) -> 3936798.332 | F31: =IF(TDPrimas_!E29="","",TDPrimas_!E29) -> 1.231213602 | G31: =IF(TDPrimas_!F29="","",TDPrimas_!F29) -> 2.055007006 | H31: =IF(TDPrimas_!G29="","",TDPrimas_!G29) -> -1253557.081 | I31: =IF(TDPrimas_!H29="","",TDPrimas_!H29) -> -31.84204459 | J31: =IF(TDPrimas_!I29="","",TDPrimas_!I29) -> 100 | K31: =IF(TDPrimas_!J29="","",TDPrimas_!J29) -> 100 | L31: =IF(TDPrimas_!K29="","",TDPrimas_!K29) -> 1.231213602
B32: =IF(TDPrimas_!A30="","",TDPrimas_!A30) -> 22 | C32: =IF(TDPrimas_!B30="","",TDPrimas_!B30) -> ProFuturo G.N.P. | D32: =IF(TDPrimas_!C30="","",TDPrimas_!C30) -> 2615977.475 | E32: =IF(TDPrimas_!D30="","",TDPrimas_!D30) -> 2246257.456 | F32: =IF(TDPrimas_!E30="","",TDPrimas_!E30) -> 1.200349409 | G32: =IF(TDPrimas_!F30="","",TDPrimas_!F30) -> 1.172545409 | H32: =IF(TDPrimas_!G30="","",TDPrimas_!G30) -> 369720.0194 | I32: =IF(TDPrimas_!H30="","",TDPrimas_!H30) -> 16.45937862 | J32: =IF(TDPrimas_!I30="","",TDPrimas_!I30) -> 100 | K32: =IF(TDPrimas_!J30="","",TDPrimas_!J30) -> 100 | L32: =IF(TDPrimas_!K30="","",TDPrimas_!K30) -> 1.200349409
B33: =IF(TDPrimas_!A31="","",TDPrimas_!A31) -> 23 | C33: =IF(TDPrimas_!B31="","",TDPrimas_!B31) -> Afirme | D33: =IF(TDPrimas_!C31="","",TDPrimas_!C31) -> 2232143.874 | E33: =IF(TDPrimas_!D31="","",TDPrimas_!D31) -> 1889300.432 | F33: =IF(TDPrimas_!E31="","",TDPrimas_!E31) -> 1.024226166 | G33: =IF(TDPrimas_!F31="","",TDPrimas_!F31) -> 0.9862139988 | H33: =IF(TDPrimas_!G31="","",TDPrimas_!G31) -> 342843.4419 | I33: =IF(TDPrimas_!H31="","",TDPrimas_!H31) -> 18.14658145 | J33: =IF(TDPrimas_!I31="","",TDPrimas_!I31) -> 100 | K33: =IF(TDPrimas_!J31="","",TDPrimas_!J31) -> 100 | L33: =IF(TDPrimas_!K31="","",TDPrimas_!K31) -> 1.024226166
B34: =IF(TDPrimas_!A32="","",TDPrimas_!A32) -> 24 | C34: =IF(TDPrimas_!B32="","",TDPrimas_!B32) -> Seguros Azteca | D34: =IF(TDPrimas_!C32="","",TDPrimas_!C32) -> 1962137.495 | E34: =IF(TDPrimas_!D32="","",TDPrimas_!D32) -> 1626725.297 | F34: =IF(TDPrimas_!E32="","",TDPrimas_!E32) -> 0.9003328985 | G34: =IF(TDPrimas_!F32="","",TDPrimas_!F32) -> 0.8491498929 | H34: =IF(TDPrimas_!G32="","",TDPrimas_!G32) -> 335412.1986 | I34: =IF(TDPrimas_!H32="","",TDPrimas_!H32) -> 20.6188592 | J34: =IF(TDPrimas_!I32="","",TDPrimas_!I32) -> 100 | K34: =IF(TDPrimas_!J32="","",TDPrimas_!J32) -> 100 | L34: =IF(TDPrimas_!K32="","",TDPrimas_!K32) -> 0.9003328985
B35: =IF(TDPrimas_!A33="","",TDPrimas_!A33) -> 25 | C35: =IF(TDPrimas_!B33="","",TDPrimas_!B33) -> Hir Seguros | D35: =IF(TDPrimas_!C33="","",TDPrimas_!C33) -> 1797983.439 | E35: =IF(TDPrimas_!D33="","",TDPrimas_!D33) -> 1430544.885 | F35: =IF(TDPrimas_!E33="","",TDPrimas_!E33) -> 0.8250102986 | G35: =IF(TDPrimas_!F33="","",TDPrimas_!F33) -> 0.7467438036 | H35: =IF(TDPrimas_!G33="","",TDPrimas_!G33) -> 367438.5542 | I35: =IF(TDPrimas_!H33="","",TDPrimas_!H33) -> 25.68521674 | J35: =IF(TDPrimas_!I33="","",TDPrimas_!I33) -> 100 | K35: =IF(TDPrimas_!J33="","",TDPrimas_!J33) -> 100 | L35: =IF(TDPrimas_!K33="","",TDPrimas_!K33) -> 0.8250102986
B36: =IF(TDPrimas_!A34="","",TDPrimas_!A34) -> 26 | C36: =IF(TDPrimas_!B34="","",TDPrimas_!B34) -> HSBC Seguros | D36: =IF(TDPrimas_!C34="","",TDPrimas_!C34) -> 1622418.914 | E36: =IF(TDPrimas_!D34="","",TDPrimas_!D34) -> 1476975.642 | F36: =IF(TDPrimas_!E34="","",TDPrimas_!E34) -> 0.7444519698 | G36: =IF(TDPrimas_!F34="","",TDPrimas_!F34) -> 0.7709806386 | H36: =IF(TDPrimas_!G34="","",TDPrimas_!G34) -> 145443.2721 | I36: =IF(TDPrimas_!H34="","",TDPrimas_!H34) -> 9.847371068 | J36: =IF(TDPrimas_!I34="","",TDPrimas_!I34) -> 100 | K36: =IF(TDPrimas_!J34="","",TDPrimas_!J34) -> 100 | L36: =IF(TDPrimas_!K34="","",TDPrimas_!K34) -> 0.7444519698
B37: =IF(TDPrimas_!A35="","",TDPrimas_!A35) -> 27 | C37: =IF(TDPrimas_!B35="","",TDPrimas_!B35) -> Seguros SURA | D37: =IF(TDPrimas_!C35="","",TDPrimas_!C35) -> 1504539.568 | E37: =IF(TDPrimas_!D35="","",TDPrimas_!D35) -> 1761775.443 | F37: =IF(TDPrimas_!E35="","",TDPrimas_!E35) -> 0.6903626649 | G37: =IF(TDPrimas_!F35="","",TDPrimas_!F35) -> 0.9196460099 | H37: =IF(TDPrimas_!G35="","",TDPrimas_!G35) -> -257235.8746 | I37: =IF(TDPrimas_!H35="","",TDPrimas_!H35) -> -14.60094563 | J37: =IF(TDPrimas_!I35="","",TDPrimas_!I35) -> 100 | K37: =IF(TDPrimas_!J35="","",TDPrimas_!J35) -> 100 | L37: =IF(TDPrimas_!K35="","",TDPrimas_!K35) -> 0.6903626649
B38: =IF(TDPrimas_!A36="","",TDPrimas_!A36) -> 28 | C38: =IF(TDPrimas_!B36="","",TDPrimas_!B36) -> Seguros Azteca Daños | D38: =IF(TDPrimas_!C36="","",TDPrimas_!C36) -> 1251067.98 | E38: =IF(TDPrimas_!D36="","",TDPrimas_!D36) -> 1718523.353 | F38: =IF(TDPrimas_!E36="","",TDPrimas_!E36) -> 0.5740564375 | G38: =IF(TDPrimas_!F36="","",TDPrimas_!F36) -> 0.897068438 | H38: =IF(TDPrimas_!G36="","",TDPrimas_!G36) -> -467455.373 | I38: =IF(TDPrimas_!H36="","",TDPrimas_!H36) -> -27.20099044 | J38: =IF(TDPrimas_!I36="","",TDPrimas_!I36) -> 100 | K38: =IF(TDPrimas_!J36="","",TDPrimas_!J36) -> 100 | L38: =IF(TDPrimas_!K36="","",TDPrimas_!K36) -> 0.5740564375
B39: =IF(TDPrimas_!A37="","",TDPrimas_!A37) -> 29 | C39: =IF(TDPrimas_!B37="","",TDPrimas_!B37) -> HDI Global Seguros | D39: =IF(TDPrimas_!C37="","",TDPrimas_!C37) -> 1017302.517 | E39: =IF(TDPrimas_!D37="","",TDPrimas_!D37) -> 469926.6922 | F39: =IF(TDPrimas_!E37="","",TDPrimas_!E37) -> 0.4667924273 | G39: =IF(TDPrimas_!F37="","",TDPrimas_!F37) -> 0.2453015276 | H39: =IF(TDPrimas_!G37="","",TDPrimas_!G37) -> 547375.8252 | I39: =IF(TDPrimas_!H37="","",TDPrimas_!H37) -> 116.4811096 | J39: =IF(TDPrimas_!I37="","",TDPrimas_!I37) -> 100 | K39: =IF(TDPrimas_!J37="","",TDPrimas_!J37) -> 100 | L39: =IF(TDPrimas_!K37="","",TDPrimas_!K37) -> 0.4667924273
B40: =IF(TDPrimas_!A38="","",TDPrimas_!A38) -> 30 | C40: =IF(TDPrimas_!B38="","",TDPrimas_!B38) -> Cardif Vida | D40: =IF(TDPrimas_!C38="","",TDPrimas_!C38) -> 972637.9765 | E40: =IF(TDPrimas_!D38="","",TDPrimas_!D38) -> 837222.9085 | F40: =IF(TDPrimas_!E38="","",TDPrimas_!E38) -> 0.4462979637 | G40: =IF(TDPrimas_!F38="","",TDPrimas_!F38) -> 0.4370299918 | H40: =IF(TDPrimas_!G38="","",TDPrimas_!G38) -> 135415.068 | I40: =IF(TDPrimas_!H38="","",TDPrimas_!H38) -> 16.17431471 | J40: =IF(TDPrimas_!I38="","",TDPrimas_!I38) -> 100 | K40: =IF(TDPrimas_!J38="","",TDPrimas_!J38) -> 100 | L40: =IF(TDPrimas_!K38="","",TDPrimas_!K38) -> 0.4462979637
B41: =IF(TDPrimas_!A39="","",TDPrimas_!A39) -> 31 | C41: =IF(TDPrimas_!B39="","",TDPrimas_!B39) -> BUPA México | D41: =IF(TDPrimas_!C39="","",TDPrimas_!C39) -> 874777.1123 | E41: =IF(TDPrimas_!D39="","",TDPrimas_!D39) -> 826190.4077 | F41: =IF(TDPrimas_!E39="","",TDPrimas_!E39) -> 0.4013942014 | G41: =IF(TDPrimas_!F39="","",TDPrimas_!F39) -> 0.4312710312 | H41: =IF(TDPrimas_!G39="","",TDPrimas_!G39) -> 48586.70459 | I41: =IF(TDPrimas_!H39="","",TDPrimas_!H39) -> 5.880811994 | J41: =IF(TDPrimas_!I39="","",TDPrimas_!I39) -> 100 | K41: =IF(TDPrimas_!J39="","",TDPrimas_!J39) -> 100 | L41: =IF(TDPrimas_!K39="","",TDPrimas_!K39) -> 0.4013942014
B42: =IF(TDPrimas_!A40="","",TDPrimas_!A40) -> 32 | C42: =IF(TDPrimas_!B40="","",TDPrimas_!B40) -> ANA | D42: =IF(TDPrimas_!C40="","",TDPrimas_!C40) -> 822201.8011 | E42: =IF(TDPrimas_!D40="","",TDPrimas_!D40) -> 723121.3903 | F42: =IF(TDPrimas_!E40="","",TDPrimas_!E40) -> 0.3772698562 | G42: =IF(TDPrimas_!F40="","",TDPrimas_!F40) -> 0.3774690492 | H42: =IF(TDPrimas_!G40="","",TDPrimas_!G40) -> 99080.41087 | I42: =IF(TDPrimas_!H40="","",TDPrimas_!H40) -> 13.70176739 | J42: =IF(TDPrimas_!I40="","",TDPrimas_!I40) -> 100 | K42: =IF(TDPrimas_!J40="","",TDPrimas_!J40) -> 100 | L42: =IF(TDPrimas_!K40="","",TDPrimas_!K40) -> 0.3772698562
B43: =IF(TDPrimas_!A41="","",TDPrimas_!A41) -> 33 | C43: =IF(TDPrimas_!B41="","",TDPrimas_!B41) -> Ve Por Más | D43: =IF(TDPrimas_!C41="","",TDPrimas_!C41) -> 764564.7006 | E43: =IF(TDPrimas_!D41="","",TDPrimas_!D41) -> 678146.0975 | F43: =IF(TDPrimas_!E41="","",TDPrimas_!E41) -> 0.3508228932 | G43: =IF(TDPrimas_!F41="","",TDPrimas_!F41) -> 0.3539919661 | H43: =IF(TDPrimas_!G41="","",TDPrimas_!G41) -> 86418.60311 | I43: =IF(TDPrimas_!H41="","",TDPrimas_!H41) -> 12.74336068 | J43: =IF(TDPrimas_!I41="","",TDPrimas_!I41) -> 100 | K43: =IF(TDPrimas_!J41="","",TDPrimas_!J41) -> 100 | L43: =IF(TDPrimas_!K41="","",TDPrimas_!K41) -> 0.3508228932
B44: =IF(TDPrimas_!A42="","",TDPrimas_!A42) -> 34 | C44: =IF(TDPrimas_!B42="","",TDPrimas_!B42) -> Seguros Argos | D44: =IF(TDPrimas_!C42="","",TDPrimas_!C42) -> 758060.4487 | E44: =IF(TDPrimas_!D42="","",TDPrimas_!D42) -> 1176942.889 | F44: =IF(TDPrimas_!E42="","",TDPrimas_!E42) -> 0.347838397 | G44: =IF(TDPrimas_!F42="","",TDPrimas_!F42) -> 0.6143636727 | H44: =IF(TDPrimas_!G42="","",TDPrimas_!G42) -> -418882.4398 | I44: =IF(TDPrimas_!H42="","",TDPrimas_!H42) -> -35.5907193 | J44: =IF(TDPrimas_!I42="","",TDPrimas_!I42) -> 100 | K44: =IF(TDPrimas_!J42="","",TDPrimas_!J42) -> 100 | L44: =IF(TDPrimas_!K42="","",TDPrimas_!K42) -> 0.347838397
B45: =IF(TDPrimas_!A43="","",TDPrimas_!A43) -> 35 | C45: =IF(TDPrimas_!B43="","",TDPrimas_!B43) -> Plan Seguro | D45: =IF(TDPrimas_!C43="","",TDPrimas_!C43) -> 702706.0644 | E45: =IF(TDPrimas_!D43="","",TDPrimas_!D43) -> 842005.7839 | F45: =IF(TDPrimas_!E43="","",TDPrimas_!E43) -> 0.3224388654 | G45: =IF(TDPrimas_!F43="","",TDPrimas_!F43) -> 0.4395266506 | H45: =IF(TDPrimas_!G43="","",TDPrimas_!G43) -> -139299.7195 | I45: =IF(TDPrimas_!H43="","",TDPrimas_!H43) -> -16.54379604 | J45: =IF(TDPrimas_!I43="","",TDPrimas_!I43) -> 100 | K45: =IF(TDPrimas_!J43="","",TDPrimas_!J43) -> 100 | L45: =IF(TDPrimas_!K43="","",TDPrimas_!K43) -> 0.3224388654
B46: =IF(TDPrimas_!A44="","",TDPrimas_!A44) -> 36 | C46: =IF(TDPrimas_!B44="","",TDPrimas_!B44) -> FM Global | D46: =IF(TDPrimas_!C44="","",TDPrimas_!C44) -> 685542.5401 | E46: =IF(TDPrimas_!D44="","",TDPrimas_!D44) -> 573005.8212 | F46: =IF(TDPrimas_!E44="","",TDPrimas_!E44) -> 0.3145633288 | G46: =IF(TDPrimas_!F44="","",TDPrimas_!F44) -> 0.2991087878 | H46: =IF(TDPrimas_!G44="","",TDPrimas_!G44) -> 112536.719 | I46: =IF(TDPrimas_!H44="","",TDPrimas_!H44) -> 19.63971653 | J46: =IF(TDPrimas_!I44="","",TDPrimas_!I44) -> 100 | K46: =IF(TDPrimas_!J44="","",TDPrimas_!J44) -> 100 | L46: =IF(TDPrimas_!K44="","",TDPrimas_!K44) -> 0.3145633288
B47: =IF(TDPrimas_!A45="","",TDPrimas_!A45) -> 37 | C47: =IF(TDPrimas_!B45="","",TDPrimas_!B45) -> El Potosí | D47: =IF(TDPrimas_!C45="","",TDPrimas_!C45) -> 663569.2062 | E47: =IF(TDPrimas_!D45="","",TDPrimas_!D45) -> 548570.9886 | F47: =IF(TDPrimas_!E45="","",TDPrimas_!E45) -> 0.3044807961 | G47: =IF(TDPrimas_!F45="","",TDPrimas_!F45) -> 0.2863538159 | H47: =IF(TDPrimas_!G45="","",TDPrimas_!G45) -> 114998.2176 | I47: =IF(TDPrimas_!H45="","",TDPrimas_!H45) -> 20.96323356 | J47: =IF(TDPrimas_!I45="","",TDPrimas_!I45) -> 100 | K47: =IF(TDPrimas_!J45="","",TDPrimas_!J45) -> 100 | L47: =IF(TDPrimas_!K45="","",TDPrimas_!K45) -> 0.3044807961
B48: =IF(TDPrimas_!A46="","",TDPrimas_!A46) -> 38 | C48: =IF(TDPrimas_!B46="","",TDPrimas_!B46) -> General de Seguros | D48: =IF(TDPrimas_!C46="","",TDPrimas_!C46) -> 660743.6803 | E48: =IF(TDPrimas_!D46="","",TDPrimas_!D46) -> 638551.5422 | F48: =IF(TDPrimas_!E46="","",TDPrimas_!E46) -> 0.3031842948 | G48: =IF(TDPrimas_!F46="","",TDPrimas_!F46) -> 0.3333236256 | H48: =IF(TDPrimas_!G46="","",TDPrimas_!G46) -> 22192.1381 | I48: =IF(TDPrimas_!H46="","",TDPrimas_!H46) -> 3.475387127 | J48: =IF(TDPrimas_!I46="","",TDPrimas_!I46) -> 100 | K48: =IF(TDPrimas_!J46="","",TDPrimas_!J46) -> 100 | L48: =IF(TDPrimas_!K46="","",TDPrimas_!K46) -> 0.3031842948
B49: =IF(TDPrimas_!A47="","",TDPrimas_!A47) -> 39 | C49: =IF(TDPrimas_!B47="","",TDPrimas_!B47) -> AXA Salud | D49: =IF(TDPrimas_!C47="","",TDPrimas_!C47) -> 487258.3274 | E49: =IF(TDPrimas_!D47="","",TDPrimas_!D47) -> 488407.7121 | F49: =IF(TDPrimas_!E47="","",TDPrimas_!E47) -> 0.2235800005 | G49: =IF(TDPrimas_!F47="","",TDPrimas_!F47) -> 0.2549486119 | H49: =IF(TDPrimas_!G47="","",TDPrimas_!G47) -> -1149.38476 | I49: =IF(TDPrimas_!H47="","",TDPrimas_!H47) -> -0.2353330489 | J49: =IF(TDPrimas_!I47="","",TDPrimas_!I47) -> 100 | K49: =IF(TDPrimas_!J47="","",TDPrimas_!J47) -> 100 | L49: =IF(TDPrimas_!K47="","",TDPrimas_!K47) -> 0.2235800005
B50: =IF(TDPrimas_!A48="","",TDPrimas_!A48) -> 40 | C50: =IF(TDPrimas_!B48="","",TDPrimas_!B48) -> Assurant Vida | D50: =IF(TDPrimas_!C48="","",TDPrimas_!C48) -> 448721.7349 | E50: =IF(TDPrimas_!D48="","",TDPrimas_!D48) -> 72452.07634 | F50: =IF(TDPrimas_!E48="","",TDPrimas_!E48) -> 0.2058973651 | G50: =IF(TDPrimas_!F48="","",TDPrimas_!F48) -> 0.03781995214 | H50: =IF(TDPrimas_!G48="","",TDPrimas_!G48) -> 376269.6585 | I50: =IF(TDPrimas_!H48="","",TDPrimas_!H48) -> 519.3359218 | J50: =IF(TDPrimas_!I48="","",TDPrimas_!I48) -> 100 | K50: =IF(TDPrimas_!J48="","",TDPrimas_!J48) -> 100 | L50: =IF(TDPrimas_!K48="","",TDPrimas_!K48) -> 0.2058973651
B51: =IF(TDPrimas_!A49="","",TDPrimas_!A49) -> 41 | C51: =IF(TDPrimas_!B49="","",TDPrimas_!B49) -> Prudential | D51: =IF(TDPrimas_!C49="","",TDPrimas_!C49) -> 433447.1346 | E51: =IF(TDPrimas_!D49="","",TDPrimas_!D49) -> 347533.3727 | F51: =IF(TDPrimas_!E49="","",TDPrimas_!E49) -> 0.1988885672 | G51: =IF(TDPrimas_!F49="","",TDPrimas_!F49) -> 0.1814122684 | H51: =IF(TDPrimas_!G49="","",TDPrimas_!G49) -> 85913.7619 | I51: =IF(TDPrimas_!H49="","",TDPrimas_!H49) -> 24.7210106 | J51: =IF(TDPrimas_!I49="","",TDPrimas_!I49) -> 100 | K51: =IF(TDPrimas_!J49="","",TDPrimas_!J49) -> 100 | L51: =IF(TDPrimas_!K49="","",TDPrimas_!K49) -> 0.1988885672
B52: =IF(TDPrimas_!A50="","",TDPrimas_!A50) -> 42 | C52: =IF(TDPrimas_!B50="","",TDPrimas_!B50) -> Cardif Seguros Generales | D52: =IF(TDPrimas_!C50="","",TDPrimas_!C50) -> 431726.5307 | E52: =IF(TDPrimas_!D50="","",TDPrimas_!D50) -> 287943.7976 | F52: =IF(TDPrimas_!E50="","",TDPrimas_!E50) -> 0.1980990627 | G52: =IF(TDPrimas_!F50="","",TDPrimas_!F50) -> 0.1503065363 | H52: =IF(TDPrimas_!G50="","",TDPrimas_!G50) -> 143782.7332 | I52: =IF(TDPrimas_!H50="","",TDPrimas_!H50) -> 49.93430468 | J52: =IF(TDPrimas_!I50="","",TDPrimas_!I50) -> 100 | K52: =IF(TDPrimas_!J50="","",TDPrimas_!J50) -> 100 | L52: =IF(TDPrimas_!K50="","",TDPrimas_!K50) -> 0.1980990627
B53: =IF(TDPrimas_!A51="","",TDPrimas_!A51) -> 43 | C53: =IF(TDPrimas_!B51="","",TDPrimas_!B51) -> Insignia Life | D53: =IF(TDPrimas_!C51="","",TDPrimas_!C51) -> 421128.095 | E53: =IF(TDPrimas_!D51="","",TDPrimas_!D51) -> 404699.6429 | F53: =IF(TDPrimas_!E51="","",TDPrimas_!E51) -> 0.1932359375 | G53: =IF(TDPrimas_!F51="","",TDPrimas_!F51) -> 0.2112530365 | H53: =IF(TDPrimas_!G51="","",TDPrimas_!G51) -> 16428.45205 | I53: =IF(TDPrimas_!H51="","",TDPrimas_!H51) -> 4.059418469 | J53: =IF(TDPrimas_!I51="","",TDPrimas_!I51) -> 100 | K53: =IF(TDPrimas_!J51="","",TDPrimas_!J51) -> 100 | L53: =IF(TDPrimas_!K51="","",TDPrimas_!K51) -> 0.1932359375
B54: =IF(TDPrimas_!A52="","",TDPrimas_!A52) -> 44 | C54: =IF(TDPrimas_!B52="","",TDPrimas_!B52) -> El Águila | D54: =IF(TDPrimas_!C52="","",TDPrimas_!C52) -> 401246.1002 | E54: =IF(TDPrimas_!D52="","",TDPrimas_!D52) -> 326812.7127 | F54: =IF(TDPrimas_!E52="","",TDPrimas_!E52) -> 0.1841130223 | G54: =IF(TDPrimas_!F52="","",TDPrimas_!F52) -> 0.170596093 | H54: =IF(TDPrimas_!G52="","",TDPrimas_!G52) -> 74433.38753 | I54: =IF(TDPrimas_!H52="","",TDPrimas_!H52) -> 22.77554839 | J54: =IF(TDPrimas_!I52="","",TDPrimas_!I52) -> 100 | K54: =IF(TDPrimas_!J52="","",TDPrimas_!J52) -> 100 | L54: =IF(TDPrimas_!K52="","",TDPrimas_!K52) -> 0.1841130223
B55: =IF(TDPrimas_!A53="","",TDPrimas_!A53) -> 45 | C55: =IF(TDPrimas_!B53="","",TDPrimas_!B53) -> La Latinoamericana | D55: =IF(TDPrimas_!C53="","",TDPrimas_!C53) -> 378273.6306 | E55: =IF(TDPrimas_!D53="","",TDPrimas_!D53) -> 386901.9131 | F55: =IF(TDPrimas_!E53="","",TDPrimas_!E53) -> 0.1735720331 | G55: =IF(TDPrimas_!F53="","",TDPrimas_!F53) -> 0.2019626293 | H55: =IF(TDPrimas_!G53="","",TDPrimas_!G53) -> -8628.28243 | I55: =IF(TDPrimas_!H53="","",TDPrimas_!H53) -> -2.230095572 | J55: =IF(TDPrimas_!I53="","",TDPrimas_!I53) -> 100 | K55: =IF(TDPrimas_!J53="","",TDPrimas_!J53) -> 100 | L55: =IF(TDPrimas_!K53="","",TDPrimas_!K53) -> 0.1735720331
B56: =IF(TDPrimas_!A54="","",TDPrimas_!A54) -> 46 | C56: =IF(TDPrimas_!B54="","",TDPrimas_!B54) -> Patrimonial Inbursa | D56: =IF(TDPrimas_!C54="","",TDPrimas_!C54) -> 365783.3579 | E56: =IF(TDPrimas_!D54="","",TDPrimas_!D54) -> 399496.2087 | F56: =IF(TDPrimas_!E54="","",TDPrimas_!E54) -> 0.1678408326 | G56: =IF(TDPrimas_!F54="","",TDPrimas_!F54) -> 0.2085368461 | H56: =IF(TDPrimas_!G54="","",TDPrimas_!G54) -> -33712.85078 | I56: =IF(TDPrimas_!H54="","",TDPrimas_!H54) -> -8.438841233 | J56: =IF(TDPrimas_!I54="","",TDPrimas_!I54) -> 100 | K56: =IF(TDPrimas_!J54="","",TDPrimas_!J54) -> 100 | L56: =IF(TDPrimas_!K54="","",TDPrimas_!K54) -> 0.1678408326
B57: =IF(TDPrimas_!A55="","",TDPrimas_!A55) -> 47 | C57: =IF(TDPrimas_!B55="","",TDPrimas_!B55) -> Tokio Marine | D57: =IF(TDPrimas_!C55="","",TDPrimas_!C55) -> 328979.0608 | E57: =IF(TDPrimas_!D55="","",TDPrimas_!D55) -> 675587.689 | F57: =IF(TDPrimas_!E55="","",TDPrimas_!E55) -> 0.1509530663 | G57: =IF(TDPrimas_!F55="","",TDPrimas_!F55) -> 0.3526564779 | H57: =IF(TDPrimas_!G55="","",TDPrimas_!G55) -> -346608.6282 | I57: =IF(TDPrimas_!H55="","",TDPrimas_!H55) -> -51.30475789 | J57: =IF(TDPrimas_!I55="","",TDPrimas_!I55) -> 100 | K57: =IF(TDPrimas_!J55="","",TDPrimas_!J55) -> 100 | L57: =IF(TDPrimas_!K55="","",TDPrimas_!K55) -> 0.1509530663
B58: =IF(TDPrimas_!A56="","",TDPrimas_!A56) -> 48 | C58: =IF(TDPrimas_!B56="","",TDPrimas_!B56) -> Patrimonial Vida | D58: =IF(TDPrimas_!C56="","",TDPrimas_!C56) -> 318429.8218 | E58: =IF(TDPrimas_!D56="","",TDPrimas_!D56) -> 1407005.949 | F58: =IF(TDPrimas_!E56="","",TDPrimas_!E56) -> 0.1461125151 | G58: =IF(TDPrimas_!F56="","",TDPrimas_!F56) -> 0.7344564895 | H58: =IF(TDPrimas_!G56="","",TDPrimas_!G56) -> -1088576.127 | I58: =IF(TDPrimas_!H56="","",TDPrimas_!H56) -> -77.36826756 | J58: =IF(TDPrimas_!I56="","",TDPrimas_!I56) -> 100 | K58: =IF(TDPrimas_!J56="","",TDPrimas_!J56) -> 100 | L58: =IF(TDPrimas_!K56="","",TDPrimas_!K56) -> 0.1461125151
B59: =IF(TDPrimas_!A57="","",TDPrimas_!A57) -> 49 | C59: =IF(TDPrimas_!B57="","",TDPrimas_!B57) -> Pan-American México | D59: =IF(TDPrimas_!C57="","",TDPrimas_!C57) -> 309110.8096 | E59: =IF(TDPrimas_!D57="","",TDPrimas_!D57) -> 143964.6181 | F59: =IF(TDPrimas_!E57="","",TDPrimas_!E57) -> 0.1418364573 | G59: =IF(TDPrimas_!F57="","",TDPrimas_!F57) -> 0.07514946766 | H59: =IF(TDPrimas_!G57="","",TDPrimas_!G57) -> 165146.1914 | I59: =IF(TDPrimas_!H57="","",TDPrimas_!H57) -> 114.713041 | J59: =IF(TDPrimas_!I57="","",TDPrimas_!I57) -> 100 | K59: =IF(TDPrimas_!J57="","",TDPrimas_!J57) -> 100 | L59: =IF(TDPrimas_!K57="","",TDPrimas_!K57) -> 0.1418364573
B60: =IF(TDPrimas_!A58="","",TDPrimas_!A58) -> 50 | C60: =IF(TDPrimas_!B58="","",TDPrimas_!B58) -> BBVA Bancomer Salud | D60: =IF(TDPrimas_!C58="","",TDPrimas_!C58) -> 295419.7616 | E60: =IF(TDPrimas_!D58="","",TDPrimas_!D58) -> 122393.0118 | F60: =IF(TDPrimas_!E58="","",TDPrimas_!E58) -> 0.1355542773 | G60: =IF(TDPrimas_!F58="","",TDPrimas_!F58) -> 0.0638890986 | H60: =IF(TDPrimas_!G58="","",TDPrimas_!G58) -> 173026.7498 | I60: =IF(TDPrimas_!H58="","",TDPrimas_!H58) -> 141.3697949 | J60: =IF(TDPrimas_!I58="","",TDPrimas_!I58) -> 100 | K60: =IF(TDPrimas_!J58="","",TDPrimas_!J58) -> 100 | L60: =IF(TDPrimas_!K58="","",TDPrimas_!K58) -> 0.1355542773
B61: =IF(TDPrimas_!A59="","",TDPrimas_!A59) -> 51 | C61: =IF(TDPrimas_!B59="","",TDPrimas_!B59) -> Primero Seguros | D61: =IF(TDPrimas_!C59="","",TDPrimas_!C59) -> 285123.9824 | E61: =IF(TDPrimas_!D59="","",TDPrimas_!D59) -> 283509.6926 | F61: =IF(TDPrimas_!E59="","",TDPrimas_!E59) -> 0.130830027 | G61: =IF(TDPrimas_!F59="","",TDPrimas_!F59) -> 0.1479919354 | H61: =IF(TDPrimas_!G59="","",TDPrimas_!G59) -> 1614.28978 | I61: =IF(TDPrimas_!H59="","",TDPrimas_!H59) -> 0.5693949175 | J61: =IF(TDPrimas_!I59="","",TDPrimas_!I59) -> 100 | K61: =IF(TDPrimas_!J59="","",TDPrimas_!J59) -> 100 | L61: =IF(TDPrimas_!K59="","",TDPrimas_!K59) -> 0.130830027
B62: =IF(TDPrimas_!A60="","",TDPrimas_!A60) -> 52 | C62: =IF(TDPrimas_!B60="","",TDPrimas_!B60) -> General de Salud | D62: =IF(TDPrimas_!C60="","",TDPrimas_!C60) -> 240008.1062 | E62: =IF(TDPrimas_!D60="","",TDPrimas_!D60) -> 128786.919 | F62: =IF(TDPrimas_!E60="","",TDPrimas_!E60) -> 0.1101284667 | G62: =IF(TDPrimas_!F60="","",TDPrimas_!F60) -> 0.06722671536 | H62: =IF(TDPrimas_!G60="","",TDPrimas_!G60) -> 111221.1871 | I62: =IF(TDPrimas_!H60="","",TDPrimas_!H60) -> 86.3606242 | J62: =IF(TDPrimas_!I60="","",TDPrimas_!I60) -> 100 | K62: =IF(TDPrimas_!J60="","",TDPrimas_!J60) -> 100 | L62: =IF(TDPrimas_!K60="","",TDPrimas_!K60) -> 0.1101284667
B63: =IF(TDPrimas_!A61="","",TDPrimas_!A61) -> 53 | C63: =IF(TDPrimas_!B61="","",TDPrimas_!B61) -> PREVEM Seguros | D63: =IF(TDPrimas_!C61="","",TDPrimas_!C61) -> 216996.1496 | E63: =IF(TDPrimas_!D61="","",TDPrimas_!D61) -> 126840.0351 | F63: =IF(TDPrimas_!E61="","",TDPrimas_!E61) -> 0.0995693588 | G63: =IF(TDPrimas_!F61="","",TDPrimas_!F61) -> 0.06621044283 | H63: =IF(TDPrimas_!G61="","",TDPrimas_!G61) -> 90156.11441 | I63: =IF(TDPrimas_!H61="","",TDPrimas_!H61) -> 71.07859463 | J63: =IF(TDPrimas_!I61="","",TDPrimas_!I61) -> 100 | K63: =IF(TDPrimas_!J61="","",TDPrimas_!J61) -> 100 | L63: =IF(TDPrimas_!K61="","",TDPrimas_!K61) -> 0.0995693588
B64: =IF(TDPrimas_!A62="","",TDPrimas_!A62) -> 54 | C64: =IF(TDPrimas_!B62="","",TDPrimas_!B62) -> Berkley Seguros | D64: =IF(TDPrimas_!C62="","",TDPrimas_!C62) -> 192876.4358 | E64: =IF(TDPrimas_!D62="","",TDPrimas_!D62) -> 138917.2502 | F64: =IF(TDPrimas_!E62="","",TDPrimas_!E62) -> 0.08850195307 | G64: =IF(TDPrimas_!F62="","",TDPrimas_!F62) -> 0.07251474381 | H64: =IF(TDPrimas_!G62="","",TDPrimas_!G62) -> 53959.18563 | I64: =IF(TDPrimas_!H62="","",TDPrimas_!H62) -> 38.84268192 | J64: =IF(TDPrimas_!I62="","",TDPrimas_!I62) -> 100 | K64: =IF(TDPrimas_!J62="","",TDPrimas_!J62) -> 100 | L64: =IF(TDPrimas_!K62="","",TDPrimas_!K62) -> 0.08850195307
B65: =IF(TDPrimas_!A63="","",TDPrimas_!A63) -> 55 | C65: =IF(TDPrimas_!B63="","",TDPrimas_!B63) -> Atradius | D65: =IF(TDPrimas_!C63="","",TDPrimas_!C63) -> 191703.7614 | E65: =IF(TDPrimas_!D63="","",TDPrimas_!D63) -> 188280.9903 | F65: =IF(TDPrimas_!E63="","",TDPrimas_!E63) -> 0.08796386774 | G65: =IF(TDPrimas_!F63="","",TDPrimas_!F63) -> 0.09828259452 | H65: =IF(TDPrimas_!G63="","",TDPrimas_!G63) -> 3422.77109 | I65: =IF(TDPrimas_!H63="","",TDPrimas_!H63) -> 1.817905825 | J65: =IF(TDPrimas_!I63="","",TDPrimas_!I63) -> 100 | K65: =IF(TDPrimas_!J63="","",TDPrimas_!J63) -> 100 | L65: =IF(TDPrimas_!K63="","",TDPrimas_!K63) -> 0.08796386774
B66: =IF(TDPrimas_!A64="","",TDPrimas_!A64) -> 56 | C66: =IF(TDPrimas_!B64="","",TDPrimas_!B64) -> Sompo Japan | D66: =IF(TDPrimas_!C64="","",TDPrimas_!C64) -> 189031.925 | E66: =IF(TDPrimas_!D64="","",TDPrimas_!D64) -> 186805.3507 | F66: =IF(TDPrimas_!E64="","",TDPrimas_!E64) -> 0.0867378873 | G66: =IF(TDPrimas_!F64="","",TDPrimas_!F64) -> 0.09751231129 | H66: =IF(TDPrimas_!G64="","",TDPrimas_!G64) -> 2226.57432 | I66: =IF(TDPrimas_!H64="","",TDPrimas_!H64) -> 1.191922133 | J66: =IF(TDPrimas_!I64="","",TDPrimas_!I64) -> 100 | K66: =IF(TDPrimas_!J64="","",TDPrimas_!J64) -> 100 | L66: =IF(TDPrimas_!K64="","",TDPrimas_!K64) -> 0.0867378873
B67: =IF(TDPrimas_!A65="","",TDPrimas_!A65) -> 57 | C67: =IF(TDPrimas_!B65="","",TDPrimas_!B65) -> Solunion Crédito | D67: =IF(TDPrimas_!C65="","",TDPrimas_!C65) -> 173836.217 | E67: =IF(TDPrimas_!D65="","",TDPrimas_!D65) -> 138126.0983 | F67: =IF(TDPrimas_!E65="","",TDPrimas_!E65) -> 0.07976528935 | G67: =IF(TDPrimas_!F65="","",TDPrimas_!F65) -> 0.07210176287 | H67: =IF(TDPrimas_!G65="","",TDPrimas_!G65) -> 35710.11863 | I67: =IF(TDPrimas_!H65="","",TDPrimas_!H65) -> 25.85327398 | J67: =IF(TDPrimas_!I65="","",TDPrimas_!I65) -> 100 | K67: =IF(TDPrimas_!J65="","",TDPrimas_!J65) -> 100 | L67: =IF(TDPrimas_!K65="","",TDPrimas_!K65) -> 0.07976528935
B68: =IF(TDPrimas_!A66="","",TDPrimas_!A66) -> 58 | C68: =IF(TDPrimas_!B66="","",TDPrimas_!B66) -> Dentegra | D68: =IF(TDPrimas_!C66="","",TDPrimas_!C66) -> 145760.7721 | E68: =IF(TDPrimas_!D66="","",TDPrimas_!D66) -> 115299.2576 | F68: =IF(TDPrimas_!E66="","",TDPrimas_!E66) -> 0.06688278406 | G68: =IF(TDPrimas_!F66="","",TDPrimas_!F66) -> 0.06018616202 | H68: =IF(TDPrimas_!G66="","",TDPrimas_!G66) -> 30461.51442 | I68: =IF(TDPrimas_!H66="","",TDPrimas_!H66) -> 26.41952346 | J68: =IF(TDPrimas_!I66="","",TDPrimas_!I66) -> 100 | K68: =IF(TDPrimas_!J66="","",TDPrimas_!J66) -> 100 | L68: =IF(TDPrimas_!K66="","",TDPrimas_!K66) -> 0.06688278406
B69: =IF(TDPrimas_!A67="","",TDPrimas_!A67) -> 59 | C69: =IF(TDPrimas_!B67="","",TDPrimas_!B67) -> Swiss Re Corporate Solutions | D69: =IF(TDPrimas_!C67="","",TDPrimas_!C67) -> 131577.2293 | E69: =IF(TDPrimas_!D67="","",TDPrimas_!D67) -> 88118.5631 | F69: =IF(TDPrimas_!E67="","",TDPrimas_!E67) -> 0.06037462129 | G69: =IF(TDPrimas_!F67="","",TDPrimas_!F67) -> 0.04599785137 | H69: =IF(TDPrimas_!G67="","",TDPrimas_!G67) -> 43458.66617 | I69: =IF(TDPrimas_!H67="","",TDPrimas_!H67) -> 49.31840085 | J69: =IF(TDPrimas_!I67="","",TDPrimas_!I67) -> 100 | K69: =IF(TDPrimas_!J67="","",TDPrimas_!J67) -> 100 | L69: =IF(TDPrimas_!K67="","",TDPrimas_!K67) -> 0.06037462129
B70: =IF(TDPrimas_!A68="","",TDPrimas_!A68) -> 60 | C70: =IF(TDPrimas_!B68="","",TDPrimas_!B68) -> SHF Cred Vivienda | D70: =IF(TDPrimas_!C68="","",TDPrimas_!C68) -> 128656.8788 | E70: =IF(TDPrimas_!D68="","",TDPrimas_!D68) -> 98682.88025 | F70: =IF(TDPrimas_!E68="","",TDPrimas_!E68) -> 0.05903460939 | G70: =IF(TDPrimas_!F68="","",TDPrimas_!F68) -> 0.0515124203 | H70: =IF(TDPrimas_!G68="","",TDPrimas_!G68) -> 29973.99855 | I70: =IF(TDPrimas_!H68="","",TDPrimas_!H68) -> 30.37406131 | J70: =IF(TDPrimas_!I68="","",TDPrimas_!I68) -> 100 | K70: =IF(TDPrimas_!J68="","",TDPrimas_!J68) -> 100 | L70: =IF(TDPrimas_!K68="","",TDPrimas_!K68) -> 0.05903460939
B71: =IF(TDPrimas_!A69="","",TDPrimas_!A69) -> 61 | C71: =IF(TDPrimas_!B69="","",TDPrimas_!B69) -> Skandia Life | D71: =IF(TDPrimas_!C69="","",TDPrimas_!C69) -> 105288.8858 | E71: =IF(TDPrimas_!D69="","",TDPrimas_!D69) -> 153166.8945 | F71: =IF(TDPrimas_!E69="","",TDPrimas_!E69) -> 0.04831213303 | G71: =IF(TDPrimas_!F69="","",TDPrimas_!F69) -> 0.07995305189 | H71: =IF(TDPrimas_!G69="","",TDPrimas_!G69) -> -47878.00874 | I71: =IF(TDPrimas_!H69="","",TDPrimas_!H69) -> -31.25871873 | J71: =IF(TDPrimas_!I69="","",TDPrimas_!I69) -> 100 | K71: =IF(TDPrimas_!J69="","",TDPrimas_!J69) -> 100 | L71: =IF(TDPrimas_!K69="","",TDPrimas_!K69) -> 0.04831213303
B72: =IF(TDPrimas_!A70="","",TDPrimas_!A70) -> 62 | C72: =IF(TDPrimas_!B70="","",TDPrimas_!B70) -> Coface | D72: =IF(TDPrimas_!C70="","",TDPrimas_!C70) -> 100488.6828 | E72: =IF(TDPrimas_!D70="","",TDPrimas_!D70) -> 113603.5251 | F72: =IF(TDPrimas_!E70="","",TDPrimas_!E70) -> 0.04610954493 | G72: =IF(TDPrimas_!F70="","",TDPrimas_!F70) -> 0.05930099036 | H72: =IF(TDPrimas_!G70="","",TDPrimas_!G70) -> -13114.84231 | I72: =IF(TDPrimas_!H70="","",TDPrimas_!H70) -> -11.54439733 | J72: =IF(TDPrimas_!I70="","",TDPrimas_!I70) -> 100 | K72: =IF(TDPrimas_!J70="","",TDPrimas_!J70) -> 100 | L72: =IF(TDPrimas_!K70="","",TDPrimas_!K70) -> 0.04610954493
B73: =IF(TDPrimas_!A71="","",TDPrimas_!A71) -> 63 | C73: =IF(TDPrimas_!B71="","",TDPrimas_!B71) -> Patrimonial Daños | D73: =IF(TDPrimas_!C71="","",TDPrimas_!C71) -> 72046.59106 | E73: =IF(TDPrimas_!D71="","",TDPrimas_!D71) -> 52090.99996 | F73: =IF(TDPrimas_!E71="","",TDPrimas_!E71) -> 0.03305880261 | G73: =IF(TDPrimas_!F71="","",TDPrimas_!F71) -> 0.02719147918 | H73: =IF(TDPrimas_!G71="","",TDPrimas_!G71) -> 19955.5911 | I73: =IF(TDPrimas_!H71="","",TDPrimas_!H71) -> 38.30909584 | J73: =IF(TDPrimas_!I71="","",TDPrimas_!I71) -> 100 | K73: =IF(TDPrimas_!J71="","",TDPrimas_!J71) -> 100 | L73: =IF(TDPrimas_!K71="","",TDPrimas_!K71) -> 0.03305880261
B74: =IF(TDPrimas_!A72="","",TDPrimas_!A72) -> 64 | C74: =IF(TDPrimas_!B72="","",TDPrimas_!B72) -> Assurant Daños | D74: =IF(TDPrimas_!C72="","",TDPrimas_!C72) -> 65408.41517 | E74: =IF(TDPrimas_!D72="","",TDPrimas_!D72) -> 62049.4095 | F74: =IF(TDPrimas_!E72="","",TDPrimas_!E72) -> 0.03001285494 | G74: =IF(TDPrimas_!F72="","",TDPrimas_!F72) -> 0.0323897646 | H74: =IF(TDPrimas_!G72="","",TDPrimas_!G72) -> 3359.00567 | I74: =IF(TDPrimas_!H72="","",TDPrimas_!H72) -> 5.413436964 | J74: =IF(TDPrimas_!I72="","",TDPrimas_!I72) -> 100 | K74: =IF(TDPrimas_!J72="","",TDPrimas_!J72) -> 100 | L74: =IF(TDPrimas_!K72="","",TDPrimas_!K72) -> 0.03001285494
B75: =IF(TDPrimas_!A73="","",TDPrimas_!A73) -> 65 | C75: =IF(TDPrimas_!B73="","",TDPrimas_!B73) -> MediAccess | D75: =IF(TDPrimas_!C73="","",TDPrimas_!C73) -> 51745.07349 | E75: =IF(TDPrimas_!D73="","",TDPrimas_!D73) -> 36238.523 | F75: =IF(TDPrimas_!E73="","",TDPrimas_!E73) -> 0.02374338807 | G75: =IF(TDPrimas_!F73="","",TDPrimas_!F73) -> 0.01891649314 | H75: =IF(TDPrimas_!G73="","",TDPrimas_!G73) -> 15506.55049 | I75: =IF(TDPrimas_!H73="","",TDPrimas_!H73) -> 42.79023869 | J75: =IF(TDPrimas_!I73="","",TDPrimas_!I73) -> 100 | K75: =IF(TDPrimas_!J73="","",TDPrimas_!J73) -> 100 | L75: =IF(TDPrimas_!K73="","",TDPrimas_!K73) -> 0.02374338807
B76: =IF(TDPrimas_!A74="","",TDPrimas_!A74) -> 66 | C76: =IF(TDPrimas_!B74="","",TDPrimas_!B74) -> Centauro | D76: =IF(TDPrimas_!C74="","",TDPrimas_!C74) -> 43790.38458 | E76: =IF(TDPrimas_!D74="","",TDPrimas_!D74) -> 34971.82723 | F76: =IF(TDPrimas_!E74="","",TDPrimas_!E74) -> 0.0200933543 | G76: =IF(TDPrimas_!F74="","",TDPrimas_!F74) -> 0.01825527851 | H76: =IF(TDPrimas_!G74="","",TDPrimas_!G74) -> 8818.55735 | I76: =IF(TDPrimas_!H74="","",TDPrimas_!H74) -> 25.21617556 | J76: =IF(TDPrimas_!I74="","",TDPrimas_!I74) -> 100 | K76: =IF(TDPrimas_!J74="","",TDPrimas_!J74) -> 100 | L76: =IF(TDPrimas_!K74="","",TDPrimas_!K74) -> 0.0200933543
B77: =IF(TDPrimas_!A75="","",TDPrimas_!A75) -> 67 | C77: =IF(TDPrimas_!B75="","",TDPrimas_!B75) -> Odontoprev | D77: =IF(TDPrimas_!C75="","",TDPrimas_!C75) -> 38116.88522 | E77: =IF(TDPrimas_!D75="","",TDPrimas_!D75) -> 11515.85694 | F77: =IF(TDPrimas_!E75="","",TDPrimas_!E75) -> 0.01749005145 | G77: =IF(TDPrimas_!F75="","",TDPrimas_!F75) -> 0.006011272282 | H77: =IF(TDPrimas_!G75="","",TDPrimas_!G75) -> 26601.02828 | I77: =IF(TDPrimas_!H75="","",TDPrimas_!H75) -> 230.9947789 | J77: =IF(TDPrimas_!I75="","",TDPrimas_!I75) -> 100 | K77: =IF(TDPrimas_!J75="","",TDPrimas_!J75) -> 100 | L77: =IF(TDPrimas_!K75="","",TDPrimas_!K75) -> 0.01749005145
B78: =IF(TDPrimas_!A76="","",TDPrimas_!A76) -> 68 | C78: =IF(TDPrimas_!B76="","",TDPrimas_!B76) -> Virginia Surety | D78: =IF(TDPrimas_!C76="","",TDPrimas_!C76) -> 35687.97172 | E78: =IF(TDPrimas_!D76="","",TDPrimas_!D76) -> 21965.67771 | F78: =IF(TDPrimas_!E76="","",TDPrimas_!E76) -> 0.01637553693 | G78: =IF(TDPrimas_!F76="","",TDPrimas_!F76) -> 0.01146607415 | H78: =IF(TDPrimas_!G76="","",TDPrimas_!G76) -> 13722.29401 | I78: =IF(TDPrimas_!H76="","",TDPrimas_!H76) -> 62.47152576 | J78: =IF(TDPrimas_!I76="","",TDPrimas_!I76) -> 100 | K78: =IF(TDPrimas_!J76="","",TDPrimas_!J76) -> 100 | L78: =IF(TDPrimas_!K76="","",TDPrimas_!K76) -> 0.01637553693
B79: =IF(TDPrimas_!A77="","",TDPrimas_!A77) -> 69 | C79: =IF(TDPrimas_!B77="","",TDPrimas_!B77) -> Genworth Seg. de Crédito | D79: =IF(TDPrimas_!C77="","",TDPrimas_!C77) -> 25310.37225 | E79: =IF(TDPrimas_!D77="","",TDPrimas_!D77) -> 17312.38152 | F79: =IF(TDPrimas_!E77="","",TDPrimas_!E77) -> 0.01161374311 | G79: =IF(TDPrimas_!F77="","",TDPrimas_!F77) -> 0.009037055576 | H79: =IF(TDPrimas_!G77="","",TDPrimas_!G77) -> 7997.99073 | I79: =IF(TDPrimas_!H77="","",TDPrimas_!H77) -> 46.19809655 | J79: =IF(TDPrimas_!I77="","",TDPrimas_!I77) -> 100 | K79: =IF(TDPrimas_!J77="","",TDPrimas_!J77) -> 100 | L79: =IF(TDPrimas_!K77="","",TDPrimas_!K77) -> 0.01161374311
B80: =IF(TDPrimas_!A78="","",TDPrimas_!A78) -> 70 | C80: =IF(TDPrimas_!B78="","",TDPrimas_!B78) -> Metlife Más | D80: =IF(TDPrimas_!C78="","",TDPrimas_!C78) -> 24612.72012 | E80: =IF(TDPrimas_!D78="","",TDPrimas_!D78) -> 24682.47074 | F80: =IF(TDPrimas_!E78="","",TDPrimas_!E78) -> 0.01129362325 | G80: =IF(TDPrimas_!F78="","",TDPrimas_!F78) -> 0.01288423892 | H80: =IF(TDPrimas_!G78="","",TDPrimas_!G78) -> -69.75062 | I80: =IF(TDPrimas_!H78="","",TDPrimas_!H78) -> -0.2825917257 | J80: =IF(TDPrimas_!I78="","",TDPrimas_!I78) -> 100 | K80: =IF(TDPrimas_!J78="","",TDPrimas_!J78) -> 100 | L80: =IF(TDPrimas_!K78="","",TDPrimas_!K78) -> 0.01129362325
B81: =IF(TDPrimas_!A79="","",TDPrimas_!A79) -> 71 | C81: =IF(TDPrimas_!B79="","",TDPrimas_!B79) -> Crabi | D81: =IF(TDPrimas_!C79="","",TDPrimas_!C79) -> 19789.33522 | E81: =IF(TDPrimas_!D79="","",TDPrimas_!D79) -> 9202.30351 | F81: =IF(TDPrimas_!E79="","",TDPrimas_!E79) -> 0.009080398076 | G81: =IF(TDPrimas_!F79="","",TDPrimas_!F79) -> 0.004803598404 | H81: =IF(TDPrimas_!G79="","",TDPrimas_!G79) -> 10587.03171 | I81: =IF(TDPrimas_!H79="","",TDPrimas_!H79) -> 115.0476258 | J81: =IF(TDPrimas_!I79="","",TDPrimas_!I79) -> 100 | K81: =IF(TDPrimas_!J79="","",TDPrimas_!J79) -> 100 | L81: =IF(TDPrimas_!K79="","",TDPrimas_!K79) -> 0.009080398076
B82: =IF(TDPrimas_!A80="","",TDPrimas_!A80) -> 72 | C82: =IF(TDPrimas_!B80="","",TDPrimas_!B80) -> SPT | D82: =IF(TDPrimas_!C80="","",TDPrimas_!C80) -> 10270.4912 | E82: =IF(TDPrimas_!D80="","",TDPrimas_!D80) -> 7691.11336 | F82: =IF(TDPrimas_!E80="","",TDPrimas_!E80) -> 0.004712646862 | G82: =IF(TDPrimas_!F80="","",TDPrimas_!F80) -> 0.004014757808 | H82: =IF(TDPrimas_!G80="","",TDPrimas_!G80) -> 2579.37784 | I82: =IF(TDPrimas_!H80="","",TDPrimas_!H80) -> 33.537119 | J82: =IF(TDPrimas_!I80="","",TDPrimas_!I80) -> 100 | K82: =IF(TDPrimas_!J80="","",TDPrimas_!J80) -> 100 | L82: =IF(TDPrimas_!K80="","",TDPrimas_!K80) -> 0.004712646862
B83: =IF(TDPrimas_!A81="","",TDPrimas_!A81) -> 73 | C83: =IF(TDPrimas_!B81="","",TDPrimas_!B81) -> Citibanamex Pensiones | D83: =IF(TDPrimas_!C81="","",TDPrimas_!C81) -> 1390.50815 | E83: =IF(TDPrimas_!D81="","",TDPrimas_!D81) -> 11250.8117 | F83: =IF(TDPrimas_!E81="","",TDPrimas_!E81) -> 0.0006380389937 | G83: =IF(TDPrimas_!F81="","",TDPrimas_!F81) -> 0.005872918783 | H83: =IF(TDPrimas_!G81="","",TDPrimas_!G81) -> -9860.30355 | I83: =IF(TDPrimas_!H81="","",TDPrimas_!H81) -> -87.64081928 | J83: =IF(TDPrimas_!I81="","",TDPrimas_!I81) -> 100 | K83: =IF(TDPrimas_!J81="","",TDPrimas_!J81) -> 100 | L83: =IF(TDPrimas_!K81="","",TDPrimas_!K81) -> 0.0006380389937
B84: =IF(TDPrimas_!A82="","",TDPrimas_!A82) -> 74 | C84: =IF(TDPrimas_!B82="","",TDPrimas_!B82) -> Metlife Pensiones | D84: =IF(TDPrimas_!C82="","",TDPrimas_!C82) -> 1096.47702 | E84: =IF(TDPrimas_!D82="","",TDPrimas_!D82) -> 15732.58835 | F84: =IF(TDPrimas_!E82="","",TDPrimas_!E82) -> 0.0005031218943 | G84: =IF(TDPrimas_!F82="","",TDPrimas_!F82) -> 0.008212404233 | H84: =IF(TDPrimas_!G82="","",TDPrimas_!G82) -> -14636.11133 | I84: =IF(TDPrimas_!H82="","",TDPrimas_!H82) -> -93.03053639 | J84: =IF(TDPrimas_!I82="","",TDPrimas_!I82) -> 100 | K84: =IF(TDPrimas_!J82="","",TDPrimas_!J82) -> 100 | L84: =IF(TDPrimas_!K82="","",TDPrimas_!K82) -> 0.0005031218943
B85: =IF(TDPrimas_!A83="","",TDPrimas_!A83) -> 75 | C85: =IF(TDPrimas_!B83="","",TDPrimas_!B83) -> Pensiones Inbursa | D85: =IF(TDPrimas_!C83="","",TDPrimas_!C83) -> 91.47059 | E85: =IF(TDPrimas_!D83="","",TDPrimas_!D83) -> 0 | F85: =IF(TDPrimas_!E83="","",TDPrimas_!E83) -> 4.1971565e-05 | G85: =IF(TDPrimas_!F83="","",TDPrimas_!F83) ->  | H85: =IF(TDPrimas_!G83="","",TDPrimas_!G83) ->  | I85: =IF(TDPrimas_!H83="","",TDPrimas_!H83) ->  | J85: =IF(TDPrimas_!I83="","",TDPrimas_!I83) -> 100 | K85: =IF(TDPrimas_!J83="","",TDPrimas_!J83) -> 100 | L85: =IF(TDPrimas_!K83="","",TDPrimas_!K83) -> 4.1971565e-05
B86: =IF(TDPrimas_!A84="","",TDPrimas_!A84) -> 76 | C86: =IF(TDPrimas_!B84="","",TDPrimas_!B84) -> Aserta Seguros de Vida | D86: =IF(TDPrimas_!C84="","",TDPrimas_!C84) -> 0 | E86: =IF(TDPrimas_!D84="","",TDPrimas_!D84) -> 105.39553 | F86: =IF(TDPrimas_!E84="","",TDPrimas_!E84) ->  | G86: =IF(TDPrimas_!F84="","",TDPrimas_!F84) -> 5.501642053e-05 | H86: =IF(TDPrimas_!G84="","",TDPrimas_!G84) ->  | I86: =IF(TDPrimas_!H84="","",TDPrimas_!H84) ->  | J86: =IF(TDPrimas_!I84="","",TDPrimas_!I84) ->  | K86: =IF(TDPrimas_!J84="","",TDPrimas_!J84) ->  | L86: =IF(TDPrimas_!K84="","",TDPrimas_!K84) -> 
B87: =IF(TDPrimas_!A85="","",TDPrimas_!A85) -> 76 | C87: =IF(TDPrimas_!B85="","",TDPrimas_!B85) -> Principal México | D87: =IF(TDPrimas_!C85="","",TDPrimas_!C85) -> 0 | E87: =IF(TDPrimas_!D85="","",TDPrimas_!D85) -> 0 | F87: =IF(TDPrimas_!E85="","",TDPrimas_!E85) ->  | G87: =IF(TDPrimas_!F85="","",TDPrimas_!F85) ->  | H87: =IF(TDPrimas_!G85="","",TDPrimas_!G85) ->  | I87: =IF(TDPrimas_!H85="","",TDPrimas_!H85) ->  | J87: =IF(TDPrimas_!I85="","",TDPrimas_!I85) ->  | K87: =IF(TDPrimas_!J85="","",TDPrimas_!J85) ->  | L87: =IF(TDPrimas_!K85="","",TDPrimas_!K85) -> 
B88: =IF(TDPrimas_!A86="","",TDPrimas_!A86) -> 76 | C88: =IF(TDPrimas_!B86="","",TDPrimas_!B86) -> Zurich Daños | D88: =IF(TDPrimas_!C86="","",TDPrimas_!C86) -> 0 | E88: =IF(TDPrimas_!D86="","",TDPrimas_!D86) -> 2212646.459 | F88: =IF(TDPrimas_!E86="","",TDPrimas_!E86) ->  | G88: =IF(TDPrimas_!F86="","",TDPrimas_!F86) -> 1.155000483 | H88: =IF(TDPrimas_!G86="","",TDPrimas_!G86) ->  | I88: =IF(TDPrimas_!H86="","",TDPrimas_!H86) ->  | J88: =IF(TDPrimas_!I86="","",TDPrimas_!I86) ->  | K88: =IF(TDPrimas_!J86="","",TDPrimas_!J86) ->  | L88: =IF(TDPrimas_!K86="","",TDPrimas_!K86) -> 
B89: =IF(TDPrimas_!A87="","",TDPrimas_!A87) -> 76 | C89: =IF(TDPrimas_!B87="","",TDPrimas_!B87) -> Zurich Vida | D89: =IF(TDPrimas_!C87="","",TDPrimas_!C87) -> 0 | E89: =IF(TDPrimas_!D87="","",TDPrimas_!D87) -> 451904.6986 | F89: =IF(TDPrimas_!E87="","",TDPrimas_!E87) ->  | G89: =IF(TDPrimas_!F87="","",TDPrimas_!F87) -> 0.2358940549 | H89: =IF(TDPrimas_!G87="","",TDPrimas_!G87) ->  | I89: =IF(TDPrimas_!H87="","",TDPrimas_!H87) ->  | J89: =IF(TDPrimas_!I87="","",TDPrimas_!I87) ->  | K89: =IF(TDPrimas_!J87="","",TDPrimas_!J87) ->  | L89: =IF(TDPrimas_!K87="","",TDPrimas_!K87) -> 
B90: =IF(TDPrimas_!A88="","",TDPrimas_!A88) -> 81 | C90: =IF(TDPrimas_!B88="","",TDPrimas_!B88) -> Quálitas Salud | D90: =IF(TDPrimas_!C88="","",TDPrimas_!C88) -> -25.39069 | E90: =IF(TDPrimas_!D88="","",TDPrimas_!D88) -> 0 | F90: =IF(TDPrimas_!E88="","",TDPrimas_!E88) -> -1.165059716e-05 | G90: =IF(TDPrimas_!F88="","",TDPrimas_!F88) ->  | H90: =IF(TDPrimas_!G88="","",TDPrimas_!G88) ->  | I90: =IF(TDPrimas_!H88="","",TDPrimas_!H88) ->  | J90: =IF(TDPrimas_!I88="","",TDPrimas_!I88) -> 100 | K90: =IF(TDPrimas_!J88="","",TDPrimas_!J88) -> 100 | L90: =IF(TDPrimas_!K88="","",TDPrimas_!K88) -> -1.165059716e-05
B91: =IF(TDPrimas_!A89="","",TDPrimas_!A89) -> 150.1 | C91: =IF(TDPrimas_!B89="","",TDPrimas_!B89) -> TOTAL RESTO | D91: =IF(TDPrimas_!C89="","",TDPrimas_!C89) -> 47834051.2 | E91: =IF(TDPrimas_!D89="","",TDPrimas_!D89) -> 45472018.99 | F91: =IF(TDPrimas_!E89="","",TDPrimas_!E89) -> 21.94880331 | G91: =IF(TDPrimas_!F89="","",TDPrimas_!F89) -> 23.73637401 | H91: =IF(TDPrimas_!G89="","",TDPrimas_!G89) -> 2362032.203 | I91: =IF(TDPrimas_!H89="","",TDPrimas_!H89) -> 5.194473998 | J91: =IF(TDPrimas_!I89="","",TDPrimas_!I89) -> 100 | K91: =IF(TDPrimas_!J89="","",TDPrimas_!J89) -> 100 | L91: =IF(TDPrimas_!K89="","",TDPrimas_!K89) -> 21.94880331
B92: =IF(TDPrimas_!A90="","",TDPrimas_!A90) -> 200 | C92: =IF(TDPrimas_!B90="","",TDPrimas_!B90) -> Patria | D92: =IF(TDPrimas_!C90="","",TDPrimas_!C90) -> 0 | E92: =IF(TDPrimas_!D90="","",TDPrimas_!D90) -> 0 | F92: =IF(TDPrimas_!E90="","",TDPrimas_!E90) ->  | G92: =IF(TDPrimas_!F90="","",TDPrimas_!F90) ->  | H92: =IF(TDPrimas_!G90="","",TDPrimas_!G90) ->  | I92: =IF(TDPrimas_!H90="","",TDPrimas_!H90) ->  | J92: =IF(TDPrimas_!I90="","",TDPrimas_!I90) ->  | K92: =IF(TDPrimas_!J90="","",TDPrimas_!J90) ->  | L92: =IF(TDPrimas_!K90="","",TDPrimas_!K90) -> 
B93: =IF(TDPrimas_!A91="","",TDPrimas_!A91) -> 201.1 | C93: =IF(TDPrimas_!B91="","",TDPrimas_!B91) -> TOTAL | D93: =IF(TDPrimas_!C91="","",TDPrimas_!C91) -> 217934666 | E93: =IF(TDPrimas_!D91="","",TDPrimas_!D91) -> 191571041.9 | F93: =IF(TDPrimas_!E91="","",TDPrimas_!E91) -> 100 | G93: =IF(TDPrimas_!F91="","",TDPrimas_!F91) -> 100 | H93: =IF(TDPrimas_!G91="","",TDPrimas_!G91) -> 26363624.16 | I93: =IF(TDPrimas_!H91="","",TDPrimas_!H91) -> 13.76180027 | J93: =IF(TDPrimas_!I91="","",TDPrimas_!I91) -> 100 | K93: =IF(TDPrimas_!J91="","",TDPrimas_!J91) -> 100 | L93: =IF(TDPrimas_!K91="","",TDPrimas_!K91) -> 100
B94: =IF(TDPrimas_!A92="","",TDPrimas_!A92) ->  | C94: =IF(TDPrimas_!B92="","",TDPrimas_!B92) ->  | D94: =IF(TDPrimas_!C92="","",TDPrimas_!C92) ->  | E94: =IF(TDPrimas_!D92="","",TDPrimas_!D92) ->  | F94: =IF(TDPrimas_!E92="","",TDPrimas_!E92) ->  | G94: =IF(TDPrimas_!F92="","",TDPrimas_!F92) ->  | H94: =IF(TDPrimas_!G92="","",TDPrimas_!G92) ->  | I94: =IF(TDPrimas_!H92="","",TDPrimas_!H92) ->  | J94: =IF(TDPrimas_!I92="","",TDPrimas_!I92) ->  | K94: =IF(TDPrimas_!J92="","",TDPrimas_!J92) ->  | L94: =IF(TDPrimas_!K92="","",TDPrimas_!K92) -> 
B95: =IF(TDPrimas_!A93="","",TDPrimas_!A93) ->  | C95: =IF(TDPrimas_!B93="","",TDPrimas_!B93) ->  | D95: =IF(TDPrimas_!C93="","",TDPrimas_!C93) ->  | E95: =IF(TDPrimas_!D93="","",TDPrimas_!D93) ->  | F95: =IF(TDPrimas_!E93="","",TDPrimas_!E93) ->  | G95: =IF(TDPrimas_!F93="","",TDPrimas_!F93) ->  | H95: =IF(TDPrimas_!G93="","",TDPrimas_!G93) ->  | I95: =IF(TDPrimas_!H93="","",TDPrimas_!H93) ->  | J95: =IF(TDPrimas_!I93="","",TDPrimas_!I93) ->  | K95: =IF(TDPrimas_!J93="","",TDPrimas_!J93) ->  | L95: =IF(TDPrimas_!K93="","",TDPrimas_!K93) -> 
B96: =IF(TDPrimas_!A94="","",TDPrimas_!A94) ->  | C96: =IF(TDPrimas_!B94="","",TDPrimas_!B94) ->  | D96: =IF(TDPrimas_!C94="","",TDPrimas_!C94) ->  | E96: =IF(TDPrimas_!D94="","",TDPrimas_!D94) ->  | F96: =IF(TDPrimas_!E94="","",TDPrimas_!E94) ->  | G96: =IF(TDPrimas_!F94="","",TDPrimas_!F94) ->  | H96: =IF(TDPrimas_!G94="","",TDPrimas_!G94) ->  | I96: =IF(TDPrimas_!H94="","",TDPrimas_!H94) ->  | J96: =IF(TDPrimas_!I94="","",TDPrimas_!I94) ->  | K96: =IF(TDPrimas_!J94="","",TDPrimas_!J94) ->  | L96: =IF(TDPrimas_!K94="","",TDPrimas_!K94) -> 
B97: =IF(TDPrimas_!A95="","",TDPrimas_!A95) ->  | C97: =IF(TDPrimas_!B95="","",TDPrimas_!B95) ->  | D97: =IF(TDPrimas_!C95="","",TDPrimas_!C95) ->  | E97: =IF(TDPrimas_!D95="","",TDPrimas_!D95) ->  | F97: =IF(TDPrimas_!E95="","",TDPrimas_!E95) ->  | G97: =IF(TDPrimas_!F95="","",TDPrimas_!F95) ->  | H97: =IF(TDPrimas_!G95="","",TDPrimas_!G95) ->  | I97: =IF(TDPrimas_!H95="","",TDPrimas_!H95) ->  | J97: =IF(TDPrimas_!I95="","",TDPrimas_!I95) ->  | K97: =IF(TDPrimas_!J95="","",TDPrimas_!J95) ->  | L97: =IF(TDPrimas_!K95="","",TDPrimas_!K95) -> 
B98: =IF(TDPrimas_!A96="","",TDPrimas_!A96) ->  | C98: =IF(TDPrimas_!B96="","",TDPrimas_!B96) ->  | D98: =IF(TDPrimas_!C96="","",TDPrimas_!C96) ->  | E98: =IF(TDPrimas_!D96="","",TDPrimas_!D96) ->  | F98: =IF(TDPrimas_!E96="","",TDPrimas_!E96) ->  | G98: =IF(TDPrimas_!F96="","",TDPrimas_!F96) ->  | H98: =IF(TDPrimas_!G96="","",TDPrimas_!G96) ->  | I98: =IF(TDPrimas_!H96="","",TDPrimas_!H96) ->  | J98: =IF(TDPrimas_!I96="","",TDPrimas_!I96) ->  | K98: =IF(TDPrimas_!J96="","",TDPrimas_!J96) ->  | L98: =IF(TDPrimas_!K96="","",TDPrimas_!K96) -> 
B99: =IF(TDPrimas_!A97="","",TDPrimas_!A97) ->  | C99: =IF(TDPrimas_!B97="","",TDPrimas_!B97) ->  | D99: =IF(TDPrimas_!C97="","",TDPrimas_!C97) ->  | E99: =IF(TDPrimas_!D97="","",TDPrimas_!D97) ->  | F99: =IF(TDPrimas_!E97="","",TDPrimas_!E97) ->  | G99: =IF(TDPrimas_!F97="","",TDPrimas_!F97) ->  | H99: =IF(TDPrimas_!G97="","",TDPrimas_!G97) ->  | I99: =IF(TDPrimas_!H97="","",TDPrimas_!H97) ->  | J99: =IF(TDPrimas_!I97="","",TDPrimas_!I97) ->  | K99: =IF(TDPrimas_!J97="","",TDPrimas_!J97) ->  | L99: =IF(TDPrimas_!K97="","",TDPrimas_!K97) -> 
B100: =IF(TDPrimas_!A98="","",TDPrimas_!A98) ->  | C100: =IF(TDPrimas_!B98="","",TDPrimas_!B98) ->  | D100: =IF(TDPrimas_!C98="","",TDPrimas_!C98) ->  | E100: =IF(TDPrimas_!D98="","",TDPrimas_!D98) ->  | F100: =IF(TDPrimas_!E98="","",TDPrimas_!E98) ->  | G100: =IF(TDPrimas_!F98="","",TDPrimas_!F98) ->  | H100: =IF(TDPrimas_!G98="","",TDPrimas_!G98) ->  | I100: =IF(TDPrimas_!H98="","",TDPrimas_!H98) ->  | J100: =IF(TDPrimas_!I98="","",TDPrimas_!I98) ->  | K100: =IF(TDPrimas_!J98="","",TDPrimas_!J98) ->  | L100: =IF(TDPrimas_!K98="","",TDPrimas_!K98) -> 
B101: =IF(TDPrimas_!A99="","",TDPrimas_!A99) ->  | C101: =IF(TDPrimas_!B99="","",TDPrimas_!B99) ->  | D101: =IF(TDPrimas_!C99="","",TDPrimas_!C99) ->  | E101: =IF(TDPrimas_!D99="","",TDPrimas_!D99) ->  | F101: =IF(TDPrimas_!E99="","",TDPrimas_!E99) ->  | G101: =IF(TDPrimas_!F99="","",TDPrimas_!F99) ->  | H101: =IF(TDPrimas_!G99="","",TDPrimas_!G99) ->  | I101: =IF(TDPrimas_!H99="","",TDPrimas_!H99) ->  | J101: =IF(TDPrimas_!I99="","",TDPrimas_!I99) ->  | K101: =IF(TDPrimas_!J99="","",TDPrimas_!J99) ->  | L101: =IF(TDPrimas_!K99="","",TDPrimas_!K99) -> 
B102: =IF(TDPrimas_!A100="","",TDPrimas_!A100) ->  | C102: =IF(TDPrimas_!B100="","",TDPrimas_!B100) ->  | D102: =IF(TDPrimas_!C100="","",TDPrimas_!C100) ->  | E102: =IF(TDPrimas_!D100="","",TDPrimas_!D100) ->  | F102: =IF(TDPrimas_!E100="","",TDPrimas_!E100) ->  | G102: =IF(TDPrimas_!F100="","",TDPrimas_!F100) ->  | H102: =IF(TDPrimas_!G100="","",TDPrimas_!G100) ->  | I102: =IF(TDPrimas_!H100="","",TDPrimas_!H100) ->  | J102: =IF(TDPrimas_!I100="","",TDPrimas_!I100) ->  | K102: =IF(TDPrimas_!J100="","",TDPrimas_!J100) ->  | L102: =IF(TDPrimas_!K100="","",TDPrimas_!K100) -> 
B103: =IF(TDPrimas_!A101="","",TDPrimas_!A101) ->  | C103: =IF(TDPrimas_!B101="","",TDPrimas_!B101) ->  | D103: =IF(TDPrimas_!C101="","",TDPrimas_!C101) ->  | E103: =IF(TDPrimas_!D101="","",TDPrimas_!D101) ->  | F103: =IF(TDPrimas_!E101="","",TDPrimas_!E101) ->  | G103: =IF(TDPrimas_!F101="","",TDPrimas_!F101) ->  | H103: =IF(TDPrimas_!G101="","",TDPrimas_!G101) ->  | I103: =IF(TDPrimas_!H101="","",TDPrimas_!H101) ->  | J103: =IF(TDPrimas_!I101="","",TDPrimas_!I101) ->  | K103: =IF(TDPrimas_!J101="","",TDPrimas_!J101) ->  | L103: =IF(TDPrimas_!K101="","",TDPrimas_!K101) -> 
B104: =IF(TDPrimas_!A102="","",TDPrimas_!A102) ->  | C104: =IF(TDPrimas_!B102="","",TDPrimas_!B102) ->  | D104: =IF(TDPrimas_!C102="","",TDPrimas_!C102) ->  | E104: =IF(TDPrimas_!D102="","",TDPrimas_!D102) ->  | F104: =IF(TDPrimas_!E102="","",TDPrimas_!E102) ->  | G104: =IF(TDPrimas_!F102="","",TDPrimas_!F102) ->  | H104: =IF(TDPrimas_!G102="","",TDPrimas_!G102) ->  | I104: =IF(TDPrimas_!H102="","",TDPrimas_!H102) ->  | J104: =IF(TDPrimas_!I102="","",TDPrimas_!I102) ->  | K104: =IF(TDPrimas_!J102="","",TDPrimas_!J102) ->  | L104: =IF(TDPrimas_!K102="","",TDPrimas_!K102) -> 
B105: =IF(TDPrimas_!A103="","",TDPrimas_!A103) ->  | C105: =IF(TDPrimas_!B103="","",TDPrimas_!B103) ->  | D105: =IF(TDPrimas_!C103="","",TDPrimas_!C103) ->  | E105: =IF(TDPrimas_!D103="","",TDPrimas_!D103) ->  | F105: =IF(TDPrimas_!E103="","",TDPrimas_!E103) ->  | G105: =IF(TDPrimas_!F103="","",TDPrimas_!F103) ->  | H105: =IF(TDPrimas_!G103="","",TDPrimas_!G103) ->  | I105: =IF(TDPrimas_!H103="","",TDPrimas_!H103) ->  | J105: =IF(TDPrimas_!I103="","",TDPrimas_!I103) ->  | K105: =IF(TDPrimas_!J103="","",TDPrimas_!J103) ->  | L105: =IF(TDPrimas_!K103="","",TDPrimas_!K103) -> 
B106: =IF(TDPrimas_!A104="","",TDPrimas_!A104) ->  | C106: =IF(TDPrimas_!B104="","",TDPrimas_!B104) ->  | D106: =IF(TDPrimas_!C104="","",TDPrimas_!C104) ->  | E106: =IF(TDPrimas_!D104="","",TDPrimas_!D104) ->  | F106: =IF(TDPrimas_!E104="","",TDPrimas_!E104) ->  | G106: =IF(TDPrimas_!F104="","",TDPrimas_!F104) ->  | H106: =IF(TDPrimas_!G104="","",TDPrimas_!G104) ->  | I106: =IF(TDPrimas_!H104="","",TDPrimas_!H104) ->  | J106: =IF(TDPrimas_!I104="","",TDPrimas_!I104) ->  | K106: =IF(TDPrimas_!J104="","",TDPrimas_!J104) ->  | L106: =IF(TDPrimas_!K104="","",TDPrimas_!K104) -> 
B107: =IF(TDPrimas_!A105="","",TDPrimas_!A105) ->  | C107: =IF(TDPrimas_!B105="","",TDPrimas_!B105) ->  | D107: =IF(TDPrimas_!C105="","",TDPrimas_!C105) ->  | E107: =IF(TDPrimas_!D105="","",TDPrimas_!D105) ->  | F107: =IF(TDPrimas_!E105="","",TDPrimas_!E105) ->  | G107: =IF(TDPrimas_!F105="","",TDPrimas_!F105) ->  | H107: =IF(TDPrimas_!G105="","",TDPrimas_!G105) ->  | I107: =IF(TDPrimas_!H105="","",TDPrimas_!H105) ->  | J107: =IF(TDPrimas_!I105="","",TDPrimas_!I105) ->  | K107: =IF(TDPrimas_!J105="","",TDPrimas_!J105) ->  | L107: =IF(TDPrimas_!K105="","",TDPrimas_!K105) -> 
B108: =IF(TDPrimas_!A106="","",TDPrimas_!A106) ->  | C108: =IF(TDPrimas_!B106="","",TDPrimas_!B106) ->  | D108: =IF(TDPrimas_!C106="","",TDPrimas_!C106) ->  | E108: =IF(TDPrimas_!D106="","",TDPrimas_!D106) ->  | F108: =IF(TDPrimas_!E106="","",TDPrimas_!E106) ->  | G108: =IF(TDPrimas_!F106="","",TDPrimas_!F106) ->  | H108: =IF(TDPrimas_!G106="","",TDPrimas_!G106) ->  | I108: =IF(TDPrimas_!H106="","",TDPrimas_!H106) ->  | J108: =IF(TDPrimas_!I106="","",TDPrimas_!I106) ->  | K108: =IF(TDPrimas_!J106="","",TDPrimas_!J106) ->  | L108: =IF(TDPrimas_!K106="","",TDPrimas_!K106) -> 
B109: =IF(TDPrimas_!A107="","",TDPrimas_!A107) ->  | C109: =IF(TDPrimas_!B107="","",TDPrimas_!B107) ->  | D109: =IF(TDPrimas_!C107="","",TDPrimas_!C107) ->  | E109: =IF(TDPrimas_!D107="","",TDPrimas_!D107) ->  | F109: =IF(TDPrimas_!E107="","",TDPrimas_!E107) ->  | G109: =IF(TDPrimas_!F107="","",TDPrimas_!F107) ->  | H109: =IF(TDPrimas_!G107="","",TDPrimas_!G107) ->  | I109: =IF(TDPrimas_!H107="","",TDPrimas_!H107) ->  | J109: =IF(TDPrimas_!I107="","",TDPrimas_!I107) ->  | K109: =IF(TDPrimas_!J107="","",TDPrimas_!J107) ->  | L109: =IF(TDPrimas_!K107="","",TDPrimas_!K107) -> 
B110: =IF(TDPrimas_!A108="","",TDPrimas_!A108) ->  | C110: =IF(TDPrimas_!B108="","",TDPrimas_!B108) ->  | D110: =IF(TDPrimas_!C108="","",TDPrimas_!C108) ->  | E110: =IF(TDPrimas_!D108="","",TDPrimas_!D108) ->  | F110: =IF(TDPrimas_!E108="","",TDPrimas_!E108) ->  | G110: =IF(TDPrimas_!F108="","",TDPrimas_!F108) ->  | H110: =IF(TDPrimas_!G108="","",TDPrimas_!G108) ->  | I110: =IF(TDPrimas_!H108="","",TDPrimas_!H108) ->  | J110: =IF(TDPrimas_!I108="","",TDPrimas_!I108) ->  | K110: =IF(TDPrimas_!J108="","",TDPrimas_!J108) ->  | L110: =IF(TDPrimas_!K108="","",TDPrimas_!K108) -> 
B111: =IF(TDPrimas_!A109="","",TDPrimas_!A109) ->  | C111: =IF(TDPrimas_!B109="","",TDPrimas_!B109) ->  | D111: =IF(TDPrimas_!C109="","",TDPrimas_!C109) ->  | E111: =IF(TDPrimas_!D109="","",TDPrimas_!D109) ->  | F111: =IF(TDPrimas_!E109="","",TDPrimas_!E109) ->  | G111: =IF(TDPrimas_!F109="","",TDPrimas_!F109) ->  | H111: =IF(TDPrimas_!G109="","",TDPrimas_!G109) ->  | I111: =IF(TDPrimas_!H109="","",TDPrimas_!H109) ->  | J111: =IF(TDPrimas_!I109="","",TDPrimas_!I109) ->  | K111: =IF(TDPrimas_!J109="","",TDPrimas_!J109) ->  | L111: =IF(TDPrimas_!K109="","",TDPrimas_!K109) -> 
B112: =IF(TDPrimas_!A110="","",TDPrimas_!A110) ->  | C112: =IF(TDPrimas_!B110="","",TDPrimas_!B110) ->  | D112: =IF(TDPrimas_!C110="","",TDPrimas_!C110) ->  | E112: =IF(TDPrimas_!D110="","",TDPrimas_!D110) ->  | F112: =IF(TDPrimas_!E110="","",TDPrimas_!E110) ->  | G112: =IF(TDPrimas_!F110="","",TDPrimas_!F110) ->  | H112: =IF(TDPrimas_!G110="","",TDPrimas_!G110) ->  | I112: =IF(TDPrimas_!H110="","",TDPrimas_!H110) ->  | J112: =IF(TDPrimas_!I110="","",TDPrimas_!I110) ->  | K112: =IF(TDPrimas_!J110="","",TDPrimas_!J110) ->  | L112: =IF(TDPrimas_!K110="","",TDPrimas_!K110) -> 
B113: =IF(TDPrimas_!A111="","",TDPrimas_!A111) ->  | C113: =IF(TDPrimas_!B111="","",TDPrimas_!B111) ->  | D113: =IF(TDPrimas_!C111="","",TDPrimas_!C111) ->  | E113: =IF(TDPrimas_!D111="","",TDPrimas_!D111) ->  | F113: =IF(TDPrimas_!E111="","",TDPrimas_!E111) ->  | G113: =IF(TDPrimas_!F111="","",TDPrimas_!F111) ->  | H113: =IF(TDPrimas_!G111="","",TDPrimas_!G111) ->  | I113: =IF(TDPrimas_!H111="","",TDPrimas_!H111) ->  | J113: =IF(TDPrimas_!I111="","",TDPrimas_!I111) ->  | K113: =IF(TDPrimas_!J111="","",TDPrimas_!J111) ->  | L113: =IF(TDPrimas_!K111="","",TDPrimas_!K111) -> 
B114: =IF(TDPrimas_!A112="","",TDPrimas_!A112) ->  | C114: =IF(TDPrimas_!B112="","",TDPrimas_!B112) ->  | D114: =IF(TDPrimas_!C112="","",TDPrimas_!C112) ->  | E114: =IF(TDPrimas_!D112="","",TDPrimas_!D112) ->  | F114: =IF(TDPrimas_!E112="","",TDPrimas_!E112) ->  | G114: =IF(TDPrimas_!F112="","",TDPrimas_!F112) ->  | H114: =IF(TDPrimas_!G112="","",TDPrimas_!G112) ->  | I114: =IF(TDPrimas_!H112="","",TDPrimas_!H112) ->  | J114: =IF(TDPrimas_!I112="","",TDPrimas_!I112) ->  | K114: =IF(TDPrimas_!J112="","",TDPrimas_!J112) ->  | L114: =IF(TDPrimas_!K112="","",TDPrimas_!K112) -> 
B115: =IF(TDPrimas_!A113="","",TDPrimas_!A113) ->  | C115: =IF(TDPrimas_!B113="","",TDPrimas_!B113) ->  | D115: =IF(TDPrimas_!C113="","",TDPrimas_!C113) ->  | E115: =IF(TDPrimas_!D113="","",TDPrimas_!D113) ->  | F115: =IF(TDPrimas_!E113="","",TDPrimas_!E113) ->  | G115: =IF(TDPrimas_!F113="","",TDPrimas_!F113) ->  | H115: =IF(TDPrimas_!G113="","",TDPrimas_!G113) ->  | I115: =IF(TDPrimas_!H113="","",TDPrimas_!H113) ->  | J115: =IF(TDPrimas_!I113="","",TDPrimas_!I113) ->  | K115: =IF(TDPrimas_!J113="","",TDPrimas_!J113) ->  | L115: =IF(TDPrimas_!K113="","",TDPrimas_!K113) -> 
B116: =IF(TDPrimas_!A114="","",TDPrimas_!A114) ->  | C116: =IF(TDPrimas_!B114="","",TDPrimas_!B114) ->  | D116: =IF(TDPrimas_!C114="","",TDPrimas_!C114) ->  | E116: =IF(TDPrimas_!D114="","",TDPrimas_!D114) ->  | F116: =IF(TDPrimas_!E114="","",TDPrimas_!E114) ->  | G116: =IF(TDPrimas_!F114="","",TDPrimas_!F114) ->  | H116: =IF(TDPrimas_!G114="","",TDPrimas_!G114) ->  | I116: =IF(TDPrimas_!H114="","",TDPrimas_!H114) ->  | J116: =IF(TDPrimas_!I114="","",TDPrimas_!I114) ->  | K116: =IF(TDPrimas_!J114="","",TDPrimas_!J114) ->  | L116: =IF(TDPrimas_!K114="","",TDPrimas_!K114) -> 
B117: =IF(TDPrimas_!A115="","",TDPrimas_!A115) ->  | C117: =IF(TDPrimas_!B115="","",TDPrimas_!B115) ->  | D117: =IF(TDPrimas_!C115="","",TDPrimas_!C115) ->  | E117: =IF(TDPrimas_!D115="","",TDPrimas_!D115) ->  | F117: =IF(TDPrimas_!E115="","",TDPrimas_!E115) ->  | G117: =IF(TDPrimas_!F115="","",TDPrimas_!F115) ->  | H117: =IF(TDPrimas_!G115="","",TDPrimas_!G115) ->  | I117: =IF(TDPrimas_!H115="","",TDPrimas_!H115) ->  | J117: =IF(TDPrimas_!I115="","",TDPrimas_!I115) ->  | K117: =IF(TDPrimas_!J115="","",TDPrimas_!J115) ->  | L117: =IF(TDPrimas_!K115="","",TDPrimas_!K115) -> 
B118: =IF(TDPrimas_!A116="","",TDPrimas_!A116) ->  | C118: =IF(TDPrimas_!B116="","",TDPrimas_!B116) ->  | D118: =IF(TDPrimas_!C116="","",TDPrimas_!C116) ->  | E118: =IF(TDPrimas_!D116="","",TDPrimas_!D116) ->  | F118: =IF(TDPrimas_!E116="","",TDPrimas_!E116) ->  | G118: =IF(TDPrimas_!F116="","",TDPrimas_!F116) ->  | H118: =IF(TDPrimas_!G116="","",TDPrimas_!G116) ->  | I118: =IF(TDPrimas_!H116="","",TDPrimas_!H116) ->  | J118: =IF(TDPrimas_!I116="","",TDPrimas_!I116) ->  | K118: =IF(TDPrimas_!J116="","",TDPrimas_!J116) ->  | L118: =IF(TDPrimas_!K116="","",TDPrimas_!K116) -> 
B119: =IF(TDPrimas_!A117="","",TDPrimas_!A117) ->  | C119: =IF(TDPrimas_!B117="","",TDPrimas_!B117) ->  | D119: =IF(TDPrimas_!C117="","",TDPrimas_!C117) ->  | E119: =IF(TDPrimas_!D117="","",TDPrimas_!D117) ->  | F119: =IF(TDPrimas_!E117="","",TDPrimas_!E117) ->  | G119: =IF(TDPrimas_!F117="","",TDPrimas_!F117) ->  | H119: =IF(TDPrimas_!G117="","",TDPrimas_!G117) ->  | I119: =IF(TDPrimas_!H117="","",TDPrimas_!H117) ->  | J119: =IF(TDPrimas_!I117="","",TDPrimas_!I117) ->  | K119: =IF(TDPrimas_!J117="","",TDPrimas_!J117) ->  | L119: =IF(TDPrimas_!K117="","",TDPrimas_!K117) -> 
B120: =IF(TDPrimas_!A118="","",TDPrimas_!A118) ->  | C120: =IF(TDPrimas_!B118="","",TDPrimas_!B118) ->  | D120: =IF(TDPrimas_!C118="","",TDPrimas_!C118) ->  | E120: =IF(TDPrimas_!D118="","",TDPrimas_!D118) ->  | F120: =IF(TDPrimas_!E118="","",TDPrimas_!E118) ->  | G120: =IF(TDPrimas_!F118="","",TDPrimas_!F118) ->  | H120: =IF(TDPrimas_!G118="","",TDPrimas_!G118) ->  | I120: =IF(TDPrimas_!H118="","",TDPrimas_!H118) ->  | J120: =IF(TDPrimas_!I118="","",TDPrimas_!I118) ->  | K120: =IF(TDPrimas_!J118="","",TDPrimas_!J118) ->  | L120: =IF(TDPrimas_!K118="","",TDPrimas_!K118) -> 
B121: =IF(TDPrimas_!A119="","",TDPrimas_!A119) ->  | C121: =IF(TDPrimas_!B119="","",TDPrimas_!B119) ->  | D121: =IF(TDPrimas_!C119="","",TDPrimas_!C119) ->  | E121: =IF(TDPrimas_!D119="","",TDPrimas_!D119) ->  | F121: =IF(TDPrimas_!E119="","",TDPrimas_!E119) ->  | G121: =IF(TDPrimas_!F119="","",TDPrimas_!F119) ->  | H121: =IF(TDPrimas_!G119="","",TDPrimas_!G119) ->  | I121: =IF(TDPrimas_!H119="","",TDPrimas_!H119) ->  | J121: =IF(TDPrimas_!I119="","",TDPrimas_!I119) ->  | K121: =IF(TDPrimas_!J119="","",TDPrimas_!J119) ->  | L121: =IF(TDPrimas_!K119="","",TDPrimas_!K119) -> 
B122: =IF(TDPrimas_!A120="","",TDPrimas_!A120) ->  | C122: =IF(TDPrimas_!B120="","",TDPrimas_!B120) ->  | D122: =IF(TDPrimas_!C120="","",TDPrimas_!C120) ->  | E122: =IF(TDPrimas_!D120="","",TDPrimas_!D120) ->  | F122: =IF(TDPrimas_!E120="","",TDPrimas_!E120) ->  | G122: =IF(TDPrimas_!F120="","",TDPrimas_!F120) ->  | H122: =IF(TDPrimas_!G120="","",TDPrimas_!G120) ->  | I122: =IF(TDPrimas_!H120="","",TDPrimas_!H120) ->  | J122: =IF(TDPrimas_!I120="","",TDPrimas_!I120) ->  | K122: =IF(TDPrimas_!J120="","",TDPrimas_!J120) ->  | L122: =IF(TDPrimas_!K120="","",TDPrimas_!K120) -> 
B123: =IF(TDPrimas_!A121="","",TDPrimas_!A121) ->  | C123: =IF(TDPrimas_!B121="","",TDPrimas_!B121) ->  | D123: =IF(TDPrimas_!C121="","",TDPrimas_!C121) ->  | E123: =IF(TDPrimas_!D121="","",TDPrimas_!D121) ->  | F123: =IF(TDPrimas_!E121="","",TDPrimas_!E121) ->  | G123: =IF(TDPrimas_!F121="","",TDPrimas_!F121) ->  | H123: =IF(TDPrimas_!G121="","",TDPrimas_!G121) ->  | I123: =IF(TDPrimas_!H121="","",TDPrimas_!H121) ->  | J123: =IF(TDPrimas_!I121="","",TDPrimas_!I121) ->  | K123: =IF(TDPrimas_!J121="","",TDPrimas_!J121) ->  | L123: =IF(TDPrimas_!K121="","",TDPrimas_!K121) -> 
B124: =IF(TDPrimas_!A122="","",TDPrimas_!A122) ->  | C124: =IF(TDPrimas_!B122="","",TDPrimas_!B122) ->  | D124: =IF(TDPrimas_!C122="","",TDPrimas_!C122) ->  | E124: =IF(TDPrimas_!D122="","",TDPrimas_!D122) ->  | F124: =IF(TDPrimas_!E122="","",TDPrimas_!E122) ->  | G124: =IF(TDPrimas_!F122="","",TDPrimas_!F122) ->  | H124: =IF(TDPrimas_!G122="","",TDPrimas_!G122) ->  | I124: =IF(TDPrimas_!H122="","",TDPrimas_!H122) ->  | J124: =IF(TDPrimas_!I122="","",TDPrimas_!I122) ->  | K124: =IF(TDPrimas_!J122="","",TDPrimas_!J122) ->  | L124: =IF(TDPrimas_!K122="","",TDPrimas_!K122) -> 
B125: =IF(TDPrimas_!A123="","",TDPrimas_!A123) ->  | C125: =IF(TDPrimas_!B123="","",TDPrimas_!B123) ->  | D125: =IF(TDPrimas_!C123="","",TDPrimas_!C123) ->  | E125: =IF(TDPrimas_!D123="","",TDPrimas_!D123) ->  | F125: =IF(TDPrimas_!E123="","",TDPrimas_!E123) ->  | G125: =IF(TDPrimas_!F123="","",TDPrimas_!F123) ->  | H125: =IF(TDPrimas_!G123="","",TDPrimas_!G123) ->  | I125: =IF(TDPrimas_!H123="","",TDPrimas_!H123) ->  | J125: =IF(TDPrimas_!I123="","",TDPrimas_!I123) ->  | K125: =IF(TDPrimas_!J123="","",TDPrimas_!J123) ->  | L125: =IF(TDPrimas_!K123="","",TDPrimas_!K123) -> 
B128: NE = No Existe
B129: * % Extraordinario mayor de 1000%

Sheet Siniestros
B1: SINIESTROS DIRECTOS | I1: ='Primas Directas'!L1 -> Primer Trimestre 2023
B2: =UPPER(RIGHT(TDPrimas!$B$4,LEN(TDPrimas!$B$4)-3)) -> TOTAL GENERAL
D4: Siniestros Directos
B5: Compañías | D5: Importe | E5: Incr. % | F5: Inc. Rva. Dividendos | G5: % vs. Prima Directa | I5: % Participac de Mercado
D6: ='Primas Directas'!D6 -> 2023 | G6: ='Primas Directas'!D6 -> 2023 | H6: ='Primas Directas'!E6 -> 2022
C7: TOTAL | D7: =VLOOKUP(C7,'TD Siniestros'!$B$7:$M$154,2,0) -> 103686529 | E7: =VLOOKUP(C7,'TD Siniestros'!$B$7:$M$154,3,0) -> 7.660339087 | F7: =VLOOKUP(C7,'TD Siniestros'!$B$7:$M$154,4,0) -> 827800.1938 | G7: =VLOOKUP(C7,'TD Siniestros'!$B$7:$M$154,5,0) -> 47.2193205 | H7: =VLOOKUP(C7,'TD Siniestros'!$B$7:$M$154,6,0) -> 50.27322339 | I7: =IFERROR(D7/VLOOKUP("TOTAL",$C$8:$D$124,2,0)*100,"") -> 100
B8: =IF('TD Siniestros'!A7="","",'TD Siniestros'!A7) -> 1 | C8: =IF('TD Siniestros'!B7="","",'TD Siniestros'!B7) -> G.N.P. | D8: =IF('TD Siniestros'!C7="","",'TD Siniestros'!C7) -> 13950620.6 | E8: =IF('TD Siniestros'!D7="","",'TD Siniestros'!D7) -> 11.0381518 | F8: =IF('TD Siniestros'!E7="","",'TD Siniestros'!E7) -> 89852.57949 | G8: =IF('TD Siniestros'!F7="","",'TD Siniestros'!F7) -> 52.29529017 | H8: =IF('TD Siniestros'!G7="","",'TD Siniestros'!G7) -> 57.18488392 | I8: =IFERROR(D8/VLOOKUP("TOTAL",$C$8:$D$124,2,0)*100,"") -> 13.45461241
B9: =IF('TD Siniestros'!A8="","",'TD Siniestros'!A8) -> 2 | C9: =IF('TD Siniestros'!B8="","",'TD Siniestros'!B8) -> Metlife México | D9: =IF('TD Siniestros'!C8="","",'TD Siniestros'!C8) -> 13278274.68 | E9: =IF('TD Siniestros'!D8="","",'TD Siniestros'!D8) -> 10.9781796 | F9: =IF('TD Siniestros'!E8="","",'TD Siniestros'!E8) -> 54701.19171 | G9: =IF('TD Siniestros'!F8="","",'TD Siniestros'!F8) -> 50.88040221 | H9: =IF('TD Siniestros'!G8="","",'TD Siniestros'!G8) -> 49.73339467 | I9: =IFERROR(D9/VLOOKUP("TOTAL",$C$8:$D$124,2,0)*100,"") -> 12.80617145
B10: =IF('TD Siniestros'!A9="","",'TD Siniestros'!A9) -> 3 | C10: =IF('TD Siniestros'!B9="","",'TD Siniestros'!B9) -> BBVA Bancomer | D10: =IF('TD Siniestros'!C9="","",'TD Siniestros'!C9) -> 7306290.359 | E10: =IF('TD Siniestros'!D9="","",'TD Siniestros'!D9) -> 12.41773112 | F10: =IF('TD Siniestros'!E9="","",'TD Siniestros'!E9) -> 0 | G10: =IF('TD Siniestros'!F9="","",'TD Siniestros'!F9) -> 41.50392814 | H10: =IF('TD Siniestros'!G9="","",'TD Siniestros'!G9) -> 44.23766396 | I10: 7.046518411
B11: =IF('TD Siniestros'!A10="","",'TD Siniestros'!A10) -> 4 | C11: =IF('TD Siniestros'!B10="","",'TD Siniestros'!B10) -> AXA Seguros | D11: =IF('TD Siniestros'!C10="","",'TD Siniestros'!C10) -> 8529360.434 | E11: =IF('TD Siniestros'!D10="","",'TD Siniestros'!D10) -> 13.47377231 | F11: =IF('TD Siniestros'!E10="","",'TD Siniestros'!E10) -> 104410.5328 | G11: =IF('TD Siniestros'!F10="","",'TD Siniestros'!F10) -> 55.38908076 | H11: =IF('TD Siniestros'!G10="","",'TD Siniestros'!G10) -> 53.82252404 | I11: 8.226102766
B12: =IF('TD Siniestros'!A11="","",'TD Siniestros'!A11) -> 5 | C12: =IF('TD Siniestros'!B11="","",'TD Siniestros'!B11) -> Banorte | D12: =IF('TD Siniestros'!C11="","",'TD Siniestros'!C11) -> 3875368.97 | E12: =IF('TD Siniestros'!D11="","",'TD Siniestros'!D11) -> -13.74637487 | F12: =IF('TD Siniestros'!E11="","",'TD Siniestros'!E11) -> 102972.262 | G12: =IF('TD Siniestros'!F11="","",'TD Siniestros'!F11) -> 33.293167 | H12: =IF('TD Siniestros'!G11="","",'TD Siniestros'!G11) -> 33.20156148 | I12: 3.737581927
B13: =IF('TD Siniestros'!A12="","",'TD Siniestros'!A12) -> 5.1 | C13: =IF('TD Siniestros'!B12="","",'TD Siniestros'!B12) -> TOTAL GRANDES | D13: =IF('TD Siniestros'!C12="","",'TD Siniestros'!C12) -> 46939915.04 | E13: =IF('TD Siniestros'!D12="","",'TD Siniestros'!D12) -> 9.067760961 | F13: =IF('TD Siniestros'!E12="","",'TD Siniestros'!E12) -> 351936.566 | G13: =IF('TD Siniestros'!F12="","",'TD Siniestros'!F12) -> 48.1846997 | H13: =IF('TD Siniestros'!G12="","",'TD Siniestros'!G12) -> 48.78531015 | I13: 45.27098696
B14: =IF('TD Siniestros'!A13="","",'TD Siniestros'!A13) -> 6 | C14: =IF('TD Siniestros'!B13="","",'TD Siniestros'!B13) -> Quálitas | D14: =IF('TD Siniestros'!C13="","",'TD Siniestros'!C13) -> 7182439.131 | E14: =IF('TD Siniestros'!D13="","",'TD Siniestros'!D13) -> 27.36258164 | F14: =IF('TD Siniestros'!E13="","",'TD Siniestros'!E13) -> 18944.86094 | G14: =IF('TD Siniestros'!F13="","",'TD Siniestros'!F13) -> 62.89812863 | H14: =IF('TD Siniestros'!G13="","",'TD Siniestros'!G13) -> 63.58380379 | I14: 6.92707066
B15: =IF('TD Siniestros'!A14="","",'TD Siniestros'!A14) -> 7 | C15: =IF('TD Siniestros'!B14="","",'TD Siniestros'!B14) -> Monterrey New York Life | D15: =IF('TD Siniestros'!C14="","",'TD Siniestros'!C14) -> 6017298.049 | E15: =IF('TD Siniestros'!D14="","",'TD Siniestros'!D14) -> -1.60747898 | F15: =IF('TD Siniestros'!E14="","",'TD Siniestros'!E14) -> 9660.94189 | G15: =IF('TD Siniestros'!F14="","",'TD Siniestros'!F14) -> 58.85793117 | H15: =IF('TD Siniestros'!G14="","",'TD Siniestros'!G14) -> 64.26604038 | I15: 5.803355657
B16: =IF('TD Siniestros'!A15="","",'TD Siniestros'!A15) -> 8 | C16: =IF('TD Siniestros'!B15="","",'TD Siniestros'!B15) -> Citibanamex Seguros | D16: =IF('TD Siniestros'!C15="","",'TD Siniestros'!C15) -> 6380754.238 | E16: =IF('TD Siniestros'!D15="","",'TD Siniestros'!D15) -> -31.35621041 | F16: =IF('TD Siniestros'!E15="","",'TD Siniestros'!E15) -> 0 | G16: =IF('TD Siniestros'!F15="","",'TD Siniestros'!F15) -> 79.20473092 | H16: =IF('TD Siniestros'!G15="","",'TD Siniestros'!G15) -> 174.5077152 | I16: 6.153889321
B17: =IF('TD Siniestros'!A16="","",'TD Siniestros'!A16) -> 9 | C17: =IF('TD Siniestros'!B16="","",'TD Siniestros'!B16) -> Agroasemex | D17: =IF('TD Siniestros'!C16="","",'TD Siniestros'!C16) -> 319565.0424 | E17: =IF('TD Siniestros'!D16="","",'TD Siniestros'!D16) -> 0 | F17: =IF('TD Siniestros'!E16="","",'TD Siniestros'!E16) -> 4926.18649 | G17: =IF('TD Siniestros'!F16="","",'TD Siniestros'!F16) -> 4.295954953 | H17: =IF('TD Siniestros'!G16="","",'TD Siniestros'!G16) -> 0 | I17: 0.3082030476
B18: =IF('TD Siniestros'!A17="","",'TD Siniestros'!A17) -> 10 | C18: =IF('TD Siniestros'!B17="","",'TD Siniestros'!B17) -> Inbursa | D18: =IF('TD Siniestros'!C17="","",'TD Siniestros'!C17) -> 3481787.715 | E18: =IF('TD Siniestros'!D17="","",'TD Siniestros'!D17) -> 46.57792234 | F18: =IF('TD Siniestros'!E17="","",'TD Siniestros'!E17) -> 56498.98492 | G18: =IF('TD Siniestros'!F17="","",'TD Siniestros'!F17) -> 50.26740418 | H18: =IF('TD Siniestros'!G17="","",'TD Siniestros'!G17) -> 41.38992447 | I18: 3.357994281
B19: =IF('TD Siniestros'!A18="","",'TD Siniestros'!A18) -> 11 | C19: =IF('TD Siniestros'!B18="","",'TD Siniestros'!B18) -> Chubb Seguros México | D19: =IF('TD Siniestros'!C18="","",'TD Siniestros'!C18) -> 3100056.811 | E19: =IF('TD Siniestros'!D18="","",'TD Siniestros'!D18) -> 30.94664734 | F19: =IF('TD Siniestros'!E18="","",'TD Siniestros'!E18) -> 32790.84577 | G19: =IF('TD Siniestros'!F18="","",'TD Siniestros'!F18) -> 46.02547138 | H19: =IF('TD Siniestros'!G18="","",'TD Siniestros'!G18) -> 37.40415123 | I19: 2.989835652
B20: =IF('TD Siniestros'!A19="","",'TD Siniestros'!A19) -> 12 | C20: =IF('TD Siniestros'!B19="","",'TD Siniestros'!B19) -> Mapfre México | D20: =IF('TD Siniestros'!C19="","",'TD Siniestros'!C19) -> 3435151.255 | E20: =IF('TD Siniestros'!D19="","",'TD Siniestros'!D19) -> 30.66417086 | F20: =IF('TD Siniestros'!E19="","",'TD Siniestros'!E19) -> 218660.589 | G20: =IF('TD Siniestros'!F19="","",'TD Siniestros'!F19) -> 53.38697473 | H20: =IF('TD Siniestros'!G19="","",'TD Siniestros'!G19) -> 35.9659477 | I20: 3.31301596
B21: =IF('TD Siniestros'!A20="","",'TD Siniestros'!A20) -> 13 | C21: =IF('TD Siniestros'!B20="","",'TD Siniestros'!B20) -> Atlas | D21: =IF('TD Siniestros'!C20="","",'TD Siniestros'!C20) -> 2220660.432 | E21: =IF('TD Siniestros'!D20="","",'TD Siniestros'!D20) -> 3.678939735 | F21: =IF('TD Siniestros'!E20="","",'TD Siniestros'!E20) -> -1557.37729 | G21: =IF('TD Siniestros'!F20="","",'TD Siniestros'!F20) -> 40.42342442 | H21: =IF('TD Siniestros'!G20="","",'TD Siniestros'!G20) -> 43.42238402 | I21: 2.141705825
B22: =IF('TD Siniestros'!A21="","",'TD Siniestros'!A21) -> 14 | C22: =IF('TD Siniestros'!B21="","",'TD Siniestros'!B21) -> Allianz México | D22: =IF('TD Siniestros'!C21="","",'TD Siniestros'!C21) -> 2467516.926 | E22: =IF('TD Siniestros'!D21="","",'TD Siniestros'!D21) -> -23.67777256 | F22: =IF('TD Siniestros'!E21="","",'TD Siniestros'!E21) -> 1015.9079 | G22: =IF('TD Siniestros'!F21="","",'TD Siniestros'!F21) -> 46.97721804 | H22: =IF('TD Siniestros'!G21="","",'TD Siniestros'!G21) -> 72.59100385 | I22: 2.379785444
B23: =IF('TD Siniestros'!A22="","",'TD Siniestros'!A22) -> 15 | C23: =IF('TD Siniestros'!B22="","",'TD Siniestros'!B22) -> GMX Seguros | D23: =IF('TD Siniestros'!C22="","",'TD Siniestros'!C22) -> 480133.3407 | E23: =IF('TD Siniestros'!D22="","",'TD Siniestros'!D22) -> -47.02710194 | F23: =IF('TD Siniestros'!E22="","",'TD Siniestros'!E22) -> 0 | G23: =IF('TD Siniestros'!F22="","",'TD Siniestros'!F22) -> 10.20682433 | H23: =IF('TD Siniestros'!G22="","",'TD Siniestros'!G22) -> 16.7698772 | I23: 0.4630624104
B24: =IF('TD Siniestros'!A23="","",'TD Siniestros'!A23) -> 15.1 | C24: =IF('TD Siniestros'!B23="","",'TD Siniestros'!B23) -> TOTAL MEDIANAS | D24: =IF('TD Siniestros'!C23="","",'TD Siniestros'!C23) -> 35085362.94 | E24: =IF('TD Siniestros'!D23="","",'TD Siniestros'!D23) -> 1.100401521 | F24: =IF('TD Siniestros'!E23="","",'TD Siniestros'!E23) -> 340940.9396 | G24: =IF('TD Siniestros'!F23="","",'TD Siniestros'!F23) -> 48.27111152 | H24: =IF('TD Siniestros'!G23="","",'TD Siniestros'!G23) -> 59.95650682 | I24: 33.83791826
B25: =IF('TD Siniestros'!A24="","",'TD Siniestros'!A24) -> 16 | C25: =IF('TD Siniestros'!B24="","",'TD Siniestros'!B24) -> Pensiones Banorte | D25: =IF('TD Siniestros'!C24="","",'TD Siniestros'!C24) -> 3161078.445 | E25: =IF('TD Siniestros'!D24="","",'TD Siniestros'!D24) -> 13.36781803 | F25: =IF('TD Siniestros'!E24="","",'TD Siniestros'!E24) -> 0 | G25: =IF('TD Siniestros'!F24="","",'TD Siniestros'!F24) -> 74.31263707 | H25: =IF('TD Siniestros'!G24="","",'TD Siniestros'!G24) -> 56.37710716 | I25: 3.048687688
B26: =IF('TD Siniestros'!A25="","",'TD Siniestros'!A25) -> 17 | C26: =IF('TD Siniestros'!B25="","",'TD Siniestros'!B25) -> Zurich Santander | D26: =IF('TD Siniestros'!C25="","",'TD Siniestros'!C25) -> 743104.7399 | E26: =IF('TD Siniestros'!D25="","",'TD Siniestros'!D25) -> -9.949796745 | F26: =IF('TD Siniestros'!E25="","",'TD Siniestros'!E25) -> 0 | G26: =IF('TD Siniestros'!F25="","",'TD Siniestros'!F25) -> 20.78735673 | H26: =IF('TD Siniestros'!G25="","",'TD Siniestros'!G25) -> 26.12106766 | I26: 0.7166839769
B27: =IF('TD Siniestros'!A26="","",'TD Siniestros'!A26) -> 18 | C27: =IF('TD Siniestros'!B26="","",'TD Siniestros'!B26) -> AIG Seguros | D27: =IF('TD Siniestros'!C26="","",'TD Siniestros'!C26) -> 302973.238 | E27: =IF('TD Siniestros'!D26="","",'TD Siniestros'!D26) -> 0.9651797622 | F27: =IF('TD Siniestros'!E26="","",'TD Siniestros'!E26) -> 2546.799 | G27: =IF('TD Siniestros'!F26="","",'TD Siniestros'!F26) -> 9.164344562 | H27: =IF('TD Siniestros'!G26="","",'TD Siniestros'!G26) -> 16.62343816 | I27: 0.2922011575
B28: =IF('TD Siniestros'!A27="","",'TD Siniestros'!A27) -> 19 | C28: =IF('TD Siniestros'!B27="","",'TD Siniestros'!B27) -> Zurich Aseguradora Mexicana | D28: =IF('TD Siniestros'!C27="","",'TD Siniestros'!C27) -> 846854.3979 | E28: =IF('TD Siniestros'!D27="","",'TD Siniestros'!D27) -> 2493.526803 | F28: =IF('TD Siniestros'!E27="","",'TD Siniestros'!E27) -> -2980.95784 | G28: =IF('TD Siniestros'!F27="","",'TD Siniestros'!F27) -> 27.93144713 | H28: =IF('TD Siniestros'!G27="","",'TD Siniestros'!G27) -> 41.5047667 | I28: 0.8167448614
B29: =IF('TD Siniestros'!A28="","",'TD Siniestros'!A28) -> 20 | C29: =IF('TD Siniestros'!B28="","",'TD Siniestros'!B28) -> Seguros SURA | D29: =IF('TD Siniestros'!C28="","",'TD Siniestros'!C28) -> 1685134.512 | E29: =IF('TD Siniestros'!D28="","",'TD Siniestros'!D28) -> 153.5723388 | F29: =IF('TD Siniestros'!E28="","",'TD Siniestros'!E28) -> 20781.63186 | G29: =IF('TD Siniestros'!F28="","",'TD Siniestros'!F28) -> 56.00166813 | H29: =IF('TD Siniestros'!G28="","",'TD Siniestros'!G28) -> 37.72090855 | I29: 1.625220294
B30: =IF('TD Siniestros'!A29="","",'TD Siniestros'!A29) -> 21 | C30: =IF('TD Siniestros'!B29="","",'TD Siniestros'!B29) -> HDI Seguros | D30: =IF('TD Siniestros'!C29="","",'TD Siniestros'!C29) -> 1559277.743 | E30: =IF('TD Siniestros'!D29="","",'TD Siniestros'!D29) -> 25.41812458 | F30: =IF('TD Siniestros'!E29="","",'TD Siniestros'!E29) -> 0 | G30: =IF('TD Siniestros'!F29="","",'TD Siniestros'!F29) -> 52.57565167 | H30: =IF('TD Siniestros'!G29="","",'TD Siniestros'!G29) -> 54.29404173 | I30: 1.503838307
B31: =IF('TD Siniestros'!A30="","",'TD Siniestros'!A30) -> 22 | C31: =IF('TD Siniestros'!B30="","",'TD Siniestros'!B30) -> Pensiones BBVA Bancomer | D31: =IF('TD Siniestros'!C30="","",'TD Siniestros'!C30) -> 2074045.043 | E31: =IF('TD Siniestros'!D30="","",'TD Siniestros'!D30) -> 10.839348 | F31: =IF('TD Siniestros'!E30="","",'TD Siniestros'!E30) -> 0 | G31: =IF('TD Siniestros'!F30="","",'TD Siniestros'!F30) -> 77.29625661 | H31: =IF('TD Siniestros'!G30="","",'TD Siniestros'!G30) -> 47.53144895 | I31: 2.000303282
B32: =IF('TD Siniestros'!A31="","",'TD Siniestros'!A31) -> 23 | C32: =IF('TD Siniestros'!B31="","",'TD Siniestros'!B31) -> ProFuturo G.N.P. | D32: =IF('TD Siniestros'!C31="","",'TD Siniestros'!C31) -> 1327040.967 | E32: =IF('TD Siniestros'!D31="","",'TD Siniestros'!D31) -> 18.74573572 | F32: =IF('TD Siniestros'!E31="","",'TD Siniestros'!E31) -> 0 | G32: =IF('TD Siniestros'!F31="","",'TD Siniestros'!F31) -> 50.72830251 | H32: =IF('TD Siniestros'!G31="","",'TD Siniestros'!G31) -> 49.75156836 | I32: 1.279858608
B33: =IF('TD Siniestros'!A32="","",'TD Siniestros'!A32) -> 24 | C33: =IF('TD Siniestros'!B32="","",'TD Siniestros'!B32) -> Afirme | D33: =IF('TD Siniestros'!C32="","",'TD Siniestros'!C32) -> 1341828.496 | E33: =IF('TD Siniestros'!D32="","",'TD Siniestros'!D32) -> 16.16396079 | F33: =IF('TD Siniestros'!E32="","",'TD Siniestros'!E32) -> -623.85297 | G33: =IF('TD Siniestros'!F32="","",'TD Siniestros'!F32) -> 60.11388923 | H33: =IF('TD Siniestros'!G32="","",'TD Siniestros'!G32) -> 61.13987903 | I33: 1.294120373
B34: =IF('TD Siniestros'!A33="","",'TD Siniestros'!A33) -> 25 | C34: =IF('TD Siniestros'!B33="","",'TD Siniestros'!B33) -> Seguros Azteca | D34: =IF('TD Siniestros'!C33="","",'TD Siniestros'!C33) -> 545140.1931 | E34: =IF('TD Siniestros'!D33="","",'TD Siniestros'!D33) -> -36.61365594 | F34: =IF('TD Siniestros'!E33="","",'TD Siniestros'!E33) -> 0 | G34: =IF('TD Siniestros'!F33="","",'TD Siniestros'!F33) -> 27.78297619 | H34: =IF('TD Siniestros'!G33="","",'TD Siniestros'!G33) -> 52.86865716 | I34: 0.5257579727
B35: =IF('TD Siniestros'!A34="","",'TD Siniestros'!A34) -> 26 | C35: =IF('TD Siniestros'!B34="","",'TD Siniestros'!B34) -> Hir Seguros | D35: =IF('TD Siniestros'!C34="","",'TD Siniestros'!C34) -> 417602.7299 | E35: =IF('TD Siniestros'!D34="","",'TD Siniestros'!D34) -> 8.483510416 | F35: =IF('TD Siniestros'!E34="","",'TD Siniestros'!E34) -> 96183.77991 | G35: =IF('TD Siniestros'!F34="","",'TD Siniestros'!F34) -> 23.22617222 | H35: =IF('TD Siniestros'!G34="","",'TD Siniestros'!G34) -> 26.90903417 | I35: 0.4027550481
B36: =IF('TD Siniestros'!A35="","",'TD Siniestros'!A35) -> 27 | C36: =IF('TD Siniestros'!B35="","",'TD Siniestros'!B35) -> HSBC Seguros | D36: =IF('TD Siniestros'!C35="","",'TD Siniestros'!C35) -> 752600.9898 | E36: =IF('TD Siniestros'!D35="","",'TD Siniestros'!D35) -> 17.10087149 | F36: =IF('TD Siniestros'!E35="","",'TD Siniestros'!E35) -> 0 | G36: =IF('TD Siniestros'!F35="","",'TD Siniestros'!F35) -> 46.38758728 | H36: =IF('TD Siniestros'!G35="","",'TD Siniestros'!G35) -> 43.5142322 | I36: 0.7258425919
B37: =IF('TD Siniestros'!A36="","",'TD Siniestros'!A36) -> 28 | C37: =IF('TD Siniestros'!B36="","",'TD Siniestros'!B36) -> Seguros Azteca Daños | D37: =IF('TD Siniestros'!C36="","",'TD Siniestros'!C36) -> -20785.99139 | E37: =IF('TD Siniestros'!D36="","",'TD Siniestros'!D36) -> -119.0966069 | F37: =IF('TD Siniestros'!E36="","",'TD Siniestros'!E36) -> 7886.39385 | G37: =IF('TD Siniestros'!F36="","",'TD Siniestros'!F36) -> -1.661459787 | H37: =IF('TD Siniestros'!G36="","",'TD Siniestros'!G36) -> 6.33372345 | I37: -0.02004695459
B38: =IF('TD Siniestros'!A37="","",'TD Siniestros'!A37) -> 29 | C38: =IF('TD Siniestros'!B37="","",'TD Siniestros'!B37) -> HDI Global Seguros | D38: =IF('TD Siniestros'!C37="","",'TD Siniestros'!C37) -> 87458.83272 | E38: =IF('TD Siniestros'!D37="","",'TD Siniestros'!D37) -> -54.21929301 | F38: =IF('TD Siniestros'!E37="","",'TD Siniestros'!E37) -> 0 | G38: =IF('TD Siniestros'!F37="","",'TD Siniestros'!F37) -> 8.597131259 | H38: =IF('TD Siniestros'!G37="","",'TD Siniestros'!G37) -> 40.65285655 | I38: 0.0843492723
B39: =IF('TD Siniestros'!A38="","",'TD Siniestros'!A38) -> 30 | C39: =IF('TD Siniestros'!B38="","",'TD Siniestros'!B38) -> Cardif Vida | D39: =IF('TD Siniestros'!C38="","",'TD Siniestros'!C38) -> 211269.1622 | E39: =IF('TD Siniestros'!D38="","",'TD Siniestros'!D38) -> -22.30397884 | F39: =IF('TD Siniestros'!E38="","",'TD Siniestros'!E38) -> -20536.89332 | G39: =IF('TD Siniestros'!F38="","",'TD Siniestros'!F38) -> 21.72125367 | H39: =IF('TD Siniestros'!G38="","",'TD Siniestros'!G38) -> 32.47851978 | I39: 0.2037575799
B40: =IF('TD Siniestros'!A39="","",'TD Siniestros'!A39) -> 31 | C40: =IF('TD Siniestros'!B39="","",'TD Siniestros'!B39) -> BUPA México | D40: =IF('TD Siniestros'!C39="","",'TD Siniestros'!C39) -> 758665.8632 | E40: =IF('TD Siniestros'!D39="","",'TD Siniestros'!D39) -> 20.21928851 | F40: =IF('TD Siniestros'!E39="","",'TD Siniestros'!E39) -> 0 | G40: =IF('TD Siniestros'!F39="","",'TD Siniestros'!F39) -> 86.72676188 | H40: =IF('TD Siniestros'!G39="","",'TD Siniestros'!G39) -> 76.38291728 | I40: 0.7316918314
B41: =IF('TD Siniestros'!A40="","",'TD Siniestros'!A40) -> 32 | C41: =IF('TD Siniestros'!B40="","",'TD Siniestros'!B40) -> ANA | D41: =IF('TD Siniestros'!C40="","",'TD Siniestros'!C40) -> 591466.4306 | E41: =IF('TD Siniestros'!D40="","",'TD Siniestros'!D40) -> 49.59338872 | F41: =IF('TD Siniestros'!E40="","",'TD Siniestros'!E40) -> 7185.23703 | G41: =IF('TD Siniestros'!F40="","",'TD Siniestros'!F40) -> 71.93689308 | H41: =IF('TD Siniestros'!G40="","",'TD Siniestros'!G40) -> 54.67722841 | I41: 0.5704371012
B42: =IF('TD Siniestros'!A41="","",'TD Siniestros'!A41) -> 33 | C42: =IF('TD Siniestros'!B41="","",'TD Siniestros'!B41) -> Ve Por Más | D42: =IF('TD Siniestros'!C41="","",'TD Siniestros'!C41) -> 615816.1324 | E42: =IF('TD Siniestros'!D41="","",'TD Siniestros'!D41) -> 43.76982097 | F42: =IF('TD Siniestros'!E41="","",'TD Siniestros'!E41) -> 3583.23024 | G42: =IF('TD Siniestros'!F41="","",'TD Siniestros'!F41) -> 80.54467227 | H42: =IF('TD Siniestros'!G41="","",'TD Siniestros'!G41) -> 63.16260934 | I42: 0.5939210601
B43: =IF('TD Siniestros'!A42="","",'TD Siniestros'!A42) -> 34 | C43: =IF('TD Siniestros'!B42="","",'TD Siniestros'!B42) -> Seguros Argos | D43: =IF('TD Siniestros'!C42="","",'TD Siniestros'!C42) -> 623983.1209 | E43: =IF('TD Siniestros'!D42="","",'TD Siniestros'!D42) -> -2.297810923 | F43: =IF('TD Siniestros'!E42="","",'TD Siniestros'!E42) -> -398.33477 | G43: =IF('TD Siniestros'!F42="","",'TD Siniestros'!F42) -> 82.31310865 | H43: =IF('TD Siniestros'!G42="","",'TD Siniestros'!G42) -> 54.26416921 | I43: 0.6017976748
B44: =IF('TD Siniestros'!A43="","",'TD Siniestros'!A43) -> 35 | C44: =IF('TD Siniestros'!B43="","",'TD Siniestros'!B43) -> Plan Seguro | D44: =IF('TD Siniestros'!C43="","",'TD Siniestros'!C43) -> 474349.7759 | E44: =IF('TD Siniestros'!D43="","",'TD Siniestros'!D43) -> 9.254775821 | F44: =IF('TD Siniestros'!E43="","",'TD Siniestros'!E43) -> 0 | G44: =IF('TD Siniestros'!F43="","",'TD Siniestros'!F43) -> 67.50329903 | H44: =IF('TD Siniestros'!G43="","",'TD Siniestros'!G43) -> 51.56359573 | I44: 0.4574844778
B45: =IF('TD Siniestros'!A44="","",'TD Siniestros'!A44) -> 36 | C45: =IF('TD Siniestros'!B44="","",'TD Siniestros'!B44) -> FM Global | D45: =IF('TD Siniestros'!C44="","",'TD Siniestros'!C44) -> 285738.2699 | E45: =IF('TD Siniestros'!D44="","",'TD Siniestros'!D44) -> 0.8152850071 | F45: =IF('TD Siniestros'!E44="","",'TD Siniestros'!E44) -> 0 | G45: =IF('TD Siniestros'!F44="","",'TD Siniestros'!F44) -> 41.68060379 | H45: =IF('TD Siniestros'!G44="","",'TD Siniestros'!G44) -> 49.46328943 | I45: 0.2755789711
B46: =IF('TD Siniestros'!A45="","",'TD Siniestros'!A45) -> 37 | C46: =IF('TD Siniestros'!B45="","",'TD Siniestros'!B45) -> El Potosí | D46: =IF('TD Siniestros'!C45="","",'TD Siniestros'!C45) -> 255047.793 | E46: =IF('TD Siniestros'!D45="","",'TD Siniestros'!D45) -> 7.160581035 | F46: =IF('TD Siniestros'!E45="","",'TD Siniestros'!E45) -> -153.74031 | G46: =IF('TD Siniestros'!F45="","",'TD Siniestros'!F45) -> 38.43574878 | H46: =IF('TD Siniestros'!G45="","",'TD Siniestros'!G45) -> 43.38640581 | I46: 0.2459796807
B47: =IF('TD Siniestros'!A46="","",'TD Siniestros'!A46) -> 38 | C47: =IF('TD Siniestros'!B46="","",'TD Siniestros'!B46) -> General de Seguros | D47: =IF('TD Siniestros'!C46="","",'TD Siniestros'!C46) -> 470556.0986 | E47: =IF('TD Siniestros'!D46="","",'TD Siniestros'!D46) -> -4.126201809 | F47: =IF('TD Siniestros'!E46="","",'TD Siniestros'!E46) -> 793.18721 | G47: =IF('TD Siniestros'!F46="","",'TD Siniestros'!F46) -> 71.21613307 | H47: =IF('TD Siniestros'!G46="","",'TD Siniestros'!G46) -> 76.86267863 | I47: 0.453825683
B48: =IF('TD Siniestros'!A47="","",'TD Siniestros'!A47) -> 39 | C48: =IF('TD Siniestros'!B47="","",'TD Siniestros'!B47) -> AXA Salud | D48: =IF('TD Siniestros'!C47="","",'TD Siniestros'!C47) -> 114368.81 | E48: =IF('TD Siniestros'!D47="","",'TD Siniestros'!D47) -> 8.625847415 | F48: =IF('TD Siniestros'!E47="","",'TD Siniestros'!E47) -> 0 | G48: =IF('TD Siniestros'!F47="","",'TD Siniestros'!F47) -> 23.47190465 | H48: =IF('TD Siniestros'!G47="","",'TD Siniestros'!G47) -> 21.5571782 | I48: 0.1103024771
B49: =IF('TD Siniestros'!A48="","",'TD Siniestros'!A48) -> 40 | C49: =IF('TD Siniestros'!B48="","",'TD Siniestros'!B48) -> Assurant Vida | D49: =IF('TD Siniestros'!C48="","",'TD Siniestros'!C48) -> 62581.92504 | E49: =IF('TD Siniestros'!D48="","",'TD Siniestros'!D48) -> -19.89449822 | F49: =IF('TD Siniestros'!E48="","",'TD Siniestros'!E48) -> 1473.03836 | G49: =IF('TD Siniestros'!F48="","",'TD Siniestros'!F48) -> 13.94671133 | H49: =IF('TD Siniestros'!G48="","",'TD Siniestros'!G48) -> 107.8290395 | I49: 0.06035685216
B50: =IF('TD Siniestros'!A49="","",'TD Siniestros'!A49) -> 41 | C50: =IF('TD Siniestros'!B49="","",'TD Siniestros'!B49) -> Prudential | D50: =IF('TD Siniestros'!C49="","",'TD Siniestros'!C49) -> 48369.27817 | E50: =IF('TD Siniestros'!D49="","",'TD Siniestros'!D49) -> 3.073181834 | F50: =IF('TD Siniestros'!E49="","",'TD Siniestros'!E49) -> 0 | G50: =IF('TD Siniestros'!F49="","",'TD Siniestros'!F49) -> 11.1592105 | H50: =IF('TD Siniestros'!G49="","",'TD Siniestros'!G49) -> 13.5029111 | I50: 0.04664952971
B51: =IF('TD Siniestros'!A50="","",'TD Siniestros'!A50) -> 42 | C51: =IF('TD Siniestros'!B50="","",'TD Siniestros'!B50) -> Cardif Seguros Generales | D51: =IF('TD Siniestros'!C50="","",'TD Siniestros'!C50) -> 53604.73258 | E51: =IF('TD Siniestros'!D50="","",'TD Siniestros'!D50) -> 27.95259147 | F51: =IF('TD Siniestros'!E50="","",'TD Siniestros'!E50) -> 0 | G51: =IF('TD Siniestros'!F50="","",'TD Siniestros'!F50) -> 12.41636285 | H51: =IF('TD Siniestros'!G50="","",'TD Siniestros'!G50) -> 14.54944139 | I51: 0.05169883984
B52: =IF('TD Siniestros'!A51="","",'TD Siniestros'!A51) -> 43 | C52: =IF('TD Siniestros'!B51="","",'TD Siniestros'!B51) -> Insignia Life | D52: =IF('TD Siniestros'!C51="","",'TD Siniestros'!C51) -> 164032.8399 | E52: =IF('TD Siniestros'!D51="","",'TD Siniestros'!D51) -> -34.7468165 | F52: =IF('TD Siniestros'!E51="","",'TD Siniestros'!E51) -> 6173.09766 | G52: =IF('TD Siniestros'!F51="","",'TD Siniestros'!F51) -> 38.9508185 | H52: =IF('TD Siniestros'!G51="","",'TD Siniestros'!G51) -> 62.1149698 | I52: 0.1582007243
B53: =IF('TD Siniestros'!A52="","",'TD Siniestros'!A52) -> 44 | C53: =IF('TD Siniestros'!B52="","",'TD Siniestros'!B52) -> El Águila | D53: =IF('TD Siniestros'!C52="","",'TD Siniestros'!C52) -> 134472.346 | E53: =IF('TD Siniestros'!D52="","",'TD Siniestros'!D52) -> 25.63452068 | F53: =IF('TD Siniestros'!E52="","",'TD Siniestros'!E52) -> 0 | G53: =IF('TD Siniestros'!F52="","",'TD Siniestros'!F52) -> 33.51368298 | H53: =IF('TD Siniestros'!G52="","",'TD Siniestros'!G52) -> 32.75103677 | I53: 0.1296912407
B54: =IF('TD Siniestros'!A53="","",'TD Siniestros'!A53) -> 45 | C54: =IF('TD Siniestros'!B53="","",'TD Siniestros'!B53) -> La Latinoamericana | D54: =IF('TD Siniestros'!C53="","",'TD Siniestros'!C53) -> 232495.5849 | E54: =IF('TD Siniestros'!D53="","",'TD Siniestros'!D53) -> -0.5515751265 | F54: =IF('TD Siniestros'!E53="","",'TD Siniestros'!E53) -> 1622.90629 | G54: =IF('TD Siniestros'!F53="","",'TD Siniestros'!F53) -> 61.46227653 | H54: =IF('TD Siniestros'!G53="","",'TD Siniestros'!G53) -> 60.42489773 | I54: 0.2242293064
B55: =IF('TD Siniestros'!A54="","",'TD Siniestros'!A54) -> 46 | C55: =IF('TD Siniestros'!B54="","",'TD Siniestros'!B54) -> Patrimonial Inbursa | D55: =IF('TD Siniestros'!C54="","",'TD Siniestros'!C54) -> 310.33877 | E55: =IF('TD Siniestros'!D54="","",'TD Siniestros'!D54) -> -97.89047552 | F55: =IF('TD Siniestros'!E54="","",'TD Siniestros'!E54) -> 0 | G55: =IF('TD Siniestros'!F54="","",'TD Siniestros'!F54) -> 0.08484223333 | H55: =IF('TD Siniestros'!G54="","",'TD Siniestros'!G54) -> 3.682466489 | I55: 0.0002993048112
B56: =IF('TD Siniestros'!A55="","",'TD Siniestros'!A55) -> 47 | C56: =IF('TD Siniestros'!B55="","",'TD Siniestros'!B55) -> Tokio Marine | D56: =IF('TD Siniestros'!C55="","",'TD Siniestros'!C55) -> 103187.2473 | E56: =IF('TD Siniestros'!D55="","",'TD Siniestros'!D55) -> -34.87622778 | F56: =IF('TD Siniestros'!E55="","",'TD Siniestros'!E55) -> 52.95338 | G56: =IF('TD Siniestros'!F55="","",'TD Siniestros'!F55) -> 31.36590125 | H56: =IF('TD Siniestros'!G55="","",'TD Siniestros'!G55) -> 23.45334281 | I56: 0.09951847003
B57: =IF('TD Siniestros'!A56="","",'TD Siniestros'!A56) -> 48 | C57: =IF('TD Siniestros'!B56="","",'TD Siniestros'!B56) -> Patrimonial Vida | D57: =IF('TD Siniestros'!C56="","",'TD Siniestros'!C56) -> 326666.0707 | E57: =IF('TD Siniestros'!D56="","",'TD Siniestros'!D56) -> 11.1422806 | F57: =IF('TD Siniestros'!E56="","",'TD Siniestros'!E56) -> 935.52278 | G57: =IF('TD Siniestros'!F56="","",'TD Siniestros'!F56) -> 102.5865193 | H57: =IF('TD Siniestros'!G56="","",'TD Siniestros'!G56) -> 20.88953587 | I57: 0.3150516019
B58: =IF('TD Siniestros'!A57="","",'TD Siniestros'!A57) -> 49 | C58: =IF('TD Siniestros'!B57="","",'TD Siniestros'!B57) -> Pan-American México | D58: =IF('TD Siniestros'!C57="","",'TD Siniestros'!C57) -> 136472.8011 | E58: =IF('TD Siniestros'!D57="","",'TD Siniestros'!D57) -> -29.19395439 | F58: =IF('TD Siniestros'!E57="","",'TD Siniestros'!E57) -> 9464.62503 | G58: =IF('TD Siniestros'!F57="","",'TD Siniestros'!F57) -> 44.15012251 | H58: =IF('TD Siniestros'!G57="","",'TD Siniestros'!G57) -> 133.881323 | I58: 0.1316205706
B59: =IF('TD Siniestros'!A58="","",'TD Siniestros'!A58) -> 50 | C59: =IF('TD Siniestros'!B58="","",'TD Siniestros'!B58) -> BBVA Bancomer Salud | D59: =IF('TD Siniestros'!C58="","",'TD Siniestros'!C58) -> 249870.9443 | E59: =IF('TD Siniestros'!D58="","",'TD Siniestros'!D58) -> 71.7679752 | F59: =IF('TD Siniestros'!E58="","",'TD Siniestros'!E58) -> 0 | G59: =IF('TD Siniestros'!F58="","",'TD Siniestros'!F58) -> 84.58166203 | H59: =IF('TD Siniestros'!G58="","",'TD Siniestros'!G58) -> 118.8548587 | I59: 0.2409868925
B60: =IF('TD Siniestros'!A59="","",'TD Siniestros'!A59) -> 51 | C60: =IF('TD Siniestros'!B59="","",'TD Siniestros'!B59) -> Dentegra | D60: =IF('TD Siniestros'!C59="","",'TD Siniestros'!C59) -> 71242.00686 | E60: =IF('TD Siniestros'!D59="","",'TD Siniestros'!D59) -> 118.2936343 | F60: =IF('TD Siniestros'!E59="","",'TD Siniestros'!E59) -> 53.47214 | G60: =IF('TD Siniestros'!F59="","",'TD Siniestros'!F59) -> 24.43799036 | H60: =IF('TD Siniestros'!G59="","",'TD Siniestros'!G59) -> 28.30535215 | I60: 0.06870902857
B61: =IF('TD Siniestros'!A60="","",'TD Siniestros'!A60) -> 52 | C61: =IF('TD Siniestros'!B60="","",'TD Siniestros'!B60) -> Primero Seguros | D61: =IF('TD Siniestros'!C60="","",'TD Siniestros'!C60) -> 142370.6071 | E61: =IF('TD Siniestros'!D60="","",'TD Siniestros'!D60) -> 7.330811437 | F61: =IF('TD Siniestros'!E60="","",'TD Siniestros'!E60) -> 0 | G61: =IF('TD Siniestros'!F60="","",'TD Siniestros'!F60) -> 49.93287688 | H61: =IF('TD Siniestros'!G60="","",'TD Siniestros'!G60) -> 46.78730317 | I61: 0.1373086826
B62: =IF('TD Siniestros'!A61="","",'TD Siniestros'!A61) -> 53 | C62: =IF('TD Siniestros'!B61="","",'TD Siniestros'!B61) -> General de Salud | D62: =IF('TD Siniestros'!C61="","",'TD Siniestros'!C61) -> 165561.1909 | E62: =IF('TD Siniestros'!D61="","",'TD Siniestros'!D61) -> 37.65240944 | F62: =IF('TD Siniestros'!E61="","",'TD Siniestros'!E61) -> 0 | G62: =IF('TD Siniestros'!F61="","",'TD Siniestros'!F61) -> 68.98149964 | H62: =IF('TD Siniestros'!G61="","",'TD Siniestros'!G61) -> 93.39055802 | I62: 0.1596747354
B63: =IF('TD Siniestros'!A62="","",'TD Siniestros'!A62) -> 54 | C63: =IF('TD Siniestros'!B62="","",'TD Siniestros'!B62) -> PREVEM Seguros | D63: =IF('TD Siniestros'!C62="","",'TD Siniestros'!C62) -> 114667.9008 | E63: =IF('TD Siniestros'!D62="","",'TD Siniestros'!D62) -> 37.33070938 | F63: =IF('TD Siniestros'!E62="","",'TD Siniestros'!E62) -> 0 | G63: =IF('TD Siniestros'!F62="","",'TD Siniestros'!F62) -> 52.84328824 | H63: =IF('TD Siniestros'!G62="","",'TD Siniestros'!G62) -> 65.82908898 | I63: 0.1105909339
B64: =IF('TD Siniestros'!A63="","",'TD Siniestros'!A63) -> 55 | C64: =IF('TD Siniestros'!B63="","",'TD Siniestros'!B63) -> Berkley Seguros | D64: =IF('TD Siniestros'!C63="","",'TD Siniestros'!C63) -> 57749.80343 | E64: =IF('TD Siniestros'!D63="","",'TD Siniestros'!D63) -> 18.18330738 | F64: =IF('TD Siniestros'!E63="","",'TD Siniestros'!E63) -> 1126.9045 | G64: =IF('TD Siniestros'!F63="","",'TD Siniestros'!F63) -> 29.94134726 | H64: =IF('TD Siniestros'!G63="","",'TD Siniestros'!G63) -> 35.17533098 | I64: 0.05569653451
B65: =IF('TD Siniestros'!A64="","",'TD Siniestros'!A64) -> 56 | C65: =IF('TD Siniestros'!B64="","",'TD Siniestros'!B64) -> Atradius | D65: =IF('TD Siniestros'!C64="","",'TD Siniestros'!C64) -> 23430.44295 | E65: =IF('TD Siniestros'!D64="","",'TD Siniestros'!D64) -> -20.88017583 | F65: =IF('TD Siniestros'!E64="","",'TD Siniestros'!E64) -> 4052.08955 | G65: =IF('TD Siniestros'!F64="","",'TD Siniestros'!F64) -> 12.22221347 | H65: =IF('TD Siniestros'!G64="","",'TD Siniestros'!G64) -> 15.72855088 | I65: 0.02259738383
B66: =IF('TD Siniestros'!A65="","",'TD Siniestros'!A65) -> 57 | C66: =IF('TD Siniestros'!B65="","",'TD Siniestros'!B65) -> Sompo Japan | D66: =IF('TD Siniestros'!C65="","",'TD Siniestros'!C65) -> 23399.65944 | E66: =IF('TD Siniestros'!D65="","",'TD Siniestros'!D65) -> -175.7019565 | F66: =IF('TD Siniestros'!E65="","",'TD Siniestros'!E65) -> 2.95109 | G66: =IF('TD Siniestros'!F65="","",'TD Siniestros'!F65) -> 12.37868124 | H66: =IF('TD Siniestros'!G65="","",'TD Siniestros'!G65) -> -16.54676585 | I66: 0.02256769482
B67: =IF('TD Siniestros'!A66="","",'TD Siniestros'!A66) -> 58 | C67: =IF('TD Siniestros'!B66="","",'TD Siniestros'!B66) -> Solunion Crédito | D67: =IF('TD Siniestros'!C66="","",'TD Siniestros'!C66) -> 46882.79443 | E67: =IF('TD Siniestros'!D66="","",'TD Siniestros'!D66) -> 26.29215129 | F67: =IF('TD Siniestros'!E66="","",'TD Siniestros'!E66) -> 186.24894 | G67: =IF('TD Siniestros'!F66="","",'TD Siniestros'!F66) -> 26.96952065 | H67: =IF('TD Siniestros'!G66="","",'TD Siniestros'!G66) -> 26.87579898 | I67: 0.04521589725
B68: =IF('TD Siniestros'!A67="","",'TD Siniestros'!A67) -> 59 | C68: =IF('TD Siniestros'!B67="","",'TD Siniestros'!B67) -> Swiss Re Corporate Solutions | D68: =IF('TD Siniestros'!C67="","",'TD Siniestros'!C67) -> 33258.89151 | E68: =IF('TD Siniestros'!D67="","",'TD Siniestros'!D67) -> 114.9039242 | F68: =IF('TD Siniestros'!E67="","",'TD Siniestros'!E67) -> 0 | G68: =IF('TD Siniestros'!F67="","",'TD Siniestros'!F67) -> 25.2770876 | H68: =IF('TD Siniestros'!G67="","",'TD Siniestros'!G67) -> 17.56289148 | I68: 0.03207638622
B69: =IF('TD Siniestros'!A68="","",'TD Siniestros'!A68) -> 60 | C69: =IF('TD Siniestros'!B68="","",'TD Siniestros'!B68) -> SHF Cred Vivienda | D69: =IF('TD Siniestros'!C68="","",'TD Siniestros'!C68) -> -217169.8659 | E69: =IF('TD Siniestros'!D68="","",'TD Siniestros'!D68) -> -1371.37248 | F69: =IF('TD Siniestros'!E68="","",'TD Siniestros'!E68) -> 0 | G69: =IF('TD Siniestros'!F68="","",'TD Siniestros'!F68) -> -168.7977106 | H69: =IF('TD Siniestros'!G68="","",'TD Siniestros'!G68) -> 17.30951661 | I69: -0.2094484866
B70: =IF('TD Siniestros'!A69="","",'TD Siniestros'!A69) -> 61 | C70: =IF('TD Siniestros'!B69="","",'TD Siniestros'!B69) -> Skandia Life | D70: =IF('TD Siniestros'!C69="","",'TD Siniestros'!C69) -> 33840.65793 | E70: =IF('TD Siniestros'!D69="","",'TD Siniestros'!D69) -> 220.3495448 | F70: =IF('TD Siniestros'!E69="","",'TD Siniestros'!E69) -> 0 | G70: =IF('TD Siniestros'!F69="","",'TD Siniestros'!F69) -> 32.14076935 | H70: =IF('TD Siniestros'!G69="","",'TD Siniestros'!G69) -> 6.896834106 | I70: 0.03263746819
B71: =IF('TD Siniestros'!A70="","",'TD Siniestros'!A70) -> 62 | C71: =IF('TD Siniestros'!B70="","",'TD Siniestros'!B70) -> Coface | D71: =IF('TD Siniestros'!C70="","",'TD Siniestros'!C70) -> -2657.53023 | E71: =IF('TD Siniestros'!D70="","",'TD Siniestros'!D70) -> -146.286424 | F71: =IF('TD Siniestros'!E70="","",'TD Siniestros'!E70) -> -4724.96638 | G71: =IF('TD Siniestros'!F70="","",'TD Siniestros'!F70) -> -2.644606494 | H71: =IF('TD Siniestros'!G70="","",'TD Siniestros'!G70) -> 5.05397136 | I71: -0.002563042909
B72: =IF('TD Siniestros'!A71="","",'TD Siniestros'!A71) -> 63 | C72: =IF('TD Siniestros'!B71="","",'TD Siniestros'!B71) -> Patrimonial Daños | D72: =IF('TD Siniestros'!C71="","",'TD Siniestros'!C71) -> 10926.71838 | E72: =IF('TD Siniestros'!D71="","",'TD Siniestros'!D71) -> 87.57861246 | F72: =IF('TD Siniestros'!E71="","",'TD Siniestros'!E71) -> 0 | G72: =IF('TD Siniestros'!F71="","",'TD Siniestros'!F71) -> 15.16618374 | H72: =IF('TD Siniestros'!G71="","",'TD Siniestros'!G71) -> 11.18262436 | I72: 0.0105382237
B73: =IF('TD Siniestros'!A72="","",'TD Siniestros'!A72) -> 64 | C73: =IF('TD Siniestros'!B72="","",'TD Siniestros'!B72) -> Assurant Daños | D73: =IF('TD Siniestros'!C72="","",'TD Siniestros'!C72) -> 19552.65269 | E73: =IF('TD Siniestros'!D72="","",'TD Siniestros'!D72) -> 74.3553356 | F73: =IF('TD Siniestros'!E72="","",'TD Siniestros'!E72) -> 148.32821 | G73: =IF('TD Siniestros'!F72="","",'TD Siniestros'!F72) -> 29.89317604 | H73: =IF('TD Siniestros'!G72="","",'TD Siniestros'!G72) -> 18.0731058 | I73: =IFERROR(D73/VLOOKUP("TOTAL",$C$8:$D$124,2,0)*100,"") -> 0.0188574667
B74: =IF('TD Siniestros'!A73="","",'TD Siniestros'!A73) -> 65 | C74: =IF('TD Siniestros'!B73="","",'TD Siniestros'!B73) -> MediAccess | D74: =IF('TD Siniestros'!C73="","",'TD Siniestros'!C73) -> 51471.83599 | E74: =IF('TD Siniestros'!D73="","",'TD Siniestros'!D73) -> 54.58336651 | F74: =IF('TD Siniestros'!E73="","",'TD Siniestros'!E73) -> 0 | G74: =IF('TD Siniestros'!F73="","",'TD Siniestros'!F73) -> 99.47195456 | H74: =IF('TD Siniestros'!G73="","",'TD Siniestros'!G73) -> 91.8832631 | I74: 0.04964177745
B75: =IF('TD Siniestros'!A74="","",'TD Siniestros'!A74) -> 66 | C75: =IF('TD Siniestros'!B74="","",'TD Siniestros'!B74) -> Centauro | D75: =IF('TD Siniestros'!C74="","",'TD Siniestros'!C74) -> 24760.92627 | E75: =IF('TD Siniestros'!D74="","",'TD Siniestros'!D74) -> 33.46191468 | F75: =IF('TD Siniestros'!E74="","",'TD Siniestros'!E74) -> 89.0368 | G75: =IF('TD Siniestros'!F74="","",'TD Siniestros'!F74) -> 56.54420829 | H75: =IF('TD Siniestros'!G74="","",'TD Siniestros'!G74) -> 53.05071136 | I75: 0.0238805624
B76: =IF('TD Siniestros'!A75="","",'TD Siniestros'!A75) -> 67 | C76: =IF('TD Siniestros'!B75="","",'TD Siniestros'!B75) -> Odontoprev | D76: =IF('TD Siniestros'!C75="","",'TD Siniestros'!C75) -> 5803.74884 | E76: =IF('TD Siniestros'!D75="","",'TD Siniestros'!D75) -> 7.015689657 | F76: =IF('TD Siniestros'!E75="","",'TD Siniestros'!E75) -> 0 | G76: =IF('TD Siniestros'!F75="","",'TD Siniestros'!F75) -> 15.22618862 | H76: =IF('TD Siniestros'!G75="","",'TD Siniestros'!G75) -> 47.09392569 | I76: 0.005597399097
B77: =IF('TD Siniestros'!A76="","",'TD Siniestros'!A76) -> 68 | C77: =IF('TD Siniestros'!B76="","",'TD Siniestros'!B76) -> Virginia Surety | D77: =IF('TD Siniestros'!C76="","",'TD Siniestros'!C76) -> 9368.66547 | E77: =IF('TD Siniestros'!D76="","",'TD Siniestros'!D76) -> 85.05443338 | F77: =IF('TD Siniestros'!E76="","",'TD Siniestros'!E76) -> 0 | G77: =IF('TD Siniestros'!F76="","",'TD Siniestros'!F76) -> 26.25160528 | H77: =IF('TD Siniestros'!G76="","",'TD Siniestros'!G76) -> 23.04802045 | I77: 0.00903556668
B78: =IF('TD Siniestros'!A77="","",'TD Siniestros'!A77) -> 69 | C78: =IF('TD Siniestros'!B77="","",'TD Siniestros'!B77) -> Genworth Seg. de Crédito | D78: =IF('TD Siniestros'!C77="","",'TD Siniestros'!C77) -> -272.83399 | E78: =IF('TD Siniestros'!D77="","",'TD Siniestros'!D77) -> -103.1448108 | F78: =IF('TD Siniestros'!E77="","",'TD Siniestros'!E77) -> 0 | G78: =IF('TD Siniestros'!F77="","",'TD Siniestros'!F77) -> -1.077953288 | H78: =IF('TD Siniestros'!G77="","",'TD Siniestros'!G77) -> 50.11262379 | I78: -0.0002631334972
B79: =IF('TD Siniestros'!A78="","",'TD Siniestros'!A78) -> 70 | C79: =IF('TD Siniestros'!B78="","",'TD Siniestros'!B78) -> Metlife Más | D79: =IF('TD Siniestros'!C78="","",'TD Siniestros'!C78) -> 405.1916 | E79: =IF('TD Siniestros'!D78="","",'TD Siniestros'!D78) -> -2168.791289 | F79: =IF('TD Siniestros'!E78="","",'TD Siniestros'!E78) -> 0 | G79: =IF('TD Siniestros'!F78="","",'TD Siniestros'!F78) -> 1.646269076 | H79: =IF('TD Siniestros'!G78="","",'TD Siniestros'!G78) -> -0.07935149688 | I79: 0.0003907851905
B80: =IF('TD Siniestros'!A79="","",'TD Siniestros'!A79) -> 71 | C80: =IF('TD Siniestros'!B79="","",'TD Siniestros'!B79) -> Crabi | D80: =IF('TD Siniestros'!C79="","",'TD Siniestros'!C79) -> 9879.74295 | E80: =IF('TD Siniestros'!D79="","",'TD Siniestros'!D79) -> 26.7127646 | F80: =IF('TD Siniestros'!E79="","",'TD Siniestros'!E79) -> 0 | G80: =IF('TD Siniestros'!F79="","",'TD Siniestros'!F79) -> 49.92458231 | H80: =IF('TD Siniestros'!G79="","",'TD Siniestros'!G79) -> 84.72834548 | I80: 0.009528473025
B81: =IF('TD Siniestros'!A80="","",'TD Siniestros'!A80) -> 72 | C81: =IF('TD Siniestros'!B80="","",'TD Siniestros'!B80) -> SPT | D81: =IF('TD Siniestros'!C80="","",'TD Siniestros'!C80) -> 5304.10575 | E81: =IF('TD Siniestros'!D80="","",'TD Siniestros'!D80) -> 37.35839914 | F81: =IF('TD Siniestros'!E80="","",'TD Siniestros'!E80) -> 0 | G81: =IF('TD Siniestros'!F80="","",'TD Siniestros'!F80) -> 51.64412925 | H81: =IF('TD Siniestros'!G80="","",'TD Siniestros'!G80) -> 50.20740105 | I81: 0.005115520598
B82: =IF('TD Siniestros'!A81="","",'TD Siniestros'!A81) -> 73 | C82: =IF('TD Siniestros'!B81="","",'TD Siniestros'!B81) -> Citibanamex Pensiones | D82: =IF('TD Siniestros'!C81="","",'TD Siniestros'!C81) -> 195153.2312 | E82: =IF('TD Siniestros'!D81="","",'TD Siniestros'!D81) -> 4.84127091 | F82: =IF('TD Siniestros'!E81="","",'TD Siniestros'!E81) -> 0 | G82: =IF('TD Siniestros'!F81="","",'TD Siniestros'!F81) -> 14034.67008 | H82: =IF('TD Siniestros'!G81="","",'TD Siniestros'!G81) -> 1654.47273 | I82: 0.1882146437
B83: =IF('TD Siniestros'!A82="","",'TD Siniestros'!A82) -> 74 | C83: =IF('TD Siniestros'!B82="","",'TD Siniestros'!B82) -> Metlife Pensiones | D83: =IF('TD Siniestros'!C82="","",'TD Siniestros'!C82) -> 91374.91887 | E83: =IF('TD Siniestros'!D82="","",'TD Siniestros'!D82) -> -0.04611396727 | F83: =IF('TD Siniestros'!E82="","",'TD Siniestros'!E82) -> 0 | G83: =IF('TD Siniestros'!F82="","",'TD Siniestros'!F82) -> 8333.500584 | H83: =IF('TD Siniestros'!G82="","",'TD Siniestros'!G82) -> 581.0682443 | I83: 0.08812612373
B84: =IF('TD Siniestros'!A83="","",'TD Siniestros'!A83) -> 75 | C84: =IF('TD Siniestros'!B83="","",'TD Siniestros'!B83) -> Pensiones Inbursa | D84: =IF('TD Siniestros'!C83="","",'TD Siniestros'!C83) -> 6364.39988 | E84: =IF('TD Siniestros'!D83="","",'TD Siniestros'!D83) -> 5.231319249 | F84: =IF('TD Siniestros'!E83="","",'TD Siniestros'!E83) -> 0 | G84: =IF('TD Siniestros'!F83="","",'TD Siniestros'!F83) -> 6957.864686 | H84: =IF('TD Siniestros'!G83="","",'TD Siniestros'!G83) -> 0 | I84: 0.006138116435
B85: =IF('TD Siniestros'!A84="","",'TD Siniestros'!A84) -> 76 | C85: =IF('TD Siniestros'!B84="","",'TD Siniestros'!B84) -> Quálitas Salud | D85: =IF('TD Siniestros'!C84="","",'TD Siniestros'!C84) -> 3052.34927 | E85: =IF('TD Siniestros'!D84="","",'TD Siniestros'!D84) -> 0 | F85: =IF('TD Siniestros'!E84="","",'TD Siniestros'!E84) -> 0 | G85: =IF('TD Siniestros'!F84="","",'TD Siniestros'!F84) -> -12021.52943 | H85: =IF('TD Siniestros'!G84="","",'TD Siniestros'!G84) -> 0 | I85: 0.002943824331
B86: =IF('TD Siniestros'!A85="","",'TD Siniestros'!A85) -> 77 | C86: =IF('TD Siniestros'!B85="","",'TD Siniestros'!B85) -> Zurich Daños | D86: =IF('TD Siniestros'!C85="","",'TD Siniestros'!C85) -> 0 | E86: =IF('TD Siniestros'!D85="","",'TD Siniestros'!D85) -> 0 | F86: =IF('TD Siniestros'!E85="","",'TD Siniestros'!E85) -> 0 | G86: =IF('TD Siniestros'!F85="","",'TD Siniestros'!F85) -> 0 | H86: =IF('TD Siniestros'!G85="","",'TD Siniestros'!G85) -> 0 | I86: 0
B87: =IF('TD Siniestros'!A86="","",'TD Siniestros'!A86) -> 78 | C87: =IF('TD Siniestros'!B86="","",'TD Siniestros'!B86) -> Aserta Seguros de Vida | D87: =IF('TD Siniestros'!C86="","",'TD Siniestros'!C86) -> -1151.05939 | E87: =IF('TD Siniestros'!D86="","",'TD Siniestros'!D86) -> -107.6057385 | F87: =IF('TD Siniestros'!E86="","",'TD Siniestros'!E86) -> 0 | G87: =IF('TD Siniestros'!F86="","",'TD Siniestros'!F86) -> 0 | H87: =IF('TD Siniestros'!G86="","",'TD Siniestros'!G86) -> 14359.32909 | I87: -0.001110133979
B88: =IF('TD Siniestros'!A87="","",'TD Siniestros'!A87) -> 79 | C88: =IF('TD Siniestros'!B87="","",'TD Siniestros'!B87) -> Zurich Vida | D88: =IF('TD Siniestros'!C87="","",'TD Siniestros'!C87) -> 0 | E88: =IF('TD Siniestros'!D87="","",'TD Siniestros'!D87) -> 0 | F88: =IF('TD Siniestros'!E87="","",'TD Siniestros'!E87) -> 0 | G88: =IF('TD Siniestros'!F87="","",'TD Siniestros'!F87) -> 0 | H88: =IF('TD Siniestros'!G87="","",'TD Siniestros'!G87) -> 0 | I88: 0
B89: =IF('TD Siniestros'!A88="","",'TD Siniestros'!A88) -> 80 | C89: =IF('TD Siniestros'!B88="","",'TD Siniestros'!B88) -> Principal México | D89: =IF('TD Siniestros'!C88="","",'TD Siniestros'!C88) -> 0 | E89: =IF('TD Siniestros'!D88="","",'TD Siniestros'!D88) -> 0 | F89: =IF('TD Siniestros'!E88="","",'TD Siniestros'!E88) -> 0 | G89: =IF('TD Siniestros'!F88="","",'TD Siniestros'!F88) -> 0 | H89: =IF('TD Siniestros'!G88="","",'TD Siniestros'!G88) -> 0 | I89: 0
B90: =IF('TD Siniestros'!A89="","",'TD Siniestros'!A89) -> 150.1 | C90: =IF('TD Siniestros'!B89="","",'TD Siniestros'!B89) -> TOTAL RESTO | D90: =IF('TD Siniestros'!C89="","",'TD Siniestros'!C89) -> 21661251.05 | E90: =IF('TD Siniestros'!D89="","",'TD Siniestros'!D89) -> 16.65863461 | F90: =IF('TD Siniestros'!E89="","",'TD Siniestros'!E89) -> 134922.6882 | G90: =IF('TD Siniestros'!F89="","",'TD Siniestros'!F89) -> 43.77394142 | H90: =IF('TD Siniestros'!G89="","",'TD Siniestros'!G89) -> 40.83404557 | I90: 20.89109478
B91: =IF('TD Siniestros'!A90="","",'TD Siniestros'!A90) -> 151.1 | C91: =IF('TD Siniestros'!B90="","",'TD Siniestros'!B90) -> TOTAL | D91: =IF('TD Siniestros'!C90="","",'TD Siniestros'!C90) -> 103686529 | E91: =IF('TD Siniestros'!D90="","",'TD Siniestros'!D90) -> 7.660339087 | F91: =IF('TD Siniestros'!E90="","",'TD Siniestros'!E90) -> 827800.1938 | G91: =IF('TD Siniestros'!F90="","",'TD Siniestros'!F90) -> 47.2193205 | H91: =IF('TD Siniestros'!G90="","",'TD Siniestros'!G90) -> 50.27322339 | I91: 100
B92: =IF('TD Siniestros'!A91="","",'TD Siniestros'!A91) -> 200 | C92: =IF('TD Siniestros'!B91="","",'TD Siniestros'!B91) -> Patria | D92: =IF('TD Siniestros'!C91="","",'TD Siniestros'!C91) -> 0 | E92: =IF('TD Siniestros'!D91="","",'TD Siniestros'!D91) -> 0 | F92: =IF('TD Siniestros'!E91="","",'TD Siniestros'!E91) -> 0 | G92: =IF('TD Siniestros'!F91="","",'TD Siniestros'!F91) -> 0 | H92: =IF('TD Siniestros'!G91="","",'TD Siniestros'!G91) -> 0 | I92: 0
B93: =IF('TD Siniestros'!A92="","",'TD Siniestros'!A92) ->  | C93: =IF('TD Siniestros'!B92="","",'TD Siniestros'!B92) ->  | D93: =IF('TD Siniestros'!C92="","",'TD Siniestros'!C92) ->  | E93: =IF('TD Siniestros'!D92="","",'TD Siniestros'!D92) ->  | F93: =IF('TD Siniestros'!E92="","",'TD Siniestros'!E92) ->  | G93: =IF('TD Siniestros'!F92="","",'TD Siniestros'!F92) ->  | H93: =IF('TD Siniestros'!G92="","",'TD Siniestros'!G92) -> 
B94: =IF('TD Siniestros'!A93="","",'TD Siniestros'!A93) ->  | C94: =IF('TD Siniestros'!B93="","",'TD Siniestros'!B93) ->  | D94: =IF('TD Siniestros'!C93="","",'TD Siniestros'!C93) ->  | E94: =IF('TD Siniestros'!D93="","",'TD Siniestros'!D93) ->  | F94: =IF('TD Siniestros'!E93="","",'TD Siniestros'!E93) ->  | G94: =IF('TD Siniestros'!F93="","",'TD Siniestros'!F93) ->  | H94: =IF('TD Siniestros'!G93="","",'TD Siniestros'!G93) -> 
B95: =IF('TD Siniestros'!A94="","",'TD Siniestros'!A94) ->  | C95: =IF('TD Siniestros'!B94="","",'TD Siniestros'!B94) ->  | D95: =IF('TD Siniestros'!C94="","",'TD Siniestros'!C94) ->  | E95: =IF('TD Siniestros'!D94="","",'TD Siniestros'!D94) ->  | F95: =IF('TD Siniestros'!E94="","",'TD Siniestros'!E94) ->  | G95: =IF('TD Siniestros'!F94="","",'TD Siniestros'!F94) ->  | H95: =IF('TD Siniestros'!G94="","",'TD Siniestros'!G94) -> 
B96: =IF('TD Siniestros'!A95="","",'TD Siniestros'!A95) ->  | C96: =IF('TD Siniestros'!B95="","",'TD Siniestros'!B95) ->  | D96: =IF('TD Siniestros'!C95="","",'TD Siniestros'!C95) ->  | E96: =IF('TD Siniestros'!D95="","",'TD Siniestros'!D95) ->  | F96: =IF('TD Siniestros'!E95="","",'TD Siniestros'!E95) ->  | G96: =IF('TD Siniestros'!F95="","",'TD Siniestros'!F95) ->  | H96: =IF('TD Siniestros'!G95="","",'TD Siniestros'!G95) -> 
B97: =IF('TD Siniestros'!A96="","",'TD Siniestros'!A96) ->  | C97: =IF('TD Siniestros'!B96="","",'TD Siniestros'!B96) ->  | D97: =IF('TD Siniestros'!C96="","",'TD Siniestros'!C96) ->  | E97: =IF('TD Siniestros'!D96="","",'TD Siniestros'!D96) ->  | F97: =IF('TD Siniestros'!E96="","",'TD Siniestros'!E96) ->  | G97: =IF('TD Siniestros'!F96="","",'TD Siniestros'!F96) ->  | H97: =IF('TD Siniestros'!G96="","",'TD Siniestros'!G96) -> 
B98: =IF('TD Siniestros'!A97="","",'TD Siniestros'!A97) ->  | C98: =IF('TD Siniestros'!B97="","",'TD Siniestros'!B97) ->  | D98: =IF('TD Siniestros'!C97="","",'TD Siniestros'!C97) ->  | E98: =IF('TD Siniestros'!D97="","",'TD Siniestros'!D97) ->  | F98: =IF('TD Siniestros'!E97="","",'TD Siniestros'!E97) ->  | G98: =IF('TD Siniestros'!F97="","",'TD Siniestros'!F97) ->  | H98: =IF('TD Siniestros'!G97="","",'TD Siniestros'!G97) -> 
B99: =IF('TD Siniestros'!A98="","",'TD Siniestros'!A98) ->  | C99: =IF('TD Siniestros'!B98="","",'TD Siniestros'!B98) ->  | D99: =IF('TD Siniestros'!C98="","",'TD Siniestros'!C98) ->  | E99: =IF('TD Siniestros'!D98="","",'TD Siniestros'!D98) ->  | F99: =IF('TD Siniestros'!E98="","",'TD Siniestros'!E98) ->  | G99: =IF('TD Siniestros'!F98="","",'TD Siniestros'!F98) ->  | H99: =IF('TD Siniestros'!G98="","",'TD Siniestros'!G98) -> 
B100: =IF('TD Siniestros'!A99="","",'TD Siniestros'!A99) ->  | C100: =IF('TD Siniestros'!B99="","",'TD Siniestros'!B99) ->  | D100: =IF('TD Siniestros'!C99="","",'TD Siniestros'!C99) ->  | E100: =IF('TD Siniestros'!D99="","",'TD Siniestros'!D99) ->  | F100: =IF('TD Siniestros'!E99="","",'TD Siniestros'!E99) ->  | G100: =IF('TD Siniestros'!F99="","",'TD Siniestros'!F99) ->  | H100: =IF('TD Siniestros'!G99="","",'TD Siniestros'!G99) -> 
B101: =IF('TD Siniestros'!A100="","",'TD Siniestros'!A100) ->  | C101: =IF('TD Siniestros'!B100="","",'TD Siniestros'!B100) ->  | D101: =IF('TD Siniestros'!C100="","",'TD Siniestros'!C100) ->  | E101: =IF('TD Siniestros'!D100="","",'TD Siniestros'!D100) ->  | F101: =IF('TD Siniestros'!E100="","",'TD Siniestros'!E100) ->  | G101: =IF('TD Siniestros'!F100="","",'TD Siniestros'!F100) ->  | H101: =IF('TD Siniestros'!G100="","",'TD Siniestros'!G100) -> 
B102: =IF('TD Siniestros'!A101="","",'TD Siniestros'!A101) ->  | C102: =IF('TD Siniestros'!B101="","",'TD Siniestros'!B101) ->  | D102: =IF('TD Siniestros'!C101="","",'TD Siniestros'!C101) ->  | E102: =IF('TD Siniestros'!D101="","",'TD Siniestros'!D101) ->  | F102: =IF('TD Siniestros'!E101="","",'TD Siniestros'!E101) ->  | G102: =IF('TD Siniestros'!F101="","",'TD Siniestros'!F101) ->  | H102: =IF('TD Siniestros'!G101="","",'TD Siniestros'!G101) -> 
B103: =IF('TD Siniestros'!A102="","",'TD Siniestros'!A102) ->  | C103: =IF('TD Siniestros'!B102="","",'TD Siniestros'!B102) ->  | D103: =IF('TD Siniestros'!C102="","",'TD Siniestros'!C102) ->  | E103: =IF('TD Siniestros'!D102="","",'TD Siniestros'!D102) ->  | F103: =IF('TD Siniestros'!E102="","",'TD Siniestros'!E102) ->  | G103: =IF('TD Siniestros'!F102="","",'TD Siniestros'!F102) ->  | H103: =IF('TD Siniestros'!G102="","",'TD Siniestros'!G102) -> 
B104: =IF('TD Siniestros'!A103="","",'TD Siniestros'!A103) ->  | C104: =IF('TD Siniestros'!B103="","",'TD Siniestros'!B103) ->  | D104: =IF('TD Siniestros'!C103="","",'TD Siniestros'!C103) ->  | E104: =IF('TD Siniestros'!D103="","",'TD Siniestros'!D103) ->  | F104: =IF('TD Siniestros'!E103="","",'TD Siniestros'!E103) ->  | G104: =IF('TD Siniestros'!F103="","",'TD Siniestros'!F103) ->  | H104: =IF('TD Siniestros'!G103="","",'TD Siniestros'!G103) -> 
B105: =IF('TD Siniestros'!A104="","",'TD Siniestros'!A104) ->  | C105: =IF('TD Siniestros'!B104="","",'TD Siniestros'!B104) ->  | D105: =IF('TD Siniestros'!C104="","",'TD Siniestros'!C104) ->  | E105: =IF('TD Siniestros'!D104="","",'TD Siniestros'!D104) ->  | F105: =IF('TD Siniestros'!E104="","",'TD Siniestros'!E104) ->  | G105: =IF('TD Siniestros'!F104="","",'TD Siniestros'!F104) ->  | H105: =IF('TD Siniestros'!G104="","",'TD Siniestros'!G104) -> 
B106: =IF('TD Siniestros'!A105="","",'TD Siniestros'!A105) ->  | C106: =IF('TD Siniestros'!B105="","",'TD Siniestros'!B105) ->  | D106: =IF('TD Siniestros'!C105="","",'TD Siniestros'!C105) ->  | E106: =IF('TD Siniestros'!D105="","",'TD Siniestros'!D105) ->  | F106: =IF('TD Siniestros'!E105="","",'TD Siniestros'!E105) ->  | G106: =IF('TD Siniestros'!F105="","",'TD Siniestros'!F105) ->  | H106: =IF('TD Siniestros'!G105="","",'TD Siniestros'!G105) -> 
B107: =IF('TD Siniestros'!A106="","",'TD Siniestros'!A106) ->  | C107: =IF('TD Siniestros'!B106="","",'TD Siniestros'!B106) ->  | D107: =IF('TD Siniestros'!C106="","",'TD Siniestros'!C106) ->  | E107: =IF('TD Siniestros'!D106="","",'TD Siniestros'!D106) ->  | F107: =IF('TD Siniestros'!E106="","",'TD Siniestros'!E106) ->  | G107: =IF('TD Siniestros'!F106="","",'TD Siniestros'!F106) ->  | H107: =IF('TD Siniestros'!G106="","",'TD Siniestros'!G106) -> 
B108: =IF('TD Siniestros'!A107="","",'TD Siniestros'!A107) ->  | C108: =IF('TD Siniestros'!B107="","",'TD Siniestros'!B107) ->  | D108: =IF('TD Siniestros'!C107="","",'TD Siniestros'!C107) ->  | E108: =IF('TD Siniestros'!D107="","",'TD Siniestros'!D107) ->  | F108: =IF('TD Siniestros'!E107="","",'TD Siniestros'!E107) ->  | G108: =IF('TD Siniestros'!F107="","",'TD Siniestros'!F107) ->  | H108: =IF('TD Siniestros'!G107="","",'TD Siniestros'!G107) -> 
B109: =IF('TD Siniestros'!A108="","",'TD Siniestros'!A108) ->  | C109: =IF('TD Siniestros'!B108="","",'TD Siniestros'!B108) ->  | D109: =IF('TD Siniestros'!C108="","",'TD Siniestros'!C108) ->  | E109: =IF('TD Siniestros'!D108="","",'TD Siniestros'!D108) ->  | F109: =IF('TD Siniestros'!E108="","",'TD Siniestros'!E108) ->  | G109: =IF('TD Siniestros'!F108="","",'TD Siniestros'!F108) ->  | H109: =IF('TD Siniestros'!G108="","",'TD Siniestros'!G108) -> 
B110: =IF('TD Siniestros'!A109="","",'TD Siniestros'!A109) ->  | C110: =IF('TD Siniestros'!B109="","",'TD Siniestros'!B109) ->  | D110: =IF('TD Siniestros'!C109="","",'TD Siniestros'!C109) ->  | E110: =IF('TD Siniestros'!D109="","",'TD Siniestros'!D109) ->  | F110: =IF('TD Siniestros'!E109="","",'TD Siniestros'!E109) ->  | G110: =IF('TD Siniestros'!F109="","",'TD Siniestros'!F109) ->  | H110: =IF('TD Siniestros'!G109="","",'TD Siniestros'!G109) -> 
B111: =IF('TD Siniestros'!A110="","",'TD Siniestros'!A110) ->  | C111: =IF('TD Siniestros'!B110="","",'TD Siniestros'!B110) ->  | D111: =IF('TD Siniestros'!C110="","",'TD Siniestros'!C110) ->  | E111: =IF('TD Siniestros'!D110="","",'TD Siniestros'!D110) ->  | F111: =IF('TD Siniestros'!E110="","",'TD Siniestros'!E110) ->  | G111: =IF('TD Siniestros'!F110="","",'TD Siniestros'!F110) ->  | H111: =IF('TD Siniestros'!G110="","",'TD Siniestros'!G110) -> 
B112: =IF('TD Siniestros'!A111="","",'TD Siniestros'!A111) ->  | C112: =IF('TD Siniestros'!B111="","",'TD Siniestros'!B111) ->  | D112: =IF('TD Siniestros'!C111="","",'TD Siniestros'!C111) ->  | E112: =IF('TD Siniestros'!D111="","",'TD Siniestros'!D111) ->  | F112: =IF('TD Siniestros'!E111="","",'TD Siniestros'!E111) ->  | G112: =IF('TD Siniestros'!F111="","",'TD Siniestros'!F111) ->  | H112: =IF('TD Siniestros'!G111="","",'TD Siniestros'!G111) -> 
B113: =IF('TD Siniestros'!A112="","",'TD Siniestros'!A112) ->  | C113: =IF('TD Siniestros'!B112="","",'TD Siniestros'!B112) ->  | D113: =IF('TD Siniestros'!C112="","",'TD Siniestros'!C112) ->  | E113: =IF('TD Siniestros'!D112="","",'TD Siniestros'!D112) ->  | F113: =IF('TD Siniestros'!E112="","",'TD Siniestros'!E112) ->  | G113: =IF('TD Siniestros'!F112="","",'TD Siniestros'!F112) ->  | H113: =IF('TD Siniestros'!G112="","",'TD Siniestros'!G112) -> 
B114: =IF('TD Siniestros'!A113="","",'TD Siniestros'!A113) ->  | C114: =IF('TD Siniestros'!B113="","",'TD Siniestros'!B113) ->  | D114: =IF('TD Siniestros'!C113="","",'TD Siniestros'!C113) ->  | E114: =IF('TD Siniestros'!D113="","",'TD Siniestros'!D113) ->  | F114: =IF('TD Siniestros'!E113="","",'TD Siniestros'!E113) ->  | G114: =IF('TD Siniestros'!F113="","",'TD Siniestros'!F113) ->  | H114: =IF('TD Siniestros'!G113="","",'TD Siniestros'!G113) -> 
B115: =IF('TD Siniestros'!A114="","",'TD Siniestros'!A114) ->  | C115: =IF('TD Siniestros'!B114="","",'TD Siniestros'!B114) ->  | D115: =IF('TD Siniestros'!C114="","",'TD Siniestros'!C114) ->  | E115: =IF('TD Siniestros'!D114="","",'TD Siniestros'!D114) ->  | F115: =IF('TD Siniestros'!E114="","",'TD Siniestros'!E114) ->  | G115: =IF('TD Siniestros'!F114="","",'TD Siniestros'!F114) ->  | H115: =IF('TD Siniestros'!G114="","",'TD Siniestros'!G114) -> 
B116: =IF('TD Siniestros'!A115="","",'TD Siniestros'!A115) ->  | C116: =IF('TD Siniestros'!B115="","",'TD Siniestros'!B115) ->  | D116: =IF('TD Siniestros'!C115="","",'TD Siniestros'!C115) ->  | E116: =IF('TD Siniestros'!D115="","",'TD Siniestros'!D115) ->  | F116: =IF('TD Siniestros'!E115="","",'TD Siniestros'!E115) ->  | G116: =IF('TD Siniestros'!F115="","",'TD Siniestros'!F115) ->  | H116: =IF('TD Siniestros'!G115="","",'TD Siniestros'!G115) -> 
B117: =IF('TD Siniestros'!A116="","",'TD Siniestros'!A116) ->  | C117: =IF('TD Siniestros'!B116="","",'TD Siniestros'!B116) ->  | D117: =IF('TD Siniestros'!C116="","",'TD Siniestros'!C116) ->  | E117: =IF('TD Siniestros'!D116="","",'TD Siniestros'!D116) ->  | F117: =IF('TD Siniestros'!E116="","",'TD Siniestros'!E116) ->  | G117: =IF('TD Siniestros'!F116="","",'TD Siniestros'!F116) ->  | H117: =IF('TD Siniestros'!G116="","",'TD Siniestros'!G116) -> 
B118: =IF('TD Siniestros'!A117="","",'TD Siniestros'!A117) ->  | C118: =IF('TD Siniestros'!B117="","",'TD Siniestros'!B117) ->  | D118: =IF('TD Siniestros'!C117="","",'TD Siniestros'!C117) ->  | E118: =IF('TD Siniestros'!D117="","",'TD Siniestros'!D117) ->  | F118: =IF('TD Siniestros'!E117="","",'TD Siniestros'!E117) ->  | G118: =IF('TD Siniestros'!F117="","",'TD Siniestros'!F117) ->  | H118: =IF('TD Siniestros'!G117="","",'TD Siniestros'!G117) -> 
B119: =IF('TD Siniestros'!A118="","",'TD Siniestros'!A118) ->  | C119: =IF('TD Siniestros'!B118="","",'TD Siniestros'!B118) ->  | D119: =IF('TD Siniestros'!C118="","",'TD Siniestros'!C118) ->  | E119: =IF('TD Siniestros'!D118="","",'TD Siniestros'!D118) ->  | F119: =IF('TD Siniestros'!E118="","",'TD Siniestros'!E118) ->  | G119: =IF('TD Siniestros'!F118="","",'TD Siniestros'!F118) ->  | H119: =IF('TD Siniestros'!G118="","",'TD Siniestros'!G118) -> 
B120: =IF('TD Siniestros'!A119="","",'TD Siniestros'!A119) ->  | C120: =IF('TD Siniestros'!B119="","",'TD Siniestros'!B119) ->  | D120: =IF('TD Siniestros'!C119="","",'TD Siniestros'!C119) ->  | E120: =IF('TD Siniestros'!D119="","",'TD Siniestros'!D119) ->  | F120: =IF('TD Siniestros'!E119="","",'TD Siniestros'!E119) ->  | G120: =IF('TD Siniestros'!F119="","",'TD Siniestros'!F119) ->  | H120: =IF('TD Siniestros'!G119="","",'TD Siniestros'!G119) -> 
B121: =IF('TD Siniestros'!A120="","",'TD Siniestros'!A120) ->  | C121: =IF('TD Siniestros'!B120="","",'TD Siniestros'!B120) ->  | D121: =IF('TD Siniestros'!C120="","",'TD Siniestros'!C120) ->  | E121: =IF('TD Siniestros'!D120="","",'TD Siniestros'!D120) ->  | F121: =IF('TD Siniestros'!E120="","",'TD Siniestros'!E120) ->  | G121: =IF('TD Siniestros'!F120="","",'TD Siniestros'!F120) ->  | H121: =IF('TD Siniestros'!G120="","",'TD Siniestros'!G120) -> 
B122: =IF('TD Siniestros'!A121="","",'TD Siniestros'!A121) ->  | C122: =IF('TD Siniestros'!B121="","",'TD Siniestros'!B121) ->  | D122: =IF('TD Siniestros'!C121="","",'TD Siniestros'!C121) ->  | E122: =IF('TD Siniestros'!D121="","",'TD Siniestros'!D121) ->  | F122: =IF('TD Siniestros'!E121="","",'TD Siniestros'!E121) ->  | G122: =IF('TD Siniestros'!F121="","",'TD Siniestros'!F121) ->  | H122: =IF('TD Siniestros'!G121="","",'TD Siniestros'!G121) -> 
B123: =IF('TD Siniestros'!A122="","",'TD Siniestros'!A122) ->  | C123: =IF('TD Siniestros'!B122="","",'TD Siniestros'!B122) ->  | D123: =IF('TD Siniestros'!C122="","",'TD Siniestros'!C122) ->  | E123: =IF('TD Siniestros'!D122="","",'TD Siniestros'!D122) ->  | F123: =IF('TD Siniestros'!E122="","",'TD Siniestros'!E122) ->  | G123: =IF('TD Siniestros'!F122="","",'TD Siniestros'!F122) ->  | H123: =IF('TD Siniestros'!G122="","",'TD Siniestros'!G122) -> 
B124: =IF('TD Siniestros'!A123="","",'TD Siniestros'!A123) ->  | C124: =IF('TD Siniestros'!B123="","",'TD Siniestros'!B123) ->  | D124: =IF('TD Siniestros'!C123="","",'TD Siniestros'!C123) ->  | E124: =IF('TD Siniestros'!D123="","",'TD Siniestros'!D123) ->  | F124: =IF('TD Siniestros'!E123="","",'TD Siniestros'!E123) ->  | G124: =IF('TD Siniestros'!F123="","",'TD Siniestros'!F123) ->  | H124: =IF('TD Siniestros'!G123="","",'TD Siniestros'!G123) -> 

Sheet Primas Directas (Vida)
C1: Análisis de Primas Directas | L1: ='Primas Directas'!L1 -> Primer Trimestre 2023
C2: =UPPER(RIGHT('TDPrimas Vida'!B3,LEN('TDPrimas Vida'!B3)-3)) -> VIDA TOTAL
L3: Cifras en miles
E4: 2 | F4: 3 | G4: 4 | H4: 5 | I4: 6 | J4: 7 | K4: 8 | L4: 9
E5: Primas Directas | G5: % Part. en Merc. | I5: Incremento | K5: % de Cartera
C6: Compañías | E6: ='Primas Directas'!$D$6 -> 2023 | F6: ='Primas Directas'!$E$6 -> 2022 | G6: =$E$6 -> 2023 | H6: =$F$6 -> 2022 | I6: Importe | J6: % | K6: Por | L6: Total
E7: Importe | F7: Importe | K7: Operación | L7: Cartera
B8: =IF(C8="",B2,D8) -> TOTAL | C8: 151.1 | D8: TOTAL | E8: =VLOOKUP($D8,$D$12:$L$211,E$4,0) -> 83951294.72 | F8: =VLOOKUP($D8,$D$12:$L$211,F$4,0) -> 77974362.67 | G8: 100 | H8: 107.6652528 | I8: 5976932.047 | J8: 7.665252837 | K8: 38.23180435 | L8: 46.35570879
B9: =IF(C9="",B8,D9) -> TOTAL | D9: =IF(D8="","","1er Año") -> 1er Año | E9: =IF(E8="","",(VLOOKUP(B9,'TDPrimas Vida'!$B:$N,5,0))) -> 35800375.31 | F9: =IF(E8="","",(VLOOKUP(B9,'TDPrimas Vida'!$B:$N,6,0))) -> 31584970.64 | G9: =IFERROR((E9/VLOOKUP("TOTAL",$D$12:$L$312,2,0))*100,"") -> 42.6442206 | H9: =IFERROR((E9/VLOOKUP("TOTAL",$D$12:$L$312,3,0))*100,"") -> 45.91300793 | I9: =IF(E8="","",E9-F9) -> 4215404.672 | J9: =IF(E8="","",IFERROR((E9/F9-1)*100,"ND")) -> 13.34623584 | K9: =IF(E8="","",IFERROR((E9/VLOOKUP(B9&"|"&VLOOKUP(TDPrimas!$B$4,Cat!R:T,2,0),'TD Operación'!A:D,4,0))*100,"ND")) -> 16.30365499 | L9: =IF(E8="","",(VLOOKUP(B9,'TDPrimas Vida'!$B:$N,7,0))) -> 19.76803072
B10: TOTAL | D10: =IF(D9="","","Renovación") -> Renovación | E10: =IF(E8="","",(VLOOKUP(B10,'TDPrimas Vida'!$B:$N,8,0))) -> 38552532.42 | F10: =IF(E8="","",(VLOOKUP(B10,'TDPrimas Vida'!$B:$N,9,0))) -> 38778823.26 | G10: =IFERROR((E10/VLOOKUP("TOTAL",$D$12:$L$312,2,0))*100,"") -> 45.92249893 | H10: =IFERROR((E10/VLOOKUP("TOTAL",$D$12:$L$312,3,0))*100,"") -> 49.44257458 | I10: =IF(E8="","",E10-F10) -> -226290.8455 | J10: =IF(E8="","",IFERROR((E10/F10-1)*100,"ND")) -> -0.5835423216 | K10: =IF(E8="","",IFERROR((E10/VLOOKUP(B10&"|"&VLOOKUP(TDPrimas!$B$4,Cat!R:T,2,0),'TD Operación'!A:D,4,0))*100,"ND")) -> 17.55699994 | L10: =IF(E8="","",(VLOOKUP(B10,'TDPrimas Vida'!$B:$N,10,0))) -> 21.28769987
B11: TOTAL | D11: =IF(D10="","","Únicas") -> Únicas | E11: =IF(E9="","",(VLOOKUP(B11,'TDPrimas Vida'!$B:$N,11,0))) -> 8905240.266 | F11: =IF(E9="","",(VLOOKUP(B11,'TDPrimas Vida'!$B:$N,12,0))) -> 6964396.329 | G11: =IFERROR((E11/VLOOKUP("TOTAL",$D$12:$L$312,2,0))*100,"") -> 10.60762707 | H11: =IFERROR((E11/VLOOKUP("TOTAL",$D$12:$L$312,3,0))*100,"") -> 11.42072851 | I11: =IF(E8="","",E11-F11) -> 1940843.937 | J11: =IF(E8="","",IFERROR((E11/F11-1)*100,"ND")) -> 27.86808569 | K11: =IF(E8="","",IFERROR((E11/VLOOKUP(B11&"|"&VLOOKUP(TDPrimas!$B$4,Cat!R:T,2,0),'TD Operación'!A:D,4,0))*100,"ND")) -> 4.055487228 | L11: =IF(E8="","",(VLOOKUP(B11,'TDPrimas Vida'!$B:$N,13,0))) -> 4.917240715
B12: =IF(C12="",B7,D12) -> Metlife México | C12: =IF('TDPrimas Vida'!A7="","",'TDPrimas Vida'!A7) -> 1 | D12: =IF('TDPrimas Vida'!B7="","",'TDPrimas Vida'!B7) -> Metlife México | E12: =IF('TDPrimas Vida'!C7="","",'TDPrimas Vida'!C7) -> 17646520.23 | F12: =IF('TDPrimas Vida'!D7="","",'TDPrimas Vida'!D7) -> 16817655.51 | G12: =IF('TDPrimas Vida'!C7="","",IFERROR((E12/VLOOKUP("TOTAL",$D$12:$L$312,2,0))*100,"")) -> 21.01995007 | H12: =IF('TDPrimas Vida'!C7="","",IFERROR((E12/VLOOKUP("TOTAL",$D$12:$L$312,3,0))*100,"")) -> 22.63118238 | I12: =IF('TDPrimas Vida'!C7="","",E12-F12) -> 828864.7189 | J12: =IFERROR(IF('TDPrimas Vida'!C7="","",(E12/F12-1)*100),"ND") -> 4.928539049 | K12: =IFERROR((E12/VLOOKUP(B12&"|"&VLOOKUP(TDPrimas!$B$4,Cat!R:T,2,0),'TD Operación'!A:D,4,0))*100,"ND") -> 67.61887884 | L12: =IF('TDPrimas Vida'!E7="","",'TDPrimas Vida'!E7) -> 67.61887884
B13: =IF(C13="",B12,D13) -> Metlife México | D13: =IF(D12="","","1er Año") -> 1er Año | E13: =IF(E12="","",(VLOOKUP(B13,'TDPrimas Vida'!$B:$N,5,0))) -> 2509547.385 | F13: =IF(E12="","",(VLOOKUP(B13,'TDPrimas Vida'!$B:$N,6,0))) -> 2309419.296 | G13: =IFERROR((E13/VLOOKUP("TOTAL",$D$12:$L$312,2,0))*100,"") -> 2.989289675 | H13: =IFERROR((E13/VLOOKUP("TOTAL",$D$12:$L$312,3,0))*100,"") -> 3.218426287 | I13: =IF(E12="","",E13-F13) -> 200128.089 | J13: =IF(E12="","",IFERROR((E13/F13-1)*100,"ND")) -> 8.665732086 | K13: =IF(E12="","",IFERROR((E13/VLOOKUP(B13&"|"&VLOOKUP(TDPrimas!$B$4,Cat!R:T,2,0),'TD Operación'!A:D,4,0))*100,"ND")) -> 9.616217724 | L13: =IF(E12="","",(VLOOKUP(B13,'TDPrimas Vida'!$B:$N,7,0))) -> 9.616217724
B14: Metlife México | D14: =IF(D13="","","Renovación") -> Renovación | E14: =IF(E12="","",(VLOOKUP(B14,'TDPrimas Vida'!$B:$N,8,0))) -> 13356148.1 | F14: =IF(E12="","",(VLOOKUP(B14,'TDPrimas Vida'!$B:$N,9,0))) -> 13013045.22 | G14: =IFERROR((E14/VLOOKUP("TOTAL",$D$12:$L$312,2,0))*100,"") -> 15.90940097 | H14: =IFERROR((E14/VLOOKUP("TOTAL",$D$12:$L$312,3,0))*100,"") -> 17.12889678 | I14: =IF(E12="","",E14-F14) -> 343102.8801 | J14: =IF(E12="","",IFERROR((E14/F14-1)*100,"ND")) -> 2.636607146 | K14: =IF(E12="","",IFERROR((E14/VLOOKUP(B14&"|"&VLOOKUP(TDPrimas!$B$4,Cat!R:T,2,0),'TD Operación'!A:D,4,0))*100,"ND")) -> 51.17880173 | L14: =IF(E12="","",(VLOOKUP(B14,'TDPrimas Vida'!$B:$N,10,0))) -> 51.17880173
B15: Metlife México | D15: =IF(D14="","","Únicas") -> Únicas | E15: =IF(E13="","",(VLOOKUP(B15,'TDPrimas Vida'!$B:$N,11,0))) -> 1780824.747 | F15: =IF(E13="","",(VLOOKUP(B15,'TDPrimas Vida'!$B:$N,12,0))) -> 1495190.997 | G15: =IFERROR((E15/VLOOKUP("TOTAL",$D$12:$L$312,2,0))*100,"") -> 2.121259419 | H15: =IFERROR((E15/VLOOKUP("TOTAL",$D$12:$L$312,3,0))*100,"") -> 2.283859317 | I15: =IF(E12="","",E15-F15) -> 285633.7499 | J15: =IF(E12="","",IFERROR((E15/F15-1)*100,"ND")) -> 19.10349584 | K15: =IF(E12="","",IFERROR((E15/VLOOKUP(B15&"|"&VLOOKUP(TDPrimas!$B$4,Cat!R:T,2,0),'TD Operación'!A:D,4,0))*100,"ND")) -> 6.82385939 | L15: =IF(E12="","",(VLOOKUP(B15,'TDPrimas Vida'!$B:$N,13,0))) -> 6.82385939
B16: BBVA Bancomer | C16: =IF('TDPrimas Vida'!A8="","",'TDPrimas Vida'!A8) -> 2 | D16: =IF('TDPrimas Vida'!B8="","",'TDPrimas Vida'!B8) -> BBVA Bancomer | E16: =IF('TDPrimas Vida'!C8="","",'TDPrimas Vida'!C8) -> 13962952.19 | F16: =IF('TDPrimas Vida'!D8="","",'TDPrimas Vida'!D8) -> 11906835.16 | G16: =IF('TDPrimas Vida'!C8="","",IFERROR((E16/VLOOKUP("TOTAL",$D$12:$L$312,2,0))*100,"")) -> 16.63220589 | H16: =IF('TDPrimas Vida'!C8="","",IFERROR((E16/VLOOKUP("TOTAL",$D$12:$L$312,3,0))*100,"")) -> 17.90710653 | I16: =IF('TDPrimas Vida'!C8="","",E16-F16) -> 2056117.028 | J16: =IFERROR(IF('TDPrimas Vida'!C8="","",(E16/F16-1)*100),"ND") -> 17.26837568 | K16: =IF(E16="","",IFERROR((E16/VLOOKUP(D16&"|"&VLOOKUP(TDPrimas!$B$4,Cat!R:T,2,0),'TD Operación'!A:D,4,0))*100,"ND")) -> 79.3175929 | L16: =IF('TDPrimas Vida'!E8="","",'TDPrimas Vida'!E8) -> 79.3175929
B17: BBVA Bancomer | D17: =IF(D16="","","1er Año") -> 1er Año | E17: =IF(E16="","",(VLOOKUP(B17,'TDPrimas Vida'!$B:$N,5,0))) -> 12113834.81 | F17: =IF(E16="","",(VLOOKUP(B17,'TDPrimas Vida'!$B:$N,6,0))) -> 10376484.5 | G17: =IFERROR((E17/VLOOKUP("TOTAL",$D$12:$L$312,2,0))*100,"") -> 14.42959856 | H17: =IFERROR((E17/VLOOKUP("TOTAL",$D$12:$L$312,3,0))*100,"") -> 15.53566377 | I17: =IF(E16="","",E17-F17) -> 1737350.319 | J17: =IF(E16="","",IFERROR((E17/F17-1)*100,"ND")) -> 16.74314957 | K17: =IF(E16="","",IFERROR((E17/VLOOKUP(B17&"|"&VLOOKUP(TDPrimas!$B$4,Cat!R:T,2,0),'TD Operación'!A:D,4,0))*100,"ND")) -> 68.81354353 | L17: =IF(E16="","",(VLOOKUP(B17,'TDPrimas Vida'!$B:$N,7,0))) -> 68.81354353
B18: BBVA Bancomer | D18: =IF(D17="","","Renovación") -> Renovación | E18: =IF(E16="","",(VLOOKUP(B18,'TDPrimas Vida'!$B:$N,8,0))) -> 1233041.753 | F18: =IF(E16="","",(VLOOKUP(B18,'TDPrimas Vida'!$B:$N,9,0))) -> 1081815.683 | G18: =IFERROR((E18/VLOOKUP("TOTAL",$D$12:$L$312,2,0))*100,"") -> 1.468758472 | H18: =IFERROR((E18/VLOOKUP("TOTAL",$D$12:$L$312,3,0))*100,"") -> 1.581342522 | I18: =IF(E16="","",E18-F18) -> 151226.0702 | J18: =IF(E16="","",IFERROR((E18/F18-1)*100,"ND")) -> 13.97891273 | K18: =IF(E16="","",IFERROR((E18/VLOOKUP(B18&"|"&VLOOKUP(TDPrimas!$B$4,Cat!R:T,2,0),'TD Operación'!A:D,4,0))*100,"ND")) -> 7.004385784 | L18: =IF(E16="","",(VLOOKUP(B18,'TDPrimas Vida'!$B:$N,10,0))) -> 7.004385784
B19: BBVA Bancomer | D19: =IF(D18="","","Únicas") -> Únicas | E19: =IF(E17="","",(VLOOKUP(B19,'TDPrimas Vida'!$B:$N,11,0))) -> 616075.621 | F19: =IF(E17="","",(VLOOKUP(B19,'TDPrimas Vida'!$B:$N,12,0))) -> 448534.9825 | G19: =IFERROR((E19/VLOOKUP("TOTAL",$D$12:$L$312,2,0))*100,"") -> 0.733848862 | H19: =IFERROR((E19/VLOOKUP("TOTAL",$D$12:$L$312,3,0))*100,"") -> 0.7901002327 | I19: =IF(E16="","",E19-F19) -> 167540.6385 | J19: =IF(E16="","",IFERROR((E19/F19-1)*100,"ND")) -> 37.35285875 | K19: =IF(E16="","",IFERROR((E19/VLOOKUP(B19&"|"&VLOOKUP(TDPrimas!$B$4,Cat!R:T,2,0),'TD Operación'!A:D,4,0))*100,"ND")) -> 3.499663584 | L19: =IF(E16="","",(VLOOKUP(B19,'TDPrimas Vida'!$B:$N,13,0))) -> 3.499663584
B20: =IF(C20="",B16,D20) -> G.N.P. | C20: =IF('TDPrimas Vida'!A9="","",'TDPrimas Vida'!A9) -> 3 | D20: =IF('TDPrimas Vida'!B9="","",'TDPrimas Vida'!B9) -> G.N.P. | E20: =IF('TDPrimas Vida'!C9="","",'TDPrimas Vida'!C9) -> 8699615.618 | F20: =IF('TDPrimas Vida'!D9="","",'TDPrimas Vida'!D9) -> 7352217.247 | G20: =IF('TDPrimas Vida'!C9="","",IFERROR((E20/VLOOKUP("TOTAL",$D$12:$L$312,2,0))*100,"")) -> 10.36269381 | H20: =IF('TDPrimas Vida'!C9="","",IFERROR((E20/VLOOKUP("TOTAL",$D$12:$L$312,3,0))*100,"")) -> 11.15702049 | I20: =IF('TDPrimas Vida'!C9="","",E20-F20) -> 1347398.371 | J20: =IFERROR(IF('TDPrimas Vida'!C9="","",(E20/F20-1)*100),"ND") -> 18.32642216 | K20: =IF(E20="","",IFERROR((E20/VLOOKUP(D20&"|"&VLOOKUP(TDPrimas!$B$4,Cat!R:T,2,0),'TD Operación'!A:D,4,0))*100,"ND")) -> 32.61137523 | L20: =IF('TDPrimas Vida'!E9="","",'TDPrimas Vida'!E9) -> 32.61137523
B21: =IF(C21="",B20,D21) -> G.N.P. | D21: =IF(D20="","","1er Año") -> 1er Año | E21: =IF(E20="","",(VLOOKUP(B21,'TDPrimas Vida'!$B:$N,5,0))) -> 2289790.269 | F21: =IF(E20="","",(VLOOKUP(B21,'TDPrimas Vida'!$B:$N,6,0))) -> 1512666.537 | G21: =IFERROR((E21/VLOOKUP("TOTAL",$D$12:$L$312,2,0))*100,"") -> 2.727522281 | H21: =IFERROR((E21/VLOOKUP("TOTAL",$D$12:$L$312,3,0))*100,"") -> 2.93659376 | I21: =IF(E20="","",E21-F21) -> 777123.7319 | J21: =IF(E20="","",IFERROR((E21/F21-1)*100,"ND")) -> 51.37442477 | K21: =IF(E20="","",IFERROR((E21/VLOOKUP(B21&"|"&VLOOKUP(TDPrimas!$B$4,Cat!R:T,2,0),'TD Operación'!A:D,4,0))*100,"ND")) -> 8.583506782 | L21: =IF(E20="","",(VLOOKUP(B21,'TDPrimas Vida'!$B:$N,7,0))) -> 8.583506782
B22: =IF(C22="",B21,D22) -> G.N.P. | D22: =IF(D21="","","Renovación") -> Renovación | E22: =IF(E20="","",(VLOOKUP(B22,'TDPrimas Vida'!$B:$N,8,0))) -> 4211545.644 | F22: =IF(E20="","",(VLOOKUP(B22,'TDPrimas Vida'!$B:$N,9,0))) -> 4189906.701 | G22: =IFERROR((E22/VLOOKUP("TOTAL",$D$12:$L$312,2,0))*100,"") -> 5.016653595 | H22: =IFERROR((E22/VLOOKUP("TOTAL",$D$12:$L$312,3,0))*100,"") -> 5.401192777 | I22: =IF(E20="","",E22-F22) -> 21638.94299 | J22: =IF(E20="","",IFERROR((E22/F22-1)*100,"ND")) -> 0.5164540533 | K22: =IF(E20="","",IFERROR((E22/VLOOKUP(B22&"|"&VLOOKUP(TDPrimas!$B$4,Cat!R:T,2,0),'TD Operación'!A:D,4,0))*100,"ND")) -> 15.78739813 | L22: =IF(E20="","",(VLOOKUP(B22,'TDPrimas Vida'!$B:$N,10,0))) -> 15.78739813
B23: =IF(C23="",B22,D23) -> G.N.P. | D23: =IF(D22="","","Únicas") -> Únicas | E23: =IF(E21="","",(VLOOKUP(B23,'TDPrimas Vida'!$B:$N,11,0))) -> 2198279.705 | F23: =IF(E21="","",(VLOOKUP(B23,'TDPrimas Vida'!$B:$N,12,0))) -> 1649644.009 | G23: =IFERROR((E23/VLOOKUP("TOTAL",$D$12:$L$312,2,0))*100,"") -> 2.618517931 | H23: =IFERROR((E23/VLOOKUP("TOTAL",$D$12:$L$312,3,0))*100,"") -> 2.81923395 | I23: =IF(E20="","",E23-F23) -> 548635.6962 | J23: =IF(E20="","",IFERROR((E23/F23-1)*100,"ND")) -> 33.2578237 | K23: =IF(E20="","",IFERROR((E23/VLOOKUP(B23&"|"&VLOOKUP(TDPrimas!$B$4,Cat!R:T,2,0),'TD Operación'!A:D,4,0))*100,"ND")) -> 8.240470324 | L23: =IF(E20="","",(VLOOKUP(B23,'TDPrimas Vida'!$B:$N,13,0))) -> 8.240470324
B24: =IF(C24="",B20,D24) -> Citibanamex Seguros | C24: =IF('TDPrimas Vida'!A10="","",'TDPrimas Vida'!A10) -> 4 | D24: =IF('TDPrimas Vida'!B10="","",'TDPrimas Vida'!B10) -> Citibanamex Seguros | E24: =IF('TDPrimas Vida'!C10="","",'TDPrimas Vida'!C10) -> 7831081.573 | F24: =IF('TDPrimas Vida'!D10="","",'TDPrimas Vida'!D10) -> 5094137.783 | G24: =IF('TDPrimas Vida'!C10="","",IFERROR((E24/VLOOKUP("TOTAL",$D$12:$L$312,2,0))*100,"")) -> 9.328124836 | H24: =IF('TDPrimas Vida'!C10="","",IFERROR((E24/VLOOKUP("TOTAL",$D$12:$L$312,3,0))*100,"")) -> 10.04314919 | I24: =IF('TDPrimas Vida'!C10="","",E24-F24) -> 2736943.79 | J24: =IFERROR(IF('TDPrimas Vida'!C10="","",(E24/F24-1)*100),"ND") -> 53.72732161 | K24: =IF(E24="","",IFERROR((E24/VLOOKUP(D24&"|"&VLOOKUP(TDPrimas!$B$4,Cat!R:T,2,0),'TD Operación'!A:D,4,0))*100,"ND")) -> 97.20774153 | L24: =IF('TDPrimas Vida'!E10="","",'TDPrimas Vida'!E10) -> 97.20774153
B25: =IF(C25="",B24,D25) -> Citibanamex Seguros | D25: =IF(D24="","","1er Año") -> 1er Año | E25: =IF(E24="","",(VLOOKUP(B25,'TDPrimas Vida'!$B:$N,5,0))) -> 3759204.766 | F25: =IF(E24="","",(VLOOKUP(B25,'TDPrimas Vida'!$B:$N,6,0))) -> 3174926.015 | G25: =IFERROR((E25/VLOOKUP("TOTAL",$D$12:$L$312,2,0))*100,"") -> 4.477840132 | H25: =IFERROR((E25/VLOOKUP("TOTAL",$D$12:$L$312,3,0))*100,"") -> 4.8210779 | I25: =IF(E24="","",E25-F25) -> 584278.7513 | J25: =IF(E24="","",IFERROR((E25/F25-1)*100,"ND")) -> 18.40290919 | K25: =IF(E24="","",IFERROR((E25/VLOOKUP(B25&"|"&VLOOKUP(TDPrimas!$B$4,Cat!R:T,2,0),'TD Operación'!A:D,4,0))*100,"ND")) -> 46.66326125 | L25: =IF(E24="","",(VLOOKUP(B25,'TDPrimas Vida'!$B:$N,7,0))) -> 46.66326125
B26: =IF(C26="",B25,D26) -> Citibanamex Seguros | D26: =IF(D25="","","Renovación") -> Renovación | E26: =IF(E24="","",(VLOOKUP(B26,'TDPrimas Vida'!$B:$N,8,0))) -> 4071876.806 | F26: =IF(E24="","",(VLOOKUP(B26,'TDPrimas Vida'!$B:$N,9,0))) -> 1919211.768 | G26: =IFERROR((E26/VLOOKUP("TOTAL",$D$12:$L$312,2,0))*100,"") -> 4.850284703 | H26: =IFERROR((E26/VLOOKUP("TOTAL",$D$12:$L$312,3,0))*100,"") -> 5.222071289 | I26: =IF(E24="","",E26-F26) -> 2152665.038 | J26: =IF(E24="","",IFERROR((E26/F26-1)*100,"ND")) -> 112.1640183 | K26: =IF(E24="","",IFERROR((E26/VLOOKUP(B26&"|"&VLOOKUP(TDPrimas!$B$4,Cat!R:T,2,0),'TD Operación'!A:D,4,0))*100,"ND")) -> 50.54448028 | L26: =IF(E24="","",(VLOOKUP(B26,'TDPrimas Vida'!$B:$N,10,0))) -> 50.54448028
B27: =IF(C27="",B26,D27) -> Citibanamex Seguros | D27: =IF(D26="","","Únicas") -> Únicas | E27: =IF(E25="","",(VLOOKUP(B27,'TDPrimas Vida'!$B:$N,11,0))) -> 0 | F27: =IF(E25="","",(VLOOKUP(B27,'TDPrimas Vida'!$B:$N,12,0))) -> 0 | G27: =IFERROR((E27/VLOOKUP("TOTAL",$D$12:$L$312,2,0))*100,"") -> 0 | H27: =IFERROR((E27/VLOOKUP("TOTAL",$D$12:$L$312,3,0))*100,"") -> 0 | I27: =IF(E24="","",E27-F27) -> 0 | J27: =IF(E24="","",IFERROR((E27/F27-1)*100,"ND")) -> ND | K27: =IF(E24="","",IFERROR((E27/VLOOKUP(B27&"|"&VLOOKUP(TDPrimas!$B$4,Cat!R:T,2,0),'TD Operación'!A:D,4,0))*100,"ND")) -> 0 | L27: =IF(E24="","",(VLOOKUP(B27,'TDPrimas Vida'!$B:$N,13,0))) -> 0
B28: =IF(C28="",B24,D28) -> Banorte | C28: =IF('TDPrimas Vida'!A11="","",'TDPrimas Vida'!A11) -> 5 | D28: =IF('TDPrimas Vida'!B11="","",'TDPrimas Vida'!B11) -> Banorte | E28: =IF('TDPrimas Vida'!C11="","",'TDPrimas Vida'!C11) -> 6687033.393 | F28: =IF('TDPrimas Vida'!D11="","",'TDPrimas Vida'!D11) -> 9064775.813 | G28: =IF('TDPrimas Vida'!C11="","",IFERROR((E28/VLOOKUP("TOTAL",$D$12:$L$312,2,0))*100,"")) -> 7.96537256 | H28: =IF('TDPrimas Vida'!C11="","",IFERROR((E28/VLOOKUP("TOTAL",$D$12:$L$312,3,0))*100,"")) -> 8.575938506 | I28: =IF('TDPrimas Vida'!C11="","",E28-F28) -> -2377742.42 | J28: =IFERROR(IF('TDPrimas Vida'!C11="","",(E28/F28-1)*100),"ND") -> -26.23057061 | K28: =IF(E28="","",IFERROR((E28/VLOOKUP(D28&"|"&VLOOKUP(TDPrimas!$B$4,Cat!R:T,2,0),'TD Operación'!A:D,4,0))*100,"ND")) -> 57.44808331 | L28: =IF('TDPrimas Vida'!E11="","",'TDPrimas Vida'!E11) -> 57.44808331
B29: =IF(C29="",B28,D29) -> Banorte | D29: =IF(D28="","","1er Año") -> 1er Año | E29: =IF(E28="","",(VLOOKUP(B29,'TDPrimas Vida'!$B:$N,5,0))) -> 1266536.469 | F29: =IF(E28="","",(VLOOKUP(B29,'TDPrimas Vida'!$B:$N,6,0))) -> 1524982.119 | G29: =IFERROR((E29/VLOOKUP("TOTAL",$D$12:$L$312,2,0))*100,"") -> 1.508656267 | H29: =IFERROR((E29/VLOOKUP("TOTAL",$D$12:$L$312,3,0))*100,"") -> 1.624298584 | I29: =IF(E28="","",E29-F29) -> -258445.6499 | J29: =IF(E28="","",IFERROR((E29/F29-1)*100,"ND")) -> -16.94745445 | K29: =IF(E28="","",IFERROR((E29/VLOOKUP(B29&"|"&VLOOKUP(TDPrimas!$B$4,Cat!R:T,2,0),'TD Operación'!A:D,4,0))*100,"ND")) -> 10.88077303 | L29: =IF(E28="","",(VLOOKUP(B29,'TDPrimas Vida'!$B:$N,7,0))) -> 10.88077303
B30: =IF(C30="",B29,D30) -> Banorte | D30: =IF(D29="","","Renovación") -> Renovación | E30: =IF(E28="","",(VLOOKUP(B30,'TDPrimas Vida'!$B:$N,8,0))) -> 4224507.667 | F30: =IF(E28="","",(VLOOKUP(B30,'TDPrimas Vida'!$B:$N,9,0))) -> 7044133.434 | G30: =IFERROR((E30/VLOOKUP("TOTAL",$D$12:$L$312,2,0))*100,"") -> 5.032093526 | H30: =IFERROR((E30/VLOOKUP("TOTAL",$D$12:$L$312,3,0))*100,"") -> 5.417816218 | I30: =IF(E28="","",E30-F30) -> -2819625.767 | J30: =IF(E28="","",IFERROR((E30/F30-1)*100,"ND")) -> -40.02800052 | K30: =IF(E28="","",IFERROR((E30/VLOOKUP(B30&"|"&VLOOKUP(TDPrimas!$B$4,Cat!R:T,2,0),'TD Operación'!A:D,4,0))*100,"ND")) -> 36.29260602 | L30: =IF(E28="","",(VLOOKUP(B30,'TDPrimas Vida'!$B:$N,10,0))) -> 36.29260602
B31: =IF(C31="",B30,D31) -> Banorte | D31: =IF(D30="","","Únicas") -> Únicas | E31: =IF(E29="","",(VLOOKUP(B31,'TDPrimas Vida'!$B:$N,11,0))) -> 1195989.258 | F31: =IF(E29="","",(VLOOKUP(B31,'TDPrimas Vida'!$B:$N,12,0))) -> 495660.2606 | G31: =IFERROR((E31/VLOOKUP("TOTAL",$D$12:$L$312,2,0))*100,"") -> 1.424622767 | H31: =IFERROR((E31/VLOOKUP("TOTAL",$D$12:$L$312,3,0))*100,"") -> 1.533823704 | I31: =IF(E28="","",E31-F31) -> 700328.997 | J31: =IF(E28="","",IFERROR((E31/F31-1)*100,"ND")) -> 141.2921415 | K31: =IF(E28="","",IFERROR((E31/VLOOKUP(B31&"|"&VLOOKUP(TDPrimas!$B$4,Cat!R:T,2,0),'TD Operación'!A:D,4,0))*100,"ND")) -> 10.27470426 | L31: =IF(E28="","",(VLOOKUP(B31,'TDPrimas Vida'!$B:$N,13,0))) -> 10.27470426
B32: =IF(C32="",B28,D32) -> TOTAL GRANDES | C32: =IF('TDPrimas Vida'!A12="","",'TDPrimas Vida'!A12) -> 5.1 | D32: =IF('TDPrimas Vida'!B12="","",'TDPrimas Vida'!B12) -> TOTAL GRANDES | E32: =IF('TDPrimas Vida'!C12="","",'TDPrimas Vida'!C12) -> 54827203 | F32: =IF('TDPrimas Vida'!D12="","",'TDPrimas Vida'!D12) -> 50235621.51 | G32: =IF('TDPrimas Vida'!C12="","",IFERROR((E32/VLOOKUP("TOTAL",$D$12:$L$312,2,0))*100,"")) -> 65.30834716 | H32: =IF('TDPrimas Vida'!C12="","",IFERROR((E32/VLOOKUP("TOTAL",$D$12:$L$312,3,0))*100,"")) -> 70.3143971 | I32: =IF('TDPrimas Vida'!C12="","",E32-F32) -> 4591581.487 | J32: =IFERROR(IF('TDPrimas Vida'!C12="","",(E32/F32-1)*100),"ND") -> 9.140090933 | K32: =IF(E32="","",IFERROR((E32/VLOOKUP(D32&"|"&VLOOKUP(TDPrimas!$B$4,Cat!R:T,2,0),'TD Operación'!A:D,4,0))*100,"ND")) -> 56.28114814 | L32: =IF('TDPrimas Vida'!E12="","",'TDPrimas Vida'!E12) -> 60.86928735
B33: =IF(C33="",B32,D33) -> TOTAL GRANDES | D33: =IF(D32="","","1er Año") -> 1er Año | E33: =IF(E32="","",(VLOOKUP(B33,'TDPrimas Vida'!$B:$N,5,0))) -> 21938913.7 | F33: =IF(E32="","",(VLOOKUP(B33,'TDPrimas Vida'!$B:$N,6,0))) -> 18898478.46 | G33: =IFERROR((E33/VLOOKUP("TOTAL",$D$12:$L$312,2,0))*100,"") -> 26.13290692 | H33: =IFERROR((E33/VLOOKUP("TOTAL",$D$12:$L$312,3,0))*100,"") -> 28.13606031 | I33: =IF(E32="","",E33-F33) -> 3040435.241 | J33: =IF(E32="","",IFERROR((E33/F33-1)*100,"ND")) -> 16.08825413 | K33: =IF(E32="","",IFERROR((E33/VLOOKUP(B33&"|"&VLOOKUP(TDPrimas!$B$4,Cat!R:T,2,0),'TD Operación'!A:D,4,0))*100,"ND")) -> 22.52070477 | L33: =IF(E32="","",(VLOOKUP(B33,'TDPrimas Vida'!$B:$N,7,0))) -> 24.35663264
B34: =IF(C34="",B33,D34) -> TOTAL GRANDES | D34: =IF(D33="","","Renovación") -> Renovación | E34: =IF(E32="","",(VLOOKUP(B34,'TDPrimas Vida'!$B:$N,8,0))) -> 27097119.97 | F34: =IF(E32="","",(VLOOKUP(B34,'TDPrimas Vida'!$B:$N,9,0))) -> 27248112.8 | G34: =IFERROR((E34/VLOOKUP("TOTAL",$D$12:$L$312,2,0))*100,"") -> 32.27719127 | H34: =IFERROR((E34/VLOOKUP("TOTAL",$D$12:$L$312,3,0))*100,"") -> 34.75131959 | I34: =IF(E32="","",E34-F34) -> -150992.8355 | J34: =IF(E32="","",IFERROR((E34/F34-1)*100,"ND")) -> -0.5541405255 | K34: =IF(E32="","",IFERROR((E34/VLOOKUP(B34&"|"&VLOOKUP(TDPrimas!$B$4,Cat!R:T,2,0),'TD Operación'!A:D,4,0))*100,"ND")) -> 27.81569986 | L34: =IF(E32="","",(VLOOKUP(B34,'TDPrimas Vida'!$B:$N,10,0))) -> 30.08328515
B35: =IF(C35="",B34,D35) -> TOTAL GRANDES | D35: =IF(D34="","","Únicas") -> Únicas | E35: =IF(E33="","",(VLOOKUP(B35,'TDPrimas Vida'!$B:$N,11,0))) -> 5791169.33 | F35: =IF(E33="","",(VLOOKUP(B35,'TDPrimas Vida'!$B:$N,12,0))) -> 4089030.249 | G35: =IFERROR((E35/VLOOKUP("TOTAL",$D$12:$L$312,2,0))*100,"") -> 6.898248978 | H35: =IFERROR((E35/VLOOKUP("TOTAL",$D$12:$L$312,3,0))*100,"") -> 7.427017204 | I35: =IF(E32="","",E35-F35) -> 1702139.082 | J35: =IF(E32="","",IFERROR((E35/F35-1)*100,"ND")) -> 41.62696233 | K35: =IF(E32="","",IFERROR((E35/VLOOKUP(B35&"|"&VLOOKUP(TDPrimas!$B$4,Cat!R:T,2,0),'TD Operación'!A:D,4,0))*100,"ND")) -> 5.944743505 | L35: =IF(E32="","",(VLOOKUP(B35,'TDPrimas Vida'!$B:$N,13,0))) -> 6.42936956
B36: =IF(C36="",B32,D36) -> Monterrey New York Life | C36: =IF('TDPrimas Vida'!A13="","",'TDPrimas Vida'!A13) -> 6 | D36: =IF('TDPrimas Vida'!B13="","",'TDPrimas Vida'!B13) -> Monterrey New York Life | E36: =IF('TDPrimas Vida'!C13="","",'TDPrimas Vida'!C13) -> 6428564.663 | F36: =IF('TDPrimas Vida'!D13="","",'TDPrimas Vida'!D13) -> 6193660.355 | G36: =IF('TDPrimas Vida'!C13="","",IFERROR((E36/VLOOKUP("TOTAL",$D$12:$L$312,2,0))*100,"")) -> 7.657493174 | H36: =IF('TDPrimas Vida'!C13="","",IFERROR((E36/VLOOKUP("TOTAL",$D$12:$L$312,3,0))*100,"")) -> 8.244459387 | I36: =IF('TDPrimas Vida'!C13="","",E36-F36) -> 234904.3076 | J36: =IFERROR(IF('TDPrimas Vida'!C13="","",(E36/F36-1)*100),"ND") -> 3.792657235 | K36: =IF(E36="","",IFERROR((E36/VLOOKUP(D36&"|"&VLOOKUP(TDPrimas!$B$4,Cat!R:T,2,0),'TD Operación'!A:D,4,0))*100,"ND")) -> 62.88071713 | L36: =IF('TDPrimas Vida'!E13="","",'TDPrimas Vida'!E13) -> 62.88071713
B37: =IF(C37="",B36,D37) -> Monterrey New York Life | D37: =IF(D36="","","1er Año") -> 1er Año | E37: =IF(E36="","",(VLOOKUP(B37,'TDPrimas Vida'!$B:$N,5,0))) -> 583833.4993 | F37: =IF(E36="","",(VLOOKUP(B37,'TDPrimas Vida'!$B:$N,6,0))) -> 509897.113 | G37: =IFERROR((E37/VLOOKUP("TOTAL",$D$12:$L$312,2,0))*100,"") -> 0.6954431152 | H37: =IFERROR((E37/VLOOKUP("TOTAL",$D$12:$L$312,3,0))*100,"") -> 0.7487505883 | I37: =IF(E36="","",E37-F37) -> 73936.38627 | J37: =IF(E36="","",IFERROR((E37/F37-1)*100,"ND")) -> 14.50025591 | K37: =IF(E36="","",IFERROR((E37/VLOOKUP(B37&"|"&VLOOKUP(TDPrimas!$B$4,Cat!R:T,2,0),'TD Operación'!A:D,4,0))*100,"ND")) -> 5.710741206 | L37: =IF(E36="","",(VLOOKUP(B37,'TDPrimas Vida'!$B:$N,7,0))) -> 5.710741206
B38: =IF(C38="",B37,D38) -> Monterrey New York Life | D38: =IF(D37="","","Renovación") -> Renovación | E38: =IF(E36="","",(VLOOKUP(B38,'TDPrimas Vida'!$B:$N,8,0))) -> 4336934.513 | F38: =IF(E36="","",(VLOOKUP(B38,'TDPrimas Vida'!$B:$N,9,0))) -> 4145932.083 | G38: =IFERROR((E38/VLOOKUP("TOTAL",$D$12:$L$312,2,0))*100,"") -> 5.166012659 | H38: =IFERROR((E38/VLOOKUP("TOTAL",$D$12:$L$312,3,0))*100,"") -> 5.562000591 | I38: =IF(E36="","",E38-F38) -> 191002.4296 | J38: =IF(E36="","",IFERROR((E38/F38-1)*100,"ND")) -> 4.606984046 | K38: =IF(E36="","",IFERROR((E38/VLOOKUP(B38&"|"&VLOOKUP(TDPrimas!$B$4,Cat!R:T,2,0),'TD Operación'!A:D,4,0))*100,"ND")) -> 42.42153056 | L38: =IF(E36="","",(VLOOKUP(B38,'TDPrimas Vida'!$B:$N,10,0))) -> 42.42153056
B39: =IF(C39="",B38,D39) -> Monterrey New York Life | D39: =IF(D38="","","Únicas") -> Únicas | E39: =IF(E37="","",(VLOOKUP(B39,'TDPrimas Vida'!$B:$N,11,0))) -> 1507796.651 | F39: =IF(E37="","",(VLOOKUP(B39,'TDPrimas Vida'!$B:$N,12,0))) -> 1537831.159 | G39: =IFERROR((E39/VLOOKUP("TOTAL",$D$12:$L$312,2,0))*100,"") -> 1.7960374 | H39: =IFERROR((E39/VLOOKUP("TOTAL",$D$12:$L$312,3,0))*100,"") -> 1.933708208 | I39: =IF(E36="","",E39-F39) -> -30034.50834 | J39: =IF(E36="","",IFERROR((E39/F39-1)*100,"ND")) -> -1.953043295 | K39: =IF(E36="","",IFERROR((E39/VLOOKUP(B39&"|"&VLOOKUP(TDPrimas!$B$4,Cat!R:T,2,0),'TD Operación'!A:D,4,0))*100,"ND")) -> 14.74844536 | L39: =IF(E36="","",(VLOOKUP(B39,'TDPrimas Vida'!$B:$N,13,0))) -> 14.74844536
B40: =IF(C40="",B36,D40) -> Allianz México | C40: =IF('TDPrimas Vida'!A14="","",'TDPrimas Vida'!A14) -> 7 | D40: =IF('TDPrimas Vida'!B14="","",'TDPrimas Vida'!B14) -> Allianz México | E40: =IF('TDPrimas Vida'!C14="","",'TDPrimas Vida'!C14) -> 2952744.118 | F40: =IF('TDPrimas Vida'!D14="","",'TDPrimas Vida'!D14) -> 2423258.527 | G40: =IF('TDPrimas Vida'!C14="","",IFERROR((E40/VLOOKUP("TOTAL",$D$12:$L$312,2,0))*100,"")) -> 3.517210935 | H40: =IF('TDPrimas Vida'!C14="","",IFERROR((E40/VLOOKUP("TOTAL",$D$12:$L$312,3,0))*100,"")) -> 3.786814046 | I40: =IF('TDPrimas Vida'!C14="","",E40-F40) -> 529485.5908 | J40: =IFERROR(IF('TDPrimas Vida'!C14="","",(E40/F40-1)*100),"ND") -> 21.85014867 | K40: =IF(E40="","",IFERROR((E40/VLOOKUP(D40&"|"&VLOOKUP(TDPrimas!$B$4,Cat!R:T,2,0),'TD Operación'!A:D,4,0))*100,"ND")) -> 56.21509738 | L40: =IF('TDPrimas Vida'!E14="","",'TDPrimas Vida'!E14) -> 56.21509738
B41: =IF(C41="",B40,D41) -> Allianz México | D41: =IF(D40="","","1er Año") -> 1er Año | E41: =IF(E40="","",(VLOOKUP(B41,'TDPrimas Vida'!$B:$N,5,0))) -> 1505117.947 | F41: =IF(E40="","",(VLOOKUP(B41,'TDPrimas Vida'!$B:$N,6,0))) -> 1134075.607 | G41: =IFERROR((E41/VLOOKUP("TOTAL",$D$12:$L$312,2,0))*100,"") -> 1.792846617 | H41: =IFERROR((E41/VLOOKUP("TOTAL",$D$12:$L$312,3,0))*100,"") -> 1.930272843 | I41: =IF(E40="","",E41-F41) -> 371042.3403 | J41: =IF(E40="","",IFERROR((E41/F41-1)*100,"ND")) -> 32.71760172 | K41: =IF(E40="","",IFERROR((E41/VLOOKUP(B41&"|"&VLOOKUP(TDPrimas!$B$4,Cat!R:T,2,0),'TD Operación'!A:D,4,0))*100,"ND")) -> 28.65482026 | L41: =IF(E40="","",(VLOOKUP(B41,'TDPrimas Vida'!$B:$N,7,0))) -> 28.65482026
B42: =IF(C42="",B41,D42) -> Allianz México | D42: =IF(D41="","","Renovación") -> Renovación | E42: =IF(E40="","",(VLOOKUP(B42,'TDPrimas Vida'!$B:$N,8,0))) -> 1447626.171 | F42: =IF(E40="","",(VLOOKUP(B42,'TDPrimas Vida'!$B:$N,9,0))) -> 1289182.92 | G42: =IFERROR((E42/VLOOKUP("TOTAL",$D$12:$L$312,2,0))*100,"") -> 1.724364318 | H42: =IFERROR((E42/VLOOKUP("TOTAL",$D$12:$L$312,3,0))*100,"") -> 1.856541203 | I42: =IF(E40="","",E42-F42) -> 158443.2506 | J42: =IF(E40="","",IFERROR((E42/F42-1)*100,"ND")) -> 12.29020708 | K42: =IF(E40="","",IFERROR((E42/VLOOKUP(B42&"|"&VLOOKUP(TDPrimas!$B$4,Cat!R:T,2,0),'TD Operación'!A:D,4,0))*100,"ND")) -> 27.56027712 | L42: =IF(E40="","",(VLOOKUP(B42,'TDPrimas Vida'!$B:$N,10,0))) -> 27.56027712
B43: =IF(C43="",B42,D43) -> Allianz México | D43: =IF(D42="","","Únicas") -> Únicas | E43: =IF(E41="","",(VLOOKUP(B43,'TDPrimas Vida'!$B:$N,11,0))) -> 0 | F43: =IF(E41="","",(VLOOKUP(B43,'TDPrimas Vida'!$B:$N,12,0))) -> 0 | G43: =IFERROR((E43/VLOOKUP("TOTAL",$D$12:$L$312,2,0))*100,"") -> 0 | H43: =IFERROR((E43/VLOOKUP("TOTAL",$D$12:$L$312,3,0))*100,"") -> 0 | I43: =IF(E40="","",E43-F43) -> 0 | J43: =IF(E40="","",IFERROR((E43/F43-1)*100,"ND")) -> ND | K43: =IF(E40="","",IFERROR((E43/VLOOKUP(B43&"|"&VLOOKUP(TDPrimas!$B$4,Cat!R:T,2,0),'TD Operación'!A:D,4,0))*100,"ND")) -> 0 | L43: =IF(E40="","",(VLOOKUP(B43,'TDPrimas Vida'!$B:$N,13,0))) -> 0
B44: =IF(C44="",B40,D44) -> Zurich Santander | C44: =IF('TDPrimas Vida'!A15="","",'TDPrimas Vida'!A15) -> 8 | D44: =IF('TDPrimas Vida'!B15="","",'TDPrimas Vida'!B15) -> Zurich Santander | E44: =IF('TDPrimas Vida'!C15="","",'TDPrimas Vida'!C15) -> 2742800.429 | F44: =IF('TDPrimas Vida'!D15="","",'TDPrimas Vida'!D15) -> 2307308.24 | G44: =IF('TDPrimas Vida'!C15="","",IFERROR((E44/VLOOKUP("TOTAL",$D$12:$L$312,2,0))*100,"")) -> 3.267132971 | H44: =IF('TDPrimas Vida'!C15="","",IFERROR((E44/VLOOKUP("TOTAL",$D$12:$L$312,3,0))*100,"")) -> 3.517566974 | I44: =IF('TDPrimas Vida'!C15="","",E44-F44) -> 435492.1893 | J44: =IFERROR(IF('TDPrimas Vida'!C15="","",(E44/F44-1)*100),"ND") -> 18.87446947 | K44: =IF(E44="","",IFERROR((E44/VLOOKUP(D44&"|"&VLOOKUP(TDPrimas!$B$4,Cat!R:T,2,0),'TD Operación'!A:D,4,0))*100,"ND")) -> 76.72615704 | L44: =IF('TDPrimas Vida'!E15="","",'TDPrimas Vida'!E15) -> 76.72615704
B45: =IF(C45="",B44,D45) -> Zurich Santander | D45: =IF(D44="","","1er Año") -> 1er Año | E45: =IF(E44="","",(VLOOKUP(B45,'TDPrimas Vida'!$B:$N,5,0))) -> 1213835.106 | F45: =IF(E44="","",(VLOOKUP(B45,'TDPrimas Vida'!$B:$N,6,0))) -> 971228.7793 | G45: =IFERROR((E45/VLOOKUP("TOTAL",$D$12:$L$312,2,0))*100,"") -> 1.44588015 | H45: =IFERROR((E45/VLOOKUP("TOTAL",$D$12:$L$312,3,0))*100,"") -> 1.55671052 | I45: =IF(E44="","",E45-F45) -> 242606.327 | J45: =IF(E44="","",IFERROR((E45/F45-1)*100,"ND")) -> 24.97931818 | K45: =IF(E44="","",IFERROR((E45/VLOOKUP(B45&"|"&VLOOKUP(TDPrimas!$B$4,Cat!R:T,2,0),'TD Operación'!A:D,4,0))*100,"ND")) -> 33.9554063 | L45: =IF(E44="","",(VLOOKUP(B45,'TDPrimas Vida'!$B:$N,7,0))) -> 33.9554063
B46: =IF(C46="",B45,D46) -> Zurich Santander | D46: =IF(D45="","","Renovación") -> Renovación | E46: =IF(E44="","",(VLOOKUP(B46,'TDPrimas Vida'!$B:$N,8,0))) -> 317802.1218 | F46: =IF(E44="","",(VLOOKUP(B46,'TDPrimas Vida'!$B:$N,9,0))) -> 303081.1985 | G46: =IFERROR((E46/VLOOKUP("TOTAL",$D$12:$L$312,2,0))*100,"") -> 0.378555355 | H46: =IFERROR((E46/VLOOKUP("TOTAL",$D$12:$L$312,3,0))*100,"") -> 0.4075725801 | I46: =IF(E44="","",E46-F46) -> 14720.92331 | J46: =IF(E44="","",IFERROR((E46/F46-1)*100,"ND")) -> 4.85708892 | K46: =IF(E44="","",IFERROR((E46/VLOOKUP(B46&"|"&VLOOKUP(TDPrimas!$B$4,Cat!R:T,2,0),'TD Operación'!A:D,4,0))*100,"ND")) -> 8.890087388 | L46: =IF(E44="","",(VLOOKUP(B46,'TDPrimas Vida'!$B:$N,10,0))) -> 8.890087388
B47: =IF(C47="",B46,D47) -> Zurich Santander | D47: =IF(D46="","","Únicas") -> Únicas | E47: =IF(E45="","",(VLOOKUP(B47,'TDPrimas Vida'!$B:$N,11,0))) -> 1211163.201 | F47: =IF(E45="","",(VLOOKUP(B47,'TDPrimas Vida'!$B:$N,12,0))) -> 1032998.262 | G47: =IFERROR((E47/VLOOKUP("TOTAL",$D$12:$L$312,2,0))*100,"") -> 1.442697466 | H47: =IFERROR((E47/VLOOKUP("TOTAL",$D$12:$L$312,3,0))*100,"") -> 1.553283874 | I47: =IF(E44="","",E47-F47) -> 178164.939 | J47: =IF(E44="","",IFERROR((E47/F47-1)*100,"ND")) -> 17.24736096 | K47: =IF(E44="","",IFERROR((E47/VLOOKUP(B47&"|"&VLOOKUP(TDPrimas!$B$4,Cat!R:T,2,0),'TD Operación'!A:D,4,0))*100,"ND")) -> 33.88066335 | L47: =IF(E44="","",(VLOOKUP(B47,'TDPrimas Vida'!$B:$N,13,0))) -> 33.88066335
B48: =IF(C48="",B44,D48) -> Hir Seguros | C48: =IF('TDPrimas Vida'!A16="","",'TDPrimas Vida'!A16) -> 9 | D48: =IF('TDPrimas Vida'!B16="","",'TDPrimas Vida'!B16) -> Hir Seguros | E48: =IF('TDPrimas Vida'!C16="","",'TDPrimas Vida'!C16) -> 1793397.805 | F48: =IF('TDPrimas Vida'!D16="","",'TDPrimas Vida'!D16) -> 1426260.883 | G48: =IF('TDPrimas Vida'!C16="","",IFERROR((E48/VLOOKUP("TOTAL",$D$12:$L$312,2,0))*100,"")) -> 2.13623603 | H48: =IF('TDPrimas Vida'!C16="","",IFERROR((E48/VLOOKUP("TOTAL",$D$12:$L$312,3,0))*100,"")) -> 2.299983922 | I48: =IF('TDPrimas Vida'!C16="","",E48-F48) -> 367136.9217 | J48: =IFERROR(IF('TDPrimas Vida'!C16="","",(E48/F48-1)*100),"ND") -> 25.74121789 | K48: =IF(E48="","",IFERROR((E48/VLOOKUP(D48&"|"&VLOOKUP(TDPrimas!$B$4,Cat!R:T,2,0),'TD Operación'!A:D,4,0))*100,"ND")) -> 99.74495684 | L48: =IF('TDPrimas Vida'!E16="","",'TDPrimas Vida'!E16) -> 99.74495684
B49: =IF(C49="",B48,D49) -> Hir Seguros | D49: =IF(D48="","","1er Año") -> 1er Año | E49: =IF(E48="","",(VLOOKUP(B49,'TDPrimas Vida'!$B:$N,5,0))) -> 1456232.474 | F49: =IF(E48="","",(VLOOKUP(B49,'TDPrimas Vida'!$B:$N,6,0))) -> 280736.9934 | G49: =IFERROR((E49/VLOOKUP("TOTAL",$D$12:$L$312,2,0))*100,"") -> 1.734615862 | H49: =IFERROR((E49/VLOOKUP("TOTAL",$D$12:$L$312,3,0))*100,"") -> 1.867578553 | I49: =IF(E48="","",E49-F49) -> 1175495.481 | J49: =IF(E48="","",IFERROR((E49/F49-1)*100,"ND")) -> 418.7176997 | K49: =IF(E48="","",IFERROR((E49/VLOOKUP(B49&"|"&VLOOKUP(TDPrimas!$B$4,Cat!R:T,2,0),'TD Operación'!A:D,4,0))*100,"ND")) -> 80.99254102 | L49: =IF(E48="","",(VLOOKUP(B49,'TDPrimas Vida'!$B:$N,7,0))) -> 80.99254102
B50: =IF(C50="",B49,D50) -> Hir Seguros | D50: =IF(D49="","","Renovación") -> Renovación | E50: =IF(E48="","",(VLOOKUP(B50,'TDPrimas Vida'!$B:$N,8,0))) -> 337165.3308 | F50: =IF(E48="","",(VLOOKUP(B50,'TDPrimas Vida'!$B:$N,9,0))) -> 1145523.89 | G50: =IFERROR((E50/VLOOKUP("TOTAL",$D$12:$L$312,2,0))*100,"") -> 0.4016201679 | H50: =IFERROR((E50/VLOOKUP("TOTAL",$D$12:$L$312,3,0))*100,"") -> 0.4324053692 | I50: =IF(E48="","",E50-F50) -> -808358.5592 | J50: =IF(E48="","",IFERROR((E50/F50-1)*100,"ND")) -> -70.5667133 | K50: =IF(E48="","",IFERROR((E50/VLOOKUP(B50&"|"&VLOOKUP(TDPrimas!$B$4,Cat!R:T,2,0),'TD Operación'!A:D,4,0))*100,"ND")) -> 18.75241582 | L50: =IF(E48="","",(VLOOKUP(B50,'TDPrimas Vida'!$B:$N,10,0))) -> 18.75241582
B51: =IF(C51="",B50,D51) -> Hir Seguros | D51: =IF(D50="","","Únicas") -> Únicas | E51: =IF(E49="","",(VLOOKUP(B51,'TDPrimas Vida'!$B:$N,11,0))) -> 0 | F51: =IF(E49="","",(VLOOKUP(B51,'TDPrimas Vida'!$B:$N,12,0))) -> 0 | G51: =IFERROR((E51/VLOOKUP("TOTAL",$D$12:$L$312,2,0))*100,"") -> 0 | H51: =IFERROR((E51/VLOOKUP("TOTAL",$D$12:$L$312,3,0))*100,"") -> 0 | I51: =IF(E48="","",E51-F51) -> 0 | J51: =IF(E48="","",IFERROR((E51/F51-1)*100,"ND")) -> ND | K51: =IF(E48="","",IFERROR((E51/VLOOKUP(B51&"|"&VLOOKUP(TDPrimas!$B$4,Cat!R:T,2,0),'TD Operación'!A:D,4,0))*100,"ND")) -> 0 | L51: =IF(E48="","",(VLOOKUP(B51,'TDPrimas Vida'!$B:$N,13,0))) -> 0
B52: =IF(C52="",B48,D52) -> AXA Seguros | C52: =IF('TDPrimas Vida'!A17="","",'TDPrimas Vida'!A17) -> 10 | D52: =IF('TDPrimas Vida'!B17="","",'TDPrimas Vida'!B17) -> AXA Seguros | E52: =IF('TDPrimas Vida'!C17="","",'TDPrimas Vida'!C17) -> 1725044.364 | F52: =IF('TDPrimas Vida'!D17="","",'TDPrimas Vida'!D17) -> 1633678.024 | G52: =IF('TDPrimas Vida'!C17="","",IFERROR((E52/VLOOKUP("TOTAL",$D$12:$L$312,2,0))*100,"")) -> 2.054815676 | H52: =IF('TDPrimas Vida'!C17="","",IFERROR((E52/VLOOKUP("TOTAL",$D$12:$L$312,3,0))*100,"")) -> 2.212322492 | I52: =IF('TDPrimas Vida'!C17="","",E52-F52) -> 91366.33949 | J52: =IFERROR(IF('TDPrimas Vida'!C17="","",(E52/F52-1)*100),"ND") -> 5.592677268 | K52: =IF(E52="","",IFERROR((E52/VLOOKUP(D52&"|"&VLOOKUP(TDPrimas!$B$4,Cat!R:T,2,0),'TD Operación'!A:D,4,0))*100,"ND")) -> 11.2023196 | L52: =IF('TDPrimas Vida'!E17="","",'TDPrimas Vida'!E17) -> 11.2023196
B53: =IF(C53="",B52,D53) -> AXA Seguros | D53: =IF(D52="","","1er Año") -> 1er Año | E53: =IF(E52="","",(VLOOKUP(B53,'TDPrimas Vida'!$B:$N,5,0))) -> 313595.5886 | F53: =IF(E52="","",(VLOOKUP(B53,'TDPrimas Vida'!$B:$N,6,0))) -> 334734.7671 | G53: =IFERROR((E53/VLOOKUP("TOTAL",$D$12:$L$312,2,0))*100,"") -> 0.3735446721 | H53: =IFERROR((E53/VLOOKUP("TOTAL",$D$12:$L$312,3,0))*100,"") -> 0.4021778157 | I53: =IF(E52="","",E53-F53) -> -21139.17856 | J53: =IF(E52="","",IFERROR((E53/F53-1)*100,"ND")) -> -6.315202553 | K53: =IF(E52="","",IFERROR((E53/VLOOKUP(B53&"|"&VLOOKUP(TDPrimas!$B$4,Cat!R:T,2,0),'TD Operación'!A:D,4,0))*100,"ND")) -> 2.036468211 | L53: =IF(E52="","",(VLOOKUP(B53,'TDPrimas Vida'!$B:$N,7,0))) -> 2.036468211
B54: =IF(C54="",B53,D54) -> AXA Seguros | D54: =IF(D53="","","Renovación") -> Renovación | E54: =IF(E52="","",(VLOOKUP(B54,'TDPrimas Vida'!$B:$N,8,0))) -> 1407785.223 | F54: =IF(E52="","",(VLOOKUP(B54,'TDPrimas Vida'!$B:$N,9,0))) -> 1297940.351 | G54: =IFERROR((E54/VLOOKUP("TOTAL",$D$12:$L$312,2,0))*100,"") -> 1.676907102 | H54: =IFERROR((E54/VLOOKUP("TOTAL",$D$12:$L$312,3,0))*100,"") -> 1.805446271 | I54: =IF(E52="","",E54-F54) -> 109844.8722 | J54: =IF(E52="","",IFERROR((E54/F54-1)*100,"ND")) -> 8.463013891 | K54: =IF(E52="","",IFERROR((E54/VLOOKUP(B54&"|"&VLOOKUP(TDPrimas!$B$4,Cat!R:T,2,0),'TD Operación'!A:D,4,0))*100,"ND")) -> 9.142060536 | L54: =IF(E52="","",(VLOOKUP(B54,'TDPrimas Vida'!$B:$N,10,0))) -> 9.142060536
B55: =IF(C55="",B54,D55) -> AXA Seguros | D55: =IF(D54="","","Únicas") -> Únicas | E55: =IF(E53="","",(VLOOKUP(B55,'TDPrimas Vida'!$B:$N,11,0))) -> 3663.55206 | F55: =IF(E53="","",(VLOOKUP(B55,'TDPrimas Vida'!$B:$N,12,0))) -> 1002.9062 | G55: =IFERROR((E55/VLOOKUP("TOTAL",$D$12:$L$312,2,0))*100,"") -> 0.004363901798 | H55: =IFERROR((E55/VLOOKUP("TOTAL",$D$12:$L$312,3,0))*100,"") -> 0.004698405905 | I55: =IF(E52="","",E55-F55) -> 2660.64586 | J55: =IF(E52="","",IFERROR((E55/F55-1)*100,"ND")) -> 265.2935898 | K55: =IF(E52="","",IFERROR((E55/VLOOKUP(B55&"|"&VLOOKUP(TDPrimas!$B$4,Cat!R:T,2,0),'TD Operación'!A:D,4,0))*100,"ND")) -> 0.02379085542 | L55: =IF(E52="","",(VLOOKUP(B55,'TDPrimas Vida'!$B:$N,13,0))) -> 0.02379085542
B56: =IF(C56="",B52,D56) -> Seguros Azteca | C56: =IF('TDPrimas Vida'!A18="","",'TDPrimas Vida'!A18) -> 11 | D56: =IF('TDPrimas Vida'!B18="","",'TDPrimas Vida'!B18) -> Seguros Azteca | E56: =IF('TDPrimas Vida'!C18="","",'TDPrimas Vida'!C18) -> 1702679.986 | F56: =IF('TDPrimas Vida'!D18="","",'TDPrimas Vida'!D18) -> 1549216.228 | G56: =IF('TDPrimas Vida'!C18="","",IFERROR((E56/VLOOKUP("TOTAL",$D$12:$L$312,2,0))*100,"")) -> 2.02817597 | H56: =IF('TDPrimas Vida'!C18="","",IFERROR((E56/VLOOKUP("TOTAL",$D$12:$L$312,3,0))*100,"")) -> 2.183640786 | I56: =IF('TDPrimas Vida'!C18="","",E56-F56) -> 153463.7576 | J56: =IFERROR(IF('TDPrimas Vida'!C18="","",(E56/F56-1)*100),"ND") -> 9.905896596 | K56: =IF(E56="","",IFERROR((E56/VLOOKUP(D56&"|"&VLOOKUP(TDPrimas!$B$4,Cat!R:T,2,0),'TD Operación'!A:D,4,0))*100,"ND")) -> 86.77679264 | L56: =IF('TDPrimas Vida'!E18="","",'TDPrimas Vida'!E18) -> 86.77679264
B57: =IF(C57="",B56,D57) -> Seguros Azteca | D57: =IF(D56="","","1er Año") -> 1er Año | E57: =IF(E56="","",(VLOOKUP(B57,'TDPrimas Vida'!$B:$N,5,0))) -> 1670849 | F57: =IF(E56="","",(VLOOKUP(B57,'TDPrimas Vida'!$B:$N,6,0))) -> 1535250.36 | G57: =IFERROR((E57/VLOOKUP("TOTAL",$D$12:$L$312,2,0))*100,"") -> 1.990259954 | H57: =IFERROR((E57/VLOOKUP("TOTAL",$D$12:$L$312,3,0))*100,"") -> 2.142818412 | I57: =IF(E56="","",E57-F57) -> 135598.6395 | J57: =IF(E56="","",IFERROR((E57/F57-1)*100,"ND")) -> 8.832347023 | K57: =IF(E56="","",IFERROR((E57/VLOOKUP(B57&"|"&VLOOKUP(TDPrimas!$B$4,Cat!R:T,2,0),'TD Operación'!A:D,4,0))*100,"ND")) -> 85.15453193 | L57: =IF(E56="","",(VLOOKUP(B57,'TDPrimas Vida'!$B:$N,7,0))) -> 85.15453193
B58: =IF(C58="",B57,D58) -> Seguros Azteca | D58: =IF(D57="","","Renovación") -> Renovación | E58: =IF(E56="","",(VLOOKUP(B58,'TDPrimas Vida'!$B:$N,8,0))) -> 2.39281 | F58: =IF(E56="","",(VLOOKUP(B58,'TDPrimas Vida'!$B:$N,9,0))) -> 1116.65255 | G58: =IFERROR((E58/VLOOKUP("TOTAL",$D$12:$L$312,2,0))*100,"") -> 2.850235971e-06 | H58: =IFERROR((E58/VLOOKUP("TOTAL",$D$12:$L$312,3,0))*100,"") -> 3.068713764e-06 | I58: =IF(E56="","",E58-F58) -> -1114.25974 | J58: =IF(E56="","",IFERROR((E58/F58-1)*100,"ND")) -> -99.7857158 | K58: =IF(E56="","",IFERROR((E58/VLOOKUP(B58&"|"&VLOOKUP(TDPrimas!$B$4,Cat!R:T,2,0),'TD Operación'!A:D,4,0))*100,"ND")) -> 0.0001219491501 | L58: =IF(E56="","",(VLOOKUP(B58,'TDPrimas Vida'!$B:$N,10,0))) -> 0.0001219491501
B59: =IF(C59="",B58,D59) -> Seguros Azteca | D59: =IF(D58="","","Únicas") -> Únicas | E59: =IF(E57="","",(VLOOKUP(B59,'TDPrimas Vida'!$B:$N,11,0))) -> 31828.593 | F59: =IF(E57="","",(VLOOKUP(B59,'TDPrimas Vida'!$B:$N,12,0))) -> 12849.21515 | G59: =IFERROR((E59/VLOOKUP("TOTAL",$D$12:$L$312,2,0))*100,"") -> 0.03791316514 | H59: =IFERROR((E59/VLOOKUP("TOTAL",$D$12:$L$312,3,0))*100,"") -> 0.0408193051 | I59: =IF(E56="","",E59-F59) -> 18979.37785 | J59: =IF(E56="","",IFERROR((E59/F59-1)*100,"ND")) -> 147.7084602 | K59: =IF(E56="","",IFERROR((E59/VLOOKUP(B59&"|"&VLOOKUP(TDPrimas!$B$4,Cat!R:T,2,0),'TD Operación'!A:D,4,0))*100,"ND")) -> 1.622138768 | L59: =IF(E56="","",(VLOOKUP(B59,'TDPrimas Vida'!$B:$N,13,0))) -> 1.622138768
B60: =IF(C60="",B56,D60) -> Inbursa | C60: =IF('TDPrimas Vida'!A19="","",'TDPrimas Vida'!A19) -> 12 | D60: =IF('TDPrimas Vida'!B19="","",'TDPrimas Vida'!B19) -> Inbursa | E60: =IF('TDPrimas Vida'!C19="","",'TDPrimas Vida'!C19) -> 1539068.443 | F60: =IF('TDPrimas Vida'!D19="","",'TDPrimas Vida'!D19) -> 1475814.774 | G60: =IF('TDPrimas Vida'!C19="","",IFERROR((E60/VLOOKUP("TOTAL",$D$12:$L$312,2,0))*100,"")) -> 1.833287322 | H60: =IF('TDPrimas Vida'!C19="","",IFERROR((E60/VLOOKUP("TOTAL",$D$12:$L$312,3,0))*100,"")) -> 1.97381343 | I60: =IF('TDPrimas Vida'!C19="","",E60-F60) -> 63253.66879 | J60: =IFERROR(IF('TDPrimas Vida'!C19="","",(E60/F60-1)*100),"ND") -> 4.286016776 | K60: =IF(E60="","",IFERROR((E60/VLOOKUP(D60&"|"&VLOOKUP(TDPrimas!$B$4,Cat!R:T,2,0),'TD Operación'!A:D,4,0))*100,"ND")) -> 22.21990018 | L60: =IF('TDPrimas Vida'!E19="","",'TDPrimas Vida'!E19) -> 22.21990018
B61: =IF(C61="",B60,D61) -> Inbursa | D61: =IF(D60="","","1er Año") -> 1er Año | E61: =IF(E60="","",(VLOOKUP(B61,'TDPrimas Vida'!$B:$N,5,0))) -> 986423.965 | F61: =IF(E60="","",(VLOOKUP(B61,'TDPrimas Vida'!$B:$N,6,0))) -> 955578.1578 | G61: =IFERROR((E61/VLOOKUP("TOTAL",$D$12:$L$312,2,0))*100,"") -> 1.174995536 | H61: =IFERROR((E61/VLOOKUP("TOTAL",$D$12:$L$312,3,0))*100,"") -> 1.265061914 | I61: =IF(E60="","",E61-F61) -> 30845.80726 | J61: =IF(E60="","",IFERROR((E61/F61-1)*100,"ND")) -> 3.227973244 | K61: =IF(E60="","",IFERROR((E61/VLOOKUP(B61&"|"&VLOOKUP(TDPrimas!$B$4,Cat!R:T,2,0),'TD Operación'!A:D,4,0))*100,"ND")) -> 14.24123933 | L61: =IF(E60="","",(VLOOKUP(B61,'TDPrimas Vida'!$B:$N,7,0))) -> 14.24123933
B62: =IF(C62="",B61,D62) -> Inbursa | D62: =IF(D61="","","Renovación") -> Renovación | E62: =IF(E60="","",(VLOOKUP(B62,'TDPrimas Vida'!$B:$N,8,0))) -> 552644.4776 | F62: =IF(E60="","",(VLOOKUP(B62,'TDPrimas Vida'!$B:$N,9,0))) -> 520236.6161 | G62: =IFERROR((E62/VLOOKUP("TOTAL",$D$12:$L$312,2,0))*100,"") -> 0.6582917863 | H62: =IFERROR((E62/VLOOKUP("TOTAL",$D$12:$L$312,3,0))*100,"") -> 0.7087515161 | I62: =IF(E60="","",E62-F62) -> 32407.86153 | J62: =IF(E60="","",IFERROR((E62/F62-1)*100,"ND")) -> 6.229446472 | K62: =IF(E60="","",IFERROR((E62/VLOOKUP(B62&"|"&VLOOKUP(TDPrimas!$B$4,Cat!R:T,2,0),'TD Operación'!A:D,4,0))*100,"ND")) -> 7.978660848 | L62: =IF(E60="","",(VLOOKUP(B62,'TDPrimas Vida'!$B:$N,10,0))) -> 7.978660848
B63: =IF(C63="",B62,D63) -> Inbursa | D63: =IF(D62="","","Únicas") -> Únicas | E63: =IF(E61="","",(VLOOKUP(B63,'TDPrimas Vida'!$B:$N,11,0))) -> 0 | F63: =IF(E61="","",(VLOOKUP(B63,'TDPrimas Vida'!$B:$N,12,0))) -> 0 | G63: =IFERROR((E63/VLOOKUP("TOTAL",$D$12:$L$312,2,0))*100,"") -> 0 | H63: =IFERROR((E63/VLOOKUP("TOTAL",$D$12:$L$312,3,0))*100,"") -> 0 | I63: =IF(E60="","",E63-F63) -> 0 | J63: =IF(E60="","",IFERROR((E63/F63-1)*100,"ND")) -> ND | K63: =IF(E60="","",IFERROR((E63/VLOOKUP(B63&"|"&VLOOKUP(TDPrimas!$B$4,Cat!R:T,2,0),'TD Operación'!A:D,4,0))*100,"ND")) -> 0 | L63: =IF(E60="","",(VLOOKUP(B63,'TDPrimas Vida'!$B:$N,13,0))) -> 0
B64: =IF(C64="",B60,D64) -> Mapfre México | C64: =IF('TDPrimas Vida'!A20="","",'TDPrimas Vida'!A20) -> 13 | D64: =IF('TDPrimas Vida'!B20="","",'TDPrimas Vida'!B20) -> Mapfre México | E64: =IF('TDPrimas Vida'!C20="","",'TDPrimas Vida'!C20) -> 1489236.701 | F64: =IF('TDPrimas Vida'!D20="","",'TDPrimas Vida'!D20) -> 1426998.267 | G64: =IF('TDPrimas Vida'!C20="","",IFERROR((E64/VLOOKUP("TOTAL",$D$12:$L$312,2,0))*100,"")) -> 1.773929402 | H64: =IF('TDPrimas Vida'!C20="","",IFERROR((E64/VLOOKUP("TOTAL",$D$12:$L$312,3,0))*100,"")) -> 1.909905576 | I64: =IF('TDPrimas Vida'!C20="","",E64-F64) -> 62238.43389 | J64: =IFERROR(IF('TDPrimas Vida'!C20="","",(E64/F64-1)*100),"ND") -> 4.361493306 | K64: =IF(E64="","",IFERROR((E64/VLOOKUP(D64&"|"&VLOOKUP(TDPrimas!$B$4,Cat!R:T,2,0),'TD Operación'!A:D,4,0))*100,"ND")) -> 23.14478641 | L64: =IF('TDPrimas Vida'!E20="","",'TDPrimas Vida'!E20) -> 23.14478641
B65: =IF(C65="",B64,D65) -> Mapfre México | D65: =IF(D64="","","1er Año") -> 1er Año | E65: =IF(E64="","",(VLOOKUP(B65,'TDPrimas Vida'!$B:$N,5,0))) -> 1290519.336 | F65: =IF(E64="","",(VLOOKUP(B65,'TDPrimas Vida'!$B:$N,6,0))) -> 1248702.353 | G65: =IFERROR((E65/VLOOKUP("TOTAL",$D$12:$L$312,2,0))*100,"") -> 1.537223863 | H65: =IFERROR((E65/VLOOKUP("TOTAL",$D$12:$L$312,3,0))*100,"") -> 1.655055959 | I65: =IF(E64="","",E65-F65) -> 41816.98232 | J65: =IF(E64="","",IFERROR((E65/F65-1)*100,"ND")) -> 3.34883507 | K65: =IF(E64="","",IFERROR((E65/VLOOKUP(B65&"|"&VLOOKUP(TDPrimas!$B$4,Cat!R:T,2,0),'TD Operación'!A:D,4,0))*100,"ND")) -> 20.05644527 | L65: =IF(E64="","",(VLOOKUP(B65,'TDPrimas Vida'!$B:$N,7,0))) -> 20.05644527
B66: =IF(C66="",B65,D66) -> Mapfre México | D66: =IF(D65="","","Renovación") -> Renovación | E66: =IF(E64="","",(VLOOKUP(B66,'TDPrimas Vida'!$B:$N,8,0))) -> 198581.2202 | F66: =IF(E64="","",(VLOOKUP(B66,'TDPrimas Vida'!$B:$N,9,0))) -> 178462.3757 | G66: =IFERROR((E66/VLOOKUP("TOTAL",$D$12:$L$312,2,0))*100,"") -> 0.2365433682 | H66: =IFERROR((E66/VLOOKUP("TOTAL",$D$12:$L$312,3,0))*100,"") -> 0.2546750155 | I66: =IF(E64="","",E66-F66) -> 20118.8445 | J66: =IF(E64="","",IFERROR((E66/F66-1)*100,"ND")) -> 11.27343756 | K66: =IF(E64="","",IFERROR((E66/VLOOKUP(B66&"|"&VLOOKUP(TDPrimas!$B$4,Cat!R:T,2,0),'TD Operación'!A:D,4,0))*100,"ND")) -> 3.086225263 | L66: =IF(E64="","",(VLOOKUP(B66,'TDPrimas Vida'!$B:$N,10,0))) -> 3.086225263
B67: =IF(C67="",B66,D67) -> Mapfre México | D67: =IF(D66="","","Únicas") -> Únicas | E67: =IF(E65="","",(VLOOKUP(B67,'TDPrimas Vida'!$B:$N,11,0))) -> 136.14495 | F67: =IF(E65="","",(VLOOKUP(B67,'TDPrimas Vida'!$B:$N,12,0))) -> -166.46212 | G67: =IFERROR((E67/VLOOKUP("TOTAL",$D$12:$L$312,2,0))*100,"") -> 0.0001621713524 | H67: =IFERROR((E67/VLOOKUP("TOTAL",$D$12:$L$312,3,0))*100,"") -> 0.0001746021966 | I67: =IF(E64="","",E67-F67) -> 302.60707 | J67: =IF(E64="","",IFERROR((E67/F67-1)*100,"ND")) -> -181.787346 | K67: =IF(E64="","",IFERROR((E67/VLOOKUP(B67&"|"&VLOOKUP(TDPrimas!$B$4,Cat!R:T,2,0),'TD Operación'!A:D,4,0))*100,"ND")) -> 0.002115879757 | L67: =IF(E64="","",(VLOOKUP(B67,'TDPrimas Vida'!$B:$N,13,0))) -> 0.002115879757
B68: =IF(C68="",B64,D68) -> HSBC Seguros | C68: =IF('TDPrimas Vida'!A21="","",'TDPrimas Vida'!A21) -> 14 | D68: =IF('TDPrimas Vida'!B21="","",'TDPrimas Vida'!B21) -> HSBC Seguros | E68: =IF('TDPrimas Vida'!C21="","",'TDPrimas Vida'!C21) -> 1473862.713 | F68: =IF('TDPrimas Vida'!D21="","",'TDPrimas Vida'!D21) -> 1376947.987 | G68: =IF('TDPrimas Vida'!C21="","",IFERROR((E68/VLOOKUP("TOTAL",$D$12:$L$312,2,0))*100,"")) -> 1.755616417 | H68: =IF('TDPrimas Vida'!C21="","",IFERROR((E68/VLOOKUP("TOTAL",$D$12:$L$312,3,0))*100,"")) -> 1.890188854 | I68: =IF('TDPrimas Vida'!C21="","",E68-F68) -> 96914.72538 | J68: =IFERROR(IF('TDPrimas Vida'!C21="","",(E68/F68-1)*100),"ND") -> 7.038372276 | K68: =IF(E68="","",IFERROR((E68/VLOOKUP(D68&"|"&VLOOKUP(TDPrimas!$B$4,Cat!R:T,2,0),'TD Operación'!A:D,4,0))*100,"ND")) -> 90.84353614 | L68: =IF('TDPrimas Vida'!E21="","",'TDPrimas Vida'!E21) -> 90.84353614
B69: =IF(C69="",B68,D69) -> HSBC Seguros | D69: =IF(D68="","","1er Año") -> 1er Año | E69: =IF(E68="","",(VLOOKUP(B69,'TDPrimas Vida'!$B:$N,5,0))) -> 911497.9203 | F69: =IF(E68="","",(VLOOKUP(B69,'TDPrimas Vida'!$B:$N,6,0))) -> 845191.2263 | G69: =IFERROR((E69/VLOOKUP("TOTAL",$D$12:$L$312,2,0))*100,"") -> 1.085746114 | H69: =IFERROR((E69/VLOOKUP("TOTAL",$D$12:$L$312,3,0))*100,"") -> 1.168971299 | I69: =IF(E68="","",E69-F69) -> 66306.694 | J69: =IF(E68="","",IFERROR((E69/F69-1)*100,"ND")) -> 7.845170647 | K69: =IF(E68="","",IFERROR((E69/VLOOKUP(B69&"|"&VLOOKUP(TDPrimas!$B$4,Cat!R:T,2,0),'TD Operación'!A:D,4,0))*100,"ND")) -> 56.18141606 | L69: =IF(E68="","",(VLOOKUP(B69,'TDPrimas Vida'!$B:$N,7,0))) -> 56.18141606
B70: =IF(C70="",B69,D70) -> HSBC Seguros | D70: =IF(D69="","","Renovación") -> Renovación | E70: =IF(E68="","",(VLOOKUP(B70,'TDPrimas Vida'!$B:$N,8,0))) -> 562364.7922 | F70: =IF(E68="","",(VLOOKUP(B70,'TDPrimas Vida'!$B:$N,9,0))) -> 531756.7609 | G70: =IFERROR((E70/VLOOKUP("TOTAL",$D$12:$L$312,2,0))*100,"") -> 0.6698703029 | H70: =IFERROR((E70/VLOOKUP("TOTAL",$D$12:$L$312,3,0))*100,"") -> 0.7212175553 | I70: =IF(E68="","",E70-F70) -> 30608.03138 | J70: =IF(E68="","",IFERROR((E70/F70-1)*100,"ND")) -> 5.756021104 | K70: =IF(E68="","",IFERROR((E70/VLOOKUP(B70&"|"&VLOOKUP(TDPrimas!$B$4,Cat!R:T,2,0),'TD Operación'!A:D,4,0))*100,"ND")) -> 34.66212008 | L70: =IF(E68="","",(VLOOKUP(B70,'TDPrimas Vida'!$B:$N,10,0))) -> 34.66212008
B71: =IF(C71="",B70,D71) -> HSBC Seguros | D71: =IF(D70="","","Únicas") -> Únicas | E71: =IF(E69="","",(VLOOKUP(B71,'TDPrimas Vida'!$B:$N,11,0))) -> 0 | F71: =IF(E69="","",(VLOOKUP(B71,'TDPrimas Vida'!$B:$N,12,0))) -> 0 | G71: =IFERROR((E71/VLOOKUP("TOTAL",$D$12:$L$312,2,0))*100,"") -> 0 | H71: =IFERROR((E71/VLOOKUP("TOTAL",$D$12:$L$312,3,0))*100,"") -> 0 | I71: =IF(E68="","",E71-F71) -> 0 | J71: =IF(E68="","",IFERROR((E71/F71-1)*100,"ND")) -> ND | K71: =IF(E68="","",IFERROR((E71/VLOOKUP(B71&"|"&VLOOKUP(TDPrimas!$B$4,Cat!R:T,2,0),'TD Operación'!A:D,4,0))*100,"ND")) -> 0 | L71: =IF(E68="","",(VLOOKUP(B71,'TDPrimas Vida'!$B:$N,13,0))) -> 0
B72: =IF(C72="",B68,D72) -> Cardif Vida | C72: =IF('TDPrimas Vida'!A22="","",'TDPrimas Vida'!A22) -> 15 | D72: =IF('TDPrimas Vida'!B22="","",'TDPrimas Vida'!B22) -> Cardif Vida | E72: =IF('TDPrimas Vida'!C22="","",'TDPrimas Vida'!C22) -> 928745.8659 | F72: =IF('TDPrimas Vida'!D22="","",'TDPrimas Vida'!D22) -> 773785.1691 | G72: =IF('TDPrimas Vida'!C22="","",IFERROR((E72/VLOOKUP("TOTAL",$D$12:$L$312,2,0))*100,"")) -> 1.106291295 | H72: =IF('TDPrimas Vida'!C22="","",IFERROR((E72/VLOOKUP("TOTAL",$D$12:$L$312,3,0))*100,"")) -> 1.19109132 | I72: =IF('TDPrimas Vida'!C22="","",E72-F72) -> 154960.6967 | J72: =IFERROR(IF('TDPrimas Vida'!C22="","",(E72/F72-1)*100),"ND") -> 20.02632034 | K72: =IF(E72="","",IFERROR((E72/VLOOKUP(D72&"|"&VLOOKUP(TDPrimas!$B$4,Cat!R:T,2,0),'TD Operación'!A:D,4,0))*100,"ND")) -> 95.48731267 | L72: =IF('TDPrimas Vida'!E22="","",'TDPrimas Vida'!E22) -> 95.48731267
B73: =IF(C73="",B72,D73) -> Cardif Vida | D73: =IF(D72="","","1er Año") -> 1er Año | E73: =IF(E72="","",(VLOOKUP(B73,'TDPrimas Vida'!$B:$N,5,0))) -> 22877.6079 | F73: =IF(E72="","",(VLOOKUP(B73,'TDPrimas Vida'!$B:$N,6,0))) -> 157378.2112 | G73: =IFERROR((E73/VLOOKUP("TOTAL",$D$12:$L$312,2,0))*100,"") -> 0.02725104833 | H73: =IFERROR((E73/VLOOKUP("TOTAL",$D$12:$L$312,3,0))*100,"") -> 0.02933991009 | I73: =IF(E72="","",E73-F73) -> -134500.6033 | J73: =IF(E72="","",IFERROR((E73/F73-1)*100,"ND")) -> -85.46329398 | K73: =IF(E72="","",IFERROR((E73/VLOOKUP(B73&"|"&VLOOKUP(TDPrimas!$B$4,Cat!R:T,2,0),'TD Operación'!A:D,4,0))*100,"ND")) -> 2.35211954 | L73: =IF(E72="","",(VLOOKUP(B73,'TDPrimas Vida'!$B:$N,7,0))) -> 2.35211954
B74: =IF(C74="",B73,D74) -> Cardif Vida | D74: =IF(D73="","","Renovación") -> Renovación | E74: =IF(E72="","",(VLOOKUP(B74,'TDPrimas Vida'!$B:$N,8,0))) -> 743111.7493 | F74: =IF(E72="","",(VLOOKUP(B74,'TDPrimas Vida'!$B:$N,9,0))) -> 470321.0998 | G74: =IFERROR((E74/VLOOKUP("TOTAL",$D$12:$L$312,2,0))*100,"") -> 0.885170088 | H74: =IFERROR((E74/VLOOKUP("TOTAL",$D$12:$L$312,3,0))*100,"") -> 0.9530206133 | I74: =IF(E72="","",E74-F74) -> 272790.6496 | J74: =IF(E72="","",IFERROR((E74/F74-1)*100,"ND")) -> 58.00093802 | K74: =IF(E72="","",IFERROR((E74/VLOOKUP(B74&"|"&VLOOKUP(TDPrimas!$B$4,Cat!R:T,2,0),'TD Operación'!A:D,4,0))*100,"ND")) -> 76.40167948 | L74: =IF(E72="","",(VLOOKUP(B74,'TDPrimas Vida'!$B:$N,10,0))) -> 76.40167948
B75: =IF(C75="",B74,D75) -> Cardif Vida | D75: =IF(D74="","","Únicas") -> Únicas | E75: =IF(E73="","",(VLOOKUP(B75,'TDPrimas Vida'!$B:$N,11,0))) -> 162756.5086 | F75: =IF(E73="","",(VLOOKUP(B75,'TDPrimas Vida'!$B:$N,12,0))) -> 146085.8581 | G75: =IFERROR((E75/VLOOKUP("TOTAL",$D$12:$L$312,2,0))*100,"") -> 0.1938701591 | H75: =IFERROR((E75/VLOOKUP("TOTAL",$D$12:$L$312,3,0))*100,"") -> 0.2087307969 | I75: =IF(E72="","",E75-F75) -> 16670.65047 | J75: =IF(E72="","",IFERROR((E75/F75-1)*100,"ND")) -> 11.41154297 | K75: =IF(E72="","",IFERROR((E75/VLOOKUP(B75&"|"&VLOOKUP(TDPrimas!$B$4,Cat!R:T,2,0),'TD Operación'!A:D,4,0))*100,"ND")) -> 16.73351365 | L75: =IF(E72="","",(VLOOKUP(B75,'TDPrimas Vida'!$B:$N,13,0))) -> 16.73351365
B76: =IF(C76="",B72,D76) -> TOTAL MEDIANAS | C76: =IF('TDPrimas Vida'!A23="","",'TDPrimas Vida'!A23) -> 15.1 | D76: =IF('TDPrimas Vida'!B23="","",'TDPrimas Vida'!B23) -> TOTAL MEDIANAS | E76: =IF('TDPrimas Vida'!C23="","",'TDPrimas Vida'!C23) -> 22776145.09 | F76: =IF('TDPrimas Vida'!D23="","",'TDPrimas Vida'!D23) -> 20586928.46 | G76: =IF('TDPrimas Vida'!C23="","",IFERROR((E76/VLOOKUP("TOTAL",$D$12:$L$312,2,0))*100,"")) -> 27.13018919 | H76: =IF('TDPrimas Vida'!C23="","",IFERROR((E76/VLOOKUP("TOTAL",$D$12:$L$312,3,0))*100,"")) -> 29.20978679 | I76: =IF('TDPrimas Vida'!C23="","",E76-F76) -> 2189216.631 | J76: =IFERROR(IF('TDPrimas Vida'!C23="","",(E76/F76-1)*100),"ND") -> 10.63401292 | K76: =IF(E76="","",IFERROR((E76/VLOOKUP(D76&"|"&VLOOKUP(TDPrimas!$B$4,Cat!R:T,2,0),'TD Operación'!A:D,4,0))*100,"ND")) -> 31.33585482 | L76: =IF('TDPrimas Vida'!E23="","",'TDPrimas Vida'!E23) -> 42.04883133
B77: =IF(C77="",B76,D77) -> TOTAL MEDIANAS | D77: =IF(D76="","","1er Año") -> 1er Año | E77: =IF(E76="","",(VLOOKUP(B77,'TDPrimas Vida'!$B:$N,5,0))) -> 9954782.444 | F77: =IF(E76="","",(VLOOKUP(B77,'TDPrimas Vida'!$B:$N,6,0))) -> 7972773.569 | G77: =IFERROR((E77/VLOOKUP("TOTAL",$D$12:$L$312,2,0))*100,"") -> 11.85780693 | H77: =IFERROR((E77/VLOOKUP("TOTAL",$D$12:$L$312,3,0))*100,"") -> 12.76673781 | I77: =IF(E76="","",E77-F77) -> 1982008.876 | J77: =IF(E76="","",IFERROR((E77/F77-1)*100,"ND")) -> 24.85971611 | K77: =IF(E76="","",IFERROR((E77/VLOOKUP(B77&"|"&VLOOKUP(TDPrimas!$B$4,Cat!R:T,2,0),'TD Operación'!A:D,4,0))*100,"ND")) -> 13.69597955 | L77: =IF(E76="","",(VLOOKUP(B77,'TDPrimas Vida'!$B:$N,7,0))) -> 18.37830617
B78: =IF(C78="",B77,D78) -> TOTAL MEDIANAS | D78: =IF(D77="","","Renovación") -> Renovación | E78: =IF(E76="","",(VLOOKUP(B78,'TDPrimas Vida'!$B:$N,8,0))) -> 9904017.991 | F78: =IF(E76="","",(VLOOKUP(B78,'TDPrimas Vida'!$B:$N,9,0))) -> 9883553.948 | G78: =IFERROR((E78/VLOOKUP("TOTAL",$D$12:$L$312,2,0))*100,"") -> 11.797338 | H78: =IFERROR((E78/VLOOKUP("TOTAL",$D$12:$L$312,3,0))*100,"") -> 12.70163378 | I78: =IF(E76="","",E78-F78) -> 20464.04378 | J78: =IF(E76="","",IFERROR((E78/F78-1)*100,"ND")) -> 0.2070514704 | K78: =IF(E76="","",IFERROR((E78/VLOOKUP(B78&"|"&VLOOKUP(TDPrimas!$B$4,Cat!R:T,2,0),'TD Operación'!A:D,4,0))*100,"ND")) -> 13.62613685 | L78: =IF(E76="","",(VLOOKUP(B78,'TDPrimas Vida'!$B:$N,10,0))) -> 18.28458593
B79: =IF(C79="",B78,D79) -> TOTAL MEDIANAS | D79: =IF(D78="","","Únicas") -> Únicas | E79: =IF(E77="","",(VLOOKUP(B79,'TDPrimas Vida'!$B:$N,11,0))) -> 2917344.651 | F79: =IF(E77="","",(VLOOKUP(B79,'TDPrimas Vida'!$B:$N,12,0))) -> 2730600.939 | G79: =IFERROR((E79/VLOOKUP("TOTAL",$D$12:$L$312,2,0))*100,"") -> 3.475044263 | H79: =IFERROR((E79/VLOOKUP("TOTAL",$D$12:$L$312,3,0))*100,"") -> 3.741415192 | I79: =IF(E76="","",E79-F79) -> 186743.7119 | J79: =IF(E76="","",IFERROR((E79/F79-1)*100,"ND")) -> 6.838923595 | K79: =IF(E76="","",IFERROR((E79/VLOOKUP(B79&"|"&VLOOKUP(TDPrimas!$B$4,Cat!R:T,2,0),'TD Operación'!A:D,4,0))*100,"ND")) -> 4.013738413 | L79: =IF(E76="","",(VLOOKUP(B79,'TDPrimas Vida'!$B:$N,13,0))) -> 5.385939222
